Workbook

Sheet InputC - Operations
F1: Project IRR
F2: Equity IRR
D3: Active Scenario | F3: 1 | K3: Base Case | L3: P90 Debt Size Case | M3: P99 Debt Size Case | N3: Inflation Case | O3: Inflation and Degradation | P3: Inflation and Degradation | Q3: Higher EPC | R3: Lower PPA | S3: Shareholder Loan
E4: Applied (Fixed) | F4: From Index | K4: 1 | L4: 2 | M4: 3 | N4: 4 | O4: 5 | P4: 6 | Q4: 7 | R4: 8 | S4: 9
B6: Model Timeline
D7: Financial Close Date | E7: 2023-01-01 | F7: =INDEX($K7:$S7,case_active) -> 2023-01-01 | G7: Date | K7: 2023-01-01 | L7: 2023-01-01 | M7: 2023-01-01 | N7: 2023-01-01 | O7: 2023-01-01 | P7: 2023-01-01 | Q7: 2023-01-01 | R7: 2023-01-01 | S7: 2023-01-01
D8: Construction Period | E8: =F8 -> 1 | F8: =INDEX(K8:S8,case_active) -> 1 | G8: Month | K8: 1 | L8: =K8 -> 1 | M8: =L8 -> 1 | N8: 1 | O8: 1 | P8: 1 | Q8: 1 | R8: 1 | S8: 1
D9: Commerical Operation Date | E9: 2023-12-01 | F9: =INDEX(K9:S9,case_active) -> 2023-02-01 | G9: Date | K9: =EDATE(K7,K8) -> 2023-02-01 | L9: =EDATE(L7,L8) -> 2023-02-01 | M9: 2023-02-01 | N9: =EDATE(N7,N8) -> 2023-02-01 | O9: =EDATE(O7,O8) -> 2023-02-01 | P9: =EDATE(P7,P8) -> 2023-02-01 | Q9: 2023-02-01 | R9: 2023-02-01 | S9: 2023-02-01
D10: Operating Life | E10: 35 | F10: =INDEX(K10:S10,case_active) -> 35 | G10: Years | K10: 35 | L10: 35 | M10: 35 | N10: 35 | O10: 35 | P10: 35 | Q10: 35 | R10: 35 | S10: 35
D11: Period After Operating Life | E11: 2058-12-01 | F11: =INDEX(K11:S11,case_active) -> 2058-02-01 | G11: Date | K11: =EDATE(K9,K10*Months) -> 2058-02-01 | L11: 2058-02-01 | M11: 2058-02-01 | N11: =EDATE(N9,N10*Months) -> 2058-02-01 | O11: 2058-02-01 | P11: =EDATE(P9,P10*Months) -> 2058-02-01 | Q11: 2058-02-01 | R11: 2058-02-01 | S11: 2058-02-01
D13: Months in Period for Semi-Annual | E13: 6 | F13: =INDEX(K13:S13,case_active) -> 6 | G13: Months | K13: 6 | L13: 6 | M13: 6 | N13: 6 | O13: 6 | P13: 6 | Q13: 6 | R13: 6 | S13: 6
D14: Months in Period pre-COD | E14: 1 | F14: =INDEX(K14:S14,case_active) -> 1 | G14: Months | K14: 1 | L14: 1 | M14: 1 | N14: 1 | O14: 1 | P14: 1 | Q14: 1 | R14: 1 | S14: 1
B16: Solar Plant Details
D17: Capacity of Plant | E17: 132 | F17: =INDEX(K17:S17,case_active) -> 132 | G17: MWp | K17: 132 | L17: 132 | M17: 132 | N17: 132 | O17: 132 | P17: 132 | Q17: 132 | R17: 132 | S17: 132
D19: Standard Deviation in Resoruce | E19: =I19/100 -> 0 | F19: =INDEX(K19:S19,case_active) -> 0.1 | G19: % | K19: 0.1 | L19: 0.1 | M19: 0.1 | N19: 0.1 | O19: 0.1 | P19: 0.1 | Q19: 0.1 | R19: 0.1 | S19: 0.1
D20: Complement of P Value | E20: 0.1 | F20: =INDEX(K20:S20,case_active) -> 0.5 | G20: % | K20: 0.5 | L20: 0.1 | M20: 0.01 | N20: 0.5 | O20: 0.5 | P20: 0.5 | Q20: 0.1 | R20: 0.1 | S20: 0.1
D22: Annual Yield | E22: 1980 | F22: =INDEX(K22:S22,case_active) -> 1980 | G22: MWh/MWp | K22: 1980 | N22: 1980 | O22: 1980 | P22: 1980
D24: Plant Availability Code | E24: =F24 -> 1 | F24: =INDEX(K24:S24,case_active) -> 1 | G24: % | K24: 1 | L24: 1 | M24: 1 | N24: 1 | O24: 1 | P24: 1 | Q24: 1 | R24: 1 | S24: 1
D25: Degradation Code to InputS | E25: =F25 -> 3 | F25: =INDEX(K25:S25,case_active) -> 3 | G25: Code | H25: =InputS!D41 -> Zero Degradation | K25: 3 | L25: 3 | M25: 3 | N25: 3 | O25: 1 | P25: 1 | Q25: 3 | R25: 3 | S25: 3
B27: Revenues
D28: PPA Inflation Rate Code to InputS | E28: =F28 -> 3 | F28: =INDEX(K28:S28,case_active) -> 3 | G28: % p.a. | H28: On costs and Revenues | K28: 3 | L28: 3 | M28: 3 | N28: 1 | O28: 1 | P28: 3 | Q28: 3 | R28: 3 | S28: 3
D30: PPA Term Contract | E30: 35 | F30: =INDEX(K30:S30,case_active) -> 35 | G30: Years | K30: =K10 -> 35 | L30: 35 | M30: 35 | N30: =N10 -> 35 | O30: 35 | P30: =P10 -> 35 | Q30: 35 | R30: 35 | S30: 35
D31: Offtake Amount | E31: 1 | F31: =INDEX(K31:S31,case_active) -> 1 | G31: % | H31: Of Total Production | K31: 1 | L31: 1 | M31: 1 | N31: 1 | O31: 1 | P31: 1 | Q31: 1 | R31: 1 | S31: 1
D33: Power Price for Offtake (Euro 2021) | E33: 25.83884403 | F33: =INDEX(K33:S33,case_active) -> 33 | G33: Euro/MWh | H33: Real Terms - 2021 | K33: 33 | L33: 33 | M33: 33 | N33: 33 | O33: 33 | P33: 33 | Q33: 33 | R33: 33 | S33: 33
D34: Apply PPA Inflation | E34: =F34 -> 0 | F34: =INDEX(K34:S34,case_active) -> 0 | G34: Flag | H34: 1 =Yes; 0 - No | K34: 0 | L34: 0 | M34: 0 | N34: 1 | O34: 1 | P34: 1 | Q34: 0 | R34: 0 | S34: 0
D35: Start Date for PPA Inflation | E35: 2023-12-01 | F35: =INDEX(K35:S35,case_active) -> 2023-02-01 | G35: Date | K35: =K9 -> 2023-02-01 | L35: =L9 -> 2023-02-01 | M35: =M9 -> 2023-02-01 | N35: =N9 -> 2023-02-01 | O35: =O9 -> 2023-02-01 | P35: =P9 -> 2023-02-01 | Q35: 2023-02-01 | R35: 2023-02-01 | S35: 2023-02-01
D37: Target Project IRR | E37: =F37 -> 0.05 | F37: =INDEX(K37:S37,case_active) -> 0.05 | K37: 0.05 | L37: 0.05 | M37: 0.05 | N37: 0.05 | O37: 0.05 | P37: 0.05 | Q37: 0.05 | R37: 0.05 | S37: 0.05
D39: Revenues Arrear Collection | E39: 2 | F39: =INDEX(K39:S39,case_active) -> 2 | G39: Months | H39: Received in Arrears | K39: 2 | L39: 2 | M39: 2 | N39: 2 | O39: 2 | P39: 2 | Q39: 2 | R39: 2 | S39: 2
B41: Operation and Maintenance
D42: Land Lease | E42: =F42 -> 0 | F42: =INDEX(K42:S42,case_active) -> 0 | G42: Euro/Yr | H42: Payable Through Construction | K42: 0 | L42: 0 | M42: 0 | N42: 0 | O42: 0 | P42: 0 | Q42: 0 | R42: 0 | S42: 0
D43: Land Lease Infaltion Start | E43: 2023-01-01 | F43: =INDEX(K43:S43,case_active) -> 2023-01-01 | K43: 2023-01-01 | L43: 2023-01-01 | M43: 2023-01-01 | N43: 2023-01-01 | O43: 2023-01-01 | P43: 2023-01-01 | Q43: 2023-01-01 | R43: 2023-01-01 | S43: 2023-01-01
D45: O&M per Year without Inflation - Initial Contract | E45: =F45 -> 12 | F45: =INDEX(K45:S45,case_active) -> 12 | G45: Euro/kWp-yr | H45: Starting OpEx | K45: 12 | L45: 12 | M45: 12 | N45: 12 | O45: 12 | P45: 12 | Q45: 12 | R45: 12 | S45: 12
D46: Initial Period End for O&M | E46: =F46 -> 100 | F46: =INDEX(K46:S46,case_active) -> 100 | G46: Years | K46: 100 | L46: 100 | M46: 100 | N46: 100 | O46: 100 | P46: 100 | Q46: 100 | R46: 100 | S46: 100
D47: O&M per Year after Initial Period | E47: =F47 -> 12 | F47: =INDEX(K47:S47,case_active) -> 12 | G47: Euro/kWp | H47: Due to Economies of Scale | K47: 12 | L47: 12 | M47: 12 | N47: 12 | O47: 12 | P47: 12 | Q47: 12 | R47: 12 | S47: 12
D49: Insurance During Operation | E49: =F49 -> 0 | F49: =INDEX(K49:S49,case_active) -> 0 | G49: Euro/kWp-yr | H49: Yearly Estimate | K49: 0 | L49: 0 | M49: 0 | N49: 0 | O49: 0 | P49: 0 | Q49: 0 | R49: 0 | S49: 0
D51: Operation and Maintenance Payment Arrears | E51: 2 | F51: =INDEX(K51:S51,case_active) -> 2 | G51: Months | K51: 2 | L51: 2 | M51: 2 | N51: 2 | O51: 2 | P51: 2 | Q51: 2 | R51: 2 | S51: 2
B53: Capital Expenditures | H53: Paid at Financial Close
D54: EPC Contractor | E54: 900 | F54: =INDEX(K54:S54,case_active) -> 900 | G54: Euro/kWp | K54: 900 | L54: 900 | M54: 900 | N54: 900 | O54: 900 | P54: 900 | Q54: 1200 | R54: 1000 | S54: 1000
D55: S-curve Code to InputS | E55: 1 | F55: =INDEX(K55:S55,case_active) -> 1 | G55: Code | H55: Detailed in Input-S | K55: 1 | L55: 1 | M55: 3 | N55: 1 | O55: 1 | P55: 1 | Q55: 1 | R55: 1 | S55: 1
D56: Developer Fee | E56: =F56 -> 0 | F56: =INDEX(K56:S56,case_active) -> 0 | G56: Euro | H56: Paid to Developer | K56: 0 | L56: 0 | M56: 0 | N56: 0 | O56: 0 | P56: 0 | Q56: 0 | R56: 0 | S56: 0
D57: Period of Developer Bonus | E57: 2023-12-01 | F57: =INDEX(K57:S57,case_active) -> 2023-01-01 | G57: Date | H57: Assume paid in Fin Close (up-front) | K57: =K7 -> 2023-01-01 | L57: =L9 -> 2023-02-01 | M57: =M7 -> 2023-01-01 | N57: =N7 -> 2023-01-01 | O57: =O7 -> 2023-01-01 | P57: =P7 -> 2023-01-01 | Q57: =Q7 -> 2023-01-01 | R57: 2023-01-01 | S57: 2023-01-01
B59: Taxes and Capital Allowance
D60: Bonus Depreciation | G60: Percent | K60: 0 | L60: 0 | M60: 0 | N60: 0 | O60: 0 | P60: 0 | Q60: 0 | R60: 0 | S60: 0
D61: Depreciaion Life | E61: 5 | F61: =INDEX(K61:S61,case_active) -> 5 | G61: Years | K61: 5 | L61: 5 | M61: 5 | N61: 5 | O61: 5 | P61: 5 | Q61: 5 | R61: 5 | S61: 5
D62: Declining Balance Factor | E62: 2 | F62: =INDEX(K62:S62,case_active) -> 2 | G62: Factor | K62: 2 | L62: 2 | M62: 2 | N62: 2 | O62: 2 | P62: 2 | Q62: 2 | R62: 2 | S62: 2
D63: Tax Depreciation Code Number | E63: 1 | F63: =INDEX(K63:S63,case_active) -> 1 | G63: Code | K63: 1 | L63: 1 | M63: 2 | N63: 1 | O63: 1 | P63: 1 | Q63: 2 | R63: 2 | S63: 2
D64: Tax Rate | E64: 0.21 | F64: =INDEX(K64:S64,case_active) -> 0.21 | G64: % | K64: 0.21 | L64: 0.21 | M64: 0.21 | N64: 0.21 | O64: 0.21 | P64: 0.21 | Q64: 0.21 | R64: 0.21 | S64: 0.21
B66: Constants
D67: Months in Year | F67: 12 | G67: Months
D68: Inflation Days in Year | F68: 365 | G68: Days Inflation
D69: Semi-Annual Periods | F69: 2 | G69: Semi
D70: Days in 360 Year | F70: 360 | G70: Year 360

Sheet InputS
A1: =RIGHT(CELL("filename",A1),LEN(CELL("filename",A1))- SEARCH("]",CELL("filename",A1))) -> InputS
C3: EPC - S-Curve
B5: Construction
D6: Construction Period | G6: Month | L6: 1 | M6: 2 | N6: 3 | O6: 4 | P6: 5 | Q6: 6 | R6: 7 | S6: 8 | T6: 9 | U6: 10 | V6: 11 | W6: 12 | X6: 13 | Y6: 14 | Z6: 15 | AA6: 16 | AB6: 17 | AC6: 18 | AD6: 19 | AE6: 20 | AF6: 21 | AG6: 22 | AH6: 23 | AI6: 24
D7: Construction Year | G7: Year | L7: =ROUNDUP(L6/12,0) -> 1 | M7: =ROUNDUP(M6/12,0) -> 1 | N7: 1 | O7: 1 | P7: 1 | Q7: 1 | R7: 1 | S7: 1 | T7: 1 | U7: 1 | V7: 1 | W7: 1 | X7: 2 | Y7: 2 | Z7: 2 | AA7: 2 | AB7: 2 | AC7: 2 | AD7: 2 | AE7: 2 | AF7: 2 | AG7: 2 | AH7: 2 | AI7: 2
D8: Construction Months | G8: Flag | H8: ='InputC - Operations'!E8 -> 1 | L8: =L6<=$H$8 -> TRUE | M8: FALSE | N8: FALSE | O8: FALSE | P8: FALSE | Q8: FALSE | R8: FALSE | S8: FALSE | T8: FALSE | U8: FALSE | V8: FALSE | W8: FALSE | X8: FALSE | Y8: FALSE | Z8: FALSE | AA8: FALSE | AB8: FALSE | AC8: FALSE | AD8: FALSE | AE8: FALSE | AF8: FALSE | AG8: FALSE | AH8: FALSE | AI8: FALSE
C10: S-Curve - Scenario Number | G10: Code | H10: ='InputC - Operations'!E55 -> 1
D12: S-Curve - Base Case | F12: 1 | G12: % | H12: =SUM(L12:BI12) -> 1 | L12: 1
D13: S-Curve - Flat Case | F13: 2 | G13: % | H13: =SUM(L13:BI13) -> 1 | L13: =1/$H$8*L8 -> 1
D14: S-Curve - Front Loaded Case | F14: 3 | G14: % | H14: =SUM(L14:BI14) -> 1 | L14: 1
D16: =INDEX(D12:D14,$H$10) -> S-Curve - Base Case | G16: % | H16: =SUM(I16:XFD16) -> 1 | L16: =INDEX(L12:L15,$H$10) -> 1 | M16: =INDEX(M12:M15,$H$10) -> 0 | N16: =INDEX(N12:N15,$H$10) -> 0 | O16: =INDEX(O12:O15,$H$10) -> 0 | P16: =INDEX(P12:P15,$H$10) -> 0 | Q16: =INDEX(Q12:Q15,$H$10) -> 0 | R16: =INDEX(R12:R15,$H$10) -> 0 | S16: =INDEX(S12:S15,$H$10) -> 0 | T16: =INDEX(T12:T15,$H$10) -> 0 | U16: =INDEX(U12:U15,$H$10) -> 0 | V16: =INDEX(V12:V15,$H$10) -> 0 | W16: =INDEX(W12:W15,$H$10) -> 0 | X16: =INDEX(X12:X15,$H$10) -> 0 | Y16: =INDEX(Y12:Y15,$H$10) -> 0 | Z16: =INDEX(Z12:Z15,$H$10) -> 0 | AA16: =INDEX(AA12:AA15,$H$10) -> 0 | AB16: =INDEX(AB12:AB15,$H$10) -> 0 | AC16: =INDEX(AC12:AC15,$H$10) -> 0 | AD16: =INDEX(AD12:AD15,$H$10) -> 0 | AE16: =INDEX(AE12:AE15,$H$10) -> 0 | AF16: =INDEX(AF12:AF15,$H$10) -> 0 | AG16: =INDEX(AG12:AG15,$H$10) -> 0 | AH16: =INDEX(AH12:AH15,$H$10) -> 0 | AI16: =INDEX(AI12:AI15,$H$10) -> 0
C18: Solar Seasonality
D19: Month Name | K19: 1 | L19: Jan | M19: Feb | N19: March | O19: April | P19: May | Q19: June | R19: July | S19: August | T19: Sept | U19: October | V19: Nov | W19: Dec
D20: Month Number | G20: Counter | L20: 1 | M20: 2 | N20: 3 | O20: 4 | P20: 5 | Q20: 6 | R20: 7 | S20: 8 | T20: 9 | U20: 10 | V20: 11 | W20: 12
D21: Resource Availability | G21: % | H21: =SUM(L21:W21) -> 1 | L21: =1/12 -> 0.08333333333 | M21: =1/12 -> 0.08333333333 | N21: 0.08333333333 | O21: 0.08333333333 | P21: 0.08333333333 | Q21: 0.08333333333 | R21: 0.08333333333 | S21: 0.08333333333 | T21: 0.08333333333 | U21: 0.08333333333 | V21: 0.08333333333 | W21: 0.08333333333
B23: Macro Economic
C24: General Inflation Rate | G24: Code | H24: ='InputC - Operations'!E28 -> 3
D26: Year | L26: 2021 | M26: 2022 | N26: 2023 | O26: 2024 | P26: 2025 | Q26: 2026 | R26: 2027 | S26: 2028 | T26: 2029
D27: Base Case | F27: 1 | G27: % | L27: 0.03 | M27: 0.03 | N27: 0.03 | O27: 0.03 | P27: 0.03 | Q27: 0.03 | R27: 0.03 | S27: 0.03 | T27: 0.03
D28: High Inflation | F28: 2 | G28: % | L28: 0.04 | M28: 0.04 | N28: 0.04 | O28: 0.04 | P28: 0.04 | Q28: 0.04 | R28: 0.04 | S28: 0.04 | T28: 0.04
D29: Zero Inflation | F29: 3 | G29: % | L29: 0 | M29: 0 | N29: 0 | O29: 0 | P29: 0 | Q29: 0 | R29: 0 | S29: 0 | T29: 0
D31: =INDEX(D27:D29,$H$24) -> Zero Inflation | G31: % | L31: =INDEX(L27:L29,$H$24) -> 0 | M31: =INDEX(M27:M29,$H$24) -> 0 | N31: =INDEX(N27:N29,$H$24) -> 0 | O31: =INDEX(O27:O29,$H$24) -> 0 | P31: =INDEX(P27:P29,$H$24) -> 0 | Q31: =INDEX(Q27:Q29,$H$24) -> 0 | R31: =INDEX(R27:R29,$H$24) -> 0 | S31: =INDEX(S27:S29,$H$24) -> 0 | T31: =INDEX(T27:T29,$H$24) -> 0
C33: Degradation Rate | G33: Code | H33: ='InputC - Operations'!E25 -> 3
D35: Age - Annual | G35: Year | K35: 0 | L35: 1 | M35: 2 | N35: 3 | O35: 4 | P35: 5 | Q35: 6 | R35: 7 | S35: 8 | T35: 9 | U35: 10 | V35: 11 | W35: 12
D37: Base Degradation | F37: 1 | G37: % | L37: 0.005 | M37: 0.005 | N37: 0.005 | O37: 0.005 | P37: 0.005 | Q37: 0.005 | R37: 0.005 | S37: 0.005 | T37: 0.005 | U37: 0.005 | V37: 0.005 | W37: 0.005
D38: High Degradation | F38: 2 | G38: % | L38: 0.0075 | M38: 0.0075 | N38: 0.0075 | O38: 0.0075 | P38: 0.0075 | Q38: 0.0075 | R38: 0.0075 | S38: 0.0075 | T38: 0.0075 | U38: 0.0075 | V38: 0.0075 | W38: 0.0075
D39: Zero Degradation | F39: 3 | G39: % | L39: 0 | M39: 0 | N39: 0 | O39: 0 | P39: 0 | Q39: 0 | R39: 0 | S39: 0 | T39: 0 | U39: 0 | V39: 0 | W39: 0
D41: =INDEX(D37:D39,$H$33) -> Zero Degradation | G41: % | L41: =INDEX(L37:L39,$H$33) -> 0 | M41: =INDEX(M37:M39,$H$33) -> 0 | N41: =INDEX(N37:N39,$H$33) -> 0 | O41: =INDEX(O37:O39,$H$33) -> 0 | P41: =INDEX(P37:P39,$H$33) -> 0 | Q41: =INDEX(Q37:Q39,$H$33) -> 0 | R41: =INDEX(R37:R39,$H$33) -> 0 | S41: =INDEX(S37:S39,$H$33) -> 0 | T41: =INDEX(T37:T39,$H$33) -> 0 | U41: =INDEX(U37:U39,$H$33) -> 0 | V41: =INDEX(V37:V39,$H$33) -> 0 | W41: =INDEX(W37:W39,$H$33) -> 0

Sheet Operation Monthly
A1: =MID(CELL("filename"),FIND("]",CELL("filename"),1)+1,250) -> Operation Monthly
E2: Constant | F2: Constant | G2: Unit | J2: Total
D3: Period Number | G3: Number | L3: 1 | M3: 2 | N3: 3 | O3: 4 | P3: 5 | Q3: 6 | R3: 7 | S3: 8 | T3: 9 | U3: 10 | V3: 11 | W3: 12 | X3: 13 | Y3: 14 | Z3: 15 | AA3: 16 | AB3: 17 | AC3: 18 | AD3: 19 | AE3: 20 | AF3: 21 | AG3: 22 | AH3: 23 | AI3: 24 | AJ3: 25 | AK3: 26 | AL3: 27 | AM3: 28 | AN3: 29 | AO3: 30 | AP3: 31 | AQ3: 32 | AR3: 33 | AS3: 34 | AT3: 35 | AU3: 36 | AV3: 37 | AW3: 38 | AX3: 39 | AY3: 40 | AZ3: 41 | BA3: 42 | BB3: 43 | BC3: 44 | BD3: 45 | BE3: 46 | BF3: 47 | BG3: 48 | BH3: 49 | BI3: 50 | BJ3: 51 | BK3: 52 | BL3: 53 | BM3: 54 | BN3: 55 | BO3: 56 | BP3: 57 | BQ3: 58 | BR3: 59 | BS3: 60 | BT3: 61 | BU3: 62 | BV3: 63 | BW3: 64 | BX3: 65 | BY3: 66 | BZ3: 67 | CA3: 68 | CB3: 69 | CC3: 70 | CD3: 71 | CE3: 72 | CF3: 73 | CG3: 74 | CH3: 75 | CI3: 76 | CJ3: 77 | CK3: 78 | CL3: 79 | CM3: 80 | CN3: 81 | CO3: 82 | CP3: 83 | CQ3: 84 | CR3: 85 | CS3: 86 | CT3: 87 | CU3: 88 | CV3: 89 | CW3: 90 | CX3: 91 | CY3: 92 | CZ3: 93 | DA3: 94 | DB3: 95 | DC3: 96 | DD3: 97 | DE3: 98 | DF3: 99 | DG3: 100 | DH3: 101 | DI3: 102 | DJ3: 103 | DK3: 104 | DL3: 105 | DM3: 106 | DN3: 107 | DO3: 108 | DP3: 109 | DQ3: 110 | DR3: 111 | DS3: 112 | DT3: 113 | DU3: 114 | DV3: 115 | DW3: 116 | DX3: 117 | DY3: 118 | DZ3: 119 | EA3: 120 | EB3: 121 | EC3: 122 | ED3: 123 | EE3: 124 | EF3: 125 | EG3: 126 | EH3: 127 | EI3: 128 | EJ3: 129 | EK3: 130 | EL3: 131 | EM3: 132 | EN3: 133 | EO3: 134 | EP3: 135 | EQ3: 136 | ER3: 137 | ES3: 138 | ET3: 139 | EU3: 140 | EV3: 141 | EW3: 142 | EX3: 143 | EY3: 144 | EZ3: 145 | FA3: 146 | FB3: 147 | FC3: 148 | FD3: 149 | FE3: 150 | FF3: 151 | FG3: 152 | FH3: 153 | FI3: 154 | FJ3: 155 | FK3: 156 | FL3: 157 | FM3: 158 | FN3: 159 | FO3: 160 | FP3: 161 | FQ3: 162 | FR3: 163 | FS3: 164 | FT3: 165 | FU3: 166 | FV3: 167 | FW3: 168 | FX3: 169 | FY3: 170 | FZ3: 171 | GA3: 172 | GB3: 173 | GC3: 174 | GD3: 175 | GE3: 176 | GF3: 177 | GG3: 178 | GH3: 179 | GI3: 180 | GJ3: 181 | GK3: 182 | GL3: 183 | GM3: 184 | GN3: 185 | GO3: 186 | GP3: 187 | GQ3: 188 | GR3: 189 | GS3: 190 | GT3: 191 | GU3: 192 | GV3: 193 | GW3: 194 | GX3: 195 | GY3: 196 | GZ3: 197 | HA3: 198 | HB3: 199 | HC3: 200 | HD3: 201 | HE3: 202 | HF3: 203 | HG3: 204 | HH3: 205 | HI3: 206 | HJ3: 207 | HK3: 208 | HL3: 209 | HM3: 210 | HN3: 211 | HO3: 212 | HP3: 213 | HQ3: 214 | HR3: 215 | HS3: 216 | HT3: 217 | HU3: 218 | HV3: 219 | HW3: 220 | HX3: 221 | HY3: 222 | HZ3: 223 | IA3: 224 | IB3: 225 | IC3: 226 | ID3: 227 | IE3: 228 | IF3: 229 | IG3: 230 | IH3: 231 | II3: 232 | IJ3: 233 | IK3: 234 | IL3: 235 | IM3: 236 | IN3: 237 | IO3: 238 | IP3: 239 | IQ3: 240 | IR3: 241 | IS3: 242 | IT3: 243 | IU3: 244 | IV3: 245 | IW3: 246 | IX3: 247 | IY3: 248 | IZ3: 249 | JA3: 250 | JB3: 251 | JC3: 252 | JD3: 253 | JE3: 254 | JF3: 255 | JG3: 256 | JH3: 257 | JI3: 258 | JJ3: 259 | JK3: 260 | JL3: 261 | JM3: 262 | JN3: 263 | JO3: 264 | JP3: 265 | JQ3: 266 | JR3: 267 | JS3: 268 | JT3: 269 | JU3: 270 | JV3: 271 | JW3: 272 | JX3: 273 | JY3: 274 | JZ3: 275 | KA3: 276 | KB3: 277 | KC3: 278 | KD3: 279 | KE3: 280 | KF3: 281 | KG3: 282 | KH3: 283 | KI3: 284 | KJ3: 285 | KK3: 286 | KL3: 287 | KM3: 288 | KN3: 289 | KO3: 290 | KP3: 291 | KQ3: 292 | KR3: 293 | KS3: 294 | KT3: 295 | KU3: 296 | KV3: 297 | KW3: 298 | KX3: 299 | KY3: 300 | KZ3: 301 | LA3: 302 | LB3: 303 | LC3: 304 | LD3: 305 | LE3: 306 | LF3: 307 | LG3: 308 | LH3: 309 | LI3: 310 | LJ3: 311 | LK3: 312 | LL3: 313 | LM3: 314 | LN3: 315 | LO3: 316 | LP3: 317 | LQ3: 318 | LR3: 319 | LS3: 320 | LT3: 321 | LU3: 322 | LV3: 323 | LW3: 324 | LX3: 325 | LY3: 326 | LZ3: 327 | MA3: 328 | MB3: 329 | MC3: 330 | MD3: 331 | ME3: 332 | MF3: 333 | MG3: 334 | MH3: 335 | MI3: 336 | MJ3: 337 | MK3: 338 | ML3: 339 | MM3: 340 | MN3: 341 | MO3: 342 | MP3: 343 | MQ3: 344 | MR3: 345 | MS3: 346 | MT3: 347 | MU3: 348 | MV3: 349 | MW3: 350 | MX3: 351 | MY3: 352 | MZ3: 353 | NA3: 354 | NB3: 355 | NC3: 356 | ND3: 357 | NE3: 358 | NF3: 359 | NG3: 360 | NH3: 361 | NI3: 362 | NJ3: 363 | NK3: 364 | NL3: 365 | NM3: 366 | NN3: 367 | NO3: 368 | NP3: 369 | NQ3: 370 | NR3: 371 | NS3: 372 | NT3: 373 | NU3: 374 | NV3: 375 | NW3: 376 | NX3: 377 | NY3: 378 | NZ3: 379 | OA3: 380 | OB3: 381 | OC3: 382 | OD3: 383 | OE3: 384 | OF3: 385 | OG3: 386 | OH3: 387 | OI3: 388 | OJ3: 389 | OK3: 390 | OL3: 391 | OM3: 392 | ON3: 393 | OO3: 394 | OP3: 395 | OQ3: 396 | OR3: 397 | OS3: 398 | OT3: 399 | OU3: 400 | OV3: 401 | OW3: 402 | OX3: 403 | OY3: 404 | OZ3: 405 | PA3: 406 | PB3: 407 | PC3: 408 | PD3: 409 | PE3: 410 | PF3: 411 | PG3: 412 | PH3: 413 | PI3: 414 | PJ3: 415 | PK3: 416 | PL3: 417 | PM3: 418 | PN3: 419 | PO3: 420 | PP3: 421 | PQ3: 422 | PR3: 423 | PS3: 424 | PT3: 425 | PU3: 426 | PV3: 427 | PW3: 428 | PX3: 429 | PY3: 430 | PZ3: 431 | QA3: 432 | QB3: 433 | QC3: 434 | QD3: 435 | QE3: 436 | QF3: 437 | QG3: 438 | QH3: 439 | QI3: 440 | QJ3: 441 | QK3: 442 | QL3: 443 | QM3: 444 | QN3: 445 | QO3: 446 | QP3: 447 | QQ3: 448 | QR3: 449 | QS3: 450 | QT3: 451 | QU3: 452 | QV3: 453 | QW3: 454 | QX3: 455 | QY3: 456 | QZ3: 457 | RA3: 458 | RB3: 459 | RC3: 460 | RD3: 461 | RE3: 462 | RF3: 463 | RG3: 464 | RH3: 465 | RI3: 466 | RJ3: 467 | RK3: 468 | RL3: 469 | RM3: 470 | RN3: 471 | RO3: 472 | RP3: 473 | RQ3: 474 | RR3: 475 | RS3: 476 | RT3: 477 | RU3: 478 | RV3: 479 | RW3: 480 | RX3: 481 | RY3: 482 | RZ3: 483 | SA3: 484 | SB3: 485 | SC3: 486 | SD3: 487 | SE3: 488 | SF3: 489 | SG3: 490 | SH3: 491 | SI3: 492 | SJ3: 493 | SK3: 494 | SL3: 495 | SM3: 496 | SN3: 497 | SO3: 498 | SP3: 499 | SQ3: 500
D4: Start of Period | E4: ='InputC - Operations'!$F$7 -> 2023-01-01 | G4: Date | L4: =K5+1 -> 2023-01-01 | M4: =L5+1 -> 2023-02-01 | N4: 2023-03-01 | O4: 2023-04-01 | P4: 2023-05-01 | Q4: 2023-06-01 | R4: 2023-07-01 | S4: 2023-08-01 | T4: 2023-09-01 | U4: 2023-10-01 | V4: 2023-11-01 | W4: 2023-12-01 | X4: 2024-01-01 | Y4: 2024-02-01 | Z4: 2024-03-01 | AA4: 2024-04-01 | AB4: 2024-05-01 | AC4: 2024-06-01 | AD4: 2024-07-01 | AE4: 2024-08-01 | AF4: 2024-09-01 | AG4: 2024-10-01 | AH4: 2024-11-01 | AI4: 2024-12-01 | AJ4: 2025-01-01 | AK4: 2025-02-01 | AL4: 2025-03-01 | AM4: 2025-04-01 | AN4: 2025-05-01 | AO4: 2025-06-01 | AP4: 2025-07-01 | AQ4: 2025-08-01 | AR4: 2025-09-01 | AS4: 2025-10-01 | AT4: 2025-11-01 | AU4: 2025-12-01 | AV4: 2026-01-01 | AW4: 2026-02-01 | AX4: 2026-03-01 | AY4: 2026-04-01 | AZ4: 2026-05-01 | BA4: 2026-06-01 | BB4: 2026-07-01 | BC4: 2026-08-01 | BD4: 2026-09-01 | BE4: 2026-10-01 | BF4: 2026-11-01 | BG4: 2026-12-01 | BH4: 2027-01-01 | BI4: 2027-02-01 | BJ4: 2027-03-01 | BK4: 2027-04-01 | BL4: 2027-05-01 | BM4: 2027-06-01 | BN4: 2027-07-01 | BO4: 2027-08-01 | BP4: 2027-09-01 | BQ4: 2027-10-01 | BR4: 2027-11-01 | BS4: 2027-12-01 | BT4: 2028-01-01 | BU4: 2028-02-01 | BV4: 2028-03-01 | BW4: 2028-04-01 | BX4: 2028-05-01 | BY4: =BX5+1 -> 2028-06-01 | BZ4: 2028-07-01 | CA4: 2028-08-01 | CB4: 2028-09-01 | CC4: 2028-10-01 | CD4: 2028-11-01 | CE4: 2028-12-01 | CF4: 2029-01-01 | CG4: 2029-02-01 | CH4: 2029-03-01 | CI4: 2029-04-01 | CJ4: 2029-05-01 | CK4: 2029-06-01 | CL4: 2029-07-01 | CM4: 2029-08-01 | CN4: 2029-09-01 | CO4: 2029-10-01 | CP4: 2029-11-01 | CQ4: 2029-12-01 | CR4: 2030-01-01 | CS4: 2030-02-01 | CT4: 2030-03-01 | CU4: 2030-04-01 | CV4: 2030-05-01 | CW4: 2030-06-01 | CX4: 2030-07-01 | CY4: 2030-08-01 | CZ4: 2030-09-01 | DA4: 2030-10-01 | DB4: 2030-11-01 | DC4: 2030-12-01 | DD4: 2031-01-01 | DE4: 2031-02-01 | DF4: 2031-03-01 | DG4: 2031-04-01 | DH4: 2031-05-01 | DI4: 2031-06-01 | DJ4: 2031-07-01 | DK4: 2031-08-01 | DL4: 2031-09-01 | DM4: 2031-10-01 | DN4: 2031-11-01 | DO4: 2031-12-01 | DP4: 2032-01-01 | DQ4: 2032-02-01 | DR4: 2032-03-01 | DS4: 2032-04-01 | DT4: 2032-05-01 | DU4: 2032-06-01 | DV4: 2032-07-01 | DW4: 2032-08-01 | DX4: 2032-09-01 | DY4: 2032-10-01 | DZ4: 2032-11-01 | EA4: 2032-12-01 | EB4: 2033-01-01 | EC4: 2033-02-01 | ED4: 2033-03-01 | EE4: 2033-04-01 | EF4: 2033-05-01 | EG4: 2033-06-01 | EH4: 2033-07-01 | EI4: 2033-08-01 | EJ4: 2033-09-01 | EK4: =EJ5+1 -> 2033-10-01 | EL4: 2033-11-01 | EM4: 2033-12-01 | EN4: 2034-01-01 | EO4: 2034-02-01 | EP4: 2034-03-01 | EQ4: 2034-04-01 | ER4: 2034-05-01 | ES4: 2034-06-01 | ET4: 2034-07-01 | EU4: 2034-08-01 | EV4: 2034-09-01 | EW4: 2034-10-01 | EX4: 2034-11-01 | EY4: 2034-12-01 | EZ4: 2035-01-01 | FA4: 2035-02-01 | FB4: 2035-03-01 | FC4: 2035-04-01 | FD4: 2035-05-01 | FE4: 2035-06-01 | FF4: 2035-07-01 | FG4: 2035-08-01 | FH4: 2035-09-01 | FI4: 2035-10-01 | FJ4: 2035-11-01 | FK4: 2035-12-01 | FL4: 2036-01-01 | FM4: 2036-02-01 | FN4: 2036-03-01 | FO4: 2036-04-01 | FP4: 2036-05-01 | FQ4: 2036-06-01 | FR4: 2036-07-01 | FS4: 2036-08-01 | FT4: 2036-09-01 | FU4: 2036-10-01 | FV4: 2036-11-01 | FW4: 2036-12-01 | FX4: 2037-01-01 | FY4: 2037-02-01 | FZ4: 2037-03-01 | GA4: 2037-04-01 | GB4: 2037-05-01 | GC4: 2037-06-01 | GD4: 2037-07-01 | GE4: 2037-08-01 | GF4: 2037-09-01 | GG4: 2037-10-01 | GH4: 2037-11-01 | GI4: 2037-12-01 | GJ4: 2038-01-01 | GK4: 2038-02-01 | GL4: 2038-03-01 | GM4: 2038-04-01 | GN4: 2038-05-01 | GO4: 2038-06-01 | GP4: 2038-07-01 | GQ4: 2038-08-01 | GR4: 2038-09-01 | GS4: 2038-10-01 | GT4: 2038-11-01 | GU4: 2038-12-01 | GV4: 2039-01-01 | GW4: =GV5+1 -> 2039-02-01 | GX4: 2039-03-01 | GY4: 2039-04-01 | GZ4: 2039-05-01 | HA4: 2039-06-01 | HB4: 2039-07-01 | HC4: 2039-08-01 | HD4: 2039-09-01 | HE4: 2039-10-01 | HF4: 2039-11-01 | HG4: 2039-12-01 | HH4: 2040-01-01 | HI4: 2040-02-01 | HJ4: 2040-03-01 | HK4: 2040-04-01 | HL4: 2040-05-01 | HM4: 2040-06-01 | HN4: 2040-07-01 | HO4: 2040-08-01 | HP4: 2040-09-01 | HQ4: 2040-10-01 | HR4: 2040-11-01 | HS4: 2040-12-01 | HT4: 2041-01-01 | HU4: 2041-02-01 | HV4: 2041-03-01 | HW4: 2041-04-01 | HX4: 2041-05-01 | HY4: 2041-06-01 | HZ4: 2041-07-01 | IA4: 2041-08-01 | IB4: 2041-09-01 | IC4: 2041-10-01 | ID4: 2041-11-01 | IE4: 2041-12-01 | IF4: 2042-01-01 | IG4: 2042-02-01 | IH4: 2042-03-01 | II4: 2042-04-01 | IJ4: 2042-05-01 | IK4: 2042-06-01 | IL4: 2042-07-01 | IM4: 2042-08-01 | IN4: 2042-09-01 | IO4: 2042-10-01 | IP4: 2042-11-01 | IQ4: 2042-12-01 | IR4: 2043-01-01 | IS4: 2043-02-01 | IT4: 2043-03-01 | IU4: 2043-04-01 | IV4: 2043-05-01 | IW4: 2043-06-01 | IX4: 2043-07-01 | IY4: 2043-08-01 | IZ4: 2043-09-01 | JA4: 2043-10-01 | JB4: 2043-11-01 | JC4: 2043-12-01 | JD4: 2044-01-01 | JE4: 2044-02-01 | JF4: 2044-03-01 | JG4: 2044-04-01 | JH4: 2044-05-01 | JI4: =JH5+1 -> 2044-06-01 | JJ4: 2044-07-01 | JK4: 2044-08-01 | JL4: 2044-09-01 | JM4: 2044-10-01 | JN4: 2044-11-01 | JO4: 2044-12-01 | JP4: 2045-01-01 | JQ4: 2045-02-01 | JR4: 2045-03-01 | JS4: 2045-04-01 | JT4: 2045-05-01 | JU4: 2045-06-01 | JV4: 2045-07-01 | JW4: 2045-08-01 | JX4: 2045-09-01 | JY4: 2045-10-01 | JZ4: 2045-11-01 | KA4: 2045-12-01 | KB4: 2046-01-01 | KC4: 2046-02-01 | KD4: 2046-03-01 | KE4: 2046-04-01 | KF4: 2046-05-01 | KG4: 2046-06-01 | KH4: 2046-07-01 | KI4: 2046-08-01 | KJ4: 2046-09-01 | KK4: 2046-10-01 | KL4: 2046-11-01 | KM4: 2046-12-01 | KN4: 2047-01-01 | KO4: 2047-02-01 | KP4: 2047-03-01 | KQ4: 2047-04-01 | KR4: 2047-05-01 | KS4: 2047-06-01 | KT4: 2047-07-01 | KU4: 2047-08-01 | KV4: 2047-09-01 | KW4: 2047-10-01 | KX4: 2047-11-01 | KY4: 2047-12-01 | KZ4: 2048-01-01 | LA4: 2048-02-01 | LB4: 2048-03-01 | LC4: 2048-04-01 | LD4: 2048-05-01 | LE4: 2048-06-01 | LF4: 2048-07-01 | LG4: 2048-08-01 | LH4: 2048-09-01 | LI4: 2048-10-01 | LJ4: 2048-11-01 | LK4: 2048-12-01 | LL4: 2049-01-01 | LM4: 2049-02-01 | LN4: 2049-03-01 | LO4: 2049-04-01 | LP4: 2049-05-01 | LQ4: 2049-06-01 | LR4: 2049-07-01 | LS4: 2049-08-01 | LT4: 2049-09-01 | LU4: =LT5+1 -> 2049-10-01 | LV4: 2049-11-01 | LW4: 2049-12-01 | LX4: 2050-01-01 | LY4: 2050-02-01 | LZ4: 2050-03-01 | MA4: 2050-04-01 | MB4: 2050-05-01 | MC4: 2050-06-01 | MD4: 2050-07-01 | ME4: 2050-08-01 | MF4: 2050-09-01 | MG4: 2050-10-01 | MH4: 2050-11-01 | MI4: 2050-12-01 | MJ4: 2051-01-01 | MK4: 2051-02-01 | ML4: 2051-03-01 | MM4: 2051-04-01 | MN4: 2051-05-01 | MO4: 2051-06-01 | MP4: 2051-07-01 | MQ4: 2051-08-01 | MR4: 2051-09-01 | MS4: 2051-10-01 | MT4: 2051-11-01 | MU4: 2051-12-01 | MV4: 2052-01-01 | MW4: 2052-02-01 | MX4: 2052-03-01 | MY4: 2052-04-01 | MZ4: 2052-05-01 | NA4: 2052-06-01 | NB4: 2052-07-01 | NC4: 2052-08-01 | ND4: 2052-09-01 | NE4: 2052-10-01 | NF4: 2052-11-01 | NG4: 2052-12-01 | NH4: 2053-01-01 | NI4: 2053-02-01 | NJ4: 2053-03-01 | NK4: 2053-04-01 | NL4: 2053-05-01 | NM4: 2053-06-01 | NN4: 2053-07-01 | NO4: 2053-08-01 | NP4: 2053-09-01 | NQ4: 2053-10-01 | NR4: 2053-11-01 | NS4: 2053-12-01 | NT4: 2054-01-01 | NU4: 2054-02-01 | NV4: 2054-03-01 | NW4: 2054-04-01 | NX4: 2054-05-01 | NY4: 2054-06-01 | NZ4: 2054-07-01 | OA4: 2054-08-01 | OB4: 2054-09-01 | OC4: 2054-10-01 | OD4: 2054-11-01 | OE4: 2054-12-01 | OF4: 2055-01-01 | OG4: =OF5+1 -> 2055-02-01 | OH4: 2055-03-01 | OI4: 2055-04-01 | OJ4: 2055-05-01 | OK4: 2055-06-01 | OL4: 2055-07-01 | OM4: 2055-08-01 | ON4: 2055-09-01 | OO4: 2055-10-01 | OP4: 2055-11-01 | OQ4: 2055-12-01 | OR4: 2056-01-01 | OS4: 2056-02-01 | OT4: 2056-03-01 | OU4: 2056-04-01 | OV4: 2056-05-01 | OW4: 2056-06-01 | OX4: 2056-07-01 | OY4: 2056-08-01 | OZ4: 2056-09-01 | PA4: 2056-10-01 | PB4: 2056-11-01 | PC4: 2056-12-01 | PD4: 2057-01-01 | PE4: 2057-02-01 | PF4: 2057-03-01 | PG4: 2057-04-01 | PH4: 2057-05-01 | PI4: 2057-06-01 | PJ4: 2057-07-01 | PK4: 2057-08-01 | PL4: 2057-09-01 | PM4: 2057-10-01 | PN4: 2057-11-01 | PO4: 2057-12-01 | PP4: 2058-01-01 | PQ4: 2058-02-01 | PR4: 2058-03-01 | PS4: 2058-04-01 | PT4: 2058-05-01 | PU4: 2058-06-01 | PV4: 2058-07-01 | PW4: 2058-08-01 | PX4: 2058-09-01 | PY4: 2058-10-01 | PZ4: 2058-11-01 | QA4: 2058-12-01 | QB4: 2059-01-01 | QC4: 2059-02-01 | QD4: 2059-03-01 | QE4: 2059-04-01 | QF4: 2059-05-01 | QG4: 2059-06-01 | QH4: 2059-07-01 | QI4: 2059-08-01 | QJ4: 2059-09-01 | QK4: 2059-10-01 | QL4: 2059-11-01 | QM4: 2059-12-01 | QN4: 2060-01-01 | QO4: 2060-02-01 | QP4: 2060-03-01 | QQ4: 2060-04-01 | QR4: 2060-05-01 | QS4: =QR5+1 -> 2060-06-01 | QT4: 2060-07-01 | QU4: 2060-08-01 | QV4: 2060-09-01 | QW4: 2060-10-01 | QX4: 2060-11-01 | QY4: 2060-12-01 | QZ4: 2061-01-01 | RA4: 2061-02-01 | RB4: 2061-03-01 | RC4: 2061-04-01 | RD4: 2061-05-01 | RE4: 2061-06-01 | RF4: 2061-07-01 | RG4: 2061-08-01 | RH4: 2061-09-01 | RI4: 2061-10-01 | RJ4: 2061-11-01 | RK4: 2061-12-01 | RL4: 2062-01-01 | RM4: 2062-02-01 | RN4: 2062-03-01 | RO4: 2062-04-01 | RP4: 2062-05-01 | RQ4: 2062-06-01 | RR4: 2062-07-01 | RS4: 2062-08-01 | RT4: 2062-09-01 | RU4: 2062-10-01 | RV4: 2062-11-01 | RW4: 2062-12-01 | RX4: 2063-01-01 | RY4: 2063-02-01 | RZ4: 2063-03-01 | SA4: 2063-04-01 | SB4: 2063-05-01 | SC4: 2063-06-01 | SD4: 2063-07-01 | SE4: 2063-08-01 | SF4: 2063-09-01 | SG4: 2063-10-01 | SH4: 2063-11-01 | SI4: 2063-12-01 | SJ4: 2064-01-01 | SK4: 2064-02-01 | SL4: 2064-03-01 | SM4: 2064-04-01 | SN4: 2064-05-01 | SO4: 2064-06-01 | SP4: 2064-07-01 | SQ4: 2064-08-01
D5: End of Period | G5: Date | K5: =E4-1 -> 2022-12-31 | L5: =EDATE(L4,1)-1 -> 2023-01-31 | M5: =EDATE(M4,1)-1 -> 2023-02-28 | N5: 2023-03-31 | O5: 2023-04-30 | P5: 2023-05-31 | Q5: 2023-06-30 | R5: 2023-07-31 | S5: 2023-08-31 | T5: 2023-09-30 | U5: 2023-10-31 | V5: 2023-11-30 | W5: 2023-12-31 | X5: 2024-01-31 | Y5: 2024-02-29 | Z5: 2024-03-31 | AA5: 2024-04-30 | AB5: 2024-05-31 | AC5: 2024-06-30 | AD5: 2024-07-31 | AE5: 2024-08-31 | AF5: 2024-09-30 | AG5: 2024-10-31 | AH5: 2024-11-30 | AI5: 2024-12-31 | AJ5: 2025-01-31 | AK5: 2025-02-28 | AL5: 2025-03-31 | AM5: 2025-04-30 | AN5: 2025-05-31 | AO5: 2025-06-30 | AP5: 2025-07-31 | AQ5: 2025-08-31 | AR5: 2025-09-30 | AS5: 2025-10-31 | AT5: 2025-11-30 | AU5: 2025-12-31 | AV5: 2026-01-31 | AW5: 2026-02-28 | AX5: 2026-03-31 | AY5: 2026-04-30 | AZ5: 2026-05-31 | BA5: 2026-06-30 | BB5: 2026-07-31 | BC5: 2026-08-31 | BD5: 2026-09-30 | BE5: 2026-10-31 | BF5: 2026-11-30 | BG5: 2026-12-31 | BH5: 2027-01-31 | BI5: 2027-02-28 | BJ5: 2027-03-31 | BK5: 2027-04-30 | BL5: 2027-05-31 | BM5: 2027-06-30 | BN5: 2027-07-31 | BO5: 2027-08-31 | BP5: 2027-09-30 | BQ5: 2027-10-31 | BR5: 2027-11-30 | BS5: 2027-12-31 | BT5: 2028-01-31 | BU5: 2028-02-29 | BV5: 2028-03-31 | BW5: 2028-04-30 | BX5: 2028-05-31 | BY5: =EDATE(BY4,1)-1 -> 2028-06-30 | BZ5: 2028-07-31 | CA5: 2028-08-31 | CB5: 2028-09-30 | CC5: 2028-10-31 | CD5: 2028-11-30 | CE5: 2028-12-31 | CF5: 2029-01-31 | CG5: 2029-02-28 | CH5: 2029-03-31 | CI5: 2029-04-30 | CJ5: 2029-05-31 | CK5: 2029-06-30 | CL5: 2029-07-31 | CM5: 2029-08-31 | CN5: 2029-09-30 | CO5: 2029-10-31 | CP5: 2029-11-30 | CQ5: 2029-12-31 | CR5: 2030-01-31 | CS5: 2030-02-28 | CT5: 2030-03-31 | CU5: 2030-04-30 | CV5: 2030-05-31 | CW5: 2030-06-30 | CX5: 2030-07-31 | CY5: 2030-08-31 | CZ5: 2030-09-30 | DA5: 2030-10-31 | DB5: 2030-11-30 | DC5: 2030-12-31 | DD5: 2031-01-31 | DE5: 2031-02-28 | DF5: 2031-03-31 | DG5: 2031-04-30 | DH5: 2031-05-31 | DI5: 2031-06-30 | DJ5: 2031-07-31 | DK5: 2031-08-31 | DL5: 2031-09-30 | DM5: 2031-10-31 | DN5: 2031-11-30 | DO5: 2031-12-31 | DP5: 2032-01-31 | DQ5: 2032-02-29 | DR5: 2032-03-31 | DS5: 2032-04-30 | DT5: 2032-05-31 | DU5: 2032-06-30 | DV5: 2032-07-31 | DW5: 2032-08-31 | DX5: 2032-09-30 | DY5: 2032-10-31 | DZ5: 2032-11-30 | EA5: 2032-12-31 | EB5: 2033-01-31 | EC5: 2033-02-28 | ED5: 2033-03-31 | EE5: 2033-04-30 | EF5: 2033-05-31 | EG5: 2033-06-30 | EH5: 2033-07-31 | EI5: 2033-08-31 | EJ5: 2033-09-30 | EK5: =EDATE(EK4,1)-1 -> 2033-10-31 | EL5: 2033-11-30 | EM5: 2033-12-31 | EN5: 2034-01-31 | EO5: 2034-02-28 | EP5: 2034-03-31 | EQ5: 2034-04-30 | ER5: 2034-05-31 | ES5: 2034-06-30 | ET5: 2034-07-31 | EU5: 2034-08-31 | EV5: 2034-09-30 | EW5: 2034-10-31 | EX5: 2034-11-30 | EY5: 2034-12-31 | EZ5: 2035-01-31 | FA5: 2035-02-28 | FB5: 2035-03-31 | FC5: 2035-04-30 | FD5: 2035-05-31 | FE5: 2035-06-30 | FF5: 2035-07-31 | FG5: 2035-08-31 | FH5: 2035-09-30 | FI5: 2035-10-31 | FJ5: 2035-11-30 | FK5: 2035-12-31 | FL5: 2036-01-31 | FM5: 2036-02-29 | FN5: 2036-03-31 | FO5: 2036-04-30 | FP5: 2036-05-31 | FQ5: 2036-06-30 | FR5: 2036-07-31 | FS5: 2036-08-31 | FT5: 2036-09-30 | FU5: 2036-10-31 | FV5: 2036-11-30 | FW5: 2036-12-31 | FX5: 2037-01-31 | FY5: 2037-02-28 | FZ5: 2037-03-31 | GA5: 2037-04-30 | GB5: 2037-05-31 | GC5: 2037-06-30 | GD5: 2037-07-31 | GE5: 2037-08-31 | GF5: 2037-09-30 | GG5: 2037-10-31 | GH5: 2037-11-30 | GI5: 2037-12-31 | GJ5: 2038-01-31 | GK5: 2038-02-28 | GL5: 2038-03-31 | GM5: 2038-04-30 | GN5: 2038-05-31 | GO5: 2038-06-30 | GP5: 2038-07-31 | GQ5: 2038-08-31 | GR5: 2038-09-30 | GS5: 2038-10-31 | GT5: 2038-11-30 | GU5: 2038-12-31 | GV5: 2039-01-31 | GW5: =EDATE(GW4,1)-1 -> 2039-02-28 | GX5: 2039-03-31 | GY5: 2039-04-30 | GZ5: 2039-05-31 | HA5: 2039-06-30 | HB5: 2039-07-31 | HC5: 2039-08-31 | HD5: 2039-09-30 | HE5: 2039-10-31 | HF5: 2039-11-30 | HG5: 2039-12-31 | HH5: 2040-01-31 | HI5: 2040-02-29 | HJ5: 2040-03-31 | HK5: 2040-04-30 | HL5: 2040-05-31 | HM5: 2040-06-30 | HN5: 2040-07-31 | HO5: 2040-08-31 | HP5: 2040-09-30 | HQ5: 2040-10-31 | HR5: 2040-11-30 | HS5: 2040-12-31 | HT5: 2041-01-31 | HU5: 2041-02-28 | HV5: 2041-03-31 | HW5: 2041-04-30 | HX5: 2041-05-31 | HY5: 2041-06-30 | HZ5: 2041-07-31 | IA5: 2041-08-31 | IB5: 2041-09-30 | IC5: 2041-10-31 | ID5: 2041-11-30 | IE5: 2041-12-31 | IF5: 2042-01-31 | IG5: 2042-02-28 | IH5: 2042-03-31 | II5: 2042-04-30 | IJ5: 2042-05-31 | IK5: 2042-06-30 | IL5: 2042-07-31 | IM5: 2042-08-31 | IN5: 2042-09-30 | IO5: 2042-10-31 | IP5: 2042-11-30 | IQ5: 2042-12-31 | IR5: 2043-01-31 | IS5: 2043-02-28 | IT5: 2043-03-31 | IU5: 2043-04-30 | IV5: 2043-05-31 | IW5: 2043-06-30 | IX5: 2043-07-31 | IY5: 2043-08-31 | IZ5: 2043-09-30 | JA5: 2043-10-31 | JB5: 2043-11-30 | JC5: 2043-12-31 | JD5: 2044-01-31 | JE5: 2044-02-29 | JF5: 2044-03-31 | JG5: 2044-04-30 | JH5: 2044-05-31 | JI5: =EDATE(JI4,1)-1 -> 2044-06-30 | JJ5: 2044-07-31 | JK5: 2044-08-31 | JL5: 2044-09-30 | JM5: 2044-10-31 | JN5: 2044-11-30 | JO5: 2044-12-31 | JP5: 2045-01-31 | JQ5: 2045-02-28 | JR5: 2045-03-31 | JS5: 2045-04-30 | JT5: 2045-05-31 | JU5: 2045-06-30 | JV5: 2045-07-31 | JW5: 2045-08-31 | JX5: 2045-09-30 | JY5: 2045-10-31 | JZ5: 2045-11-30 | KA5: 2045-12-31 | KB5: 2046-01-31 | KC5: 2046-02-28 | KD5: 2046-03-31 | KE5: 2046-04-30 | KF5: 2046-05-31 | KG5: 2046-06-30 | KH5: 2046-07-31 | KI5: 2046-08-31 | KJ5: 2046-09-30 | KK5: 2046-10-31 | KL5: 2046-11-30 | KM5: 2046-12-31 | KN5: 2047-01-31 | KO5: 2047-02-28 | KP5: 2047-03-31 | KQ5: 2047-04-30 | KR5: 2047-05-31 | KS5: 2047-06-30 | KT5: 2047-07-31 | KU5: 2047-08-31 | KV5: 2047-09-30 | KW5: 2047-10-31 | KX5: 2047-11-30 | KY5: 2047-12-31 | KZ5: 2048-01-31 | LA5: 2048-02-29 | LB5: 2048-03-31 | LC5: 2048-04-30 | LD5: 2048-05-31 | LE5: 2048-06-30 | LF5: 2048-07-31 | LG5: 2048-08-31 | LH5: 2048-09-30 | LI5: 2048-10-31 | LJ5: 2048-11-30 | LK5: 2048-12-31 | LL5: 2049-01-31 | LM5: 2049-02-28 | LN5: 2049-03-31 | LO5: 2049-04-30 | LP5: 2049-05-31 | LQ5: 2049-06-30 | LR5: 2049-07-31 | LS5: 2049-08-31 | LT5: 2049-09-30 | LU5: =EDATE(LU4,1)-1 -> 2049-10-31 | LV5: 2049-11-30 | LW5: 2049-12-31 | LX5: 2050-01-31 | LY5: 2050-02-28 | LZ5: 2050-03-31 | MA5: 2050-04-30 | MB5: 2050-05-31 | MC5: 2050-06-30 | MD5: 2050-07-31 | ME5: 2050-08-31 | MF5: 2050-09-30 | MG5: 2050-10-31 | MH5: 2050-11-30 | MI5: 2050-12-31 | MJ5: 2051-01-31 | MK5: 2051-02-28 | ML5: 2051-03-31 | MM5: 2051-04-30 | MN5: 2051-05-31 | MO5: 2051-06-30 | MP5: 2051-07-31 | MQ5: 2051-08-31 | MR5: 2051-09-30 | MS5: 2051-10-31 | MT5: 2051-11-30 | MU5: 2051-12-31 | MV5: 2052-01-31 | MW5: 2052-02-29 | MX5: 2052-03-31 | MY5: 2052-04-30 | MZ5: 2052-05-31 | NA5: 2052-06-30 | NB5: 2052-07-31 | NC5: 2052-08-31 | ND5: 2052-09-30 | NE5: 2052-10-31 | NF5: 2052-11-30 | NG5: 2052-12-31 | NH5: 2053-01-31 | NI5: 2053-02-28 | NJ5: 2053-03-31 | NK5: 2053-04-30 | NL5: 2053-05-31 | NM5: 2053-06-30 | NN5: 2053-07-31 | NO5: 2053-08-31 | NP5: 2053-09-30 | NQ5: 2053-10-31 | NR5: 2053-11-30 | NS5: 2053-12-31 | NT5: 2054-01-31 | NU5: 2054-02-28 | NV5: 2054-03-31 | NW5: 2054-04-30 | NX5: 2054-05-31 | NY5: 2054-06-30 | NZ5: 2054-07-31 | OA5: 2054-08-31 | OB5: 2054-09-30 | OC5: 2054-10-31 | OD5: 2054-11-30 | OE5: 2054-12-31 | OF5: 2055-01-31 | OG5: =EDATE(OG4,1)-1 -> 2055-02-28 | OH5: 2055-03-31 | OI5: 2055-04-30 | OJ5: 2055-05-31 | OK5: 2055-06-30 | OL5: 2055-07-31 | OM5: 2055-08-31 | ON5: 2055-09-30 | OO5: 2055-10-31 | OP5: 2055-11-30 | OQ5: 2055-12-31 | OR5: 2056-01-31 | OS5: 2056-02-29 | OT5: 2056-03-31 | OU5: 2056-04-30 | OV5: 2056-05-31 | OW5: 2056-06-30 | OX5: 2056-07-31 | OY5: 2056-08-31 | OZ5: 2056-09-30 | PA5: 2056-10-31 | PB5: 2056-11-30 | PC5: 2056-12-31 | PD5: 2057-01-31 | PE5: 2057-02-28 | PF5: 2057-03-31 | PG5: 2057-04-30 | PH5: 2057-05-31 | PI5: 2057-06-30 | PJ5: 2057-07-31 | PK5: 2057-08-31 | PL5: 2057-09-30 | PM5: 2057-10-31 | PN5: 2057-11-30 | PO5: 2057-12-31 | PP5: 2058-01-31 | PQ5: 2058-02-28 | PR5: 2058-03-31 | PS5: 2058-04-30 | PT5: 2058-05-31 | PU5: 2058-06-30 | PV5: 2058-07-31 | PW5: 2058-08-31 | PX5: 2058-09-30 | PY5: 2058-10-31 | PZ5: 2058-11-30 | QA5: 2058-12-31 | QB5: 2059-01-31 | QC5: 2059-02-28 | QD5: 2059-03-31 | QE5: 2059-04-30 | QF5: 2059-05-31 | QG5: 2059-06-30 | QH5: 2059-07-31 | QI5: 2059-08-31 | QJ5: 2059-09-30 | QK5: 2059-10-31 | QL5: 2059-11-30 | QM5: 2059-12-31 | QN5: 2060-01-31 | QO5: 2060-02-29 | QP5: 2060-03-31 | QQ5: 2060-04-30 | QR5: 2060-05-31 | QS5: =EDATE(QS4,1)-1 -> 2060-06-30 | QT5: 2060-07-31 | QU5: 2060-08-31 | QV5: 2060-09-30 | QW5: 2060-10-31 | QX5: 2060-11-30 | QY5: 2060-12-31 | QZ5: 2061-01-31 | RA5: 2061-02-28 | RB5: 2061-03-31 | RC5: 2061-04-30 | RD5: 2061-05-31 | RE5: 2061-06-30 | RF5: 2061-07-31 | RG5: 2061-08-31 | RH5: 2061-09-30 | RI5: 2061-10-31 | RJ5: 2061-11-30 | RK5: 2061-12-31 | RL5: 2062-01-31 | RM5: 2062-02-28 | RN5: 2062-03-31 | RO5: 2062-04-30 | RP5: 2062-05-31 | RQ5: 2062-06-30 | RR5: 2062-07-31 | RS5: 2062-08-31 | RT5: 2062-09-30 | RU5: 2062-10-31 | RV5: 2062-11-30 | RW5: 2062-12-31 | RX5: 2063-01-31 | RY5: 2063-02-28 | RZ5: 2063-03-31 | SA5: 2063-04-30 | SB5: 2063-05-31 | SC5: 2063-06-30 | SD5: 2063-07-31 | SE5: 2063-08-31 | SF5: 2063-09-30 | SG5: 2063-10-31 | SH5: 2063-11-30 | SI5: 2063-12-31 | SJ5: 2064-01-31 | SK5: 2064-02-29 | SL5: 2064-03-31 | SM5: 2064-04-30 | SN5: 2064-05-31 | SO5: 2064-06-30 | SP5: 2064-07-31 | SQ5: 2064-08-31
D6: Pre-COD Flag | E6: ='InputC - Operations'!$F$9 -> 2023-02-01 | G6: Flag | L6: =L4<$E$6 -> TRUE | M6: FALSE | N6: FALSE | O6: FALSE | P6: FALSE | Q6: FALSE | R6: FALSE | S6: FALSE | T6: FALSE | U6: FALSE | V6: FALSE | W6: FALSE | X6: FALSE | Y6: FALSE | Z6: FALSE | AA6: FALSE | AB6: FALSE | AC6: FALSE | AD6: FALSE | AE6: FALSE | AF6: FALSE | AG6: FALSE | AH6: FALSE | AI6: FALSE | AJ6: FALSE | AK6: FALSE | AL6: FALSE | AM6: FALSE | AN6: FALSE | AO6: FALSE | AP6: FALSE | AQ6: FALSE | AR6: FALSE | AS6: FALSE | AT6: FALSE | AU6: FALSE | AV6: FALSE | AW6: FALSE | AX6: FALSE | AY6: FALSE | AZ6: FALSE | BA6: FALSE | BB6: FALSE | BC6: FALSE | BD6: FALSE | BE6: FALSE | BF6: FALSE | BG6: FALSE | BH6: FALSE | BI6: FALSE | BJ6: FALSE | BK6: FALSE | BL6: FALSE | BM6: FALSE | BN6: FALSE | BO6: FALSE | BP6: FALSE | BQ6: FALSE | BR6: FALSE | BS6: FALSE | BT6: FALSE | BU6: FALSE | BV6: FALSE | BW6: FALSE | BX6: =BX4<$E$6 -> FALSE | BY6: FALSE | BZ6: FALSE | CA6: FALSE | CB6: FALSE | CC6: FALSE | CD6: FALSE | CE6: FALSE | CF6: FALSE | CG6: FALSE | CH6: FALSE | CI6: FALSE | CJ6: FALSE | CK6: FALSE | CL6: FALSE | CM6: FALSE | CN6: FALSE | CO6: FALSE | CP6: FALSE | CQ6: FALSE | CR6: FALSE | CS6: FALSE | CT6: FALSE | CU6: FALSE | CV6: FALSE | CW6: FALSE | CX6: FALSE | CY6: FALSE | CZ6: FALSE | DA6: FALSE | DB6: FALSE | DC6: FALSE | DD6: FALSE | DE6: FALSE | DF6: FALSE | DG6: FALSE | DH6: FALSE | DI6: FALSE | DJ6: FALSE | DK6: FALSE | DL6: FALSE | DM6: FALSE | DN6: FALSE | DO6: FALSE | DP6: FALSE | DQ6: FALSE | DR6: FALSE | DS6: FALSE | DT6: FALSE | DU6: FALSE | DV6: FALSE | DW6: FALSE | DX6: FALSE | DY6: FALSE | DZ6: FALSE | EA6: FALSE | EB6: FALSE | EC6: FALSE | ED6: FALSE | EE6: FALSE | EF6: FALSE | EG6: FALSE | EH6: FALSE | EI6: FALSE | EJ6: =EJ4<$E$6 -> FALSE | EK6: FALSE | EL6: FALSE | EM6: FALSE | EN6: FALSE | EO6: FALSE | EP6: FALSE | EQ6: FALSE | ER6: FALSE | ES6: FALSE | ET6: FALSE | EU6: FALSE | EV6: FALSE | EW6: FALSE | EX6: FALSE | EY6: FALSE | EZ6: FALSE | FA6: FALSE | FB6: FALSE | FC6: FALSE | FD6: FALSE | FE6: FALSE | FF6: FALSE | FG6: FALSE | FH6: FALSE | FI6: FALSE | FJ6: FALSE | FK6: FALSE | FL6: FALSE | FM6: FALSE | FN6: FALSE | FO6: FALSE | FP6: FALSE | FQ6: FALSE | FR6: FALSE | FS6: FALSE | FT6: FALSE | FU6: FALSE | FV6: FALSE | FW6: FALSE | FX6: FALSE | FY6: FALSE | FZ6: FALSE | GA6: FALSE | GB6: FALSE | GC6: FALSE | GD6: FALSE | GE6: FALSE | GF6: FALSE | GG6: FALSE | GH6: FALSE | GI6: FALSE | GJ6: FALSE | GK6: FALSE | GL6: FALSE | GM6: FALSE | GN6: FALSE | GO6: FALSE | GP6: FALSE | GQ6: FALSE | GR6: FALSE | GS6: FALSE | GT6: FALSE | GU6: FALSE | GV6: =GV4<$E$6 -> FALSE | GW6: FALSE | GX6: FALSE | GY6: FALSE | GZ6: FALSE | HA6: FALSE | HB6: FALSE | HC6: FALSE | HD6: FALSE | HE6: FALSE | HF6: FALSE | HG6: FALSE | HH6: FALSE | HI6: FALSE | HJ6: FALSE | HK6: FALSE | HL6: FALSE | HM6: FALSE | HN6: FALSE | HO6: FALSE | HP6: FALSE | HQ6: FALSE | HR6: FALSE | HS6: FALSE | HT6: FALSE | HU6: FALSE | HV6: FALSE | HW6: FALSE | HX6: FALSE | HY6: FALSE | HZ6: FALSE | IA6: FALSE | IB6: FALSE | IC6: FALSE | ID6: FALSE | IE6: FALSE | IF6: FALSE | IG6: FALSE | IH6: FALSE | II6: FALSE | IJ6: FALSE | IK6: FALSE | IL6: FALSE | IM6: FALSE | IN6: FALSE | IO6: FALSE | IP6: FALSE | IQ6: FALSE | IR6: FALSE | IS6: FALSE | IT6: FALSE | IU6: FALSE | IV6: FALSE | IW6: FALSE | IX6: FALSE | IY6: FALSE | IZ6: FALSE | JA6: FALSE | JB6: FALSE | JC6: FALSE | JD6: FALSE | JE6: FALSE | JF6: FALSE | JG6: FALSE | JH6: =JH4<$E$6 -> FALSE | JI6: FALSE | JJ6: FALSE | JK6: FALSE | JL6: FALSE | JM6: FALSE | JN6: FALSE | JO6: FALSE | JP6: FALSE | JQ6: FALSE | JR6: FALSE | JS6: FALSE | JT6: FALSE | JU6: FALSE | JV6: FALSE | JW6: FALSE | JX6: FALSE | JY6: FALSE | JZ6: FALSE | KA6: FALSE | KB6: FALSE | KC6: FALSE | KD6: FALSE | KE6: FALSE | KF6: FALSE | KG6: FALSE | KH6: FALSE | KI6: FALSE | KJ6: FALSE | KK6: FALSE | KL6: FALSE | KM6: FALSE | KN6: FALSE | KO6: FALSE | KP6: FALSE | KQ6: FALSE | KR6: FALSE | KS6: FALSE | KT6: FALSE | KU6: FALSE | KV6: FALSE | KW6: FALSE | KX6: FALSE | KY6: FALSE | KZ6: FALSE | LA6: FALSE | LB6: FALSE | LC6: FALSE | LD6: FALSE | LE6: FALSE | LF6: FALSE | LG6: FALSE | LH6: FALSE | LI6: FALSE | LJ6: FALSE | LK6: FALSE | LL6: FALSE | LM6: FALSE | LN6: FALSE | LO6: FALSE | LP6: FALSE | LQ6: FALSE | LR6: FALSE | LS6: FALSE | LT6: =LT4<$E$6 -> FALSE | LU6: FALSE | LV6: FALSE | LW6: FALSE | LX6: FALSE | LY6: FALSE | LZ6: FALSE | MA6: FALSE | MB6: FALSE | MC6: FALSE | MD6: FALSE | ME6: FALSE | MF6: FALSE | MG6: FALSE | MH6: FALSE | MI6: FALSE | MJ6: FALSE | MK6: FALSE | ML6: FALSE | MM6: FALSE | MN6: FALSE | MO6: FALSE | MP6: FALSE | MQ6: FALSE | MR6: FALSE | MS6: FALSE | MT6: FALSE | MU6: FALSE | MV6: FALSE | MW6: FALSE | MX6: FALSE | MY6: FALSE | MZ6: FALSE | NA6: FALSE | NB6: FALSE | NC6: FALSE | ND6: FALSE | NE6: FALSE | NF6: FALSE | NG6: FALSE | NH6: FALSE | NI6: FALSE | NJ6: FALSE | NK6: FALSE | NL6: FALSE | NM6: FALSE | NN6: FALSE | NO6: FALSE | NP6: FALSE | NQ6: FALSE | NR6: FALSE | NS6: FALSE | NT6: FALSE | NU6: FALSE | NV6: FALSE | NW6: FALSE | NX6: FALSE | NY6: FALSE | NZ6: FALSE | OA6: FALSE | OB6: FALSE | OC6: FALSE | OD6: FALSE | OE6: FALSE | OF6: =OF4<$E$6 -> FALSE | OG6: FALSE | OH6: FALSE | OI6: FALSE | OJ6: FALSE | OK6: FALSE | OL6: FALSE | OM6: FALSE | ON6: FALSE | OO6: FALSE | OP6: FALSE | OQ6: FALSE | OR6: FALSE | OS6: FALSE | OT6: FALSE | OU6: FALSE | OV6: FALSE | OW6: FALSE | OX6: FALSE | OY6: FALSE | OZ6: FALSE | PA6: FALSE | PB6: FALSE | PC6: FALSE | PD6: FALSE | PE6: FALSE | PF6: FALSE | PG6: FALSE | PH6: FALSE | PI6: FALSE | PJ6: FALSE | PK6: FALSE | PL6: FALSE | PM6: FALSE | PN6: FALSE | PO6: FALSE | PP6: FALSE | PQ6: FALSE | PR6: FALSE | PS6: FALSE | PT6: FALSE | PU6: FALSE | PV6: FALSE | PW6: FALSE | PX6: FALSE | PY6: FALSE | PZ6: FALSE | QA6: FALSE | QB6: FALSE | QC6: FALSE | QD6: FALSE | QE6: FALSE | QF6: FALSE | QG6: FALSE | QH6: FALSE | QI6: FALSE | QJ6: FALSE | QK6: FALSE | QL6: FALSE | QM6: FALSE | QN6: FALSE | QO6: FALSE | QP6: FALSE | QQ6: FALSE | QR6: =QR4<$E$6 -> FALSE | QS6: FALSE | QT6: FALSE | QU6: FALSE | QV6: FALSE | QW6: FALSE | QX6: FALSE | QY6: FALSE | QZ6: FALSE | RA6: FALSE | RB6: FALSE | RC6: FALSE | RD6: FALSE | RE6: FALSE | RF6: FALSE | RG6: FALSE | RH6: FALSE | RI6: FALSE | RJ6: FALSE | RK6: FALSE | RL6: FALSE | RM6: FALSE | RN6: FALSE | RO6: FALSE | RP6: FALSE | RQ6: FALSE | RR6: FALSE | RS6: FALSE | RT6: FALSE | RU6: FALSE | RV6: FALSE | RW6: FALSE | RX6: FALSE | RY6: FALSE | RZ6: FALSE | SA6: FALSE | SB6: FALSE | SC6: FALSE | SD6: FALSE | SE6: FALSE | SF6: FALSE | SG6: FALSE | SH6: FALSE | SI6: FALSE | SJ6: FALSE | SK6: FALSE | SL6: FALSE | SM6: FALSE | SN6: FALSE | SO6: FALSE | SP6: FALSE | SQ6: FALSE
D7: Operations Flag | E7: ='InputC - Operations'!$F$9 -> 2023-02-01 | F7: ='InputC - Operations'!$F$11 -> 2058-02-01 | G7: Flag | L7: =AND(L4>=$E$7,L4<$F$7) -> FALSE | M7: TRUE | N7: TRUE | O7: TRUE | P7: TRUE | Q7: TRUE | R7: TRUE | S7: TRUE | T7: TRUE | U7: TRUE | V7: TRUE | W7: TRUE | X7: TRUE | Y7: TRUE | Z7: TRUE | AA7: TRUE | AB7: TRUE | AC7: TRUE | AD7: TRUE | AE7: TRUE | AF7: TRUE | AG7: TRUE | AH7: TRUE | AI7: TRUE | AJ7: TRUE | AK7: TRUE | AL7: TRUE | AM7: TRUE | AN7: TRUE | AO7: TRUE | AP7: TRUE | AQ7: TRUE | AR7: TRUE | AS7: TRUE | AT7: TRUE | AU7: TRUE | AV7: TRUE | AW7: TRUE | AX7: TRUE | AY7: TRUE | AZ7: TRUE | BA7: TRUE | BB7: TRUE | BC7: TRUE | BD7: TRUE | BE7: TRUE | BF7: TRUE | BG7: TRUE | BH7: TRUE | BI7: TRUE | BJ7: TRUE | BK7: TRUE | BL7: TRUE | BM7: TRUE | BN7: TRUE | BO7: TRUE | BP7: TRUE | BQ7: TRUE | BR7: TRUE | BS7: TRUE | BT7: TRUE | BU7: TRUE | BV7: TRUE | BW7: TRUE | BX7: =AND(BX4>=$E$7,BX4<$F$7) -> TRUE | BY7: TRUE | BZ7: TRUE | CA7: TRUE | CB7: TRUE | CC7: TRUE | CD7: TRUE | CE7: TRUE | CF7: TRUE | CG7: TRUE | CH7: TRUE | CI7: TRUE | CJ7: TRUE | CK7: TRUE | CL7: TRUE | CM7: TRUE | CN7: TRUE | CO7: TRUE | CP7: TRUE | CQ7: TRUE | CR7: TRUE | CS7: TRUE | CT7: TRUE | CU7: TRUE | CV7: TRUE | CW7: TRUE | CX7: TRUE | CY7: TRUE | CZ7: TRUE | DA7: TRUE | DB7: TRUE | DC7: TRUE | DD7: TRUE | DE7: TRUE | DF7: TRUE | DG7: TRUE | DH7: TRUE | DI7: TRUE | DJ7: TRUE | DK7: TRUE | DL7: TRUE | DM7: TRUE | DN7: TRUE | DO7: TRUE | DP7: TRUE | DQ7: TRUE | DR7: TRUE | DS7: TRUE | DT7: TRUE | DU7: TRUE | DV7: TRUE | DW7: TRUE | DX7: TRUE | DY7: TRUE | DZ7: TRUE | EA7: TRUE | EB7: TRUE | EC7: TRUE | ED7: TRUE | EE7: TRUE | EF7: TRUE | EG7: TRUE | EH7: TRUE | EI7: TRUE | EJ7: =AND(EJ4>=$E$7,EJ4<$F$7) -> TRUE | EK7: TRUE | EL7: TRUE | EM7: TRUE | EN7: TRUE | EO7: TRUE | EP7: TRUE | EQ7: TRUE | ER7: TRUE | ES7: TRUE | ET7: TRUE | EU7: TRUE | EV7: TRUE | EW7: TRUE | EX7: TRUE | EY7: TRUE | EZ7: TRUE | FA7: TRUE | FB7: TRUE | FC7: TRUE | FD7: TRUE | FE7: TRUE | FF7: TRUE | FG7: TRUE | FH7: TRUE | FI7: TRUE | FJ7: TRUE | FK7: TRUE | FL7: TRUE | FM7: TRUE | FN7: TRUE | FO7: TRUE | FP7: TRUE | FQ7: TRUE | FR7: TRUE | FS7: TRUE | FT7: TRUE | FU7: TRUE | FV7: TRUE | FW7: TRUE | FX7: TRUE | FY7: TRUE | FZ7: TRUE | GA7: TRUE | GB7: TRUE | GC7: TRUE | GD7: TRUE | GE7: TRUE | GF7: TRUE | GG7: TRUE | GH7: TRUE | GI7: TRUE | GJ7: TRUE | GK7: TRUE | GL7: TRUE | GM7: TRUE | GN7: TRUE | GO7: TRUE | GP7: TRUE | GQ7: TRUE | GR7: TRUE | GS7: TRUE | GT7: TRUE | GU7: TRUE | GV7: =AND(GV4>=$E$7,GV4<$F$7) -> TRUE | GW7: TRUE | GX7: TRUE | GY7: TRUE | GZ7: TRUE | HA7: TRUE | HB7: TRUE | HC7: TRUE | HD7: TRUE | HE7: TRUE | HF7: TRUE | HG7: TRUE | HH7: TRUE | HI7: TRUE | HJ7: TRUE | HK7: TRUE | HL7: TRUE | HM7: TRUE | HN7: TRUE | HO7: TRUE | HP7: TRUE | HQ7: TRUE | HR7: TRUE | HS7: TRUE | HT7: TRUE | HU7: TRUE | HV7: TRUE | HW7: TRUE | HX7: TRUE | HY7: TRUE | HZ7: TRUE | IA7: TRUE | IB7: TRUE | IC7: TRUE | ID7: TRUE | IE7: TRUE | IF7: TRUE | IG7: TRUE | IH7: TRUE | II7: TRUE | IJ7: TRUE | IK7: TRUE | IL7: TRUE | IM7: TRUE | IN7: TRUE | IO7: TRUE | IP7: TRUE | IQ7: TRUE | IR7: TRUE | IS7: TRUE | IT7: TRUE | IU7: TRUE | IV7: TRUE | IW7: TRUE | IX7: TRUE | IY7: TRUE | IZ7: TRUE | JA7: TRUE | JB7: TRUE | JC7: TRUE | JD7: TRUE | JE7: TRUE | JF7: TRUE | JG7: TRUE | JH7: =AND(JH4>=$E$7,JH4<$F$7) -> TRUE | JI7: TRUE | JJ7: TRUE | JK7: TRUE | JL7: TRUE | JM7: TRUE | JN7: TRUE | JO7: TRUE | JP7: TRUE | JQ7: TRUE | JR7: TRUE | JS7: TRUE | JT7: TRUE | JU7: TRUE | JV7: TRUE | JW7: TRUE | JX7: TRUE | JY7: TRUE | JZ7: TRUE | KA7: TRUE | KB7: TRUE | KC7: TRUE | KD7: TRUE | KE7: TRUE | KF7: TRUE | KG7: TRUE | KH7: TRUE | KI7: TRUE | KJ7: TRUE | KK7: TRUE | KL7: TRUE | KM7: TRUE | KN7: TRUE | KO7: TRUE | KP7: TRUE | KQ7: TRUE | KR7: TRUE | KS7: TRUE | KT7: TRUE | KU7: TRUE | KV7: TRUE | KW7: TRUE | KX7: TRUE | KY7: TRUE | KZ7: TRUE | LA7: TRUE | LB7: TRUE | LC7: TRUE | LD7: TRUE | LE7: TRUE | LF7: TRUE | LG7: TRUE | LH7: TRUE | LI7: TRUE | LJ7: TRUE | LK7: TRUE | LL7: TRUE | LM7: TRUE | LN7: TRUE | LO7: TRUE | LP7: TRUE | LQ7: TRUE | LR7: TRUE | LS7: TRUE | LT7: =AND(LT4>=$E$7,LT4<$F$7) -> TRUE | LU7: TRUE | LV7: TRUE | LW7: TRUE | LX7: TRUE | LY7: TRUE | LZ7: TRUE | MA7: TRUE | MB7: TRUE | MC7: TRUE | MD7: TRUE | ME7: TRUE | MF7: TRUE | MG7: TRUE | MH7: TRUE | MI7: TRUE | MJ7: TRUE | MK7: TRUE | ML7: TRUE | MM7: TRUE | MN7: TRUE | MO7: TRUE | MP7: TRUE | MQ7: TRUE | MR7: TRUE | MS7: TRUE | MT7: TRUE | MU7: TRUE | MV7: TRUE | MW7: TRUE | MX7: TRUE | MY7: TRUE | MZ7: TRUE | NA7: TRUE | NB7: TRUE | NC7: TRUE | ND7: TRUE | NE7: TRUE | NF7: TRUE | NG7: TRUE | NH7: TRUE | NI7: TRUE | NJ7: TRUE | NK7: TRUE | NL7: TRUE | NM7: TRUE | NN7: TRUE | NO7: TRUE | NP7: TRUE | NQ7: TRUE | NR7: TRUE | NS7: TRUE | NT7: TRUE | NU7: TRUE | NV7: TRUE | NW7: TRUE | NX7: TRUE | NY7: TRUE | NZ7: TRUE | OA7: TRUE | OB7: TRUE | OC7: TRUE | OD7: TRUE | OE7: TRUE | OF7: =AND(OF4>=$E$7,OF4<$F$7) -> TRUE | OG7: TRUE | OH7: TRUE | OI7: TRUE | OJ7: TRUE | OK7: TRUE | OL7: TRUE | OM7: TRUE | ON7: TRUE | OO7: TRUE | OP7: TRUE | OQ7: TRUE | OR7: TRUE | OS7: TRUE | OT7: TRUE | OU7: TRUE | OV7: TRUE | OW7: TRUE | OX7: TRUE | OY7: TRUE | OZ7: TRUE | PA7: TRUE | PB7: TRUE | PC7: TRUE | PD7: TRUE | PE7: TRUE | PF7: TRUE | PG7: TRUE | PH7: TRUE | PI7: TRUE | PJ7: TRUE | PK7: TRUE | PL7: TRUE | PM7: TRUE | PN7: TRUE | PO7: TRUE | PP7: TRUE | PQ7: FALSE | PR7: FALSE | PS7: FALSE | PT7: FALSE | PU7: FALSE | PV7: FALSE | PW7: FALSE | PX7: FALSE | PY7: FALSE | PZ7: FALSE | QA7: FALSE | QB7: FALSE | QC7: FALSE | QD7: FALSE | QE7: FALSE | QF7: FALSE | QG7: FALSE | QH7: FALSE | QI7: FALSE | QJ7: FALSE | QK7: FALSE | QL7: FALSE | QM7: FALSE | QN7: FALSE | QO7: FALSE | QP7: FALSE | QQ7: FALSE | QR7: =AND(QR4>=$E$7,QR4<$F$7) -> FALSE | QS7: FALSE | QT7: FALSE | QU7: FALSE | QV7: FALSE | QW7: FALSE | QX7: FALSE | QY7: FALSE | QZ7: FALSE | RA7: FALSE | RB7: FALSE | RC7: FALSE | RD7: FALSE | RE7: FALSE | RF7: FALSE | RG7: FALSE | RH7: FALSE | RI7: FALSE | RJ7: FALSE | RK7: FALSE | RL7: FALSE | RM7: FALSE | RN7: FALSE | RO7: FALSE | RP7: FALSE | RQ7: FALSE | RR7: FALSE | RS7: FALSE | RT7: FALSE | RU7: FALSE | RV7: FALSE | RW7: FALSE | RX7: FALSE | RY7: FALSE | RZ7: FALSE | SA7: FALSE | SB7: FALSE | SC7: FALSE | SD7: FALSE | SE7: FALSE | SF7: FALSE | SG7: FALSE | SH7: FALSE | SI7: FALSE | SJ7: FALSE | SK7: FALSE | SL7: FALSE | SM7: FALSE | SN7: FALSE | SO7: FALSE | SP7: FALSE | SQ7: FALSE
D8: Year | G8: Year | L8: =YEAR(L4) -> 2023 | M8: =YEAR(M4) -> 2023 | N8: 2023 | O8: 2023 | P8: 2023 | Q8: 2023 | R8: 2023 | S8: 2023 | T8: 2023 | U8: 2023 | V8: 2023 | W8: 2023 | X8: 2024 | Y8: 2024 | Z8: 2024 | AA8: 2024 | AB8: 2024 | AC8: 2024 | AD8: 2024 | AE8: 2024 | AF8: 2024 | AG8: 2024 | AH8: 2024 | AI8: 2024 | AJ8: 2025 | AK8: 2025 | AL8: 2025 | AM8: 2025 | AN8: 2025 | AO8: 2025 | AP8: 2025 | AQ8: 2025 | AR8: 2025 | AS8: 2025 | AT8: 2025 | AU8: 2025 | AV8: 2026 | AW8: 2026 | AX8: 2026 | AY8: 2026 | AZ8: 2026 | BA8: 2026 | BB8: 2026 | BC8: 2026 | BD8: 2026 | BE8: 2026 | BF8: 2026 | BG8: 2026 | BH8: 2027 | BI8: 2027 | BJ8: 2027 | BK8: 2027 | BL8: 2027 | BM8: 2027 | BN8: 2027 | BO8: 2027 | BP8: 2027 | BQ8: 2027 | BR8: 2027 | BS8: 2027 | BT8: 2028 | BU8: 2028 | BV8: 2028 | BW8: 2028 | BX8: 2028 | BY8: =YEAR(BY4) -> 2028 | BZ8: 2028 | CA8: 2028 | CB8: 2028 | CC8: 2028 | CD8: 2028 | CE8: 2028 | CF8: 2029 | CG8: 2029 | CH8: 2029 | CI8: 2029 | CJ8: 2029 | CK8: 2029 | CL8: 2029 | CM8: 2029 | CN8: 2029 | CO8: 2029 | CP8: 2029 | CQ8: 2029 | CR8: 2030 | CS8: 2030 | CT8: 2030 | CU8: 2030 | CV8: 2030 | CW8: 2030 | CX8: 2030 | CY8: 2030 | CZ8: 2030 | DA8: 2030 | DB8: 2030 | DC8: 2030 | DD8: 2031 | DE8: 2031 | DF8: 2031 | DG8: 2031 | DH8: 2031 | DI8: 2031 | DJ8: 2031 | DK8: 2031 | DL8: 2031 | DM8: 2031 | DN8: 2031 | DO8: 2031 | DP8: 2032 | DQ8: 2032 | DR8: 2032 | DS8: 2032 | DT8: 2032 | DU8: 2032 | DV8: 2032 | DW8: 2032 | DX8: 2032 | DY8: 2032 | DZ8: 2032 | EA8: 2032 | EB8: 2033 | EC8: 2033 | ED8: 2033 | EE8: 2033 | EF8: 2033 | EG8: 2033 | EH8: 2033 | EI8: 2033 | EJ8: 2033 | EK8: =YEAR(EK4) -> 2033 | EL8: 2033 | EM8: 2033 | EN8: 2034 | EO8: 2034 | EP8: 2034 | EQ8: 2034 | ER8: 2034 | ES8: 2034 | ET8: 2034 | EU8: 2034 | EV8: 2034 | EW8: 2034 | EX8: 2034 | EY8: 2034 | EZ8: 2035 | FA8: 2035 | FB8: 2035 | FC8: 2035 | FD8: 2035 | FE8: 2035 | FF8: 2035 | FG8: 2035 | FH8: 2035 | FI8: 2035 | FJ8: 2035 | FK8: 2035 | FL8: 2036 | FM8: 2036 | FN8: 2036 | FO8: 2036 | FP8: 2036 | FQ8: 2036 | FR8: 2036 | FS8: 2036 | FT8: 2036 | FU8: 2036 | FV8: 2036 | FW8: 2036 | FX8: 2037 | FY8: 2037 | FZ8: 2037 | GA8: 2037 | GB8: 2037 | GC8: 2037 | GD8: 2037 | GE8: 2037 | GF8: 2037 | GG8: 2037 | GH8: 2037 | GI8: 2037 | GJ8: 2038 | GK8: 2038 | GL8: 2038 | GM8: 2038 | GN8: 2038 | GO8: 2038 | GP8: 2038 | GQ8: 2038 | GR8: 2038 | GS8: 2038 | GT8: 2038 | GU8: 2038 | GV8: 2039 | GW8: =YEAR(GW4) -> 2039 | GX8: 2039 | GY8: 2039 | GZ8: 2039 | HA8: 2039 | HB8: 2039 | HC8: 2039 | HD8: 2039 | HE8: 2039 | HF8: 2039 | HG8: 2039 | HH8: 2040 | HI8: 2040 | HJ8: 2040 | HK8: 2040 | HL8: 2040 | HM8: 2040 | HN8: 2040 | HO8: 2040 | HP8: 2040 | HQ8: 2040 | HR8: 2040 | HS8: 2040 | HT8: 2041 | HU8: 2041 | HV8: 2041 | HW8: 2041 | HX8: 2041 | HY8: 2041 | HZ8: 2041 | IA8: 2041 | IB8: 2041 | IC8: 2041 | ID8: 2041 | IE8: 2041 | IF8: 2042 | IG8: 2042 | IH8: 2042 | II8: 2042 | IJ8: 2042 | IK8: 2042 | IL8: 2042 | IM8: 2042 | IN8: 2042 | IO8: 2042 | IP8: 2042 | IQ8: 2042 | IR8: 2043 | IS8: 2043 | IT8: 2043 | IU8: 2043 | IV8: 2043 | IW8: 2043 | IX8: 2043 | IY8: 2043 | IZ8: 2043 | JA8: 2043 | JB8: 2043 | JC8: 2043 | JD8: 2044 | JE8: 2044 | JF8: 2044 | JG8: 2044 | JH8: 2044 | JI8: =YEAR(JI4) -> 2044 | JJ8: 2044 | JK8: 2044 | JL8: 2044 | JM8: 2044 | JN8: 2044 | JO8: 2044 | JP8: 2045 | JQ8: 2045 | JR8: 2045 | JS8: 2045 | JT8: 2045 | JU8: 2045 | JV8: 2045 | JW8: 2045 | JX8: 2045 | JY8: 2045 | JZ8: 2045 | KA8: 2045 | KB8: 2046 | KC8: 2046 | KD8: 2046 | KE8: 2046 | KF8: 2046 | KG8: 2046 | KH8: 2046 | KI8: 2046 | KJ8: 2046 | KK8: 2046 | KL8: 2046 | KM8: 2046 | KN8: 2047 | KO8: 2047 | KP8: 2047 | KQ8: 2047 | KR8: 2047 | KS8: 2047 | KT8: 2047 | KU8: 2047 | KV8: 2047 | KW8: 2047 | KX8: 2047 | KY8: 2047 | KZ8: 2048 | LA8: 2048 | LB8: 2048 | LC8: 2048 | LD8: 2048 | LE8: 2048 | LF8: 2048 | LG8: 2048 | LH8: 2048 | LI8: 2048 | LJ8: 2048 | LK8: 2048 | LL8: 2049 | LM8: 2049 | LN8: 2049 | LO8: 2049 | LP8: 2049 | LQ8: 2049 | LR8: 2049 | LS8: 2049 | LT8: 2049 | LU8: =YEAR(LU4) -> 2049 | LV8: 2049 | LW8: 2049 | LX8: 2050 | LY8: 2050 | LZ8: 2050 | MA8: 2050 | MB8: 2050 | MC8: 2050 | MD8: 2050 | ME8: 2050 | MF8: 2050 | MG8: 2050 | MH8: 2050 | MI8: 2050 | MJ8: 2051 | MK8: 2051 | ML8: 2051 | MM8: 2051 | MN8: 2051 | MO8: 2051 | MP8: 2051 | MQ8: 2051 | MR8: 2051 | MS8: 2051 | MT8: 2051 | MU8: 2051 | MV8: 2052 | MW8: 2052 | MX8: 2052 | MY8: 2052 | MZ8: 2052 | NA8: 2052 | NB8: 2052 | NC8: 2052 | ND8: 2052 | NE8: 2052 | NF8: 2052 | NG8: 2052 | NH8: 2053 | NI8: 2053 | NJ8: 2053 | NK8: 2053 | NL8: 2053 | NM8: 2053 | NN8: 2053 | NO8: 2053 | NP8: 2053 | NQ8: 2053 | NR8: 2053 | NS8: 2053 | NT8: 2054 | NU8: 2054 | NV8: 2054 | NW8: 2054 | NX8: 2054 | NY8: 2054 | NZ8: 2054 | OA8: 2054 | OB8: 2054 | OC8: 2054 | OD8: 2054 | OE8: 2054 | OF8: 2055 | OG8: =YEAR(OG4) -> 2055 | OH8: 2055 | OI8: 2055 | OJ8: 2055 | OK8: 2055 | OL8: 2055 | OM8: 2055 | ON8: 2055 | OO8: 2055 | OP8: 2055 | OQ8: 2055 | OR8: 2056 | OS8: 2056 | OT8: 2056 | OU8: 2056 | OV8: 2056 | OW8: 2056 | OX8: 2056 | OY8: 2056 | OZ8: 2056 | PA8: 2056 | PB8: 2056 | PC8: 2056 | PD8: 2057 | PE8: 2057 | PF8: 2057 | PG8: 2057 | PH8: 2057 | PI8: 2057 | PJ8: 2057 | PK8: 2057 | PL8: 2057 | PM8: 2057 | PN8: 2057 | PO8: 2057 | PP8: 2058 | PQ8: 2058 | PR8: 2058 | PS8: 2058 | PT8: 2058 | PU8: 2058 | PV8: 2058 | PW8: 2058 | PX8: 2058 | PY8: 2058 | PZ8: 2058 | QA8: 2058 | QB8: 2059 | QC8: 2059 | QD8: 2059 | QE8: 2059 | QF8: 2059 | QG8: 2059 | QH8: 2059 | QI8: 2059 | QJ8: 2059 | QK8: 2059 | QL8: 2059 | QM8: 2059 | QN8: 2060 | QO8: 2060 | QP8: 2060 | QQ8: 2060 | QR8: 2060 | QS8: =YEAR(QS4) -> 2060 | QT8: 2060 | QU8: 2060 | QV8: 2060 | QW8: 2060 | QX8: 2060 | QY8: 2060 | QZ8: 2061 | RA8: 2061 | RB8: 2061 | RC8: 2061 | RD8: 2061 | RE8: 2061 | RF8: 2061 | RG8: 2061 | RH8: 2061 | RI8: 2061 | RJ8: 2061 | RK8: 2061 | RL8: 2062 | RM8: 2062 | RN8: 2062 | RO8: 2062 | RP8: 2062 | RQ8: 2062 | RR8: 2062 | RS8: 2062 | RT8: 2062 | RU8: 2062 | RV8: 2062 | RW8: 2062 | RX8: 2063 | RY8: 2063 | RZ8: 2063 | SA8: 2063 | SB8: 2063 | SC8: 2063 | SD8: 2063 | SE8: 2063 | SF8: 2063 | SG8: 2063 | SH8: 2063 | SI8: 2063 | SJ8: 2064 | SK8: 2064 | SL8: 2064 | SM8: 2064 | SN8: 2064 | SO8: 2064 | SP8: 2064 | SQ8: 2064
B11: Capacity and Production
D12: Capacity in MW | E12: ='InputC - Operations'!E$17 -> 132 | G12: ='InputC - Operations'!G17 -> MWp | L12: =$E$12*L7 -> 0 | M12: 132 | N12: 132 | O12: 132 | P12: 132 | Q12: 132 | R12: 132 | S12: 132 | T12: 132 | U12: 132 | V12: 132 | W12: 132 | X12: 132 | Y12: 132 | Z12: 132 | AA12: 132 | AB12: 132 | AC12: 132 | AD12: 132 | AE12: 132 | AF12: 132 | AG12: 132 | AH12: 132 | AI12: 132 | AJ12: 132 | AK12: 132 | AL12: 132 | AM12: 132 | AN12: 132 | AO12: 132 | AP12: 132 | AQ12: 132 | AR12: 132 | AS12: 132 | AT12: 132 | AU12: 132 | AV12: 132 | AW12: 132 | AX12: 132 | AY12: 132 | AZ12: 132 | BA12: 132 | BB12: 132 | BC12: 132 | BD12: 132 | BE12: 132 | BF12: 132 | BG12: 132 | BH12: 132 | BI12: 132 | BJ12: 132 | BK12: 132 | BL12: 132 | BM12: 132 | BN12: 132 | BO12: 132 | BP12: 132 | BQ12: 132 | BR12: 132 | BS12: 132 | BT12: 132 | BU12: 132 | BV12: 132 | BW12: 132 | BX12: =$E$12*BX7 -> 132 | BY12: 132 | BZ12: 132 | CA12: 132 | CB12: 132 | CC12: 132 | CD12: 132 | CE12: 132 | CF12: 132 | CG12: 132 | CH12: 132 | CI12: 132 | CJ12: 132 | CK12: 132 | CL12: 132 | CM12: 132 | CN12: 132 | CO12: 132 | CP12: 132 | CQ12: 132 | CR12: 132 | CS12: 132 | CT12: 132 | CU12: 132 | CV12: 132 | CW12: 132 | CX12: 132 | CY12: 132 | CZ12: 132 | DA12: 132 | DB12: 132 | DC12: 132 | DD12: 132 | DE12: 132 | DF12: 132 | DG12: 132 | DH12: 132 | DI12: 132 | DJ12: 132 | DK12: 132 | DL12: 132 | DM12: 132 | DN12: 132 | DO12: 132 | DP12: 132 | DQ12: 132 | DR12: 132 | DS12: 132 | DT12: 132 | DU12: 132 | DV12: 132 | DW12: 132 | DX12: 132 | DY12: 132 | DZ12: 132 | EA12: 132 | EB12: 132 | EC12: 132 | ED12: 132 | EE12: 132 | EF12: 132 | EG12: 132 | EH12: 132 | EI12: 132 | EJ12: =$E$12*EJ7 -> 132 | EK12: 132 | EL12: 132 | EM12: 132 | EN12: 132 | EO12: 132 | EP12: 132 | EQ12: 132 | ER12: 132 | ES12: 132 | ET12: 132 | EU12: 132 | EV12: 132 | EW12: 132 | EX12: 132 | EY12: 132 | EZ12: 132 | FA12: 132 | FB12: 132 | FC12: 132 | FD12: 132 | FE12: 132 | FF12: 132 | FG12: 132 | FH12: 132 | FI12: 132 | FJ12: 132 | FK12: 132 | FL12: 132 | FM12: 132 | FN12: 132 | FO12: 132 | FP12: 132 | FQ12: 132 | FR12: 132 | FS12: 132 | FT12: 132 | FU12: 132 | FV12: 132 | FW12: 132 | FX12: 132 | FY12: 132 | FZ12: 132 | GA12: 132 | GB12: 132 | GC12: 132 | GD12: 132 | GE12: 132 | GF12: 132 | GG12: 132 | GH12: 132 | GI12: 132 | GJ12: 132 | GK12: 132 | GL12: 132 | GM12: 132 | GN12: 132 | GO12: 132 | GP12: 132 | GQ12: 132 | GR12: 132 | GS12: 132 | GT12: 132 | GU12: 132 | GV12: =$E$12*GV7 -> 132 | GW12: 132 | GX12: 132 | GY12: 132 | GZ12: 132 | HA12: 132 | HB12: 132 | HC12: 132 | HD12: 132 | HE12: 132 | HF12: 132 | HG12: 132 | HH12: 132 | HI12: 132 | HJ12: 132 | HK12: 132 | HL12: 132 | HM12: 132 | HN12: 132 | HO12: 132 | HP12: 132 | HQ12: 132 | HR12: 132 | HS12: 132 | HT12: 132 | HU12: 132 | HV12: 132 | HW12: 132 | HX12: 132 | HY12: 132 | HZ12: 132 | IA12: 132 | IB12: 132 | IC12: 132 | ID12: 132 | IE12: 132 | IF12: 132 | IG12: 132 | IH12: 132 | II12: 132 | IJ12: 132 | IK12: 132 | IL12: 132 | IM12: 132 | IN12: 132 | IO12: 132 | IP12: 132 | IQ12: 132 | IR12: 132 | IS12: 132 | IT12: 132 | IU12: 132 | IV12: 132 | IW12: 132 | IX12: 132 | IY12: 132 | IZ12: 132 | JA12: 132 | JB12: 132 | JC12: 132 | JD12: 132 | JE12: 132 | JF12: 132 | JG12: 132 | JH12: =$E$12*JH7 -> 132 | JI12: 132 | JJ12: 132 | JK12: 132 | JL12: 132 | JM12: 132 | JN12: 132 | JO12: 132 | JP12: 132 | JQ12: 132 | JR12: 132 | JS12: 132 | JT12: 132 | JU12: 132 | JV12: 132 | JW12: 132 | JX12: 132 | JY12: 132 | JZ12: 132 | KA12: 132 | KB12: 132 | KC12: 132 | KD12: 132 | KE12: 132 | KF12: 132 | KG12: 132 | KH12: 132 | KI12: 132 | KJ12: 132 | KK12: 132 | KL12: 132 | KM12: 132 | KN12: 132 | KO12: 132 | KP12: 132 | KQ12: 132 | KR12: 132 | KS12: 132 | KT12: 132 | KU12: 132 | KV12: 132 | KW12: 132 | KX12: 132 | KY12: 132 | KZ12: 132 | LA12: 132 | LB12: 132 | LC12: 132 | LD12: 132 | LE12: 132 | LF12: 132 | LG12: 132 | LH12: 132 | LI12: 132 | LJ12: 132 | LK12: 132 | LL12: 132 | LM12: 132 | LN12: 132 | LO12: 132 | LP12: 132 | LQ12: 132 | LR12: 132 | LS12: 132 | LT12: =$E$12*LT7 -> 132 | LU12: 132 | LV12: 132 | LW12: 132 | LX12: 132 | LY12: 132 | LZ12: 132 | MA12: 132 | MB12: 132 | MC12: 132 | MD12: 132 | ME12: 132 | MF12: 132 | MG12: 132 | MH12: 132 | MI12: 132 | MJ12: 132 | MK12: 132 | ML12: 132 | MM12: 132 | MN12: 132 | MO12: 132 | MP12: 132 | MQ12: 132 | MR12: 132 | MS12: 132 | MT12: 132 | MU12: 132 | MV12: 132 | MW12: 132 | MX12: 132 | MY12: 132 | MZ12: 132 | NA12: 132 | NB12: 132 | NC12: 132 | ND12: 132 | NE12: 132 | NF12: 132 | NG12: 132 | NH12: 132 | NI12: 132 | NJ12: 132 | NK12: 132 | NL12: 132 | NM12: 132 | NN12: 132 | NO12: 132 | NP12: 132 | NQ12: 132 | NR12: 132 | NS12: 132 | NT12: 132 | NU12: 132 | NV12: 132 | NW12: 132 | NX12: 132 | NY12: 132 | NZ12: 132 | OA12: 132 | OB12: 132 | OC12: 132 | OD12: 132 | OE12: 132 | OF12: =$E$12*OF7 -> 132 | OG12: 132 | OH12: 132 | OI12: 132 | OJ12: 132 | OK12: 132 | OL12: 132 | OM12: 132 | ON12: 132 | OO12: 132 | OP12: 132 | OQ12: 132 | OR12: 132 | OS12: 132 | OT12: 132 | OU12: 132 | OV12: 132 | OW12: 132 | OX12: 132 | OY12: 132 | OZ12: 132 | PA12: 132 | PB12: 132 | PC12: 132 | PD12: 132 | PE12: 132 | PF12: 132 | PG12: 132 | PH12: 132 | PI12: 132 | PJ12: 132 | PK12: 132 | PL12: 132 | PM12: 132 | PN12: 132 | PO12: 132 | PP12: 132 | PQ12: 0 | PR12: 0 | PS12: 0 | PT12: 0 | PU12: 0 | PV12: 0 | PW12: 0 | PX12: 0 | PY12: 0 | PZ12: 0 | QA12: 0 | QB12: 0 | QC12: 0 | QD12: 0 | QE12: 0 | QF12: 0 | QG12: 0 | QH12: 0 | QI12: 0 | QJ12: 0 | QK12: 0 | QL12: 0 | QM12: 0 | QN12: 0 | QO12: 0 | QP12: 0 | QQ12: 0 | QR12: =$E$12*QR7 -> 0 | QS12: 0 | QT12: 0 | QU12: 0 | QV12: 0 | QW12: 0 | QX12: 0 | QY12: 0 | QZ12: 0 | RA12: 0 | RB12: 0 | RC12: 0 | RD12: 0 | RE12: 0 | RF12: 0 | RG12: 0 | RH12: 0 | RI12: 0 | RJ12: 0 | RK12: 0 | RL12: 0 | RM12: 0 | RN12: 0 | RO12: 0 | RP12: 0 | RQ12: 0 | RR12: 0 | RS12: 0 | RT12: 0 | RU12: 0 | RV12: 0 | RW12: 0 | RX12: 0 | RY12: 0 | RZ12: 0 | SA12: 0 | SB12: 0 | SC12: 0 | SD12: 0 | SE12: 0 | SF12: 0 | SG12: 0 | SH12: 0 | SI12: 0 | SJ12: 0 | SK12: 0 | SL12: 0 | SM12: 0 | SN12: 0 | SO12: 0 | SP12: 0 | SQ12: 0
D13: Capacity in kW | E13: ='InputC - Operations'!F17*1000 -> 132000 | G13: kWp | L13: =$E$13*L7 -> 0 | M13: 132000 | N13: 132000 | O13: 132000 | P13: 132000 | Q13: 132000 | R13: 132000 | S13: 132000 | T13: 132000 | U13: 132000 | V13: 132000 | W13: 132000 | X13: 132000 | Y13: 132000 | Z13: 132000 | AA13: 132000 | AB13: 132000 | AC13: 132000 | AD13: 132000 | AE13: 132000 | AF13: 132000 | AG13: 132000 | AH13: 132000 | AI13: 132000 | AJ13: 132000 | AK13: 132000 | AL13: 132000 | AM13: 132000 | AN13: 132000 | AO13: 132000 | AP13: 132000 | AQ13: 132000 | AR13: 132000 | AS13: 132000 | AT13: 132000 | AU13: 132000 | AV13: 132000 | AW13: 132000 | AX13: 132000 | AY13: 132000 | AZ13: 132000 | BA13: 132000 | BB13: 132000 | BC13: 132000 | BD13: 132000 | BE13: 132000 | BF13: 132000 | BG13: 132000 | BH13: 132000 | BI13: 132000 | BJ13: 132000 | BK13: 132000 | BL13: 132000 | BM13: 132000 | BN13: 132000 | BO13: 132000 | BP13: 132000 | BQ13: 132000 | BR13: 132000 | BS13: 132000 | BT13: 132000 | BU13: 132000 | BV13: 132000 | BW13: 132000 | BX13: =$E$13*BX7 -> 132000 | BY13: 132000 | BZ13: 132000 | CA13: 132000 | CB13: 132000 | CC13: 132000 | CD13: 132000 | CE13: 132000 | CF13: 132000 | CG13: 132000 | CH13: 132000 | CI13: 132000 | CJ13: 132000 | CK13: 132000 | CL13: 132000 | CM13: 132000 | CN13: 132000 | CO13: 132000 | CP13: 132000 | CQ13: 132000 | CR13: 132000 | CS13: 132000 | CT13: 132000 | CU13: 132000 | CV13: 132000 | CW13: 132000 | CX13: 132000 | CY13: 132000 | CZ13: 132000 | DA13: 132000 | DB13: 132000 | DC13: 132000 | DD13: 132000 | DE13: 132000 | DF13: 132000 | DG13: 132000 | DH13: 132000 | DI13: 132000 | DJ13: 132000 | DK13: 132000 | DL13: 132000 | DM13: 132000 | DN13: 132000 | DO13: 132000 | DP13: 132000 | DQ13: 132000 | DR13: 132000 | DS13: 132000 | DT13: 132000 | DU13: 132000 | DV13: 132000 | DW13: 132000 | DX13: 132000 | DY13: 132000 | DZ13: 132000 | EA13: 132000 | EB13: 132000 | EC13: 132000 | ED13: 132000 | EE13: 132000 | EF13: 132000 | EG13: 132000 | EH13: 132000 | EI13: 132000 | EJ13: =$E$13*EJ7 -> 132000 | EK13: 132000 | EL13: 132000 | EM13: 132000 | EN13: 132000 | EO13: 132000 | EP13: 132000 | EQ13: 132000 | ER13: 132000 | ES13: 132000 | ET13: 132000 | EU13: 132000 | EV13: 132000 | EW13: 132000 | EX13: 132000 | EY13: 132000 | EZ13: 132000 | FA13: 132000 | FB13: 132000 | FC13: 132000 | FD13: 132000 | FE13: 132000 | FF13: 132000 | FG13: 132000 | FH13: 132000 | FI13: 132000 | FJ13: 132000 | FK13: 132000 | FL13: 132000 | FM13: 132000 | FN13: 132000 | FO13: 132000 | FP13: 132000 | FQ13: 132000 | FR13: 132000 | FS13: 132000 | FT13: 132000 | FU13: 132000 | FV13: 132000 | FW13: 132000 | FX13: 132000 | FY13: 132000 | FZ13: 132000 | GA13: 132000 | GB13: 132000 | GC13: 132000 | GD13: 132000 | GE13: 132000 | GF13: 132000 | GG13: 132000 | GH13: 132000 | GI13: 132000 | GJ13: 132000 | GK13: 132000 | GL13: 132000 | GM13: 132000 | GN13: 132000 | GO13: 132000 | GP13: 132000 | GQ13: 132000 | GR13: 132000 | GS13: 132000 | GT13: 132000 | GU13: 132000 | GV13: =$E$13*GV7 -> 132000 | GW13: 132000 | GX13: 132000 | GY13: 132000 | GZ13: 132000 | HA13: 132000 | HB13: 132000 | HC13: 132000 | HD13: 132000 | HE13: 132000 | HF13: 132000 | HG13: 132000 | HH13: 132000 | HI13: 132000 | HJ13: 132000 | HK13: 132000 | HL13: 132000 | HM13: 132000 | HN13: 132000 | HO13: 132000 | HP13: 132000 | HQ13: 132000 | HR13: 132000 | HS13: 132000 | HT13: 132000 | HU13: 132000 | HV13: 132000 | HW13: 132000 | HX13: 132000 | HY13: 132000 | HZ13: 132000 | IA13: 132000 | IB13: 132000 | IC13: 132000 | ID13: 132000 | IE13: 132000 | IF13: 132000 | IG13: 132000 | IH13: 132000 | II13: 132000 | IJ13: 132000 | IK13: 132000 | IL13: 132000 | IM13: 132000 | IN13: 132000 | IO13: 132000 | IP13: 132000 | IQ13: 132000 | IR13: 132000 | IS13: 132000 | IT13: 132000 | IU13: 132000 | IV13: 132000 | IW13: 132000 | IX13: 132000 | IY13: 132000 | IZ13: 132000 | JA13: 132000 | JB13: 132000 | JC13: 132000 | JD13: 132000 | JE13: 132000 | JF13: 132000 | JG13: 132000 | JH13: =$E$13*JH7 -> 132000 | JI13: 132000 | JJ13: 132000 | JK13: 132000 | JL13: 132000 | JM13: 132000 | JN13: 132000 | JO13: 132000 | JP13: 132000 | JQ13: 132000 | JR13: 132000 | JS13: 132000 | JT13: 132000 | JU13: 132000 | JV13: 132000 | JW13: 132000 | JX13: 132000 | JY13: 132000 | JZ13: 132000 | KA13: 132000 | KB13: 132000 | KC13: 132000 | KD13: 132000 | KE13: 132000 | KF13: 132000 | KG13: 132000 | KH13: 132000 | KI13: 132000 | KJ13: 132000 | KK13: 132000 | KL13: 132000 | KM13: 132000 | KN13: 132000 | KO13: 132000 | KP13: 132000 | KQ13: 132000 | KR13: 132000 | KS13: 132000 | KT13: 132000 | KU13: 132000 | KV13: 132000 | KW13: 132000 | KX13: 132000 | KY13: 132000 | KZ13: 132000 | LA13: 132000 | LB13: 132000 | LC13: 132000 | LD13: 132000 | LE13: 132000 | LF13: 132000 | LG13: 132000 | LH13: 132000 | LI13: 132000 | LJ13: 132000 | LK13: 132000 | LL13: 132000 | LM13: 132000 | LN13: 132000 | LO13: 132000 | LP13: 132000 | LQ13: 132000 | LR13: 132000 | LS13: 132000 | LT13: =$E$13*LT7 -> 132000 | LU13: 132000 | LV13: 132000 | LW13: 132000 | LX13: 132000 | LY13: 132000 | LZ13: 132000 | MA13: 132000 | MB13: 132000 | MC13: 132000 | MD13: 132000 | ME13: 132000 | MF13: 132000 | MG13: 132000 | MH13: 132000 | MI13: 132000 | MJ13: 132000 | MK13: 132000 | ML13: 132000 | MM13: 132000 | MN13: 132000 | MO13: 132000 | MP13: 132000 | MQ13: 132000 | MR13: 132000 | MS13: 132000 | MT13: 132000 | MU13: 132000 | MV13: 132000 | MW13: 132000 | MX13: 132000 | MY13: 132000 | MZ13: 132000 | NA13: 132000 | NB13: 132000 | NC13: 132000 | ND13: 132000 | NE13: 132000 | NF13: 132000 | NG13: 132000 | NH13: 132000 | NI13: 132000 | NJ13: 132000 | NK13: 132000 | NL13: 132000 | NM13: 132000 | NN13: 132000 | NO13: 132000 | NP13: 132000 | NQ13: 132000 | NR13: 132000 | NS13: 132000 | NT13: 132000 | NU13: 132000 | NV13: 132000 | NW13: 132000 | NX13: 132000 | NY13: 132000 | NZ13: 132000 | OA13: 132000 | OB13: 132000 | OC13: 132000 | OD13: 132000 | OE13: 132000 | OF13: =$E$13*OF7 -> 132000 | OG13: 132000 | OH13: 132000 | OI13: 132000 | OJ13: 132000 | OK13: 132000 | OL13: 132000 | OM13: 132000 | ON13: 132000 | OO13: 132000 | OP13: 132000 | OQ13: 132000 | OR13: 132000 | OS13: 132000 | OT13: 132000 | OU13: 132000 | OV13: 132000 | OW13: 132000 | OX13: 132000 | OY13: 132000 | OZ13: 132000 | PA13: 132000 | PB13: 132000 | PC13: 132000 | PD13: 132000 | PE13: 132000 | PF13: 132000 | PG13: 132000 | PH13: 132000 | PI13: 132000 | PJ13: 132000 | PK13: 132000 | PL13: 132000 | PM13: 132000 | PN13: 132000 | PO13: 132000 | PP13: 132000 | PQ13: 0 | PR13: 0 | PS13: 0 | PT13: 0 | PU13: 0 | PV13: 0 | PW13: 0 | PX13: 0 | PY13: 0 | PZ13: 0 | QA13: 0 | QB13: 0 | QC13: 0 | QD13: 0 | QE13: 0 | QF13: 0 | QG13: 0 | QH13: 0 | QI13: 0 | QJ13: 0 | QK13: 0 | QL13: 0 | QM13: 0 | QN13: 0 | QO13: 0 | QP13: 0 | QQ13: 0 | QR13: =$E$13*QR7 -> 0 | QS13: 0 | QT13: 0 | QU13: 0 | QV13: 0 | QW13: 0 | QX13: 0 | QY13: 0 | QZ13: 0 | RA13: 0 | RB13: 0 | RC13: 0 | RD13: 0 | RE13: 0 | RF13: 0 | RG13: 0 | RH13: 0 | RI13: 0 | RJ13: 0 | RK13: 0 | RL13: 0 | RM13: 0 | RN13: 0 | RO13: 0 | RP13: 0 | RQ13: 0 | RR13: 0 | RS13: 0 | RT13: 0 | RU13: 0 | RV13: 0 | RW13: 0 | RX13: 0 | RY13: 0 | RZ13: 0 | SA13: 0 | SB13: 0 | SC13: 0 | SD13: 0 | SE13: 0 | SF13: 0 | SG13: 0 | SH13: 0 | SI13: 0 | SJ13: 0 | SK13: 0 | SL13: 0 | SM13: 0 | SN13: 0 | SO13: 0 | SP13: 0 | SQ13: 0
D15: Annual Yield | E15: =to_norminv -> 1980 | G15: kWh/kWp | L15: =$E$15*L7 -> 0 | M15: 1980 | N15: 1980 | O15: 1980 | P15: 1980 | Q15: 1980 | R15: 1980 | S15: 1980 | T15: 1980 | U15: 1980 | V15: 1980 | W15: 1980 | X15: 1980 | Y15: 1980 | Z15: 1980 | AA15: 1980 | AB15: 1980 | AC15: 1980 | AD15: 1980 | AE15: 1980 | AF15: 1980 | AG15: 1980 | AH15: 1980 | AI15: 1980 | AJ15: 1980 | AK15: 1980 | AL15: 1980 | AM15: 1980 | AN15: 1980 | AO15: 1980 | AP15: 1980 | AQ15: 1980 | AR15: 1980 | AS15: 1980 | AT15: 1980 | AU15: 1980 | AV15: 1980 | AW15: 1980 | AX15: 1980 | AY15: 1980 | AZ15: 1980 | BA15: 1980 | BB15: 1980 | BC15: 1980 | BD15: 1980 | BE15: 1980 | BF15: 1980 | BG15: 1980 | BH15: 1980 | BI15: 1980 | BJ15: 1980 | BK15: 1980 | BL15: 1980 | BM15: 1980 | BN15: 1980 | BO15: 1980 | BP15: 1980 | BQ15: 1980 | BR15: 1980 | BS15: 1980 | BT15: 1980 | BU15: 1980 | BV15: 1980 | BW15: 1980 | BX15: =$E$15*BX7 -> 1980 | BY15: 1980 | BZ15: 1980 | CA15: 1980 | CB15: 1980 | CC15: 1980 | CD15: 1980 | CE15: 1980 | CF15: 1980 | CG15: 1980 | CH15: 1980 | CI15: 1980 | CJ15: 1980 | CK15: 1980 | CL15: 1980 | CM15: 1980 | CN15: 1980 | CO15: 1980 | CP15: 1980 | CQ15: 1980 | CR15: 1980 | CS15: 1980 | CT15: 1980 | CU15: 1980 | CV15: 1980 | CW15: 1980 | CX15: 1980 | CY15: 1980 | CZ15: 1980 | DA15: 1980 | DB15: 1980 | DC15: 1980 | DD15: 1980 | DE15: 1980 | DF15: 1980 | DG15: 1980 | DH15: 1980 | DI15: 1980 | DJ15: 1980 | DK15: 1980 | DL15: 1980 | DM15: 1980 | DN15: 1980 | DO15: 1980 | DP15: 1980 | DQ15: 1980 | DR15: 1980 | DS15: 1980 | DT15: 1980 | DU15: 1980 | DV15: 1980 | DW15: 1980 | DX15: 1980 | DY15: 1980 | DZ15: 1980 | EA15: 1980 | EB15: 1980 | EC15: 1980 | ED15: 1980 | EE15: 1980 | EF15: 1980 | EG15: 1980 | EH15: 1980 | EI15: 1980 | EJ15: =$E$15*EJ7 -> 1980 | EK15: 1980 | EL15: 1980 | EM15: 1980 | EN15: 1980 | EO15: 1980 | EP15: 1980 | EQ15: 1980 | ER15: 1980 | ES15: 1980 | ET15: 1980 | EU15: 1980 | EV15: 1980 | EW15: 1980 | EX15: 1980 | EY15: 1980 | EZ15: 1980 | FA15: 1980 | FB15: 1980 | FC15: 1980 | FD15: 1980 | FE15: 1980 | FF15: 1980 | FG15: 1980 | FH15: 1980 | FI15: 1980 | FJ15: 1980 | FK15: 1980 | FL15: 1980 | FM15: 1980 | FN15: 1980 | FO15: 1980 | FP15: 1980 | FQ15: 1980 | FR15: 1980 | FS15: 1980 | FT15: 1980 | FU15: 1980 | FV15: 1980 | FW15: 1980 | FX15: 1980 | FY15: 1980 | FZ15: 1980 | GA15: 1980 | GB15: 1980 | GC15: 1980 | GD15: 1980 | GE15: 1980 | GF15: 1980 | GG15: 1980 | GH15: 1980 | GI15: 1980 | GJ15: 1980 | GK15: 1980 | GL15: 1980 | GM15: 1980 | GN15: 1980 | GO15: 1980 | GP15: 1980 | GQ15: 1980 | GR15: 1980 | GS15: 1980 | GT15: 1980 | GU15: 1980 | GV15: =$E$15*GV7 -> 1980 | GW15: 1980 | GX15: 1980 | GY15: 1980 | GZ15: 1980 | HA15: 1980 | HB15: 1980 | HC15: 1980 | HD15: 1980 | HE15: 1980 | HF15: 1980 | HG15: 1980 | HH15: 1980 | HI15: 1980 | HJ15: 1980 | HK15: 1980 | HL15: 1980 | HM15: 1980 | HN15: 1980 | HO15: 1980 | HP15: 1980 | HQ15: 1980 | HR15: 1980 | HS15: 1980 | HT15: 1980 | HU15: 1980 | HV15: 1980 | HW15: 1980 | HX15: 1980 | HY15: 1980 | HZ15: 1980 | IA15: 1980 | IB15: 1980 | IC15: 1980 | ID15: 1980 | IE15: 1980 | IF15: 1980 | IG15: 1980 | IH15: 1980 | II15: 1980 | IJ15: 1980 | IK15: 1980 | IL15: 1980 | IM15: 1980 | IN15: 1980 | IO15: 1980 | IP15: 1980 | IQ15: 1980 | IR15: 1980 | IS15: 1980 | IT15: 1980 | IU15: 1980 | IV15: 1980 | IW15: 1980 | IX15: 1980 | IY15: 1980 | IZ15: 1980 | JA15: 1980 | JB15: 1980 | JC15: 1980 | JD15: 1980 | JE15: 1980 | JF15: 1980 | JG15: 1980 | JH15: =$E$15*JH7 -> 1980 | JI15: 1980 | JJ15: 1980 | JK15: 1980 | JL15: 1980 | JM15: 1980 | JN15: 1980 | JO15: 1980 | JP15: 1980 | JQ15: 1980 | JR15: 1980 | JS15: 1980 | JT15: 1980 | JU15: 1980 | JV15: 1980 | JW15: 1980 | JX15: 1980 | JY15: 1980 | JZ15: 1980 | KA15: 1980 | KB15: 1980 | KC15: 1980 | KD15: 1980 | KE15: 1980 | KF15: 1980 | KG15: 1980 | KH15: 1980 | KI15: 1980 | KJ15: 1980 | KK15: 1980 | KL15: 1980 | KM15: 1980 | KN15: 1980 | KO15: 1980 | KP15: 1980 | KQ15: 1980 | KR15: 1980 | KS15: 1980 | KT15: 1980 | KU15: 1980 | KV15: 1980 | KW15: 1980 | KX15: 1980 | KY15: 1980 | KZ15: 1980 | LA15: 1980 | LB15: 1980 | LC15: 1980 | LD15: 1980 | LE15: 1980 | LF15: 1980 | LG15: 1980 | LH15: 1980 | LI15: 1980 | LJ15: 1980 | LK15: 1980 | LL15: 1980 | LM15: 1980 | LN15: 1980 | LO15: 1980 | LP15: 1980 | LQ15: 1980 | LR15: 1980 | LS15: 1980 | LT15: =$E$15*LT7 -> 1980 | LU15: 1980 | LV15: 1980 | LW15: 1980 | LX15: 1980 | LY15: 1980 | LZ15: 1980 | MA15: 1980 | MB15: 1980 | MC15: 1980 | MD15: 1980 | ME15: 1980 | MF15: 1980 | MG15: 1980 | MH15: 1980 | MI15: 1980 | MJ15: 1980 | MK15: 1980 | ML15: 1980 | MM15: 1980 | MN15: 1980 | MO15: 1980 | MP15: 1980 | MQ15: 1980 | MR15: 1980 | MS15: 1980 | MT15: 1980 | MU15: 1980 | MV15: 1980 | MW15: 1980 | MX15: 1980 | MY15: 1980 | MZ15: 1980 | NA15: 1980 | NB15: 1980 | NC15: 1980 | ND15: 1980 | NE15: 1980 | NF15: 1980 | NG15: 1980 | NH15: 1980 | NI15: 1980 | NJ15: 1980 | NK15: 1980 | NL15: 1980 | NM15: 1980 | NN15: 1980 | NO15: 1980 | NP15: 1980 | NQ15: 1980 | NR15: 1980 | NS15: 1980 | NT15: 1980 | NU15: 1980 | NV15: 1980 | NW15: 1980 | NX15: 1980 | NY15: 1980 | NZ15: 1980 | OA15: 1980 | OB15: 1980 | OC15: 1980 | OD15: 1980 | OE15: 1980 | OF15: =$E$15*OF7 -> 1980 | OG15: 1980 | OH15: 1980 | OI15: 1980 | OJ15: 1980 | OK15: 1980 | OL15: 1980 | OM15: 1980 | ON15: 1980 | OO15: 1980 | OP15: 1980 | OQ15: 1980 | OR15: 1980 | OS15: 1980 | OT15: 1980 | OU15: 1980 | OV15: 1980 | OW15: 1980 | OX15: 1980 | OY15: 1980 | OZ15: 1980 | PA15: 1980 | PB15: 1980 | PC15: 1980 | PD15: 1980 | PE15: 1980 | PF15: 1980 | PG15: 1980 | PH15: 1980 | PI15: 1980 | PJ15: 1980 | PK15: 1980 | PL15: 1980 | PM15: 1980 | PN15: 1980 | PO15: 1980 | PP15: 1980 | PQ15: 0 | PR15: 0 | PS15: 0 | PT15: 0 | PU15: 0 | PV15: 0 | PW15: 0 | PX15: 0 | PY15: 0 | PZ15: 0 | QA15: 0 | QB15: 0 | QC15: 0 | QD15: 0 | QE15: 0 | QF15: 0 | QG15: 0 | QH15: 0 | QI15: 0 | QJ15: 0 | QK15: 0 | QL15: 0 | QM15: 0 | QN15: 0 | QO15: 0 | QP15: 0 | QQ15: 0 | QR15: =$E$15*QR7 -> 0 | QS15: 0 | QT15: 0 | QU15: 0 | QV15: 0 | QW15: 0 | QX15: 0 | QY15: 0 | QZ15: 0 | RA15: 0 | RB15: 0 | RC15: 0 | RD15: 0 | RE15: 0 | RF15: 0 | RG15: 0 | RH15: 0 | RI15: 0 | RJ15: 0 | RK15: 0 | RL15: 0 | RM15: 0 | RN15: 0 | RO15: 0 | RP15: 0 | RQ15: 0 | RR15: 0 | RS15: 0 | RT15: 0 | RU15: 0 | RV15: 0 | RW15: 0 | RX15: 0 | RY15: 0 | RZ15: 0 | SA15: 0 | SB15: 0 | SC15: 0 | SD15: 0 | SE15: 0 | SF15: 0 | SG15: 0 | SH15: 0 | SI15: 0 | SJ15: 0 | SK15: 0 | SL15: 0 | SM15: 0 | SN15: 0 | SO15: 0 | SP15: 0 | SQ15: 0
D16: Annual Generation b/4 Degrad, Availiblity | G16: MWH | L16: =L15*L12 -> 0 | M16: =M15*M12 -> 261360 | N16: 261360 | O16: 261360 | P16: 261360 | Q16: 261360 | R16: 261360 | S16: 261360 | T16: 261360 | U16: 261360 | V16: 261360 | W16: 261360 | X16: 261360 | Y16: 261360 | Z16: 261360 | AA16: 261360 | AB16: 261360 | AC16: 261360 | AD16: 261360 | AE16: 261360 | AF16: 261360 | AG16: 261360 | AH16: 261360 | AI16: 261360 | AJ16: 261360 | AK16: 261360 | AL16: 261360 | AM16: 261360 | AN16: 261360 | AO16: 261360 | AP16: 261360 | AQ16: 261360 | AR16: 261360 | AS16: 261360 | AT16: 261360 | AU16: 261360 | AV16: 261360 | AW16: 261360 | AX16: 261360 | AY16: 261360 | AZ16: 261360 | BA16: 261360 | BB16: 261360 | BC16: 261360 | BD16: 261360 | BE16: 261360 | BF16: 261360 | BG16: 261360 | BH16: 261360 | BI16: 261360 | BJ16: 261360 | BK16: 261360 | BL16: 261360 | BM16: 261360 | BN16: 261360 | BO16: 261360 | BP16: 261360 | BQ16: 261360 | BR16: 261360 | BS16: 261360 | BT16: 261360 | BU16: 261360 | BV16: 261360 | BW16: 261360 | BX16: 261360 | BY16: =BY15*BY12 -> 261360 | BZ16: 261360 | CA16: 261360 | CB16: 261360 | CC16: 261360 | CD16: 261360 | CE16: 261360 | CF16: 261360 | CG16: 261360 | CH16: 261360 | CI16: 261360 | CJ16: 261360 | CK16: 261360 | CL16: 261360 | CM16: 261360 | CN16: 261360 | CO16: 261360 | CP16: 261360 | CQ16: 261360 | CR16: 261360 | CS16: 261360 | CT16: 261360 | CU16: 261360 | CV16: 261360 | CW16: 261360 | CX16: 261360 | CY16: 261360 | CZ16: 261360 | DA16: 261360 | DB16: 261360 | DC16: 261360 | DD16: 261360 | DE16: 261360 | DF16: 261360 | DG16: 261360 | DH16: 261360 | DI16: 261360 | DJ16: 261360 | DK16: 261360 | DL16: 261360 | DM16: 261360 | DN16: 261360 | DO16: 261360 | DP16: 261360 | DQ16: 261360 | DR16: 261360 | DS16: 261360 | DT16: 261360 | DU16: 261360 | DV16: 261360 | DW16: 261360 | DX16: 261360 | DY16: 261360 | DZ16: 261360 | EA16: 261360 | EB16: 261360 | EC16: 261360 | ED16: 261360 | EE16: 261360 | EF16: 261360 | EG16: 261360 | EH16: 261360 | EI16: 261360 | EJ16: 261360 | EK16: =EK15*EK12 -> 261360 | EL16: 261360 | EM16: 261360 | EN16: 261360 | EO16: 261360 | EP16: 261360 | EQ16: 261360 | ER16: 261360 | ES16: 261360 | ET16: 261360 | EU16: 261360 | EV16: 261360 | EW16: 261360 | EX16: 261360 | EY16: 261360 | EZ16: 261360 | FA16: 261360 | FB16: 261360 | FC16: 261360 | FD16: 261360 | FE16: 261360 | FF16: 261360 | FG16: 261360 | FH16: 261360 | FI16: 261360 | FJ16: 261360 | FK16: 261360 | FL16: 261360 | FM16: 261360 | FN16: 261360 | FO16: 261360 | FP16: 261360 | FQ16: 261360 | FR16: 261360 | FS16: 261360 | FT16: 261360 | FU16: 261360 | FV16: 261360 | FW16: 261360 | FX16: 261360 | FY16: 261360 | FZ16: 261360 | GA16: 261360 | GB16: 261360 | GC16: 261360 | GD16: 261360 | GE16: 261360 | GF16: 261360 | GG16: 261360 | GH16: 261360 | GI16: 261360 | GJ16: 261360 | GK16: 261360 | GL16: 261360 | GM16: 261360 | GN16: 261360 | GO16: 261360 | GP16: 261360 | GQ16: 261360 | GR16: 261360 | GS16: 261360 | GT16: 261360 | GU16: 261360 | GV16: 261360 | GW16: =GW15*GW12 -> 261360 | GX16: 261360 | GY16: 261360 | GZ16: 261360 | HA16: 261360 | HB16: 261360 | HC16: 261360 | HD16: 261360 | HE16: 261360 | HF16: 261360 | HG16: 261360 | HH16: 261360 | HI16: 261360 | HJ16: 261360 | HK16: 261360 | HL16: 261360 | HM16: 261360 | HN16: 261360 | HO16: 261360 | HP16: 261360 | HQ16: 261360 | HR16: 261360 | HS16: 261360 | HT16: 261360 | HU16: 261360 | HV16: 261360 | HW16: 261360 | HX16: 261360 | HY16: 261360 | HZ16: 261360 | IA16: 261360 | IB16: 261360 | IC16: 261360 | ID16: 261360 | IE16: 261360 | IF16: 261360 | IG16: 261360 | IH16: 261360 | II16: 261360 | IJ16: 261360 | IK16: 261360 | IL16: 261360 | IM16: 261360 | IN16: 261360 | IO16: 261360 | IP16: 261360 | IQ16: 261360 | IR16: 261360 | IS16: 261360 | IT16: 261360 | IU16: 261360 | IV16: 261360 | IW16: 261360 | IX16: 261360 | IY16: 261360 | IZ16: 261360 | JA16: 261360 | JB16: 261360 | JC16: 261360 | JD16: 261360 | JE16: 261360 | JF16: 261360 | JG16: 261360 | JH16: 261360 | JI16: =JI15*JI12 -> 261360 | JJ16: 261360 | JK16: 261360 | JL16: 261360 | JM16: 261360 | JN16: 261360 | JO16: 261360 | JP16: 261360 | JQ16: 261360 | JR16: 261360 | JS16: 261360 | JT16: 261360 | JU16: 261360 | JV16: 261360 | JW16: 261360 | JX16: 261360 | JY16: 261360 | JZ16: 261360 | KA16: 261360 | KB16: 261360 | KC16: 261360 | KD16: 261360 | KE16: 261360 | KF16: 261360 | KG16: 261360 | KH16: 261360 | KI16: 261360 | KJ16: 261360 | KK16: 261360 | KL16: 261360 | KM16: 261360 | KN16: 261360 | KO16: 261360 | KP16: 261360 | KQ16: 261360 | KR16: 261360 | KS16: 261360 | KT16: 261360 | KU16: 261360 | KV16: 261360 | KW16: 261360 | KX16: 261360 | KY16: 261360 | KZ16: 261360 | LA16: 261360 | LB16: 261360 | LC16: 261360 | LD16: 261360 | LE16: 261360 | LF16: 261360 | LG16: 261360 | LH16: 261360 | LI16: 261360 | LJ16: 261360 | LK16: 261360 | LL16: 261360 | LM16: 261360 | LN16: 261360 | LO16: 261360 | LP16: 261360 | LQ16: 261360 | LR16: 261360 | LS16: 261360 | LT16: 261360 | LU16: =LU15*LU12 -> 261360 | LV16: 261360 | LW16: 261360 | LX16: 261360 | LY16: 261360 | LZ16: 261360 | MA16: 261360 | MB16: 261360 | MC16: 261360 | MD16: 261360 | ME16: 261360 | MF16: 261360 | MG16: 261360 | MH16: 261360 | MI16: 261360 | MJ16: 261360 | MK16: 261360 | ML16: 261360 | MM16: 261360 | MN16: 261360 | MO16: 261360 | MP16: 261360 | MQ16: 261360 | MR16: 261360 | MS16: 261360 | MT16: 261360 | MU16: 261360 | MV16: 261360 | MW16: 261360 | MX16: 261360 | MY16: 261360 | MZ16: 261360 | NA16: 261360 | NB16: 261360 | NC16: 261360 | ND16: 261360 | NE16: 261360 | NF16: 261360 | NG16: 261360 | NH16: 261360 | NI16: 261360 | NJ16: 261360 | NK16: 261360 | NL16: 261360 | NM16: 261360 | NN16: 261360 | NO16: 261360 | NP16: 261360 | NQ16: 261360 | NR16: 261360 | NS16: 261360 | NT16: 261360 | NU16: 261360 | NV16: 261360 | NW16: 261360 | NX16: 261360 | NY16: 261360 | NZ16: 261360 | OA16: 261360 | OB16: 261360 | OC16: 261360 | OD16: 261360 | OE16: 261360 | OF16: 261360 | OG16: =OG15*OG12 -> 261360 | OH16: 261360 | OI16: 261360 | OJ16: 261360 | OK16: 261360 | OL16: 261360 | OM16: 261360 | ON16: 261360 | OO16: 261360 | OP16: 261360 | OQ16: 261360 | OR16: 261360 | OS16: 261360 | OT16: 261360 | OU16: 261360 | OV16: 261360 | OW16: 261360 | OX16: 261360 | OY16: 261360 | OZ16: 261360 | PA16: 261360 | PB16: 261360 | PC16: 261360 | PD16: 261360 | PE16: 261360 | PF16: 261360 | PG16: 261360 | PH16: 261360 | PI16: 261360 | PJ16: 261360 | PK16: 261360 | PL16: 261360 | PM16: 261360 | PN16: 261360 | PO16: 261360 | PP16: 261360 | PQ16: 0 | PR16: 0 | PS16: 0 | PT16: 0 | PU16: 0 | PV16: 0 | PW16: 0 | PX16: 0 | PY16: 0 | PZ16: 0 | QA16: 0 | QB16: 0 | QC16: 0 | QD16: 0 | QE16: 0 | QF16: 0 | QG16: 0 | QH16: 0 | QI16: 0 | QJ16: 0 | QK16: 0 | QL16: 0 | QM16: 0 | QN16: 0 | QO16: 0 | QP16: 0 | QQ16: 0 | QR16: 0 | QS16: =QS15*QS12 -> 0 | QT16: 0 | QU16: 0 | QV16: 0 | QW16: 0 | QX16: 0 | QY16: 0 | QZ16: 0 | RA16: 0 | RB16: 0 | RC16: 0 | RD16: 0 | RE16: 0 | RF16: 0 | RG16: 0 | RH16: 0 | RI16: 0 | RJ16: 0 | RK16: 0 | RL16: 0 | RM16: 0 | RN16: 0 | RO16: 0 | RP16: 0 | RQ16: 0 | RR16: 0 | RS16: 0 | RT16: 0 | RU16: 0 | RV16: 0 | RW16: 0 | RX16: 0 | RY16: 0 | RZ16: 0 | SA16: 0 | SB16: 0 | SC16: 0 | SD16: 0 | SE16: 0 | SF16: 0 | SG16: 0 | SH16: 0 | SI16: 0 | SJ16: 0 | SK16: 0 | SL16: 0 | SM16: 0 | SN16: 0 | SO16: 0 | SP16: 0 | SQ16: 0
D18: Availability Factor | E18: ='InputC - Operations'!$E$24 -> 1 | G18: Pct | L18: =$E$18*L7 -> 0 | M18: 1 | N18: 1 | O18: 1 | P18: 1 | Q18: 1 | R18: 1 | S18: 1 | T18: 1 | U18: 1 | V18: 1 | W18: 1 | X18: 1 | Y18: 1 | Z18: 1 | AA18: 1 | AB18: 1 | AC18: 1 | AD18: 1 | AE18: 1 | AF18: 1 | AG18: 1 | AH18: 1 | AI18: 1 | AJ18: 1 | AK18: 1 | AL18: 1 | AM18: 1 | AN18: 1 | AO18: 1 | AP18: 1 | AQ18: 1 | AR18: 1 | AS18: 1 | AT18: 1 | AU18: 1 | AV18: 1 | AW18: 1 | AX18: 1 | AY18: 1 | AZ18: 1 | BA18: 1 | BB18: 1 | BC18: 1 | BD18: 1 | BE18: 1 | BF18: 1 | BG18: 1 | BH18: 1 | BI18: 1 | BJ18: 1 | BK18: 1 | BL18: 1 | BM18: 1 | BN18: 1 | BO18: 1 | BP18: 1 | BQ18: 1 | BR18: 1 | BS18: 1 | BT18: 1 | BU18: 1 | BV18: 1 | BW18: 1 | BX18: =$E$18*BX7 -> 1 | BY18: 1 | BZ18: 1 | CA18: 1 | CB18: 1 | CC18: 1 | CD18: 1 | CE18: 1 | CF18: 1 | CG18: 1 | CH18: 1 | CI18: 1 | CJ18: 1 | CK18: 1 | CL18: 1 | CM18: 1 | CN18: 1 | CO18: 1 | CP18: 1 | CQ18: 1 | CR18: 1 | CS18: 1 | CT18: 1 | CU18: 1 | CV18: 1 | CW18: 1 | CX18: 1 | CY18: 1 | CZ18: 1 | DA18: 1 | DB18: 1 | DC18: 1 | DD18: 1 | DE18: 1 | DF18: 1 | DG18: 1 | DH18: 1 | DI18: 1 | DJ18: 1 | DK18: 1 | DL18: 1 | DM18: 1 | DN18: 1 | DO18: 1 | DP18: 1 | DQ18: 1 | DR18: 1 | DS18: 1 | DT18: 1 | DU18: 1 | DV18: 1 | DW18: 1 | DX18: 1 | DY18: 1 | DZ18: 1 | EA18: 1 | EB18: 1 | EC18: 1 | ED18: 1 | EE18: 1 | EF18: 1 | EG18: 1 | EH18: 1 | EI18: 1 | EJ18: =$E$18*EJ7 -> 1 | EK18: 1 | EL18: 1 | EM18: 1 | EN18: 1 | EO18: 1 | EP18: 1 | EQ18: 1 | ER18: 1 | ES18: 1 | ET18: 1 | EU18: 1 | EV18: 1 | EW18: 1 | EX18: 1 | EY18: 1 | EZ18: 1 | FA18: 1 | FB18: 1 | FC18: 1 | FD18: 1 | FE18: 1 | FF18: 1 | FG18: 1 | FH18: 1 | FI18: 1 | FJ18: 1 | FK18: 1 | FL18: 1 | FM18: 1 | FN18: 1 | FO18: 1 | FP18: 1 | FQ18: 1 | FR18: 1 | FS18: 1 | FT18: 1 | FU18: 1 | FV18: 1 | FW18: 1 | FX18: 1 | FY18: 1 | FZ18: 1 | GA18: 1 | GB18: 1 | GC18: 1 | GD18: 1 | GE18: 1 | GF18: 1 | GG18: 1 | GH18: 1 | GI18: 1 | GJ18: 1 | GK18: 1 | GL18: 1 | GM18: 1 | GN18: 1 | GO18: 1 | GP18: 1 | GQ18: 1 | GR18: 1 | GS18: 1 | GT18: 1 | GU18: 1 | GV18: =$E$18*GV7 -> 1 | GW18: 1 | GX18: 1 | GY18: 1 | GZ18: 1 | HA18: 1 | HB18: 1 | HC18: 1 | HD18: 1 | HE18: 1 | HF18: 1 | HG18: 1 | HH18: 1 | HI18: 1 | HJ18: 1 | HK18: 1 | HL18: 1 | HM18: 1 | HN18: 1 | HO18: 1 | HP18: 1 | HQ18: 1 | HR18: 1 | HS18: 1 | HT18: 1 | HU18: 1 | HV18: 1 | HW18: 1 | HX18: 1 | HY18: 1 | HZ18: 1 | IA18: 1 | IB18: 1 | IC18: 1 | ID18: 1 | IE18: 1 | IF18: 1 | IG18: 1 | IH18: 1 | II18: 1 | IJ18: 1 | IK18: 1 | IL18: 1 | IM18: 1 | IN18: 1 | IO18: 1 | IP18: 1 | IQ18: 1 | IR18: 1 | IS18: 1 | IT18: 1 | IU18: 1 | IV18: 1 | IW18: 1 | IX18: 1 | IY18: 1 | IZ18: 1 | JA18: 1 | JB18: 1 | JC18: 1 | JD18: 1 | JE18: 1 | JF18: 1 | JG18: 1 | JH18: =$E$18*JH7 -> 1 | JI18: 1 | JJ18: 1 | JK18: 1 | JL18: 1 | JM18: 1 | JN18: 1 | JO18: 1 | JP18: 1 | JQ18: 1 | JR18: 1 | JS18: 1 | JT18: 1 | JU18: 1 | JV18: 1 | JW18: 1 | JX18: 1 | JY18: 1 | JZ18: 1 | KA18: 1 | KB18: 1 | KC18: 1 | KD18: 1 | KE18: 1 | KF18: 1 | KG18: 1 | KH18: 1 | KI18: 1 | KJ18: 1 | KK18: 1 | KL18: 1 | KM18: 1 | KN18: 1 | KO18: 1 | KP18: 1 | KQ18: 1 | KR18: 1 | KS18: 1 | KT18: 1 | KU18: 1 | KV18: 1 | KW18: 1 | KX18: 1 | KY18: 1 | KZ18: 1 | LA18: 1 | LB18: 1 | LC18: 1 | LD18: 1 | LE18: 1 | LF18: 1 | LG18: 1 | LH18: 1 | LI18: 1 | LJ18: 1 | LK18: 1 | LL18: 1 | LM18: 1 | LN18: 1 | LO18: 1 | LP18: 1 | LQ18: 1 | LR18: 1 | LS18: 1 | LT18: =$E$18*LT7 -> 1 | LU18: 1 | LV18: 1 | LW18: 1 | LX18: 1 | LY18: 1 | LZ18: 1 | MA18: 1 | MB18: 1 | MC18: 1 | MD18: 1 | ME18: 1 | MF18: 1 | MG18: 1 | MH18: 1 | MI18: 1 | MJ18: 1 | MK18: 1 | ML18: 1 | MM18: 1 | MN18: 1 | MO18: 1 | MP18: 1 | MQ18: 1 | MR18: 1 | MS18: 1 | MT18: 1 | MU18: 1 | MV18: 1 | MW18: 1 | MX18: 1 | MY18: 1 | MZ18: 1 | NA18: 1 | NB18: 1 | NC18: 1 | ND18: 1 | NE18: 1 | NF18: 1 | NG18: 1 | NH18: 1 | NI18: 1 | NJ18: 1 | NK18: 1 | NL18: 1 | NM18: 1 | NN18: 1 | NO18: 1 | NP18: 1 | NQ18: 1 | NR18: 1 | NS18: 1 | NT18: 1 | NU18: 1 | NV18: 1 | NW18: 1 | NX18: 1 | NY18: 1 | NZ18: 1 | OA18: 1 | OB18: 1 | OC18: 1 | OD18: 1 | OE18: 1 | OF18: =$E$18*OF7 -> 1 | OG18: 1 | OH18: 1 | OI18: 1 | OJ18: 1 | OK18: 1 | OL18: 1 | OM18: 1 | ON18: 1 | OO18: 1 | OP18: 1 | OQ18: 1 | OR18: 1 | OS18: 1 | OT18: 1 | OU18: 1 | OV18: 1 | OW18: 1 | OX18: 1 | OY18: 1 | OZ18: 1 | PA18: 1 | PB18: 1 | PC18: 1 | PD18: 1 | PE18: 1 | PF18: 1 | PG18: 1 | PH18: 1 | PI18: 1 | PJ18: 1 | PK18: 1 | PL18: 1 | PM18: 1 | PN18: 1 | PO18: 1 | PP18: 1 | PQ18: 0 | PR18: 0 | PS18: 0 | PT18: 0 | PU18: 0 | PV18: 0 | PW18: 0 | PX18: 0 | PY18: 0 | PZ18: 0 | QA18: 0 | QB18: 0 | QC18: 0 | QD18: 0 | QE18: 0 | QF18: 0 | QG18: 0 | QH18: 0 | QI18: 0 | QJ18: 0 | QK18: 0 | QL18: 0 | QM18: 0 | QN18: 0 | QO18: 0 | QP18: 0 | QQ18: 0 | QR18: =$E$18*QR7 -> 0 | QS18: 0 | QT18: 0 | QU18: 0 | QV18: 0 | QW18: 0 | QX18: 0 | QY18: 0 | QZ18: 0 | RA18: 0 | RB18: 0 | RC18: 0 | RD18: 0 | RE18: 0 | RF18: 0 | RG18: 0 | RH18: 0 | RI18: 0 | RJ18: 0 | RK18: 0 | RL18: 0 | RM18: 0 | RN18: 0 | RO18: 0 | RP18: 0 | RQ18: 0 | RR18: 0 | RS18: 0 | RT18: 0 | RU18: 0 | RV18: 0 | RW18: 0 | RX18: 0 | RY18: 0 | RZ18: 0 | SA18: 0 | SB18: 0 | SC18: 0 | SD18: 0 | SE18: 0 | SF18: 0 | SG18: 0 | SH18: 0 | SI18: 0 | SJ18: 0 | SK18: 0 | SL18: 0 | SM18: 0 | SN18: 0 | SO18: 0 | SP18: 0 | SQ18: 0
D19: Available Generation | G19: MWH | L19: =L18*L16 -> 0 | M19: =M18*M16 -> 261360 | N19: 261360 | O19: 261360 | P19: 261360 | Q19: 261360 | R19: 261360 | S19: 261360 | T19: 261360 | U19: 261360 | V19: 261360 | W19: 261360 | X19: 261360 | Y19: 261360 | Z19: 261360 | AA19: 261360 | AB19: 261360 | AC19: 261360 | AD19: 261360 | AE19: 261360 | AF19: 261360 | AG19: 261360 | AH19: 261360 | AI19: 261360 | AJ19: 261360 | AK19: 261360 | AL19: 261360 | AM19: 261360 | AN19: 261360 | AO19: 261360 | AP19: 261360 | AQ19: 261360 | AR19: 261360 | AS19: 261360 | AT19: 261360 | AU19: 261360 | AV19: 261360 | AW19: 261360 | AX19: 261360 | AY19: 261360 | AZ19: 261360 | BA19: 261360 | BB19: 261360 | BC19: 261360 | BD19: 261360 | BE19: 261360 | BF19: 261360 | BG19: 261360 | BH19: 261360 | BI19: 261360 | BJ19: 261360 | BK19: 261360 | BL19: 261360 | BM19: 261360 | BN19: 261360 | BO19: 261360 | BP19: 261360 | BQ19: 261360 | BR19: 261360 | BS19: 261360 | BT19: 261360 | BU19: 261360 | BV19: 261360 | BW19: 261360 | BX19: 261360 | BY19: =BY18*BY16 -> 261360 | BZ19: 261360 | CA19: 261360 | CB19: 261360 | CC19: 261360 | CD19: 261360 | CE19: 261360 | CF19: 261360 | CG19: 261360 | CH19: 261360 | CI19: 261360 | CJ19: 261360 | CK19: 261360 | CL19: 261360 | CM19: 261360 | CN19: 261360 | CO19: 261360 | CP19: 261360 | CQ19: 261360 | CR19: 261360 | CS19: 261360 | CT19: 261360 | CU19: 261360 | CV19: 261360 | CW19: 261360 | CX19: 261360 | CY19: 261360 | CZ19: 261360 | DA19: 261360 | DB19: 261360 | DC19: 261360 | DD19: 261360 | DE19: 261360 | DF19: 261360 | DG19: 261360 | DH19: 261360 | DI19: 261360 | DJ19: 261360 | DK19: 261360 | DL19: 261360 | DM19: 261360 | DN19: 261360 | DO19: 261360 | DP19: 261360 | DQ19: 261360 | DR19: 261360 | DS19: 261360 | DT19: 261360 | DU19: 261360 | DV19: 261360 | DW19: 261360 | DX19: 261360 | DY19: 261360 | DZ19: 261360 | EA19: 261360 | EB19: 261360 | EC19: 261360 | ED19: 261360 | EE19: 261360 | EF19: 261360 | EG19: 261360 | EH19: 261360 | EI19: 261360 | EJ19: 261360 | EK19: =EK18*EK16 -> 261360 | EL19: 261360 | EM19: 261360 | EN19: 261360 | EO19: 261360 | EP19: 261360 | EQ19: 261360 | ER19: 261360 | ES19: 261360 | ET19: 261360 | EU19: 261360 | EV19: 261360 | EW19: 261360 | EX19: 261360 | EY19: 261360 | EZ19: 261360 | FA19: 261360 | FB19: 261360 | FC19: 261360 | FD19: 261360 | FE19: 261360 | FF19: 261360 | FG19: 261360 | FH19: 261360 | FI19: 261360 | FJ19: 261360 | FK19: 261360 | FL19: 261360 | FM19: 261360 | FN19: 261360 | FO19: 261360 | FP19: 261360 | FQ19: 261360 | FR19: 261360 | FS19: 261360 | FT19: 261360 | FU19: 261360 | FV19: 261360 | FW19: 261360 | FX19: 261360 | FY19: 261360 | FZ19: 261360 | GA19: 261360 | GB19: 261360 | GC19: 261360 | GD19: 261360 | GE19: 261360 | GF19: 261360 | GG19: 261360 | GH19: 261360 | GI19: 261360 | GJ19: 261360 | GK19: 261360 | GL19: 261360 | GM19: 261360 | GN19: 261360 | GO19: 261360 | GP19: 261360 | GQ19: 261360 | GR19: 261360 | GS19: 261360 | GT19: 261360 | GU19: 261360 | GV19: 261360 | GW19: =GW18*GW16 -> 261360 | GX19: 261360 | GY19: 261360 | GZ19: 261360 | HA19: 261360 | HB19: 261360 | HC19: 261360 | HD19: 261360 | HE19: 261360 | HF19: 261360 | HG19: 261360 | HH19: 261360 | HI19: 261360 | HJ19: 261360 | HK19: 261360 | HL19: 261360 | HM19: 261360 | HN19: 261360 | HO19: 261360 | HP19: 261360 | HQ19: 261360 | HR19: 261360 | HS19: 261360 | HT19: 261360 | HU19: 261360 | HV19: 261360 | HW19: 261360 | HX19: 261360 | HY19: 261360 | HZ19: 261360 | IA19: 261360 | IB19: 261360 | IC19: 261360 | ID19: 261360 | IE19: 261360 | IF19: 261360 | IG19: 261360 | IH19: 261360 | II19: 261360 | IJ19: 261360 | IK19: 261360 | IL19: 261360 | IM19: 261360 | IN19: 261360 | IO19: 261360 | IP19: 261360 | IQ19: 261360 | IR19: 261360 | IS19: 261360 | IT19: 261360 | IU19: 261360 | IV19: 261360 | IW19: 261360 | IX19: 261360 | IY19: 261360 | IZ19: 261360 | JA19: 261360 | JB19: 261360 | JC19: 261360 | JD19: 261360 | JE19: 261360 | JF19: 261360 | JG19: 261360 | JH19: 261360 | JI19: =JI18*JI16 -> 261360 | JJ19: 261360 | JK19: 261360 | JL19: 261360 | JM19: 261360 | JN19: 261360 | JO19: 261360 | JP19: 261360 | JQ19: 261360 | JR19: 261360 | JS19: 261360 | JT19: 261360 | JU19: 261360 | JV19: 261360 | JW19: 261360 | JX19: 261360 | JY19: 261360 | JZ19: 261360 | KA19: 261360 | KB19: 261360 | KC19: 261360 | KD19: 261360 | KE19: 261360 | KF19: 261360 | KG19: 261360 | KH19: 261360 | KI19: 261360 | KJ19: 261360 | KK19: 261360 | KL19: 261360 | KM19: 261360 | KN19: 261360 | KO19: 261360 | KP19: 261360 | KQ19: 261360 | KR19: 261360 | KS19: 261360 | KT19: 261360 | KU19: 261360 | KV19: 261360 | KW19: 261360 | KX19: 261360 | KY19: 261360 | KZ19: 261360 | LA19: 261360 | LB19: 261360 | LC19: 261360 | LD19: 261360 | LE19: 261360 | LF19: 261360 | LG19: 261360 | LH19: 261360 | LI19: 261360 | LJ19: 261360 | LK19: 261360 | LL19: 261360 | LM19: 261360 | LN19: 261360 | LO19: 261360 | LP19: 261360 | LQ19: 261360 | LR19: 261360 | LS19: 261360 | LT19: 261360 | LU19: =LU18*LU16 -> 261360 | LV19: 261360 | LW19: 261360 | LX19: 261360 | LY19: 261360 | LZ19: 261360 | MA19: 261360 | MB19: 261360 | MC19: 261360 | MD19: 261360 | ME19: 261360 | MF19: 261360 | MG19: 261360 | MH19: 261360 | MI19: 261360 | MJ19: 261360 | MK19: 261360 | ML19: 261360 | MM19: 261360 | MN19: 261360 | MO19: 261360 | MP19: 261360 | MQ19: 261360 | MR19: 261360 | MS19: 261360 | MT19: 261360 | MU19: 261360 | MV19: 261360 | MW19: 261360 | MX19: 261360 | MY19: 261360 | MZ19: 261360 | NA19: 261360 | NB19: 261360 | NC19: 261360 | ND19: 261360 | NE19: 261360 | NF19: 261360 | NG19: 261360 | NH19: 261360 | NI19: 261360 | NJ19: 261360 | NK19: 261360 | NL19: 261360 | NM19: 261360 | NN19: 261360 | NO19: 261360 | NP19: 261360 | NQ19: 261360 | NR19: 261360 | NS19: 261360 | NT19: 261360 | NU19: 261360 | NV19: 261360 | NW19: 261360 | NX19: 261360 | NY19: 261360 | NZ19: 261360 | OA19: 261360 | OB19: 261360 | OC19: 261360 | OD19: 261360 | OE19: 261360 | OF19: 261360 | OG19: =OG18*OG16 -> 261360 | OH19: 261360 | OI19: 261360 | OJ19: 261360 | OK19: 261360 | OL19: 261360 | OM19: 261360 | ON19: 261360 | OO19: 261360 | OP19: 261360 | OQ19: 261360 | OR19: 261360 | OS19: 261360 | OT19: 261360 | OU19: 261360 | OV19: 261360 | OW19: 261360 | OX19: 261360 | OY19: 261360 | OZ19: 261360 | PA19: 261360 | PB19: 261360 | PC19: 261360 | PD19: 261360 | PE19: 261360 | PF19: 261360 | PG19: 261360 | PH19: 261360 | PI19: 261360 | PJ19: 261360 | PK19: 261360 | PL19: 261360 | PM19: 261360 | PN19: 261360 | PO19: 261360 | PP19: 261360 | PQ19: 0 | PR19: 0 | PS19: 0 | PT19: 0 | PU19: 0 | PV19: 0 | PW19: 0 | PX19: 0 | PY19: 0 | PZ19: 0 | QA19: 0 | QB19: 0 | QC19: 0 | QD19: 0 | QE19: 0 | QF19: 0 | QG19: 0 | QH19: 0 | QI19: 0 | QJ19: 0 | QK19: 0 | QL19: 0 | QM19: 0 | QN19: 0 | QO19: 0 | QP19: 0 | QQ19: 0 | QR19: 0 | QS19: =QS18*QS16 -> 0 | QT19: 0 | QU19: 0 | QV19: 0 | QW19: 0 | QX19: 0 | QY19: 0 | QZ19: 0 | RA19: 0 | RB19: 0 | RC19: 0 | RD19: 0 | RE19: 0 | RF19: 0 | RG19: 0 | RH19: 0 | RI19: 0 | RJ19: 0 | RK19: 0 | RL19: 0 | RM19: 0 | RN19: 0 | RO19: 0 | RP19: 0 | RQ19: 0 | RR19: 0 | RS19: 0 | RT19: 0 | RU19: 0 | RV19: 0 | RW19: 0 | RX19: 0 | RY19: 0 | RZ19: 0 | SA19: 0 | SB19: 0 | SC19: 0 | SD19: 0 | SE19: 0 | SF19: 0 | SG19: 0 | SH19: 0 | SI19: 0 | SJ19: 0 | SK19: 0 | SL19: 0 | SM19: 0 | SN19: 0 | SO19: 0 | SP19: 0 | SQ19: 0
D21: Age in Periods | G21: Months | L21: =K21+L7 -> 0 | M21: 1 | N21: 2 | O21: 3 | P21: 4 | Q21: 5 | R21: 6 | S21: 7 | T21: 8 | U21: 9 | V21: 10 | W21: 11 | X21: 12 | Y21: 13 | Z21: 14 | AA21: 15 | AB21: 16 | AC21: 17 | AD21: 18 | AE21: 19 | AF21: 20 | AG21: 21 | AH21: 22 | AI21: 23 | AJ21: 24 | AK21: 25 | AL21: 26 | AM21: 27 | AN21: 28 | AO21: 29 | AP21: 30 | AQ21: 31 | AR21: 32 | AS21: 33 | AT21: 34 | AU21: 35 | AV21: 36 | AW21: 37 | AX21: 38 | AY21: 39 | AZ21: 40 | BA21: 41 | BB21: 42 | BC21: 43 | BD21: 44 | BE21: 45 | BF21: 46 | BG21: 47 | BH21: 48 | BI21: 49 | BJ21: 50 | BK21: 51 | BL21: 52 | BM21: 53 | BN21: 54 | BO21: 55 | BP21: 56 | BQ21: 57 | BR21: 58 | BS21: 59 | BT21: 60 | BU21: 61 | BV21: 62 | BW21: 63 | BX21: =BW21+BX7 -> 64 | BY21: 65 | BZ21: 66 | CA21: 67 | CB21: 68 | CC21: 69 | CD21: 70 | CE21: 71 | CF21: 72 | CG21: 73 | CH21: 74 | CI21: 75 | CJ21: 76 | CK21: 77 | CL21: 78 | CM21: 79 | CN21: 80 | CO21: 81 | CP21: 82 | CQ21: 83 | CR21: 84 | CS21: 85 | CT21: 86 | CU21: 87 | CV21: 88 | CW21: 89 | CX21: 90 | CY21: 91 | CZ21: 92 | DA21: 93 | DB21: 94 | DC21: 95 | DD21: 96 | DE21: 97 | DF21: 98 | DG21: 99 | DH21: 100 | DI21: 101 | DJ21: 102 | DK21: 103 | DL21: 104 | DM21: 105 | DN21: 106 | DO21: 107 | DP21: 108 | DQ21: 109 | DR21: 110 | DS21: 111 | DT21: 112 | DU21: 113 | DV21: 114 | DW21: 115 | DX21: 116 | DY21: 117 | DZ21: 118 | EA21: 119 | EB21: 120 | EC21: 121 | ED21: 122 | EE21: 123 | EF21: 124 | EG21: 125 | EH21: 126 | EI21: 127 | EJ21: =EI21+EJ7 -> 128 | EK21: 129 | EL21: 130 | EM21: 131 | EN21: 132 | EO21: 133 | EP21: 134 | EQ21: 135 | ER21: 136 | ES21: 137 | ET21: 138 | EU21: 139 | EV21: 140 | EW21: 141 | EX21: 142 | EY21: 143 | EZ21: 144 | FA21: 145 | FB21: 146 | FC21: 147 | FD21: 148 | FE21: 149 | FF21: 150 | FG21: 151 | FH21: 152 | FI21: 153 | FJ21: 154 | FK21: 155 | FL21: 156 | FM21: 157 | FN21: 158 | FO21: 159 | FP21: 160 | FQ21: 161 | FR21: 162 | FS21: 163 | FT21: 164 | FU21: 165 | FV21: 166 | FW21: 167 | FX21: 168 | FY21: 169 | FZ21: 170 | GA21: 171 | GB21: 172 | GC21: 173 | GD21: 174 | GE21: 175 | GF21: 176 | GG21: 177 | GH21: 178 | GI21: 179 | GJ21: 180 | GK21: 181 | GL21: 182 | GM21: 183 | GN21: 184 | GO21: 185 | GP21: 186 | GQ21: 187 | GR21: 188 | GS21: 189 | GT21: 190 | GU21: 191 | GV21: =GU21+GV7 -> 192 | GW21: 193 | GX21: 194 | GY21: 195 | GZ21: 196 | HA21: 197 | HB21: 198 | HC21: 199 | HD21: 200 | HE21: 201 | HF21: 202 | HG21: 203 | HH21: 204 | HI21: 205 | HJ21: 206 | HK21: 207 | HL21: 208 | HM21: 209 | HN21: 210 | HO21: 211 | HP21: 212 | HQ21: 213 | HR21: 214 | HS21: 215 | HT21: 216 | HU21: 217 | HV21: 218 | HW21: 219 | HX21: 220 | HY21: 221 | HZ21: 222 | IA21: 223 | IB21: 224 | IC21: 225 | ID21: 226 | IE21: 227 | IF21: 228 | IG21: 229 | IH21: 230 | II21: 231 | IJ21: 232 | IK21: 233 | IL21: 234 | IM21: 235 | IN21: 236 | IO21: 237 | IP21: 238 | IQ21: 239 | IR21: 240 | IS21: 241 | IT21: 242 | IU21: 243 | IV21: 244 | IW21: 245 | IX21: 246 | IY21: 247 | IZ21: 248 | JA21: 249 | JB21: 250 | JC21: 251 | JD21: 252 | JE21: 253 | JF21: 254 | JG21: 255 | JH21: =JG21+JH7 -> 256 | JI21: 257 | JJ21: 258 | JK21: 259 | JL21: 260 | JM21: 261 | JN21: 262 | JO21: 263 | JP21: 264 | JQ21: 265 | JR21: 266 | JS21: 267 | JT21: 268 | JU21: 269 | JV21: 270 | JW21: 271 | JX21: 272 | JY21: 273 | JZ21: 274 | KA21: 275 | KB21: 276 | KC21: 277 | KD21: 278 | KE21: 279 | KF21: 280 | KG21: 281 | KH21: 282 | KI21: 283 | KJ21: 284 | KK21: 285 | KL21: 286 | KM21: 287 | KN21: 288 | KO21: 289 | KP21: 290 | KQ21: 291 | KR21: 292 | KS21: 293 | KT21: 294 | KU21: 295 | KV21: 296 | KW21: 297 | KX21: 298 | KY21: 299 | KZ21: 300 | LA21: 301 | LB21: 302 | LC21: 303 | LD21: 304 | LE21: 305 | LF21: 306 | LG21: 307 | LH21: 308 | LI21: 309 | LJ21: 310 | LK21: 311 | LL21: 312 | LM21: 313 | LN21: 314 | LO21: 315 | LP21: 316 | LQ21: 317 | LR21: 318 | LS21: 319 | LT21: =LS21+LT7 -> 320 | LU21: 321 | LV21: 322 | LW21: 323 | LX21: 324 | LY21: 325 | LZ21: 326 | MA21: 327 | MB21: 328 | MC21: 329 | MD21: 330 | ME21: 331 | MF21: 332 | MG21: 333 | MH21: 334 | MI21: 335 | MJ21: 336 | MK21: 337 | ML21: 338 | MM21: 339 | MN21: 340 | MO21: 341 | MP21: 342 | MQ21: 343 | MR21: 344 | MS21: 345 | MT21: 346 | MU21: 347 | MV21: 348 | MW21: 349 | MX21: 350 | MY21: 351 | MZ21: 352 | NA21: 353 | NB21: 354 | NC21: 355 | ND21: 356 | NE21: 357 | NF21: 358 | NG21: 359 | NH21: 360 | NI21: 361 | NJ21: 362 | NK21: 363 | NL21: 364 | NM21: 365 | NN21: 366 | NO21: 367 | NP21: 368 | NQ21: 369 | NR21: 370 | NS21: 371 | NT21: 372 | NU21: 373 | NV21: 374 | NW21: 375 | NX21: 376 | NY21: 377 | NZ21: 378 | OA21: 379 | OB21: 380 | OC21: 381 | OD21: 382 | OE21: 383 | OF21: =OE21+OF7 -> 384 | OG21: 385 | OH21: 386 | OI21: 387 | OJ21: 388 | OK21: 389 | OL21: 390 | OM21: 391 | ON21: 392 | OO21: 393 | OP21: 394 | OQ21: 395 | OR21: 396 | OS21: 397 | OT21: 398 | OU21: 399 | OV21: 400 | OW21: 401 | OX21: 402 | OY21: 403 | OZ21: 404 | PA21: 405 | PB21: 406 | PC21: 407 | PD21: 408 | PE21: 409 | PF21: 410 | PG21: 411 | PH21: 412 | PI21: 413 | PJ21: 414 | PK21: 415 | PL21: 416 | PM21: 417 | PN21: 418 | PO21: 419 | PP21: 420 | PQ21: 420 | PR21: 420 | PS21: 420 | PT21: 420 | PU21: 420 | PV21: 420 | PW21: 420 | PX21: 420 | PY21: 420 | PZ21: 420 | QA21: 420 | QB21: 420 | QC21: 420 | QD21: 420 | QE21: 420 | QF21: 420 | QG21: 420 | QH21: 420 | QI21: 420 | QJ21: 420 | QK21: 420 | QL21: 420 | QM21: 420 | QN21: 420 | QO21: 420 | QP21: 420 | QQ21: 420 | QR21: =QQ21+QR7 -> 420 | QS21: 420 | QT21: 420 | QU21: 420 | QV21: 420 | QW21: 420 | QX21: 420 | QY21: 420 | QZ21: 420 | RA21: 420 | RB21: 420 | RC21: 420 | RD21: 420 | RE21: 420 | RF21: 420 | RG21: 420 | RH21: 420 | RI21: 420 | RJ21: 420 | RK21: 420 | RL21: 420 | RM21: 420 | RN21: 420 | RO21: 420 | RP21: 420 | RQ21: 420 | RR21: 420 | RS21: 420 | RT21: 420 | RU21: 420 | RV21: 420 | RW21: 420 | RX21: 420 | RY21: 420 | RZ21: 420 | SA21: 420 | SB21: 420 | SC21: 420 | SD21: 420 | SE21: 420 | SF21: 420 | SG21: 420 | SH21: 420 | SI21: 420 | SJ21: 420 | SK21: 420 | SL21: 420 | SM21: 420 | SN21: 420 | SO21: 420 | SP21: 420 | SQ21: 420
D22: Age in Years | G22: Years | L22: =ROUNDUP(L21/Months,0) -> 0 | M22: 1 | N22: 1 | O22: 1 | P22: 1 | Q22: 1 | R22: 1 | S22: 1 | T22: 1 | U22: 1 | V22: 1 | W22: 1 | X22: 1 | Y22: 2 | Z22: 2 | AA22: 2 | AB22: 2 | AC22: 2 | AD22: 2 | AE22: 2 | AF22: 2 | AG22: 2 | AH22: 2 | AI22: 2 | AJ22: 2 | AK22: 3 | AL22: 3 | AM22: 3 | AN22: 3 | AO22: 3 | AP22: 3 | AQ22: 3 | AR22: 3 | AS22: 3 | AT22: 3 | AU22: 3 | AV22: 3 | AW22: 4 | AX22: 4 | AY22: 4 | AZ22: 4 | BA22: 4 | BB22: 4 | BC22: 4 | BD22: 4 | BE22: 4 | BF22: 4 | BG22: 4 | BH22: 4 | BI22: 5 | BJ22: 5 | BK22: 5 | BL22: 5 | BM22: 5 | BN22: 5 | BO22: 5 | BP22: 5 | BQ22: 5 | BR22: 5 | BS22: 5 | BT22: 5 | BU22: 6 | BV22: 6 | BW22: 6 | BX22: =ROUNDUP(BX21/Months,0) -> 6 | BY22: 6 | BZ22: 6 | CA22: 6 | CB22: 6 | CC22: 6 | CD22: 6 | CE22: 6 | CF22: 6 | CG22: 7 | CH22: 7 | CI22: 7 | CJ22: 7 | CK22: 7 | CL22: 7 | CM22: 7 | CN22: 7 | CO22: 7 | CP22: 7 | CQ22: 7 | CR22: 7 | CS22: 8 | CT22: 8 | CU22: 8 | CV22: 8 | CW22: 8 | CX22: 8 | CY22: 8 | CZ22: 8 | DA22: 8 | DB22: 8 | DC22: 8 | DD22: 8 | DE22: 9 | DF22: 9 | DG22: 9 | DH22: 9 | DI22: 9 | DJ22: 9 | DK22: 9 | DL22: 9 | DM22: 9 | DN22: 9 | DO22: 9 | DP22: 9 | DQ22: 10 | DR22: 10 | DS22: 10 | DT22: 10 | DU22: 10 | DV22: 10 | DW22: 10 | DX22: 10 | DY22: 10 | DZ22: 10 | EA22: 10 | EB22: 10 | EC22: 11 | ED22: 11 | EE22: 11 | EF22: 11 | EG22: 11 | EH22: 11 | EI22: 11 | EJ22: =ROUNDUP(EJ21/Months,0) -> 11 | EK22: 11 | EL22: 11 | EM22: 11 | EN22: 11 | EO22: 12 | EP22: 12 | EQ22: 12 | ER22: 12 | ES22: 12 | ET22: 12 | EU22: 12 | EV22: 12 | EW22: 12 | EX22: 12 | EY22: 12 | EZ22: 12 | FA22: 13 | FB22: 13 | FC22: 13 | FD22: 13 | FE22: 13 | FF22: 13 | FG22: 13 | FH22: 13 | FI22: 13 | FJ22: 13 | FK22: 13 | FL22: 13 | FM22: 14 | FN22: 14 | FO22: 14 | FP22: 14 | FQ22: 14 | FR22: 14 | FS22: 14 | FT22: 14 | FU22: 14 | FV22: 14 | FW22: 14 | FX22: 14 | FY22: 15 | FZ22: 15 | GA22: 15 | GB22: 15 | GC22: 15 | GD22: 15 | GE22: 15 | GF22: 15 | GG22: 15 | GH22: 15 | GI22: 15 | GJ22: 15 | GK22: 16 | GL22: 16 | GM22: 16 | GN22: 16 | GO22: 16 | GP22: 16 | GQ22: 16 | GR22: 16 | GS22: 16 | GT22: 16 | GU22: 16 | GV22: =ROUNDUP(GV21/Months,0) -> 16 | GW22: 17 | GX22: 17 | GY22: 17 | GZ22: 17 | HA22: 17 | HB22: 17 | HC22: 17 | HD22: 17 | HE22: 17 | HF22: 17 | HG22: 17 | HH22: 17 | HI22: 18 | HJ22: 18 | HK22: 18 | HL22: 18 | HM22: 18 | HN22: 18 | HO22: 18 | HP22: 18 | HQ22: 18 | HR22: 18 | HS22: 18 | HT22: 18 | HU22: 19 | HV22: 19 | HW22: 19 | HX22: 19 | HY22: 19 | HZ22: 19 | IA22: 19 | IB22: 19 | IC22: 19 | ID22: 19 | IE22: 19 | IF22: 19 | IG22: 20 | IH22: 20 | II22: 20 | IJ22: 20 | IK22: 20 | IL22: 20 | IM22: 20 | IN22: 20 | IO22: 20 | IP22: 20 | IQ22: 20 | IR22: 20 | IS22: 21 | IT22: 21 | IU22: 21 | IV22: 21 | IW22: 21 | IX22: 21 | IY22: 21 | IZ22: 21 | JA22: 21 | JB22: 21 | JC22: 21 | JD22: 21 | JE22: 22 | JF22: 22 | JG22: 22 | JH22: =ROUNDUP(JH21/Months,0) -> 22 | JI22: 22 | JJ22: 22 | JK22: 22 | JL22: 22 | JM22: 22 | JN22: 22 | JO22: 22 | JP22: 22 | JQ22: 23 | JR22: 23 | JS22: 23 | JT22: 23 | JU22: 23 | JV22: 23 | JW22: 23 | JX22: 23 | JY22: 23 | JZ22: 23 | KA22: 23 | KB22: 23 | KC22: 24 | KD22: 24 | KE22: 24 | KF22: 24 | KG22: 24 | KH22: 24 | KI22: 24 | KJ22: 24 | KK22: 24 | KL22: 24 | KM22: 24 | KN22: 24 | KO22: 25 | KP22: 25 | KQ22: 25 | KR22: 25 | KS22: 25 | KT22: 25 | KU22: 25 | KV22: 25 | KW22: 25 | KX22: 25 | KY22: 25 | KZ22: 25 | LA22: 26 | LB22: 26 | LC22: 26 | LD22: 26 | LE22: 26 | LF22: 26 | LG22: 26 | LH22: 26 | LI22: 26 | LJ22: 26 | LK22: 26 | LL22: 26 | LM22: 27 | LN22: 27 | LO22: 27 | LP22: 27 | LQ22: 27 | LR22: 27 | LS22: 27 | LT22: =ROUNDUP(LT21/Months,0) -> 27 | LU22: 27 | LV22: 27 | LW22: 27 | LX22: 27 | LY22: 28 | LZ22: 28 | MA22: 28 | MB22: 28 | MC22: 28 | MD22: 28 | ME22: 28 | MF22: 28 | MG22: 28 | MH22: 28 | MI22: 28 | MJ22: 28 | MK22: 29 | ML22: 29 | MM22: 29 | MN22: 29 | MO22: 29 | MP22: 29 | MQ22: 29 | MR22: 29 | MS22: 29 | MT22: 29 | MU22: 29 | MV22: 29 | MW22: 30 | MX22: 30 | MY22: 30 | MZ22: 30 | NA22: 30 | NB22: 30 | NC22: 30 | ND22: 30 | NE22: 30 | NF22: 30 | NG22: 30 | NH22: 30 | NI22: 31 | NJ22: 31 | NK22: 31 | NL22: 31 | NM22: 31 | NN22: 31 | NO22: 31 | NP22: 31 | NQ22: 31 | NR22: 31 | NS22: 31 | NT22: 31 | NU22: 32 | NV22: 32 | NW22: 32 | NX22: 32 | NY22: 32 | NZ22: 32 | OA22: 32 | OB22: 32 | OC22: 32 | OD22: 32 | OE22: 32 | OF22: =ROUNDUP(OF21/Months,0) -> 32 | OG22: 33 | OH22: 33 | OI22: 33 | OJ22: 33 | OK22: 33 | OL22: 33 | OM22: 33 | ON22: 33 | OO22: 33 | OP22: 33 | OQ22: 33 | OR22: 33 | OS22: 34 | OT22: 34 | OU22: 34 | OV22: 34 | OW22: 34 | OX22: 34 | OY22: 34 | OZ22: 34 | PA22: 34 | PB22: 34 | PC22: 34 | PD22: 34 | PE22: 35 | PF22: 35 | PG22: 35 | PH22: 35 | PI22: 35 | PJ22: 35 | PK22: 35 | PL22: 35 | PM22: 35 | PN22: 35 | PO22: 35 | PP22: 35 | PQ22: 35 | PR22: 35 | PS22: 35 | PT22: 35 | PU22: 35 | PV22: 35 | PW22: 35 | PX22: 35 | PY22: 35 | PZ22: 35 | QA22: 35 | QB22: 35 | QC22: 35 | QD22: 35 | QE22: 35 | QF22: 35 | QG22: 35 | QH22: 35 | QI22: 35 | QJ22: 35 | QK22: 35 | QL22: 35 | QM22: 35 | QN22: 35 | QO22: 35 | QP22: 35 | QQ22: 35 | QR22: =ROUNDUP(QR21/Months,0) -> 35 | QS22: 35 | QT22: 35 | QU22: 35 | QV22: 35 | QW22: 35 | QX22: 35 | QY22: 35 | QZ22: 35 | RA22: 35 | RB22: 35 | RC22: 35 | RD22: 35 | RE22: 35 | RF22: 35 | RG22: 35 | RH22: 35 | RI22: 35 | RJ22: 35 | RK22: 35 | RL22: 35 | RM22: 35 | RN22: 35 | RO22: 35 | RP22: 35 | RQ22: 35 | RR22: 35 | RS22: 35 | RT22: 35 | RU22: 35 | RV22: 35 | RW22: 35 | RX22: 35 | RY22: 35 | RZ22: 35 | SA22: 35 | SB22: 35 | SC22: 35 | SD22: 35 | SE22: 35 | SF22: 35 | SG22: 35 | SH22: 35 | SI22: 35 | SJ22: 35 | SK22: 35 | SL22: 35 | SM22: 35 | SN22: 35 | SO22: 35 | SP22: 35 | SQ22: 35
D23: Annual Degradation | E23: =InputS!D41 -> Zero Degradation | G23: % p.a. | H23: =M23 -> 0 | L23: =LOOKUP(L22,InputS!35:35,InputS!41:41) -> 0 | M23: =LOOKUP(M22,InputS!35:35,InputS!41:41) -> 0 | N23: =LOOKUP(N22,InputS!35:35,InputS!41:41) -> 0 | O23: =LOOKUP(O22,InputS!35:35,InputS!41:41) -> 0 | P23: =LOOKUP(P22,InputS!35:35,InputS!41:41) -> 0 | Q23: =LOOKUP(Q22,InputS!35:35,InputS!41:41) -> 0 | R23: =LOOKUP(R22,InputS!35:35,InputS!41:41) -> 0 | S23: =LOOKUP(S22,InputS!35:35,InputS!41:41) -> 0 | T23: =LOOKUP(T22,InputS!35:35,InputS!41:41) -> 0 | U23: =LOOKUP(U22,InputS!35:35,InputS!41:41) -> 0 | V23: =LOOKUP(V22,InputS!35:35,InputS!41:41) -> 0 | W23: =LOOKUP(W22,InputS!35:35,InputS!41:41) -> 0 | X23: =LOOKUP(X22,InputS!35:35,InputS!41:41) -> 0 | Y23: =LOOKUP(Y22,InputS!35:35,InputS!41:41) -> 0 | Z23: =LOOKUP(Z22,InputS!35:35,InputS!41:41) -> 0 | AA23: =LOOKUP(AA22,InputS!35:35,InputS!41:41) -> 0 | AB23: =LOOKUP(AB22,InputS!35:35,InputS!41:41) -> 0 | AC23: =LOOKUP(AC22,InputS!35:35,InputS!41:41) -> 0 | AD23: =LOOKUP(AD22,InputS!35:35,InputS!41:41) -> 0 | AE23: =LOOKUP(AE22,InputS!35:35,InputS!41:41) -> 0 | AF23: =LOOKUP(AF22,InputS!35:35,InputS!41:41) -> 0 | AG23: =LOOKUP(AG22,InputS!35:35,InputS!41:41) -> 0 | AH23: =LOOKUP(AH22,InputS!35:35,InputS!41:41) -> 0 | AI23: =LOOKUP(AI22,InputS!35:35,InputS!41:41) -> 0 | AJ23: =LOOKUP(AJ22,InputS!35:35,InputS!41:41) -> 0 | AK23: =LOOKUP(AK22,InputS!35:35,InputS!41:41) -> 0 | AL23: =LOOKUP(AL22,InputS!35:35,InputS!41:41) -> 0 | AM23: =LOOKUP(AM22,InputS!35:35,InputS!41:41) -> 0 | AN23: =LOOKUP(AN22,InputS!35:35,InputS!41:41) -> 0 | AO23: =LOOKUP(AO22,InputS!35:35,InputS!41:41) -> 0 | AP23: =LOOKUP(AP22,InputS!35:35,InputS!41:41) -> 0 | AQ23: =LOOKUP(AQ22,InputS!35:35,InputS!41:41) -> 0 | AR23: =LOOKUP(AR22,InputS!35:35,InputS!41:41) -> 0 | AS23: =LOOKUP(AS22,InputS!35:35,InputS!41:41) -> 0 | AT23: =LOOKUP(AT22,InputS!35:35,InputS!41:41) -> 0 | AU23: =LOOKUP(AU22,InputS!35:35,InputS!41:41) -> 0 | AV23: =LOOKUP(AV22,InputS!35:35,InputS!41:41) -> 0 | AW23: =LOOKUP(AW22,InputS!35:35,InputS!41:41) -> 0 | AX23: =LOOKUP(AX22,InputS!35:35,InputS!41:41) -> 0 | AY23: =LOOKUP(AY22,InputS!35:35,InputS!41:41) -> 0 | AZ23: =LOOKUP(AZ22,InputS!35:35,InputS!41:41) -> 0 | BA23: =LOOKUP(BA22,InputS!35:35,InputS!41:41) -> 0 | BB23: =LOOKUP(BB22,InputS!35:35,InputS!41:41) -> 0 | BC23: =LOOKUP(BC22,InputS!35:35,InputS!41:41) -> 0 | BD23: =LOOKUP(BD22,InputS!35:35,InputS!41:41) -> 0 | BE23: =LOOKUP(BE22,InputS!35:35,InputS!41:41) -> 0 | BF23: =LOOKUP(BF22,InputS!35:35,InputS!41:41) -> 0 | BG23: =LOOKUP(BG22,InputS!35:35,InputS!41:41) -> 0 | BH23: =LOOKUP(BH22,InputS!35:35,InputS!41:41) -> 0 | BI23: =LOOKUP(BI22,InputS!35:35,InputS!41:41) -> 0 | BJ23: =LOOKUP(BJ22,InputS!35:35,InputS!41:41) -> 0 | BK23: =LOOKUP(BK22,InputS!35:35,InputS!41:41) -> 0 | BL23: =LOOKUP(BL22,InputS!35:35,InputS!41:41) -> 0 | BM23: =LOOKUP(BM22,InputS!35:35,InputS!41:41) -> 0 | BN23: =LOOKUP(BN22,InputS!35:35,InputS!41:41) -> 0 | BO23: =LOOKUP(BO22,InputS!35:35,InputS!41:41) -> 0 | BP23: =LOOKUP(BP22,InputS!35:35,InputS!41:41) -> 0 | BQ23: =LOOKUP(BQ22,InputS!35:35,InputS!41:41) -> 0 | BR23: =LOOKUP(BR22,InputS!35:35,InputS!41:41) -> 0 | BS23: =LOOKUP(BS22,InputS!35:35,InputS!41:41) -> 0 | BT23: =LOOKUP(BT22,InputS!35:35,InputS!41:41) -> 0 | BU23: =LOOKUP(BU22,InputS!35:35,InputS!41:41) -> 0 | BV23: =LOOKUP(BV22,InputS!35:35,InputS!41:41) -> 0 | BW23: =LOOKUP(BW22,InputS!35:35,InputS!41:41) -> 0 | BX23: =LOOKUP(BX22,InputS!35:35,InputS!41:41) -> 0 | BY23: =LOOKUP(BY22,InputS!35:35,InputS!41:41) -> 0 | BZ23: =LOOKUP(BZ22,InputS!35:35,InputS!41:41) -> 0 | CA23: =LOOKUP(CA22,InputS!35:35,InputS!41:41) -> 0 | CB23: =LOOKUP(CB22,InputS!35:35,InputS!41:41) -> 0 | CC23: =LOOKUP(CC22,InputS!35:35,InputS!41:41) -> 0 | CD23: =LOOKUP(CD22,InputS!35:35,InputS!41:41) -> 0 | CE23: =LOOKUP(CE22,InputS!35:35,InputS!41:41) -> 0 | CF23: =LOOKUP(CF22,InputS!35:35,InputS!41:41) -> 0 | CG23: =LOOKUP(CG22,InputS!35:35,InputS!41:41) -> 0 | CH23: =LOOKUP(CH22,InputS!35:35,InputS!41:41) -> 0 | CI23: =LOOKUP(CI22,InputS!35:35,InputS!41:41) -> 0 | CJ23: =LOOKUP(CJ22,InputS!35:35,InputS!41:41) -> 0 | CK23: =LOOKUP(CK22,InputS!35:35,InputS!41:41) -> 0 | CL23: =LOOKUP(CL22,InputS!35:35,InputS!41:41) -> 0 | CM23: =LOOKUP(CM22,InputS!35:35,InputS!41:41) -> 0 | CN23: =LOOKUP(CN22,InputS!35:35,InputS!41:41) -> 0 | CO23: =LOOKUP(CO22,InputS!35:35,InputS!41:41) -> 0 | CP23: =LOOKUP(CP22,InputS!35:35,InputS!41:41) -> 0 | CQ23: =LOOKUP(CQ22,InputS!35:35,InputS!41:41) -> 0 | CR23: =LOOKUP(CR22,InputS!35:35,InputS!41:41) -> 0 | CS23: =LOOKUP(CS22,InputS!35:35,InputS!41:41) -> 0 | CT23: =LOOKUP(CT22,InputS!35:35,InputS!41:41) -> 0 | CU23: =LOOKUP(CU22,InputS!35:35,InputS!41:41) -> 0 | CV23: =LOOKUP(CV22,InputS!35:35,InputS!41:41) -> 0 | CW23: =LOOKUP(CW22,InputS!35:35,InputS!41:41) -> 0 | CX23: =LOOKUP(CX22,InputS!35:35,InputS!41:41) -> 0 | CY23: =LOOKUP(CY22,InputS!35:35,InputS!41:41) -> 0 | CZ23: =LOOKUP(CZ22,InputS!35:35,InputS!41:41) -> 0 | DA23: =LOOKUP(DA22,InputS!35:35,InputS!41:41) -> 0 | DB23: =LOOKUP(DB22,InputS!35:35,InputS!41:41) -> 0 | DC23: =LOOKUP(DC22,InputS!35:35,InputS!41:41) -> 0 | DD23: =LOOKUP(DD22,InputS!35:35,InputS!41:41) -> 0 | DE23: =LOOKUP(DE22,InputS!35:35,InputS!41:41) -> 0 | DF23: =LOOKUP(DF22,InputS!35:35,InputS!41:41) -> 0 | DG23: =LOOKUP(DG22,InputS!35:35,InputS!41:41) -> 0 | DH23: =LOOKUP(DH22,InputS!35:35,InputS!41:41) -> 0 | DI23: =LOOKUP(DI22,InputS!35:35,InputS!41:41) -> 0 | DJ23: =LOOKUP(DJ22,InputS!35:35,InputS!41:41) -> 0 | DK23: =LOOKUP(DK22,InputS!35:35,InputS!41:41) -> 0 | DL23: =LOOKUP(DL22,InputS!35:35,InputS!41:41) -> 0 | DM23: =LOOKUP(DM22,InputS!35:35,InputS!41:41) -> 0 | DN23: =LOOKUP(DN22,InputS!35:35,InputS!41:41) -> 0 | DO23: =LOOKUP(DO22,InputS!35:35,InputS!41:41) -> 0 | DP23: =LOOKUP(DP22,InputS!35:35,InputS!41:41) -> 0 | DQ23: =LOOKUP(DQ22,InputS!35:35,InputS!41:41) -> 0 | DR23: =LOOKUP(DR22,InputS!35:35,InputS!41:41) -> 0 | DS23: =LOOKUP(DS22,InputS!35:35,InputS!41:41) -> 0 | DT23: =LOOKUP(DT22,InputS!35:35,InputS!41:41) -> 0 | DU23: =LOOKUP(DU22,InputS!35:35,InputS!41:41) -> 0 | DV23: =LOOKUP(DV22,InputS!35:35,InputS!41:41) -> 0 | DW23: =LOOKUP(DW22,InputS!35:35,InputS!41:41) -> 0 | DX23: =LOOKUP(DX22,InputS!35:35,InputS!41:41) -> 0 | DY23: =LOOKUP(DY22,InputS!35:35,InputS!41:41) -> 0 | DZ23: =LOOKUP(DZ22,InputS!35:35,InputS!41:41) -> 0 | EA23: =LOOKUP(EA22,InputS!35:35,InputS!41:41) -> 0 | EB23: =LOOKUP(EB22,InputS!35:35,InputS!41:41) -> 0 | EC23: =LOOKUP(EC22,InputS!35:35,InputS!41:41) -> 0 | ED23: =LOOKUP(ED22,InputS!35:35,InputS!41:41) -> 0 | EE23: =LOOKUP(EE22,InputS!35:35,InputS!41:41) -> 0 | EF23: =LOOKUP(EF22,InputS!35:35,InputS!41:41) -> 0 | EG23: =LOOKUP(EG22,InputS!35:35,InputS!41:41) -> 0 | EH23: =LOOKUP(EH22,InputS!35:35,InputS!41:41) -> 0 | EI23: =LOOKUP(EI22,InputS!35:35,InputS!41:41) -> 0 | EJ23: =LOOKUP(EJ22,InputS!35:35,InputS!41:41) -> 0 | EK23: =LOOKUP(EK22,InputS!35:35,InputS!41:41) -> 0 | EL23: =LOOKUP(EL22,InputS!35:35,InputS!41:41) -> 0 | EM23: =LOOKUP(EM22,InputS!35:35,InputS!41:41) -> 0 | EN23: =LOOKUP(EN22,InputS!35:35,InputS!41:41) -> 0 | EO23: =LOOKUP(EO22,InputS!35:35,InputS!41:41) -> 0 | EP23: =LOOKUP(EP22,InputS!35:35,InputS!41:41) -> 0 | EQ23: =LOOKUP(EQ22,InputS!35:35,InputS!41:41) -> 0 | ER23: =LOOKUP(ER22,InputS!35:35,InputS!41:41) -> 0 | ES23: =LOOKUP(ES22,InputS!35:35,InputS!41:41) -> 0 | ET23: =LOOKUP(ET22,InputS!35:35,InputS!41:41) -> 0 | EU23: =LOOKUP(EU22,InputS!35:35,InputS!41:41) -> 0 | EV23: =LOOKUP(EV22,InputS!35:35,InputS!41:41) -> 0 | EW23: =LOOKUP(EW22,InputS!35:35,InputS!41:41) -> 0 | EX23: =LOOKUP(EX22,InputS!35:35,InputS!41:41) -> 0 | EY23: =LOOKUP(EY22,InputS!35:35,InputS!41:41) -> 0 | EZ23: =LOOKUP(EZ22,InputS!35:35,InputS!41:41) -> 0 | FA23: =LOOKUP(FA22,InputS!35:35,InputS!41:41) -> 0 | FB23: =LOOKUP(FB22,InputS!35:35,InputS!41:41) -> 0 | FC23: =LOOKUP(FC22,InputS!35:35,InputS!41:41) -> 0 | FD23: =LOOKUP(FD22,InputS!35:35,InputS!41:41) -> 0 | FE23: =LOOKUP(FE22,InputS!35:35,InputS!41:41) -> 0 | FF23: =LOOKUP(FF22,InputS!35:35,InputS!41:41) -> 0 | FG23: =LOOKUP(FG22,InputS!35:35,InputS!41:41) -> 0 | FH23: =LOOKUP(FH22,InputS!35:35,InputS!41:41) -> 0 | FI23: =LOOKUP(FI22,InputS!35:35,InputS!41:41) -> 0 | FJ23: =LOOKUP(FJ22,InputS!35:35,InputS!41:41) -> 0 | FK23: =LOOKUP(FK22,InputS!35:35,InputS!41:41) -> 0 | FL23: =LOOKUP(FL22,InputS!35:35,InputS!41:41) -> 0 | FM23: =LOOKUP(FM22,InputS!35:35,InputS!41:41) -> 0 | FN23: =LOOKUP(FN22,InputS!35:35,InputS!41:41) -> 0 | FO23: =LOOKUP(FO22,InputS!35:35,InputS!41:41) -> 0 | FP23: =LOOKUP(FP22,InputS!35:35,InputS!41:41) -> 0 | FQ23: =LOOKUP(FQ22,InputS!35:35,InputS!41:41) -> 0 | FR23: =LOOKUP(FR22,InputS!35:35,InputS!41:41) -> 0 | FS23: =LOOKUP(FS22,InputS!35:35,InputS!41:41) -> 0 | FT23: =LOOKUP(FT22,InputS!35:35,InputS!41:41) -> 0 | FU23: =LOOKUP(FU22,InputS!35:35,InputS!41:41) -> 0 | FV23: =LOOKUP(FV22,InputS!35:35,InputS!41:41) -> 0 | FW23: =LOOKUP(FW22,InputS!35:35,InputS!41:41) -> 0 | FX23: =LOOKUP(FX22,InputS!35:35,InputS!41:41) -> 0 | FY23: =LOOKUP(FY22,InputS!35:35,InputS!41:41) -> 0 | FZ23: =LOOKUP(FZ22,InputS!35:35,InputS!41:41) -> 0 | GA23: =LOOKUP(GA22,InputS!35:35,InputS!41:41) -> 0 | GB23: =LOOKUP(GB22,InputS!35:35,InputS!41:41) -> 0 | GC23: =LOOKUP(GC22,InputS!35:35,InputS!41:41) -> 0 | GD23: =LOOKUP(GD22,InputS!35:35,InputS!41:41) -> 0 | GE23: =LOOKUP(GE22,InputS!35:35,InputS!41:41) -> 0 | GF23: =LOOKUP(GF22,InputS!35:35,InputS!41:41) -> 0 | GG23: =LOOKUP(GG22,InputS!35:35,InputS!41:41) -> 0 | GH23: =LOOKUP(GH22,InputS!35:35,InputS!41:41) -> 0 | GI23: =LOOKUP(GI22,InputS!35:35,InputS!41:41) -> 0 | GJ23: =LOOKUP(GJ22,InputS!35:35,InputS!41:41) -> 0 | GK23: =LOOKUP(GK22,InputS!35:35,InputS!41:41) -> 0 | GL23: =LOOKUP(GL22,InputS!35:35,InputS!41:41) -> 0 | GM23: =LOOKUP(GM22,InputS!35:35,InputS!41:41) -> 0 | GN23: =LOOKUP(GN22,InputS!35:35,InputS!41:41) -> 0 | GO23: =LOOKUP(GO22,InputS!35:35,InputS!41:41) -> 0 | GP23: =LOOKUP(GP22,InputS!35:35,InputS!41:41) -> 0 | GQ23: =LOOKUP(GQ22,InputS!35:35,InputS!41:41) -> 0 | GR23: =LOOKUP(GR22,InputS!35:35,InputS!41:41) -> 0 | GS23: =LOOKUP(GS22,InputS!35:35,InputS!41:41) -> 0 | GT23: =LOOKUP(GT22,InputS!35:35,InputS!41:41) -> 0 | GU23: =LOOKUP(GU22,InputS!35:35,InputS!41:41) -> 0 | GV23: =LOOKUP(GV22,InputS!35:35,InputS!41:41) -> 0 | GW23: =LOOKUP(GW22,InputS!35:35,InputS!41:41) -> 0 | GX23: =LOOKUP(GX22,InputS!35:35,InputS!41:41) -> 0 | GY23: =LOOKUP(GY22,InputS!35:35,InputS!41:41) -> 0 | GZ23: =LOOKUP(GZ22,InputS!35:35,InputS!41:41) -> 0 | HA23: =LOOKUP(HA22,InputS!35:35,InputS!41:41) -> 0 | HB23: =LOOKUP(HB22,InputS!35:35,InputS!41:41) -> 0 | HC23: =LOOKUP(HC22,InputS!35:35,InputS!41:41) -> 0 | HD23: =LOOKUP(HD22,InputS!35:35,InputS!41:41) -> 0 | HE23: =LOOKUP(HE22,InputS!35:35,InputS!41:41) -> 0 | HF23: =LOOKUP(HF22,InputS!35:35,InputS!41:41) -> 0 | HG23: =LOOKUP(HG22,InputS!35:35,InputS!41:41) -> 0 | HH23: =LOOKUP(HH22,InputS!35:35,InputS!41:41) -> 0 | HI23: =LOOKUP(HI22,InputS!35:35,InputS!41:41) -> 0 | HJ23: =LOOKUP(HJ22,InputS!35:35,InputS!41:41) -> 0 | HK23: =LOOKUP(HK22,InputS!35:35,InputS!41:41) -> 0 | HL23: =LOOKUP(HL22,InputS!35:35,InputS!41:41) -> 0 | HM23: =LOOKUP(HM22,InputS!35:35,InputS!41:41) -> 0 | HN23: =LOOKUP(HN22,InputS!35:35,InputS!41:41) -> 0 | HO23: =LOOKUP(HO22,InputS!35:35,InputS!41:41) -> 0 | HP23: =LOOKUP(HP22,InputS!35:35,InputS!41:41) -> 0 | HQ23: =LOOKUP(HQ22,InputS!35:35,InputS!41:41) -> 0 | HR23: =LOOKUP(HR22,InputS!35:35,InputS!41:41) -> 0 | HS23: =LOOKUP(HS22,InputS!35:35,InputS!41:41) -> 0 | HT23: =LOOKUP(HT22,InputS!35:35,InputS!41:41) -> 0 | HU23: =LOOKUP(HU22,InputS!35:35,InputS!41:41) -> 0 | HV23: =LOOKUP(HV22,InputS!35:35,InputS!41:41) -> 0 | HW23: =LOOKUP(HW22,InputS!35:35,InputS!41:41) -> 0 | HX23: =LOOKUP(HX22,InputS!35:35,InputS!41:41) -> 0 | HY23: =LOOKUP(HY22,InputS!35:35,InputS!41:41) -> 0 | HZ23: =LOOKUP(HZ22,InputS!35:35,InputS!41:41) -> 0 | IA23: =LOOKUP(IA22,InputS!35:35,InputS!41:41) -> 0 | IB23: =LOOKUP(IB22,InputS!35:35,InputS!41:41) -> 0 | IC23: =LOOKUP(IC22,InputS!35:35,InputS!41:41) -> 0 | ID23: =LOOKUP(ID22,InputS!35:35,InputS!41:41) -> 0 | IE23: =LOOKUP(IE22,InputS!35:35,InputS!41:41) -> 0 | IF23: =LOOKUP(IF22,InputS!35:35,InputS!41:41) -> 0 | IG23: =LOOKUP(IG22,InputS!35:35,InputS!41:41) -> 0 | IH23: =LOOKUP(IH22,InputS!35:35,InputS!41:41) -> 0 | II23: =LOOKUP(II22,InputS!35:35,InputS!41:41) -> 0 | IJ23: =LOOKUP(IJ22,InputS!35:35,InputS!41:41) -> 0 | IK23: =LOOKUP(IK22,InputS!35:35,InputS!41:41) -> 0 | IL23: =LOOKUP(IL22,InputS!35:35,InputS!41:41) -> 0 | IM23: =LOOKUP(IM22,InputS!35:35,InputS!41:41) -> 0 | IN23: =LOOKUP(IN22,InputS!35:35,InputS!41:41) -> 0 | IO23: =LOOKUP(IO22,InputS!35:35,InputS!41:41) -> 0 | IP23: =LOOKUP(IP22,InputS!35:35,InputS!41:41) -> 0 | IQ23: =LOOKUP(IQ22,InputS!35:35,InputS!41:41) -> 0 | IR23: =LOOKUP(IR22,InputS!35:35,InputS!41:41) -> 0 | IS23: =LOOKUP(IS22,InputS!35:35,InputS!41:41) -> 0 | IT23: =LOOKUP(IT22,InputS!35:35,InputS!41:41) -> 0 | IU23: =LOOKUP(IU22,InputS!35:35,InputS!41:41) -> 0 | IV23: =LOOKUP(IV22,InputS!35:35,InputS!41:41) -> 0 | IW23: =LOOKUP(IW22,InputS!35:35,InputS!41:41) -> 0 | IX23: =LOOKUP(IX22,InputS!35:35,InputS!41:41) -> 0 | IY23: =LOOKUP(IY22,InputS!35:35,InputS!41:41) -> 0 | IZ23: =LOOKUP(IZ22,InputS!35:35,InputS!41:41) -> 0 | JA23: =LOOKUP(JA22,InputS!35:35,InputS!41:41) -> 0 | JB23: =LOOKUP(JB22,InputS!35:35,InputS!41:41) -> 0 | JC23: =LOOKUP(JC22,InputS!35:35,InputS!41:41) -> 0 | JD23: =LOOKUP(JD22,InputS!35:35,InputS!41:41) -> 0 | JE23: =LOOKUP(JE22,InputS!35:35,InputS!41:41) -> 0 | JF23: =LOOKUP(JF22,InputS!35:35,InputS!41:41) -> 0 | JG23: =LOOKUP(JG22,InputS!35:35,InputS!41:41) -> 0 | JH23: =LOOKUP(JH22,InputS!35:35,InputS!41:41) -> 0 | JI23: =LOOKUP(JI22,InputS!35:35,InputS!41:41) -> 0 | JJ23: =LOOKUP(JJ22,InputS!35:35,InputS!41:41) -> 0 | JK23: =LOOKUP(JK22,InputS!35:35,InputS!41:41) -> 0 | JL23: =LOOKUP(JL22,InputS!35:35,InputS!41:41) -> 0 | JM23: =LOOKUP(JM22,InputS!35:35,InputS!41:41) -> 0 | JN23: =LOOKUP(JN22,InputS!35:35,InputS!41:41) -> 0 | JO23: =LOOKUP(JO22,InputS!35:35,InputS!41:41) -> 0 | JP23: =LOOKUP(JP22,InputS!35:35,InputS!41:41) -> 0 | JQ23: =LOOKUP(JQ22,InputS!35:35,InputS!41:41) -> 0 | JR23: =LOOKUP(JR22,InputS!35:35,InputS!41:41) -> 0 | JS23: =LOOKUP(JS22,InputS!35:35,InputS!41:41) -> 0 | JT23: =LOOKUP(JT22,InputS!35:35,InputS!41:41) -> 0 | JU23: =LOOKUP(JU22,InputS!35:35,InputS!41:41) -> 0 | JV23: =LOOKUP(JV22,InputS!35:35,InputS!41:41) -> 0 | JW23: =LOOKUP(JW22,InputS!35:35,InputS!41:41) -> 0 | JX23: =LOOKUP(JX22,InputS!35:35,InputS!41:41) -> 0 | JY23: =LOOKUP(JY22,InputS!35:35,InputS!41:41) -> 0 | JZ23: =LOOKUP(JZ22,InputS!35:35,InputS!41:41) -> 0 | KA23: =LOOKUP(KA22,InputS!35:35,InputS!41:41) -> 0 | KB23: =LOOKUP(KB22,InputS!35:35,InputS!41:41) -> 0 | KC23: =LOOKUP(KC22,InputS!35:35,InputS!41:41) -> 0 | KD23: =LOOKUP(KD22,InputS!35:35,InputS!41:41) -> 0 | KE23: =LOOKUP(KE22,InputS!35:35,InputS!41:41) -> 0 | KF23: =LOOKUP(KF22,InputS!35:35,InputS!41:41) -> 0 | KG23: =LOOKUP(KG22,InputS!35:35,InputS!41:41) -> 0 | KH23: =LOOKUP(KH22,InputS!35:35,InputS!41:41) -> 0 | KI23: =LOOKUP(KI22,InputS!35:35,InputS!41:41) -> 0 | KJ23: =LOOKUP(KJ22,InputS!35:35,InputS!41:41) -> 0 | KK23: =LOOKUP(KK22,InputS!35:35,InputS!41:41) -> 0 | KL23: =LOOKUP(KL22,InputS!35:35,InputS!41:41) -> 0 | KM23: =LOOKUP(KM22,InputS!35:35,InputS!41:41) -> 0 | KN23: =LOOKUP(KN22,InputS!35:35,InputS!41:41) -> 0 | KO23: =LOOKUP(KO22,InputS!35:35,InputS!41:41) -> 0 | KP23: =LOOKUP(KP22,InputS!35:35,InputS!41:41) -> 0 | KQ23: =LOOKUP(KQ22,InputS!35:35,InputS!41:41) -> 0 | KR23: =LOOKUP(KR22,InputS!35:35,InputS!41:41) -> 0 | KS23: =LOOKUP(KS22,InputS!35:35,InputS!41:41) -> 0 | KT23: =LOOKUP(KT22,InputS!35:35,InputS!41:41) -> 0 | KU23: =LOOKUP(KU22,InputS!35:35,InputS!41:41) -> 0 | KV23: =LOOKUP(KV22,InputS!35:35,InputS!41:41) -> 0 | KW23: =LOOKUP(KW22,InputS!35:35,InputS!41:41) -> 0 | KX23: =LOOKUP(KX22,InputS!35:35,InputS!41:41) -> 0 | KY23: =LOOKUP(KY22,InputS!35:35,InputS!41:41) -> 0 | KZ23: =LOOKUP(KZ22,InputS!35:35,InputS!41:41) -> 0 | LA23: =LOOKUP(LA22,InputS!35:35,InputS!41:41) -> 0 | LB23: =LOOKUP(LB22,InputS!35:35,InputS!41:41) -> 0 | LC23: =LOOKUP(LC22,InputS!35:35,InputS!41:41) -> 0 | LD23: =LOOKUP(LD22,InputS!35:35,InputS!41:41) -> 0 | LE23: =LOOKUP(LE22,InputS!35:35,InputS!41:41) -> 0 | LF23: =LOOKUP(LF22,InputS!35:35,InputS!41:41) -> 0 | LG23: =LOOKUP(LG22,InputS!35:35,InputS!41:41) -> 0 | LH23: =LOOKUP(LH22,InputS!35:35,InputS!41:41) -> 0 | LI23: =LOOKUP(LI22,InputS!35:35,InputS!41:41) -> 0 | LJ23: =LOOKUP(LJ22,InputS!35:35,InputS!41:41) -> 0 | LK23: =LOOKUP(LK22,InputS!35:35,InputS!41:41) -> 0 | LL23: =LOOKUP(LL22,InputS!35:35,InputS!41:41) -> 0 | LM23: =LOOKUP(LM22,InputS!35:35,InputS!41:41) -> 0 | LN23: =LOOKUP(LN22,InputS!35:35,InputS!41:41) -> 0 | LO23: =LOOKUP(LO22,InputS!35:35,InputS!41:41) -> 0 | LP23: =LOOKUP(LP22,InputS!35:35,InputS!41:41) -> 0 | LQ23: =LOOKUP(LQ22,InputS!35:35,InputS!41:41) -> 0 | LR23: =LOOKUP(LR22,InputS!35:35,InputS!41:41) -> 0 | LS23: =LOOKUP(LS22,InputS!35:35,InputS!41:41) -> 0 | LT23: =LOOKUP(LT22,InputS!35:35,InputS!41:41) -> 0 | LU23: =LOOKUP(LU22,InputS!35:35,InputS!41:41) -> 0 | LV23: =LOOKUP(LV22,InputS!35:35,InputS!41:41) -> 0 | LW23: =LOOKUP(LW22,InputS!35:35,InputS!41:41) -> 0 | LX23: =LOOKUP(LX22,InputS!35:35,InputS!41:41) -> 0 | LY23: =LOOKUP(LY22,InputS!35:35,InputS!41:41) -> 0 | LZ23: =LOOKUP(LZ22,InputS!35:35,InputS!41:41) -> 0 | MA23: =LOOKUP(MA22,InputS!35:35,InputS!41:41) -> 0 | MB23: =LOOKUP(MB22,InputS!35:35,InputS!41:41) -> 0 | MC23: =LOOKUP(MC22,InputS!35:35,InputS!41:41) -> 0 | MD23: =LOOKUP(MD22,InputS!35:35,InputS!41:41) -> 0 | ME23: =LOOKUP(ME22,InputS!35:35,InputS!41:41) -> 0 | MF23: =LOOKUP(MF22,InputS!35:35,InputS!41:41) -> 0 | MG23: =LOOKUP(MG22,InputS!35:35,InputS!41:41) -> 0 | MH23: =LOOKUP(MH22,InputS!35:35,InputS!41:41) -> 0 | MI23: =LOOKUP(MI22,InputS!35:35,InputS!41:41) -> 0 | MJ23: =LOOKUP(MJ22,InputS!35:35,InputS!41:41) -> 0 | MK23: =LOOKUP(MK22,InputS!35:35,InputS!41:41) -> 0 | ML23: =LOOKUP(ML22,InputS!35:35,InputS!41:41) -> 0 | MM23: =LOOKUP(MM22,InputS!35:35,InputS!41:41) -> 0 | MN23: =LOOKUP(MN22,InputS!35:35,InputS!41:41) -> 0 | MO23: =LOOKUP(MO22,InputS!35:35,InputS!41:41) -> 0 | MP23: =LOOKUP(MP22,InputS!35:35,InputS!41:41) -> 0 | MQ23: =LOOKUP(MQ22,InputS!35:35,InputS!41:41) -> 0 | MR23: =LOOKUP(MR22,InputS!35:35,InputS!41:41) -> 0 | MS23: =LOOKUP(MS22,InputS!35:35,InputS!41:41) -> 0 | MT23: =LOOKUP(MT22,InputS!35:35,InputS!41:41) -> 0 | MU23: =LOOKUP(MU22,InputS!35:35,InputS!41:41) -> 0 | MV23: =LOOKUP(MV22,InputS!35:35,InputS!41:41) -> 0 | MW23: =LOOKUP(MW22,InputS!35:35,InputS!41:41) -> 0 | MX23: =LOOKUP(MX22,InputS!35:35,InputS!41:41) -> 0 | MY23: =LOOKUP(MY22,InputS!35:35,InputS!41:41) -> 0 | MZ23: =LOOKUP(MZ22,InputS!35:35,InputS!41:41) -> 0 | NA23: =LOOKUP(NA22,InputS!35:35,InputS!41:41) -> 0 | NB23: =LOOKUP(NB22,InputS!35:35,InputS!41:41) -> 0 | NC23: =LOOKUP(NC22,InputS!35:35,InputS!41:41) -> 0 | ND23: =LOOKUP(ND22,InputS!35:35,InputS!41:41) -> 0 | NE23: =LOOKUP(NE22,InputS!35:35,InputS!41:41) -> 0 | NF23: =LOOKUP(NF22,InputS!35:35,InputS!41:41) -> 0 | NG23: =LOOKUP(NG22,InputS!35:35,InputS!41:41) -> 0 | NH23: =LOOKUP(NH22,InputS!35:35,InputS!41:41) -> 0 | NI23: =LOOKUP(NI22,InputS!35:35,InputS!41:41) -> 0 | NJ23: =LOOKUP(NJ22,InputS!35:35,InputS!41:41) -> 0 | NK23: =LOOKUP(NK22,InputS!35:35,InputS!41:41) -> 0 | NL23: =LOOKUP(NL22,InputS!35:35,InputS!41:41) -> 0 | NM23: =LOOKUP(NM22,InputS!35:35,InputS!41:41) -> 0 | NN23: =LOOKUP(NN22,InputS!35:35,InputS!41:41) -> 0 | NO23: =LOOKUP(NO22,InputS!35:35,InputS!41:41) -> 0 | NP23: =LOOKUP(NP22,InputS!35:35,InputS!41:41) -> 0 | NQ23: =LOOKUP(NQ22,InputS!35:35,InputS!41:41) -> 0 | NR23: =LOOKUP(NR22,InputS!35:35,InputS!41:41) -> 0 | NS23: =LOOKUP(NS22,InputS!35:35,InputS!41:41) -> 0 | NT23: =LOOKUP(NT22,InputS!35:35,InputS!41:41) -> 0 | NU23: =LOOKUP(NU22,InputS!35:35,InputS!41:41) -> 0 | NV23: =LOOKUP(NV22,InputS!35:35,InputS!41:41) -> 0 | NW23: =LOOKUP(NW22,InputS!35:35,InputS!41:41) -> 0 | NX23: =LOOKUP(NX22,InputS!35:35,InputS!41:41) -> 0 | NY23: =LOOKUP(NY22,InputS!35:35,InputS!41:41) -> 0 | NZ23: =LOOKUP(NZ22,InputS!35:35,InputS!41:41) -> 0 | OA23: =LOOKUP(OA22,InputS!35:35,InputS!41:41) -> 0 | OB23: =LOOKUP(OB22,InputS!35:35,InputS!41:41) -> 0 | OC23: =LOOKUP(OC22,InputS!35:35,InputS!41:41) -> 0 | OD23: =LOOKUP(OD22,InputS!35:35,InputS!41:41) -> 0 | OE23: =LOOKUP(OE22,InputS!35:35,InputS!41:41) -> 0 | OF23: =LOOKUP(OF22,InputS!35:35,InputS!41:41) -> 0 | OG23: =LOOKUP(OG22,InputS!35:35,InputS!41:41) -> 0 | OH23: =LOOKUP(OH22,InputS!35:35,InputS!41:41) -> 0 | OI23: =LOOKUP(OI22,InputS!35:35,InputS!41:41) -> 0 | OJ23: =LOOKUP(OJ22,InputS!35:35,InputS!41:41) -> 0 | OK23: =LOOKUP(OK22,InputS!35:35,InputS!41:41) -> 0 | OL23: =LOOKUP(OL22,InputS!35:35,InputS!41:41) -> 0 | OM23: =LOOKUP(OM22,InputS!35:35,InputS!41:41) -> 0 | ON23: =LOOKUP(ON22,InputS!35:35,InputS!41:41) -> 0 | OO23: =LOOKUP(OO22,InputS!35:35,InputS!41:41) -> 0 | OP23: =LOOKUP(OP22,InputS!35:35,InputS!41:41) -> 0 | OQ23: =LOOKUP(OQ22,InputS!35:35,InputS!41:41) -> 0 | OR23: =LOOKUP(OR22,InputS!35:35,InputS!41:41) -> 0 | OS23: =LOOKUP(OS22,InputS!35:35,InputS!41:41) -> 0 | OT23: =LOOKUP(OT22,InputS!35:35,InputS!41:41) -> 0 | OU23: =LOOKUP(OU22,InputS!35:35,InputS!41:41) -> 0 | OV23: =LOOKUP(OV22,InputS!35:35,InputS!41:41) -> 0 | OW23: =LOOKUP(OW22,InputS!35:35,InputS!41:41) -> 0 | OX23: =LOOKUP(OX22,InputS!35:35,InputS!41:41) -> 0 | OY23: =LOOKUP(OY22,InputS!35:35,InputS!41:41) -> 0 | OZ23: =LOOKUP(OZ22,InputS!35:35,InputS!41:41) -> 0 | PA23: =LOOKUP(PA22,InputS!35:35,InputS!41:41) -> 0 | PB23: =LOOKUP(PB22,InputS!35:35,InputS!41:41) -> 0 | PC23: =LOOKUP(PC22,InputS!35:35,InputS!41:41) -> 0 | PD23: =LOOKUP(PD22,InputS!35:35,InputS!41:41) -> 0 | PE23: =LOOKUP(PE22,InputS!35:35,InputS!41:41) -> 0 | PF23: =LOOKUP(PF22,InputS!35:35,InputS!41:41) -> 0 | PG23: =LOOKUP(PG22,InputS!35:35,InputS!41:41) -> 0 | PH23: =LOOKUP(PH22,InputS!35:35,InputS!41:41) -> 0 | PI23: =LOOKUP(PI22,InputS!35:35,InputS!41:41) -> 0 | PJ23: =LOOKUP(PJ22,InputS!35:35,InputS!41:41) -> 0 | PK23: =LOOKUP(PK22,InputS!35:35,InputS!41:41) -> 0 | PL23: =LOOKUP(PL22,InputS!35:35,InputS!41:41) -> 0 | PM23: =LOOKUP(PM22,InputS!35:35,InputS!41:41) -> 0 | PN23: =LOOKUP(PN22,InputS!35:35,InputS!41:41) -> 0 | PO23: =LOOKUP(PO22,InputS!35:35,InputS!41:41) -> 0 | PP23: =LOOKUP(PP22,InputS!35:35,InputS!41:41) -> 0 | PQ23: =LOOKUP(PQ22,InputS!35:35,InputS!41:41) -> 0 | PR23: =LOOKUP(PR22,InputS!35:35,InputS!41:41) -> 0 | PS23: =LOOKUP(PS22,InputS!35:35,InputS!41:41) -> 0 | PT23: =LOOKUP(PT22,InputS!35:35,InputS!41:41) -> 0 | PU23: =LOOKUP(PU22,InputS!35:35,InputS!41:41) -> 0 | PV23: =LOOKUP(PV22,InputS!35:35,InputS!41:41) -> 0 | PW23: =LOOKUP(PW22,InputS!35:35,InputS!41:41) -> 0 | PX23: =LOOKUP(PX22,InputS!35:35,InputS!41:41) -> 0 | PY23: =LOOKUP(PY22,InputS!35:35,InputS!41:41) -> 0 | PZ23: =LOOKUP(PZ22,InputS!35:35,InputS!41:41) -> 0 | QA23: =LOOKUP(QA22,InputS!35:35,InputS!41:41) -> 0 | QB23: =LOOKUP(QB22,InputS!35:35,InputS!41:41) -> 0 | QC23: =LOOKUP(QC22,InputS!35:35,InputS!41:41) -> 0 | QD23: =LOOKUP(QD22,InputS!35:35,InputS!41:41) -> 0 | QE23: =LOOKUP(QE22,InputS!35:35,InputS!41:41) -> 0 | QF23: =LOOKUP(QF22,InputS!35:35,InputS!41:41) -> 0 | QG23: =LOOKUP(QG22,InputS!35:35,InputS!41:41) -> 0 | QH23: =LOOKUP(QH22,InputS!35:35,InputS!41:41) -> 0 | QI23: =LOOKUP(QI22,InputS!35:35,InputS!41:41) -> 0 | QJ23: =LOOKUP(QJ22,InputS!35:35,InputS!41:41) -> 0 | QK23: =LOOKUP(QK22,InputS!35:35,InputS!41:41) -> 0 | QL23: =LOOKUP(QL22,InputS!35:35,InputS!41:41) -> 0 | QM23: =LOOKUP(QM22,InputS!35:35,InputS!41:41) -> 0 | QN23: =LOOKUP(QN22,InputS!35:35,InputS!41:41) -> 0 | QO23: =LOOKUP(QO22,InputS!35:35,InputS!41:41) -> 0 | QP23: =LOOKUP(QP22,InputS!35:35,InputS!41:41) -> 0 | QQ23: =LOOKUP(QQ22,InputS!35:35,InputS!41:41) -> 0 | QR23: =LOOKUP(QR22,InputS!35:35,InputS!41:41) -> 0 | QS23: =LOOKUP(QS22,InputS!35:35,InputS!41:41) -> 0 | QT23: =LOOKUP(QT22,InputS!35:35,InputS!41:41) -> 0 | QU23: =LOOKUP(QU22,InputS!35:35,InputS!41:41) -> 0 | QV23: =LOOKUP(QV22,InputS!35:35,InputS!41:41) -> 0 | QW23: =LOOKUP(QW22,InputS!35:35,InputS!41:41) -> 0 | QX23: =LOOKUP(QX22,InputS!35:35,InputS!41:41) -> 0 | QY23: =LOOKUP(QY22,InputS!35:35,InputS!41:41) -> 0 | QZ23: =LOOKUP(QZ22,InputS!35:35,InputS!41:41) -> 0 | RA23: =LOOKUP(RA22,InputS!35:35,InputS!41:41) -> 0 | RB23: =LOOKUP(RB22,InputS!35:35,InputS!41:41) -> 0 | RC23: =LOOKUP(RC22,InputS!35:35,InputS!41:41) -> 0 | RD23: =LOOKUP(RD22,InputS!35:35,InputS!41:41) -> 0 | RE23: =LOOKUP(RE22,InputS!35:35,InputS!41:41) -> 0 | RF23: =LOOKUP(RF22,InputS!35:35,InputS!41:41) -> 0 | RG23: =LOOKUP(RG22,InputS!35:35,InputS!41:41) -> 0 | RH23: =LOOKUP(RH22,InputS!35:35,InputS!41:41) -> 0 | RI23: =LOOKUP(RI22,InputS!35:35,InputS!41:41) -> 0 | RJ23: =LOOKUP(RJ22,InputS!35:35,InputS!41:41) -> 0 | RK23: =LOOKUP(RK22,InputS!35:35,InputS!41:41) -> 0 | RL23: =LOOKUP(RL22,InputS!35:35,InputS!41:41) -> 0 | RM23: =LOOKUP(RM22,InputS!35:35,InputS!41:41) -> 0 | RN23: =LOOKUP(RN22,InputS!35:35,InputS!41:41) -> 0 | RO23: =LOOKUP(RO22,InputS!35:35,InputS!41:41) -> 0 | RP23: =LOOKUP(RP22,InputS!35:35,InputS!41:41) -> 0 | RQ23: =LOOKUP(RQ22,InputS!35:35,InputS!41:41) -> 0 | RR23: =LOOKUP(RR22,InputS!35:35,InputS!41:41) -> 0 | RS23: =LOOKUP(RS22,InputS!35:35,InputS!41:41) -> 0 | RT23: =LOOKUP(RT22,InputS!35:35,InputS!41:41) -> 0 | RU23: =LOOKUP(RU22,InputS!35:35,InputS!41:41) -> 0 | RV23: =LOOKUP(RV22,InputS!35:35,InputS!41:41) -> 0 | RW23: =LOOKUP(RW22,InputS!35:35,InputS!41:41) -> 0 | RX23: =LOOKUP(RX22,InputS!35:35,InputS!41:41) -> 0 | RY23: =LOOKUP(RY22,InputS!35:35,InputS!41:41) -> 0 | RZ23: =LOOKUP(RZ22,InputS!35:35,InputS!41:41) -> 0 | SA23: =LOOKUP(SA22,InputS!35:35,InputS!41:41) -> 0 | SB23: =LOOKUP(SB22,InputS!35:35,InputS!41:41) -> 0 | SC23: =LOOKUP(SC22,InputS!35:35,InputS!41:41) -> 0 | SD23: =LOOKUP(SD22,InputS!35:35,InputS!41:41) -> 0 | SE23: =LOOKUP(SE22,InputS!35:35,InputS!41:41) -> 0 | SF23: =LOOKUP(SF22,InputS!35:35,InputS!41:41) -> 0 | SG23: =LOOKUP(SG22,InputS!35:35,InputS!41:41) -> 0 | SH23: =LOOKUP(SH22,InputS!35:35,InputS!41:41) -> 0 | SI23: =LOOKUP(SI22,InputS!35:35,InputS!41:41) -> 0 | SJ23: =LOOKUP(SJ22,InputS!35:35,InputS!41:41) -> 0 | SK23: =LOOKUP(SK22,InputS!35:35,InputS!41:41) -> 0 | SL23: =LOOKUP(SL22,InputS!35:35,InputS!41:41) -> 0 | SM23: =LOOKUP(SM22,InputS!35:35,InputS!41:41) -> 0 | SN23: =LOOKUP(SN22,InputS!35:35,InputS!41:41) -> 0 | SO23: =LOOKUP(SO22,InputS!35:35,InputS!41:41) -> 0 | SP23: =LOOKUP(SP22,InputS!35:35,InputS!41:41) -> 0 | SQ23: =LOOKUP(SQ22,InputS!35:35,InputS!41:41) -> 0
D24: Monthly Degradation | G24: % p.p. | H24: =M24 -> 0 | L24: =(1+L23)^(1/Months)-1 -> 0 | M24: 0 | N24: 0 | O24: 0 | P24: 0 | Q24: 0 | R24: 0 | S24: 0 | T24: 0 | U24: 0 | V24: 0 | W24: 0 | X24: 0 | Y24: 0 | Z24: 0 | AA24: 0 | AB24: 0 | AC24: 0 | AD24: 0 | AE24: 0 | AF24: 0 | AG24: 0 | AH24: 0 | AI24: 0 | AJ24: 0 | AK24: 0 | AL24: 0 | AM24: 0 | AN24: 0 | AO24: 0 | AP24: 0 | AQ24: 0 | AR24: 0 | AS24: 0 | AT24: 0 | AU24: 0 | AV24: 0 | AW24: 0 | AX24: 0 | AY24: 0 | AZ24: 0 | BA24: 0 | BB24: 0 | BC24: 0 | BD24: 0 | BE24: 0 | BF24: 0 | BG24: 0 | BH24: 0 | BI24: 0 | BJ24: 0 | BK24: 0 | BL24: 0 | BM24: 0 | BN24: 0 | BO24: 0 | BP24: 0 | BQ24: 0 | BR24: 0 | BS24: 0 | BT24: 0 | BU24: 0 | BV24: 0 | BW24: 0 | BX24: =(1+BX23)^(1/Months)-1 -> 0 | BY24: 0 | BZ24: 0 | CA24: 0 | CB24: 0 | CC24: 0 | CD24: 0 | CE24: 0 | CF24: 0 | CG24: 0 | CH24: 0 | CI24: 0 | CJ24: 0 | CK24: 0 | CL24: 0 | CM24: 0 | CN24: 0 | CO24: 0 | CP24: 0 | CQ24: 0 | CR24: 0 | CS24: 0 | CT24: 0 | CU24: 0 | CV24: 0 | CW24: 0 | CX24: 0 | CY24: 0 | CZ24: 0 | DA24: 0 | DB24: 0 | DC24: 0 | DD24: 0 | DE24: 0 | DF24: 0 | DG24: 0 | DH24: 0 | DI24: 0 | DJ24: 0 | DK24: 0 | DL24: 0 | DM24: 0 | DN24: 0 | DO24: 0 | DP24: 0 | DQ24: 0 | DR24: 0 | DS24: 0 | DT24: 0 | DU24: 0 | DV24: 0 | DW24: 0 | DX24: 0 | DY24: 0 | DZ24: 0 | EA24: 0 | EB24: 0 | EC24: 0 | ED24: 0 | EE24: 0 | EF24: 0 | EG24: 0 | EH24: 0 | EI24: 0 | EJ24: =(1+EJ23)^(1/Months)-1 -> 0 | EK24: 0 | EL24: 0 | EM24: 0 | EN24: 0 | EO24: 0 | EP24: 0 | EQ24: 0 | ER24: 0 | ES24: 0 | ET24: 0 | EU24: 0 | EV24: 0 | EW24: 0 | EX24: 0 | EY24: 0 | EZ24: 0 | FA24: 0 | FB24: 0 | FC24: 0 | FD24: 0 | FE24: 0 | FF24: 0 | FG24: 0 | FH24: 0 | FI24: 0 | FJ24: 0 | FK24: 0 | FL24: 0 | FM24: 0 | FN24: 0 | FO24: 0 | FP24: 0 | FQ24: 0 | FR24: 0 | FS24: 0 | FT24: 0 | FU24: 0 | FV24: 0 | FW24: 0 | FX24: 0 | FY24: 0 | FZ24: 0 | GA24: 0 | GB24: 0 | GC24: 0 | GD24: 0 | GE24: 0 | GF24: 0 | GG24: 0 | GH24: 0 | GI24: 0 | GJ24: 0 | GK24: 0 | GL24: 0 | GM24: 0 | GN24: 0 | GO24: 0 | GP24: 0 | GQ24: 0 | GR24: 0 | GS24: 0 | GT24: 0 | GU24: 0 | GV24: =(1+GV23)^(1/Months)-1 -> 0 | GW24: 0 | GX24: 0 | GY24: 0 | GZ24: 0 | HA24: 0 | HB24: 0 | HC24: 0 | HD24: 0 | HE24: 0 | HF24: 0 | HG24: 0 | HH24: 0 | HI24: 0 | HJ24: 0 | HK24: 0 | HL24: 0 | HM24: 0 | HN24: 0 | HO24: 0 | HP24: 0 | HQ24: 0 | HR24: 0 | HS24: 0 | HT24: 0 | HU24: 0 | HV24: 0 | HW24: 0 | HX24: 0 | HY24: 0 | HZ24: 0 | IA24: 0 | IB24: 0 | IC24: 0 | ID24: 0 | IE24: 0 | IF24: 0 | IG24: 0 | IH24: 0 | II24: 0 | IJ24: 0 | IK24: 0 | IL24: 0 | IM24: 0 | IN24: 0 | IO24: 0 | IP24: 0 | IQ24: 0 | IR24: 0 | IS24: 0 | IT24: 0 | IU24: 0 | IV24: 0 | IW24: 0 | IX24: 0 | IY24: 0 | IZ24: 0 | JA24: 0 | JB24: 0 | JC24: 0 | JD24: 0 | JE24: 0 | JF24: 0 | JG24: 0 | JH24: =(1+JH23)^(1/Months)-1 -> 0 | JI24: 0 | JJ24: 0 | JK24: 0 | JL24: 0 | JM24: 0 | JN24: 0 | JO24: 0 | JP24: 0 | JQ24: 0 | JR24: 0 | JS24: 0 | JT24: 0 | JU24: 0 | JV24: 0 | JW24: 0 | JX24: 0 | JY24: 0 | JZ24: 0 | KA24: 0 | KB24: 0 | KC24: 0 | KD24: 0 | KE24: 0 | KF24: 0 | KG24: 0 | KH24: 0 | KI24: 0 | KJ24: 0 | KK24: 0 | KL24: 0 | KM24: 0 | KN24: 0 | KO24: 0 | KP24: 0 | KQ24: 0 | KR24: 0 | KS24: 0 | KT24: 0 | KU24: 0 | KV24: 0 | KW24: 0 | KX24: 0 | KY24: 0 | KZ24: 0 | LA24: 0 | LB24: 0 | LC24: 0 | LD24: 0 | LE24: 0 | LF24: 0 | LG24: 0 | LH24: 0 | LI24: 0 | LJ24: 0 | LK24: 0 | LL24: 0 | LM24: 0 | LN24: 0 | LO24: 0 | LP24: 0 | LQ24: 0 | LR24: 0 | LS24: 0 | LT24: =(1+LT23)^(1/Months)-1 -> 0 | LU24: 0 | LV24: 0 | LW24: 0 | LX24: 0 | LY24: 0 | LZ24: 0 | MA24: 0 | MB24: 0 | MC24: 0 | MD24: 0 | ME24: 0 | MF24: 0 | MG24: 0 | MH24: 0 | MI24: 0 | MJ24: 0 | MK24: 0 | ML24: 0 | MM24: 0 | MN24: 0 | MO24: 0 | MP24: 0 | MQ24: 0 | MR24: 0 | MS24: 0 | MT24: 0 | MU24: 0 | MV24: 0 | MW24: 0 | MX24: 0 | MY24: 0 | MZ24: 0 | NA24: 0 | NB24: 0 | NC24: 0 | ND24: 0 | NE24: 0 | NF24: 0 | NG24: 0 | NH24: 0 | NI24: 0 | NJ24: 0 | NK24: 0 | NL24: 0 | NM24: 0 | NN24: 0 | NO24: 0 | NP24: 0 | NQ24: 0 | NR24: 0 | NS24: 0 | NT24: 0 | NU24: 0 | NV24: 0 | NW24: 0 | NX24: 0 | NY24: 0 | NZ24: 0 | OA24: 0 | OB24: 0 | OC24: 0 | OD24: 0 | OE24: 0 | OF24: =(1+OF23)^(1/Months)-1 -> 0 | OG24: 0 | OH24: 0 | OI24: 0 | OJ24: 0 | OK24: 0 | OL24: 0 | OM24: 0 | ON24: 0 | OO24: 0 | OP24: 0 | OQ24: 0 | OR24: 0 | OS24: 0 | OT24: 0 | OU24: 0 | OV24: 0 | OW24: 0 | OX24: 0 | OY24: 0 | OZ24: 0 | PA24: 0 | PB24: 0 | PC24: 0 | PD24: 0 | PE24: 0 | PF24: 0 | PG24: 0 | PH24: 0 | PI24: 0 | PJ24: 0 | PK24: 0 | PL24: 0 | PM24: 0 | PN24: 0 | PO24: 0 | PP24: 0 | PQ24: 0 | PR24: 0 | PS24: 0 | PT24: 0 | PU24: 0 | PV24: 0 | PW24: 0 | PX24: 0 | PY24: 0 | PZ24: 0 | QA24: 0 | QB24: 0 | QC24: 0 | QD24: 0 | QE24: 0 | QF24: 0 | QG24: 0 | QH24: 0 | QI24: 0 | QJ24: 0 | QK24: 0 | QL24: 0 | QM24: 0 | QN24: 0 | QO24: 0 | QP24: 0 | QQ24: 0 | QR24: =(1+QR23)^(1/Months)-1 -> 0 | QS24: 0 | QT24: 0 | QU24: 0 | QV24: 0 | QW24: 0 | QX24: 0 | QY24: 0 | QZ24: 0 | RA24: 0 | RB24: 0 | RC24: 0 | RD24: 0 | RE24: 0 | RF24: 0 | RG24: 0 | RH24: 0 | RI24: 0 | RJ24: 0 | RK24: 0 | RL24: 0 | RM24: 0 | RN24: 0 | RO24: 0 | RP24: 0 | RQ24: 0 | RR24: 0 | RS24: 0 | RT24: 0 | RU24: 0 | RV24: 0 | RW24: 0 | RX24: 0 | RY24: 0 | RZ24: 0 | SA24: 0 | SB24: 0 | SC24: 0 | SD24: 0 | SE24: 0 | SF24: 0 | SG24: 0 | SH24: 0 | SI24: 0 | SJ24: 0 | SK24: 0 | SL24: 0 | SM24: 0 | SN24: 0 | SO24: 0 | SP24: 0 | SQ24: 0
D25: Monthly Degradation Index | G25: Index | K25: 1 | L25: =K25*(1-L24) -> 1 | M25: =L25*(1-M24) -> 1 | N25: 1 | O25: 1 | P25: 1 | Q25: 1 | R25: 1 | S25: 1 | T25: 1 | U25: 1 | V25: 1 | W25: 1 | X25: 1 | Y25: 1 | Z25: 1 | AA25: 1 | AB25: 1 | AC25: 1 | AD25: 1 | AE25: 1 | AF25: 1 | AG25: 1 | AH25: 1 | AI25: 1 | AJ25: 1 | AK25: 1 | AL25: 1 | AM25: 1 | AN25: 1 | AO25: 1 | AP25: 1 | AQ25: 1 | AR25: 1 | AS25: 1 | AT25: 1 | AU25: 1 | AV25: 1 | AW25: 1 | AX25: 1 | AY25: 1 | AZ25: 1 | BA25: 1 | BB25: 1 | BC25: 1 | BD25: 1 | BE25: 1 | BF25: 1 | BG25: 1 | BH25: 1 | BI25: 1 | BJ25: 1 | BK25: 1 | BL25: 1 | BM25: 1 | BN25: 1 | BO25: 1 | BP25: 1 | BQ25: 1 | BR25: 1 | BS25: 1 | BT25: 1 | BU25: 1 | BV25: 1 | BW25: 1 | BX25: 1 | BY25: =BX25*(1-BY24) -> 1 | BZ25: 1 | CA25: 1 | CB25: 1 | CC25: 1 | CD25: 1 | CE25: 1 | CF25: 1 | CG25: 1 | CH25: 1 | CI25: 1 | CJ25: 1 | CK25: 1 | CL25: 1 | CM25: 1 | CN25: 1 | CO25: 1 | CP25: 1 | CQ25: 1 | CR25: 1 | CS25: 1 | CT25: 1 | CU25: 1 | CV25: 1 | CW25: 1 | CX25: 1 | CY25: 1 | CZ25: 1 | DA25: 1 | DB25: 1 | DC25: 1 | DD25: 1 | DE25: 1 | DF25: 1 | DG25: 1 | DH25: 1 | DI25: 1 | DJ25: 1 | DK25: 1 | DL25: 1 | DM25: 1 | DN25: 1 | DO25: 1 | DP25: 1 | DQ25: 1 | DR25: 1 | DS25: 1 | DT25: 1 | DU25: 1 | DV25: 1 | DW25: 1 | DX25: 1 | DY25: 1 | DZ25: 1 | EA25: 1 | EB25: 1 | EC25: 1 | ED25: 1 | EE25: 1 | EF25: 1 | EG25: 1 | EH25: 1 | EI25: 1 | EJ25: 1 | EK25: =EJ25*(1-EK24) -> 1 | EL25: 1 | EM25: 1 | EN25: 1 | EO25: 1 | EP25: 1 | EQ25: 1 | ER25: 1 | ES25: 1 | ET25: 1 | EU25: 1 | EV25: 1 | EW25: 1 | EX25: 1 | EY25: 1 | EZ25: 1 | FA25: 1 | FB25: 1 | FC25: 1 | FD25: 1 | FE25: 1 | FF25: 1 | FG25: 1 | FH25: 1 | FI25: 1 | FJ25: 1 | FK25: 1 | FL25: 1 | FM25: 1 | FN25: 1 | FO25: 1 | FP25: 1 | FQ25: 1 | FR25: 1 | FS25: 1 | FT25: 1 | FU25: 1 | FV25: 1 | FW25: 1 | FX25: 1 | FY25: 1 | FZ25: 1 | GA25: 1 | GB25: 1 | GC25: 1 | GD25: 1 | GE25: 1 | GF25: 1 | GG25: 1 | GH25: 1 | GI25: 1 | GJ25: 1 | GK25: 1 | GL25: 1 | GM25: 1 | GN25: 1 | GO25: 1 | GP25: 1 | GQ25: 1 | GR25: 1 | GS25: 1 | GT25: 1 | GU25: 1 | GV25: 1 | GW25: =GV25*(1-GW24) -> 1 | GX25: 1 | GY25: 1 | GZ25: 1 | HA25: 1 | HB25: 1 | HC25: 1 | HD25: 1 | HE25: 1 | HF25: 1 | HG25: 1 | HH25: 1 | HI25: 1 | HJ25: 1 | HK25: 1 | HL25: 1 | HM25: 1 | HN25: 1 | HO25: 1 | HP25: 1 | HQ25: 1 | HR25: 1 | HS25: 1 | HT25: 1 | HU25: 1 | HV25: 1 | HW25: 1 | HX25: 1 | HY25: 1 | HZ25: 1 | IA25: 1 | IB25: 1 | IC25: 1 | ID25: 1 | IE25: 1 | IF25: 1 | IG25: 1 | IH25: 1 | II25: 1 | IJ25: 1 | IK25: 1 | IL25: 1 | IM25: 1 | IN25: 1 | IO25: 1 | IP25: 1 | IQ25: 1 | IR25: 1 | IS25: 1 | IT25: 1 | IU25: 1 | IV25: 1 | IW25: 1 | IX25: 1 | IY25: 1 | IZ25: 1 | JA25: 1 | JB25: 1 | JC25: 1 | JD25: 1 | JE25: 1 | JF25: 1 | JG25: 1 | JH25: 1 | JI25: =JH25*(1-JI24) -> 1 | JJ25: 1 | JK25: 1 | JL25: 1 | JM25: 1 | JN25: 1 | JO25: 1 | JP25: 1 | JQ25: 1 | JR25: 1 | JS25: 1 | JT25: 1 | JU25: 1 | JV25: 1 | JW25: 1 | JX25: 1 | JY25: 1 | JZ25: 1 | KA25: 1 | KB25: 1 | KC25: 1 | KD25: 1 | KE25: 1 | KF25: 1 | KG25: 1 | KH25: 1 | KI25: 1 | KJ25: 1 | KK25: 1 | KL25: 1 | KM25: 1 | KN25: 1 | KO25: 1 | KP25: 1 | KQ25: 1 | KR25: 1 | KS25: 1 | KT25: 1 | KU25: 1 | KV25: 1 | KW25: 1 | KX25: 1 | KY25: 1 | KZ25: 1 | LA25: 1 | LB25: 1 | LC25: 1 | LD25: 1 | LE25: 1 | LF25: 1 | LG25: 1 | LH25: 1 | LI25: 1 | LJ25: 1 | LK25: 1 | LL25: 1 | LM25: 1 | LN25: 1 | LO25: 1 | LP25: 1 | LQ25: 1 | LR25: 1 | LS25: 1 | LT25: 1 | LU25: =LT25*(1-LU24) -> 1 | LV25: 1 | LW25: 1 | LX25: 1 | LY25: 1 | LZ25: 1 | MA25: 1 | MB25: 1 | MC25: 1 | MD25: 1 | ME25: 1 | MF25: 1 | MG25: 1 | MH25: 1 | MI25: 1 | MJ25: 1 | MK25: 1 | ML25: 1 | MM25: 1 | MN25: 1 | MO25: 1 | MP25: 1 | MQ25: 1 | MR25: 1 | MS25: 1 | MT25: 1 | MU25: 1 | MV25: 1 | MW25: 1 | MX25: 1 | MY25: 1 | MZ25: 1 | NA25: 1 | NB25: 1 | NC25: 1 | ND25: 1 | NE25: 1 | NF25: 1 | NG25: 1 | NH25: 1 | NI25: 1 | NJ25: 1 | NK25: 1 | NL25: 1 | NM25: 1 | NN25: 1 | NO25: 1 | NP25: 1 | NQ25: 1 | NR25: 1 | NS25: 1 | NT25: 1 | NU25: 1 | NV25: 1 | NW25: 1 | NX25: 1 | NY25: 1 | NZ25: 1 | OA25: 1 | OB25: 1 | OC25: 1 | OD25: 1 | OE25: 1 | OF25: 1 | OG25: =OF25*(1-OG24) -> 1 | OH25: 1 | OI25: 1 | OJ25: 1 | OK25: 1 | OL25: 1 | OM25: 1 | ON25: 1 | OO25: 1 | OP25: 1 | OQ25: 1 | OR25: 1 | OS25: 1 | OT25: 1 | OU25: 1 | OV25: 1 | OW25: 1 | OX25: 1 | OY25: 1 | OZ25: 1 | PA25: 1 | PB25: 1 | PC25: 1 | PD25: 1 | PE25: 1 | PF25: 1 | PG25: 1 | PH25: 1 | PI25: 1 | PJ25: 1 | PK25: 1 | PL25: 1 | PM25: 1 | PN25: 1 | PO25: 1 | PP25: 1 | PQ25: 1 | PR25: 1 | PS25: 1 | PT25: 1 | PU25: 1 | PV25: 1 | PW25: 1 | PX25: 1 | PY25: 1 | PZ25: 1 | QA25: 1 | QB25: 1 | QC25: 1 | QD25: 1 | QE25: 1 | QF25: 1 | QG25: 1 | QH25: 1 | QI25: 1 | QJ25: 1 | QK25: 1 | QL25: 1 | QM25: 1 | QN25: 1 | QO25: 1 | QP25: 1 | QQ25: 1 | QR25: 1 | QS25: =QR25*(1-QS24) -> 1 | QT25: 1 | QU25: 1 | QV25: 1 | QW25: 1 | QX25: 1 | QY25: 1 | QZ25: 1 | RA25: 1 | RB25: 1 | RC25: 1 | RD25: 1 | RE25: 1 | RF25: 1 | RG25: 1 | RH25: 1 | RI25: 1 | RJ25: 1 | RK25: 1 | RL25: 1 | RM25: 1 | RN25: 1 | RO25: 1 | RP25: 1 | RQ25: 1 | RR25: 1 | RS25: 1 | RT25: 1 | RU25: 1 | RV25: 1 | RW25: 1 | RX25: 1 | RY25: 1 | RZ25: 1 | SA25: 1 | SB25: 1 | SC25: 1 | SD25: 1 | SE25: 1 | SF25: 1 | SG25: 1 | SH25: 1 | SI25: 1 | SJ25: 1 | SK25: 1 | SL25: 1 | SM25: 1 | SN25: 1 | SO25: 1 | SP25: 1 | SQ25: 1
D26: Annual Generation after Degradation | G26: MWH | L26: =L25*L19 -> 0 | M26: =M25*M19 -> 261360 | N26: 261360 | O26: 261360 | P26: 261360 | Q26: 261360 | R26: 261360 | S26: 261360 | T26: 261360 | U26: 261360 | V26: 261360 | W26: 261360 | X26: 261360 | Y26: 261360 | Z26: 261360 | AA26: 261360 | AB26: 261360 | AC26: 261360 | AD26: 261360 | AE26: 261360 | AF26: 261360 | AG26: 261360 | AH26: 261360 | AI26: 261360 | AJ26: 261360 | AK26: 261360 | AL26: 261360 | AM26: 261360 | AN26: 261360 | AO26: 261360 | AP26: 261360 | AQ26: 261360 | AR26: 261360 | AS26: 261360 | AT26: 261360 | AU26: 261360 | AV26: 261360 | AW26: 261360 | AX26: 261360 | AY26: 261360 | AZ26: 261360 | BA26: 261360 | BB26: 261360 | BC26: 261360 | BD26: 261360 | BE26: 261360 | BF26: 261360 | BG26: 261360 | BH26: 261360 | BI26: 261360 | BJ26: 261360 | BK26: 261360 | BL26: 261360 | BM26: 261360 | BN26: 261360 | BO26: 261360 | BP26: 261360 | BQ26: 261360 | BR26: 261360 | BS26: 261360 | BT26: 261360 | BU26: 261360 | BV26: 261360 | BW26: 261360 | BX26: 261360 | BY26: =BY25*BY19 -> 261360 | BZ26: 261360 | CA26: 261360 | CB26: 261360 | CC26: 261360 | CD26: 261360 | CE26: 261360 | CF26: 261360 | CG26: 261360 | CH26: 261360 | CI26: 261360 | CJ26: 261360 | CK26: 261360 | CL26: 261360 | CM26: 261360 | CN26: 261360 | CO26: 261360 | CP26: 261360 | CQ26: 261360 | CR26: 261360 | CS26: 261360 | CT26: 261360 | CU26: 261360 | CV26: 261360 | CW26: 261360 | CX26: 261360 | CY26: 261360 | CZ26: 261360 | DA26: 261360 | DB26: 261360 | DC26: 261360 | DD26: 261360 | DE26: 261360 | DF26: 261360 | DG26: 261360 | DH26: 261360 | DI26: 261360 | DJ26: 261360 | DK26: 261360 | DL26: 261360 | DM26: 261360 | DN26: 261360 | DO26: 261360 | DP26: 261360 | DQ26: 261360 | DR26: 261360 | DS26: 261360 | DT26: 261360 | DU26: 261360 | DV26: 261360 | DW26: 261360 | DX26: 261360 | DY26: 261360 | DZ26: 261360 | EA26: 261360 | EB26: 261360 | EC26: 261360 | ED26: 261360 | EE26: 261360 | EF26: 261360 | EG26: 261360 | EH26: 261360 | EI26: 261360 | EJ26: 261360 | EK26: =EK25*EK19 -> 261360 | EL26: 261360 | EM26: 261360 | EN26: 261360 | EO26: 261360 | EP26: 261360 | EQ26: 261360 | ER26: 261360 | ES26: 261360 | ET26: 261360 | EU26: 261360 | EV26: 261360 | EW26: 261360 | EX26: 261360 | EY26: 261360 | EZ26: 261360 | FA26: 261360 | FB26: 261360 | FC26: 261360 | FD26: 261360 | FE26: 261360 | FF26: 261360 | FG26: 261360 | FH26: 261360 | FI26: 261360 | FJ26: 261360 | FK26: 261360 | FL26: 261360 | FM26: 261360 | FN26: 261360 | FO26: 261360 | FP26: 261360 | FQ26: 261360 | FR26: 261360 | FS26: 261360 | FT26: 261360 | FU26: 261360 | FV26: 261360 | FW26: 261360 | FX26: 261360 | FY26: 261360 | FZ26: 261360 | GA26: 261360 | GB26: 261360 | GC26: 261360 | GD26: 261360 | GE26: 261360 | GF26: 261360 | GG26: 261360 | GH26: 261360 | GI26: 261360 | GJ26: 261360 | GK26: 261360 | GL26: 261360 | GM26: 261360 | GN26: 261360 | GO26: 261360 | GP26: 261360 | GQ26: 261360 | GR26: 261360 | GS26: 261360 | GT26: 261360 | GU26: 261360 | GV26: 261360 | GW26: =GW25*GW19 -> 261360 | GX26: 261360 | GY26: 261360 | GZ26: 261360 | HA26: 261360 | HB26: 261360 | HC26: 261360 | HD26: 261360 | HE26: 261360 | HF26: 261360 | HG26: 261360 | HH26: 261360 | HI26: 261360 | HJ26: 261360 | HK26: 261360 | HL26: 261360 | HM26: 261360 | HN26: 261360 | HO26: 261360 | HP26: 261360 | HQ26: 261360 | HR26: 261360 | HS26: 261360 | HT26: 261360 | HU26: 261360 | HV26: 261360 | HW26: 261360 | HX26: 261360 | HY26: 261360 | HZ26: 261360 | IA26: 261360 | IB26: 261360 | IC26: 261360 | ID26: 261360 | IE26: 261360 | IF26: 261360 | IG26: 261360 | IH26: 261360 | II26: 261360 | IJ26: 261360 | IK26: 261360 | IL26: 261360 | IM26: 261360 | IN26: 261360 | IO26: 261360 | IP26: 261360 | IQ26: 261360 | IR26: 261360 | IS26: 261360 | IT26: 261360 | IU26: 261360 | IV26: 261360 | IW26: 261360 | IX26: 261360 | IY26: 261360 | IZ26: 261360 | JA26: 261360 | JB26: 261360 | JC26: 261360 | JD26: 261360 | JE26: 261360 | JF26: 261360 | JG26: 261360 | JH26: 261360 | JI26: =JI25*JI19 -> 261360 | JJ26: 261360 | JK26: 261360 | JL26: 261360 | JM26: 261360 | JN26: 261360 | JO26: 261360 | JP26: 261360 | JQ26: 261360 | JR26: 261360 | JS26: 261360 | JT26: 261360 | JU26: 261360 | JV26: 261360 | JW26: 261360 | JX26: 261360 | JY26: 261360 | JZ26: 261360 | KA26: 261360 | KB26: 261360 | KC26: 261360 | KD26: 261360 | KE26: 261360 | KF26: 261360 | KG26: 261360 | KH26: 261360 | KI26: 261360 | KJ26: 261360 | KK26: 261360 | KL26: 261360 | KM26: 261360 | KN26: 261360 | KO26: 261360 | KP26: 261360 | KQ26: 261360 | KR26: 261360 | KS26: 261360 | KT26: 261360 | KU26: 261360 | KV26: 261360 | KW26: 261360 | KX26: 261360 | KY26: 261360 | KZ26: 261360 | LA26: 261360 | LB26: 261360 | LC26: 261360 | LD26: 261360 | LE26: 261360 | LF26: 261360 | LG26: 261360 | LH26: 261360 | LI26: 261360 | LJ26: 261360 | LK26: 261360 | LL26: 261360 | LM26: 261360 | LN26: 261360 | LO26: 261360 | LP26: 261360 | LQ26: 261360 | LR26: 261360 | LS26: 261360 | LT26: 261360 | LU26: =LU25*LU19 -> 261360 | LV26: 261360 | LW26: 261360 | LX26: 261360 | LY26: 261360 | LZ26: 261360 | MA26: 261360 | MB26: 261360 | MC26: 261360 | MD26: 261360 | ME26: 261360 | MF26: 261360 | MG26: 261360 | MH26: 261360 | MI26: 261360 | MJ26: 261360 | MK26: 261360 | ML26: 261360 | MM26: 261360 | MN26: 261360 | MO26: 261360 | MP26: 261360 | MQ26: 261360 | MR26: 261360 | MS26: 261360 | MT26: 261360 | MU26: 261360 | MV26: 261360 | MW26: 261360 | MX26: 261360 | MY26: 261360 | MZ26: 261360 | NA26: 261360 | NB26: 261360 | NC26: 261360 | ND26: 261360 | NE26: 261360 | NF26: 261360 | NG26: 261360 | NH26: 261360 | NI26: 261360 | NJ26: 261360 | NK26: 261360 | NL26: 261360 | NM26: 261360 | NN26: 261360 | NO26: 261360 | NP26: 261360 | NQ26: 261360 | NR26: 261360 | NS26: 261360 | NT26: 261360 | NU26: 261360 | NV26: 261360 | NW26: 261360 | NX26: 261360 | NY26: 261360 | NZ26: 261360 | OA26: 261360 | OB26: 261360 | OC26: 261360 | OD26: 261360 | OE26: 261360 | OF26: 261360 | OG26: =OG25*OG19 -> 261360 | OH26: 261360 | OI26: 261360 | OJ26: 261360 | OK26: 261360 | OL26: 261360 | OM26: 261360 | ON26: 261360 | OO26: 261360 | OP26: 261360 | OQ26: 261360 | OR26: 261360 | OS26: 261360 | OT26: 261360 | OU26: 261360 | OV26: 261360 | OW26: 261360 | OX26: 261360 | OY26: 261360 | OZ26: 261360 | PA26: 261360 | PB26: 261360 | PC26: 261360 | PD26: 261360 | PE26: 261360 | PF26: 261360 | PG26: 261360 | PH26: 261360 | PI26: 261360 | PJ26: 261360 | PK26: 261360 | PL26: 261360 | PM26: 261360 | PN26: 261360 | PO26: 261360 | PP26: 261360 | PQ26: 0 | PR26: 0 | PS26: 0 | PT26: 0 | PU26: 0 | PV26: 0 | PW26: 0 | PX26: 0 | PY26: 0 | PZ26: 0 | QA26: 0 | QB26: 0 | QC26: 0 | QD26: 0 | QE26: 0 | QF26: 0 | QG26: 0 | QH26: 0 | QI26: 0 | QJ26: 0 | QK26: 0 | QL26: 0 | QM26: 0 | QN26: 0 | QO26: 0 | QP26: 0 | QQ26: 0 | QR26: 0 | QS26: =QS25*QS19 -> 0 | QT26: 0 | QU26: 0 | QV26: 0 | QW26: 0 | QX26: 0 | QY26: 0 | QZ26: 0 | RA26: 0 | RB26: 0 | RC26: 0 | RD26: 0 | RE26: 0 | RF26: 0 | RG26: 0 | RH26: 0 | RI26: 0 | RJ26: 0 | RK26: 0 | RL26: 0 | RM26: 0 | RN26: 0 | RO26: 0 | RP26: 0 | RQ26: 0 | RR26: 0 | RS26: 0 | RT26: 0 | RU26: 0 | RV26: 0 | RW26: 0 | RX26: 0 | RY26: 0 | RZ26: 0 | SA26: 0 | SB26: 0 | SC26: 0 | SD26: 0 | SE26: 0 | SF26: 0 | SG26: 0 | SH26: 0 | SI26: 0 | SJ26: 0 | SK26: 0 | SL26: 0 | SM26: 0 | SN26: 0 | SO26: 0 | SP26: 0 | SQ26: 0
D28: Month Number | G28: Month | L28: =MONTH(L4) -> 1 | M28: 2 | N28: 3 | O28: 4 | P28: 5 | Q28: 6 | R28: 7 | S28: 8 | T28: 9 | U28: 10 | V28: 11 | W28: 12 | X28: 1 | Y28: 2 | Z28: 3 | AA28: 4 | AB28: 5 | AC28: 6 | AD28: 7 | AE28: 8 | AF28: 9 | AG28: 10 | AH28: 11 | AI28: 12 | AJ28: 1 | AK28: 2 | AL28: 3 | AM28: 4 | AN28: 5 | AO28: 6 | AP28: 7 | AQ28: 8 | AR28: 9 | AS28: 10 | AT28: 11 | AU28: 12 | AV28: 1 | AW28: 2 | AX28: 3 | AY28: 4 | AZ28: 5 | BA28: 6 | BB28: 7 | BC28: 8 | BD28: 9 | BE28: 10 | BF28: 11 | BG28: 12 | BH28: 1 | BI28: 2 | BJ28: 3 | BK28: 4 | BL28: 5 | BM28: 6 | BN28: 7 | BO28: 8 | BP28: 9 | BQ28: 10 | BR28: 11 | BS28: 12 | BT28: 1 | BU28: 2 | BV28: 3 | BW28: 4 | BX28: =MONTH(BX4) -> 5 | BY28: 6 | BZ28: 7 | CA28: 8 | CB28: 9 | CC28: 10 | CD28: 11 | CE28: 12 | CF28: 1 | CG28: 2 | CH28: 3 | CI28: 4 | CJ28: 5 | CK28: 6 | CL28: 7 | CM28: 8 | CN28: 9 | CO28: 10 | CP28: 11 | CQ28: 12 | CR28: 1 | CS28: 2 | CT28: 3 | CU28: 4 | CV28: 5 | CW28: 6 | CX28: 7 | CY28: 8 | CZ28: 9 | DA28: 10 | DB28: 11 | DC28: 12 | DD28: 1 | DE28: 2 | DF28: 3 | DG28: 4 | DH28: 5 | DI28: 6 | DJ28: 7 | DK28: 8 | DL28: 9 | DM28: 10 | DN28: 11 | DO28: 12 | DP28: 1 | DQ28: 2 | DR28: 3 | DS28: 4 | DT28: 5 | DU28: 6 | DV28: 7 | DW28: 8 | DX28: 9 | DY28: 10 | DZ28: 11 | EA28: 12 | EB28: 1 | EC28: 2 | ED28: 3 | EE28: 4 | EF28: 5 | EG28: 6 | EH28: 7 | EI28: 8 | EJ28: =MONTH(EJ4) -> 9 | EK28: 10 | EL28: 11 | EM28: 12 | EN28: 1 | EO28: 2 | EP28: 3 | EQ28: 4 | ER28: 5 | ES28: 6 | ET28: 7 | EU28: 8 | EV28: 9 | EW28: 10 | EX28: 11 | EY28: 12 | EZ28: 1 | FA28: 2 | FB28: 3 | FC28: 4 | FD28: 5 | FE28: 6 | FF28: 7 | FG28: 8 | FH28: 9 | FI28: 10 | FJ28: 11 | FK28: 12 | FL28: 1 | FM28: 2 | FN28: 3 | FO28: 4 | FP28: 5 | FQ28: 6 | FR28: 7 | FS28: 8 | FT28: 9 | FU28: 10 | FV28: 11 | FW28: 12 | FX28: 1 | FY28: 2 | FZ28: 3 | GA28: 4 | GB28: 5 | GC28: 6 | GD28: 7 | GE28: 8 | GF28: 9 | GG28: 10 | GH28: 11 | GI28: 12 | GJ28: 1 | GK28: 2 | GL28: 3 | GM28: 4 | GN28: 5 | GO28: 6 | GP28: 7 | GQ28: 8 | GR28: 9 | GS28: 10 | GT28: 11 | GU28: 12 | GV28: =MONTH(GV4) -> 1 | GW28: 2 | GX28: 3 | GY28: 4 | GZ28: 5 | HA28: 6 | HB28: 7 | HC28: 8 | HD28: 9 | HE28: 10 | HF28: 11 | HG28: 12 | HH28: 1 | HI28: 2 | HJ28: 3 | HK28: 4 | HL28: 5 | HM28: 6 | HN28: 7 | HO28: 8 | HP28: 9 | HQ28: 10 | HR28: 11 | HS28: 12 | HT28: 1 | HU28: 2 | HV28: 3 | HW28: 4 | HX28: 5 | HY28: 6 | HZ28: 7 | IA28: 8 | IB28: 9 | IC28: 10 | ID28: 11 | IE28: 12 | IF28: 1 | IG28: 2 | IH28: 3 | II28: 4 | IJ28: 5 | IK28: 6 | IL28: 7 | IM28: 8 | IN28: 9 | IO28: 10 | IP28: 11 | IQ28: 12 | IR28: 1 | IS28: 2 | IT28: 3 | IU28: 4 | IV28: 5 | IW28: 6 | IX28: 7 | IY28: 8 | IZ28: 9 | JA28: 10 | JB28: 11 | JC28: 12 | JD28: 1 | JE28: 2 | JF28: 3 | JG28: 4 | JH28: =MONTH(JH4) -> 5 | JI28: 6 | JJ28: 7 | JK28: 8 | JL28: 9 | JM28: 10 | JN28: 11 | JO28: 12 | JP28: 1 | JQ28: 2 | JR28: 3 | JS28: 4 | JT28: 5 | JU28: 6 | JV28: 7 | JW28: 8 | JX28: 9 | JY28: 10 | JZ28: 11 | KA28: 12 | KB28: 1 | KC28: 2 | KD28: 3 | KE28: 4 | KF28: 5 | KG28: 6 | KH28: 7 | KI28: 8 | KJ28: 9 | KK28: 10 | KL28: 11 | KM28: 12 | KN28: 1 | KO28: 2 | KP28: 3 | KQ28: 4 | KR28: 5 | KS28: 6 | KT28: 7 | KU28: 8 | KV28: 9 | KW28: 10 | KX28: 11 | KY28: 12 | KZ28: 1 | LA28: 2 | LB28: 3 | LC28: 4 | LD28: 5 | LE28: 6 | LF28: 7 | LG28: 8 | LH28: 9 | LI28: 10 | LJ28: 11 | LK28: 12 | LL28: 1 | LM28: 2 | LN28: 3 | LO28: 4 | LP28: 5 | LQ28: 6 | LR28: 7 | LS28: 8 | LT28: =MONTH(LT4) -> 9 | LU28: 10 | LV28: 11 | LW28: 12 | LX28: 1 | LY28: 2 | LZ28: 3 | MA28: 4 | MB28: 5 | MC28: 6 | MD28: 7 | ME28: 8 | MF28: 9 | MG28: 10 | MH28: 11 | MI28: 12 | MJ28: 1 | MK28: 2 | ML28: 3 | MM28: 4 | MN28: 5 | MO28: 6 | MP28: 7 | MQ28: 8 | MR28: 9 | MS28: 10 | MT28: 11 | MU28: 12 | MV28: 1 | MW28: 2 | MX28: 3 | MY28: 4 | MZ28: 5 | NA28: 6 | NB28: 7 | NC28: 8 | ND28: 9 | NE28: 10 | NF28: 11 | NG28: 12 | NH28: 1 | NI28: 2 | NJ28: 3 | NK28: 4 | NL28: 5 | NM28: 6 | NN28: 7 | NO28: 8 | NP28: 9 | NQ28: 10 | NR28: 11 | NS28: 12 | NT28: 1 | NU28: 2 | NV28: 3 | NW28: 4 | NX28: 5 | NY28: 6 | NZ28: 7 | OA28: 8 | OB28: 9 | OC28: 10 | OD28: 11 | OE28: 12 | OF28: =MONTH(OF4) -> 1 | OG28: 2 | OH28: 3 | OI28: 4 | OJ28: 5 | OK28: 6 | OL28: 7 | OM28: 8 | ON28: 9 | OO28: 10 | OP28: 11 | OQ28: 12 | OR28: 1 | OS28: 2 | OT28: 3 | OU28: 4 | OV28: 5 | OW28: 6 | OX28: 7 | OY28: 8 | OZ28: 9 | PA28: 10 | PB28: 11 | PC28: 12 | PD28: 1 | PE28: 2 | PF28: 3 | PG28: 4 | PH28: 5 | PI28: 6 | PJ28: 7 | PK28: 8 | PL28: 9 | PM28: 10 | PN28: 11 | PO28: 12 | PP28: 1 | PQ28: 2 | PR28: 3 | PS28: 4 | PT28: 5 | PU28: 6 | PV28: 7 | PW28: 8 | PX28: 9 | PY28: 10 | PZ28: 11 | QA28: 12 | QB28: 1 | QC28: 2 | QD28: 3 | QE28: 4 | QF28: 5 | QG28: 6 | QH28: 7 | QI28: 8 | QJ28: 9 | QK28: 10 | QL28: 11 | QM28: 12 | QN28: 1 | QO28: 2 | QP28: 3 | QQ28: 4 | QR28: =MONTH(QR4) -> 5 | QS28: 6 | QT28: 7 | QU28: 8 | QV28: 9 | QW28: 10 | QX28: 11 | QY28: 12 | QZ28: 1 | RA28: 2 | RB28: 3 | RC28: 4 | RD28: 5 | RE28: 6 | RF28: 7 | RG28: 8 | RH28: 9 | RI28: 10 | RJ28: 11 | RK28: 12 | RL28: 1 | RM28: 2 | RN28: 3 | RO28: 4 | RP28: 5 | RQ28: 6 | RR28: 7 | RS28: 8 | RT28: 9 | RU28: 10 | RV28: 11 | RW28: 12 | RX28: 1 | RY28: 2 | RZ28: 3 | SA28: 4 | SB28: 5 | SC28: 6 | SD28: 7 | SE28: 8 | SF28: 9 | SG28: 10 | SH28: 11 | SI28: 12 | SJ28: 1 | SK28: 2 | SL28: 3 | SM28: 4 | SN28: 5 | SO28: 6 | SP28: 7 | SQ28: 8
D29: Seasonality | G29: % | L29: =LOOKUP(L28,InputS!20:20,InputS!21:21) -> 0.08333333333 | M29: =LOOKUP(M28,InputS!20:20,InputS!21:21) -> 0.08333333333 | N29: =LOOKUP(N28,InputS!20:20,InputS!21:21) -> 0.08333333333 | O29: =LOOKUP(O28,InputS!20:20,InputS!21:21) -> 0.08333333333 | P29: =LOOKUP(P28,InputS!20:20,InputS!21:21) -> 0.08333333333 | Q29: =LOOKUP(Q28,InputS!20:20,InputS!21:21) -> 0.08333333333 | R29: =LOOKUP(R28,InputS!20:20,InputS!21:21) -> 0.08333333333 | S29: =LOOKUP(S28,InputS!20:20,InputS!21:21) -> 0.08333333333 | T29: =LOOKUP(T28,InputS!20:20,InputS!21:21) -> 0.08333333333 | U29: =LOOKUP(U28,InputS!20:20,InputS!21:21) -> 0.08333333333 | V29: =LOOKUP(V28,InputS!20:20,InputS!21:21) -> 0.08333333333 | W29: =LOOKUP(W28,InputS!20:20,InputS!21:21) -> 0.08333333333 | X29: =LOOKUP(X28,InputS!20:20,InputS!21:21) -> 0.08333333333 | Y29: =LOOKUP(Y28,InputS!20:20,InputS!21:21) -> 0.08333333333 | Z29: =LOOKUP(Z28,InputS!20:20,InputS!21:21) -> 0.08333333333 | AA29: =LOOKUP(AA28,InputS!20:20,InputS!21:21) -> 0.08333333333 | AB29: =LOOKUP(AB28,InputS!20:20,InputS!21:21) -> 0.08333333333 | AC29: =LOOKUP(AC28,InputS!20:20,InputS!21:21) -> 0.08333333333 | AD29: =LOOKUP(AD28,InputS!20:20,InputS!21:21) -> 0.08333333333 | AE29: =LOOKUP(AE28,InputS!20:20,InputS!21:21) -> 0.08333333333 | AF29: =LOOKUP(AF28,InputS!20:20,InputS!21:21) -> 0.08333333333 | AG29: =LOOKUP(AG28,InputS!20:20,InputS!21:21) -> 0.08333333333 | AH29: =LOOKUP(AH28,InputS!20:20,InputS!21:21) -> 0.08333333333 | AI29: =LOOKUP(AI28,InputS!20:20,InputS!21:21) -> 0.08333333333 | AJ29: =LOOKUP(AJ28,InputS!20:20,InputS!21:21) -> 0.08333333333 | AK29: =LOOKUP(AK28,InputS!20:20,InputS!21:21) -> 0.08333333333 | AL29: =LOOKUP(AL28,InputS!20:20,InputS!21:21) -> 0.08333333333 | AM29: =LOOKUP(AM28,InputS!20:20,InputS!21:21) -> 0.08333333333 | AN29: =LOOKUP(AN28,InputS!20:20,InputS!21:21) -> 0.08333333333 | AO29: =LOOKUP(AO28,InputS!20:20,InputS!21:21) -> 0.08333333333 | AP29: =LOOKUP(AP28,InputS!20:20,InputS!21:21) -> 0.08333333333 | AQ29: =LOOKUP(AQ28,InputS!20:20,InputS!21:21) -> 0.08333333333 | AR29: =LOOKUP(AR28,InputS!20:20,InputS!21:21) -> 0.08333333333 | AS29: =LOOKUP(AS28,InputS!20:20,InputS!21:21) -> 0.08333333333 | AT29: =LOOKUP(AT28,InputS!20:20,InputS!21:21) -> 0.08333333333 | AU29: =LOOKUP(AU28,InputS!20:20,InputS!21:21) -> 0.08333333333 | AV29: =LOOKUP(AV28,InputS!20:20,InputS!21:21) -> 0.08333333333 | AW29: =LOOKUP(AW28,InputS!20:20,InputS!21:21) -> 0.08333333333 | AX29: =LOOKUP(AX28,InputS!20:20,InputS!21:21) -> 0.08333333333 | AY29: =LOOKUP(AY28,InputS!20:20,InputS!21:21) -> 0.08333333333 | AZ29: =LOOKUP(AZ28,InputS!20:20,InputS!21:21) -> 0.08333333333 | BA29: =LOOKUP(BA28,InputS!20:20,InputS!21:21) -> 0.08333333333 | BB29: =LOOKUP(BB28,InputS!20:20,InputS!21:21) -> 0.08333333333 | BC29: =LOOKUP(BC28,InputS!20:20,InputS!21:21) -> 0.08333333333 | BD29: =LOOKUP(BD28,InputS!20:20,InputS!21:21) -> 0.08333333333 | BE29: =LOOKUP(BE28,InputS!20:20,InputS!21:21) -> 0.08333333333 | BF29: =LOOKUP(BF28,InputS!20:20,InputS!21:21) -> 0.08333333333 | BG29: =LOOKUP(BG28,InputS!20:20,InputS!21:21) -> 0.08333333333 | BH29: =LOOKUP(BH28,InputS!20:20,InputS!21:21) -> 0.08333333333 | BI29: =LOOKUP(BI28,InputS!20:20,InputS!21:21) -> 0.08333333333 | BJ29: =LOOKUP(BJ28,InputS!20:20,InputS!21:21) -> 0.08333333333 | BK29: =LOOKUP(BK28,InputS!20:20,InputS!21:21) -> 0.08333333333 | BL29: =LOOKUP(BL28,InputS!20:20,InputS!21:21) -> 0.08333333333 | BM29: =LOOKUP(BM28,InputS!20:20,InputS!21:21) -> 0.08333333333 | BN29: =LOOKUP(BN28,InputS!20:20,InputS!21:21) -> 0.08333333333 | BO29: =LOOKUP(BO28,InputS!20:20,InputS!21:21) -> 0.08333333333 | BP29: =LOOKUP(BP28,InputS!20:20,InputS!21:21) -> 0.08333333333 | BQ29: =LOOKUP(BQ28,InputS!20:20,InputS!21:21) -> 0.08333333333 | BR29: =LOOKUP(BR28,InputS!20:20,InputS!21:21) -> 0.08333333333 | BS29: =LOOKUP(BS28,InputS!20:20,InputS!21:21) -> 0.08333333333 | BT29: =LOOKUP(BT28,InputS!20:20,InputS!21:21) -> 0.08333333333 | BU29: =LOOKUP(BU28,InputS!20:20,InputS!21:21) -> 0.08333333333 | BV29: =LOOKUP(BV28,InputS!20:20,InputS!21:21) -> 0.08333333333 | BW29: =LOOKUP(BW28,InputS!20:20,InputS!21:21) -> 0.08333333333 | BX29: =LOOKUP(BX28,InputS!20:20,InputS!21:21) -> 0.08333333333 | BY29: =LOOKUP(BY28,InputS!20:20,InputS!21:21) -> 0.08333333333 | BZ29: =LOOKUP(BZ28,InputS!20:20,InputS!21:21) -> 0.08333333333 | CA29: =LOOKUP(CA28,InputS!20:20,InputS!21:21) -> 0.08333333333 | CB29: =LOOKUP(CB28,InputS!20:20,InputS!21:21) -> 0.08333333333 | CC29: =LOOKUP(CC28,InputS!20:20,InputS!21:21) -> 0.08333333333 | CD29: =LOOKUP(CD28,InputS!20:20,InputS!21:21) -> 0.08333333333 | CE29: =LOOKUP(CE28,InputS!20:20,InputS!21:21) -> 0.08333333333 | CF29: =LOOKUP(CF28,InputS!20:20,InputS!21:21) -> 0.08333333333 | CG29: =LOOKUP(CG28,InputS!20:20,InputS!21:21) -> 0.08333333333 | CH29: =LOOKUP(CH28,InputS!20:20,InputS!21:21) -> 0.08333333333 | CI29: =LOOKUP(CI28,InputS!20:20,InputS!21:21) -> 0.08333333333 | CJ29: =LOOKUP(CJ28,InputS!20:20,InputS!21:21) -> 0.08333333333 | CK29: =LOOKUP(CK28,InputS!20:20,InputS!21:21) -> 0.08333333333 | CL29: =LOOKUP(CL28,InputS!20:20,InputS!21:21) -> 0.08333333333 | CM29: =LOOKUP(CM28,InputS!20:20,InputS!21:21) -> 0.08333333333 | CN29: =LOOKUP(CN28,InputS!20:20,InputS!21:21) -> 0.08333333333 | CO29: =LOOKUP(CO28,InputS!20:20,InputS!21:21) -> 0.08333333333 | CP29: =LOOKUP(CP28,InputS!20:20,InputS!21:21) -> 0.08333333333 | CQ29: =LOOKUP(CQ28,InputS!20:20,InputS!21:21) -> 0.08333333333 | CR29: =LOOKUP(CR28,InputS!20:20,InputS!21:21) -> 0.08333333333 | CS29: =LOOKUP(CS28,InputS!20:20,InputS!21:21) -> 0.08333333333 | CT29: =LOOKUP(CT28,InputS!20:20,InputS!21:21) -> 0.08333333333 | CU29: =LOOKUP(CU28,InputS!20:20,InputS!21:21) -> 0.08333333333 | CV29: =LOOKUP(CV28,InputS!20:20,InputS!21:21) -> 0.08333333333 | CW29: =LOOKUP(CW28,InputS!20:20,InputS!21:21) -> 0.08333333333 | CX29: =LOOKUP(CX28,InputS!20:20,InputS!21:21) -> 0.08333333333 | CY29: =LOOKUP(CY28,InputS!20:20,InputS!21:21) -> 0.08333333333 | CZ29: =LOOKUP(CZ28,InputS!20:20,InputS!21:21) -> 0.08333333333 | DA29: =LOOKUP(DA28,InputS!20:20,InputS!21:21) -> 0.08333333333 | DB29: =LOOKUP(DB28,InputS!20:20,InputS!21:21) -> 0.08333333333 | DC29: =LOOKUP(DC28,InputS!20:20,InputS!21:21) -> 0.08333333333 | DD29: =LOOKUP(DD28,InputS!20:20,InputS!21:21) -> 0.08333333333 | DE29: =LOOKUP(DE28,InputS!20:20,InputS!21:21) -> 0.08333333333 | DF29: =LOOKUP(DF28,InputS!20:20,InputS!21:21) -> 0.08333333333 | DG29: =LOOKUP(DG28,InputS!20:20,InputS!21:21) -> 0.08333333333 | DH29: =LOOKUP(DH28,InputS!20:20,InputS!21:21) -> 0.08333333333 | DI29: =LOOKUP(DI28,InputS!20:20,InputS!21:21) -> 0.08333333333 | DJ29: =LOOKUP(DJ28,InputS!20:20,InputS!21:21) -> 0.08333333333 | DK29: =LOOKUP(DK28,InputS!20:20,InputS!21:21) -> 0.08333333333 | DL29: =LOOKUP(DL28,InputS!20:20,InputS!21:21) -> 0.08333333333 | DM29: =LOOKUP(DM28,InputS!20:20,InputS!21:21) -> 0.08333333333 | DN29: =LOOKUP(DN28,InputS!20:20,InputS!21:21) -> 0.08333333333 | DO29: =LOOKUP(DO28,InputS!20:20,InputS!21:21) -> 0.08333333333 | DP29: =LOOKUP(DP28,InputS!20:20,InputS!21:21) -> 0.08333333333 | DQ29: =LOOKUP(DQ28,InputS!20:20,InputS!21:21) -> 0.08333333333 | DR29: =LOOKUP(DR28,InputS!20:20,InputS!21:21) -> 0.08333333333 | DS29: =LOOKUP(DS28,InputS!20:20,InputS!21:21) -> 0.08333333333 | DT29: =LOOKUP(DT28,InputS!20:20,InputS!21:21) -> 0.08333333333 | DU29: =LOOKUP(DU28,InputS!20:20,InputS!21:21) -> 0.08333333333 | DV29: =LOOKUP(DV28,InputS!20:20,InputS!21:21) -> 0.08333333333 | DW29: =LOOKUP(DW28,InputS!20:20,InputS!21:21) -> 0.08333333333 | DX29: =LOOKUP(DX28,InputS!20:20,InputS!21:21) -> 0.08333333333 | DY29: =LOOKUP(DY28,InputS!20:20,InputS!21:21) -> 0.08333333333 | DZ29: =LOOKUP(DZ28,InputS!20:20,InputS!21:21) -> 0.08333333333 | EA29: =LOOKUP(EA28,InputS!20:20,InputS!21:21) -> 0.08333333333 | EB29: =LOOKUP(EB28,InputS!20:20,InputS!21:21) -> 0.08333333333 | EC29: =LOOKUP(EC28,InputS!20:20,InputS!21:21) -> 0.08333333333 | ED29: =LOOKUP(ED28,InputS!20:20,InputS!21:21) -> 0.08333333333 | EE29: =LOOKUP(EE28,InputS!20:20,InputS!21:21) -> 0.08333333333 | EF29: =LOOKUP(EF28,InputS!20:20,InputS!21:21) -> 0.08333333333 | EG29: =LOOKUP(EG28,InputS!20:20,InputS!21:21) -> 0.08333333333 | EH29: =LOOKUP(EH28,InputS!20:20,InputS!21:21) -> 0.08333333333 | EI29: =LOOKUP(EI28,InputS!20:20,InputS!21:21) -> 0.08333333333 | EJ29: =LOOKUP(EJ28,InputS!20:20,InputS!21:21) -> 0.08333333333 | EK29: =LOOKUP(EK28,InputS!20:20,InputS!21:21) -> 0.08333333333 | EL29: =LOOKUP(EL28,InputS!20:20,InputS!21:21) -> 0.08333333333 | EM29: =LOOKUP(EM28,InputS!20:20,InputS!21:21) -> 0.08333333333 | EN29: =LOOKUP(EN28,InputS!20:20,InputS!21:21) -> 0.08333333333 | EO29: =LOOKUP(EO28,InputS!20:20,InputS!21:21) -> 0.08333333333 | EP29: =LOOKUP(EP28,InputS!20:20,InputS!21:21) -> 0.08333333333 | EQ29: =LOOKUP(EQ28,InputS!20:20,InputS!21:21) -> 0.08333333333 | ER29: =LOOKUP(ER28,InputS!20:20,InputS!21:21) -> 0.08333333333 | ES29: =LOOKUP(ES28,InputS!20:20,InputS!21:21) -> 0.08333333333 | ET29: =LOOKUP(ET28,InputS!20:20,InputS!21:21) -> 0.08333333333 | EU29: =LOOKUP(EU28,InputS!20:20,InputS!21:21) -> 0.08333333333 | EV29: =LOOKUP(EV28,InputS!20:20,InputS!21:21) -> 0.08333333333 | EW29: =LOOKUP(EW28,InputS!20:20,InputS!21:21) -> 0.08333333333 | EX29: =LOOKUP(EX28,InputS!20:20,InputS!21:21) -> 0.08333333333 | EY29: =LOOKUP(EY28,InputS!20:20,InputS!21:21) -> 0.08333333333 | EZ29: =LOOKUP(EZ28,InputS!20:20,InputS!21:21) -> 0.08333333333 | FA29: =LOOKUP(FA28,InputS!20:20,InputS!21:21) -> 0.08333333333 | FB29: =LOOKUP(FB28,InputS!20:20,InputS!21:21) -> 0.08333333333 | FC29: =LOOKUP(FC28,InputS!20:20,InputS!21:21) -> 0.08333333333 | FD29: =LOOKUP(FD28,InputS!20:20,InputS!21:21) -> 0.08333333333 | FE29: =LOOKUP(FE28,InputS!20:20,InputS!21:21) -> 0.08333333333 | FF29: =LOOKUP(FF28,InputS!20:20,InputS!21:21) -> 0.08333333333 | FG29: =LOOKUP(FG28,InputS!20:20,InputS!21:21) -> 0.08333333333 | FH29: =LOOKUP(FH28,InputS!20:20,InputS!21:21) -> 0.08333333333 | FI29: =LOOKUP(FI28,InputS!20:20,InputS!21:21) -> 0.08333333333 | FJ29: =LOOKUP(FJ28,InputS!20:20,InputS!21:21) -> 0.08333333333 | FK29: =LOOKUP(FK28,InputS!20:20,InputS!21:21) -> 0.08333333333 | FL29: =LOOKUP(FL28,InputS!20:20,InputS!21:21) -> 0.08333333333 | FM29: =LOOKUP(FM28,InputS!20:20,InputS!21:21) -> 0.08333333333 | FN29: =LOOKUP(FN28,InputS!20:20,InputS!21:21) -> 0.08333333333 | FO29: =LOOKUP(FO28,InputS!20:20,InputS!21:21) -> 0.08333333333 | FP29: =LOOKUP(FP28,InputS!20:20,InputS!21:21) -> 0.08333333333 | FQ29: =LOOKUP(FQ28,InputS!20:20,InputS!21:21) -> 0.08333333333 | FR29: =LOOKUP(FR28,InputS!20:20,InputS!21:21) -> 0.08333333333 | FS29: =LOOKUP(FS28,InputS!20:20,InputS!21:21) -> 0.08333333333 | FT29: =LOOKUP(FT28,InputS!20:20,InputS!21:21) -> 0.08333333333 | FU29: =LOOKUP(FU28,InputS!20:20,InputS!21:21) -> 0.08333333333 | FV29: =LOOKUP(FV28,InputS!20:20,InputS!21:21) -> 0.08333333333 | FW29: =LOOKUP(FW28,InputS!20:20,InputS!21:21) -> 0.08333333333 | FX29: =LOOKUP(FX28,InputS!20:20,InputS!21:21) -> 0.08333333333 | FY29: =LOOKUP(FY28,InputS!20:20,InputS!21:21) -> 0.08333333333 | FZ29: =LOOKUP(FZ28,InputS!20:20,InputS!21:21) -> 0.08333333333 | GA29: =LOOKUP(GA28,InputS!20:20,InputS!21:21) -> 0.08333333333 | GB29: =LOOKUP(GB28,InputS!20:20,InputS!21:21) -> 0.08333333333 | GC29: =LOOKUP(GC28,InputS!20:20,InputS!21:21) -> 0.08333333333 | GD29: =LOOKUP(GD28,InputS!20:20,InputS!21:21) -> 0.08333333333 | GE29: =LOOKUP(GE28,InputS!20:20,InputS!21:21) -> 0.08333333333 | GF29: =LOOKUP(GF28,InputS!20:20,InputS!21:21) -> 0.08333333333 | GG29: =LOOKUP(GG28,InputS!20:20,InputS!21:21) -> 0.08333333333 | GH29: =LOOKUP(GH28,InputS!20:20,InputS!21:21) -> 0.08333333333 | GI29: =LOOKUP(GI28,InputS!20:20,InputS!21:21) -> 0.08333333333 | GJ29: =LOOKUP(GJ28,InputS!20:20,InputS!21:21) -> 0.08333333333 | GK29: =LOOKUP(GK28,InputS!20:20,InputS!21:21) -> 0.08333333333 | GL29: =LOOKUP(GL28,InputS!20:20,InputS!21:21) -> 0.08333333333 | GM29: =LOOKUP(GM28,InputS!20:20,InputS!21:21) -> 0.08333333333 | GN29: =LOOKUP(GN28,InputS!20:20,InputS!21:21) -> 0.08333333333 | GO29: =LOOKUP(GO28,InputS!20:20,InputS!21:21) -> 0.08333333333 | GP29: =LOOKUP(GP28,InputS!20:20,InputS!21:21) -> 0.08333333333 | GQ29: =LOOKUP(GQ28,InputS!20:20,InputS!21:21) -> 0.08333333333 | GR29: =LOOKUP(GR28,InputS!20:20,InputS!21:21) -> 0.08333333333 | GS29: =LOOKUP(GS28,InputS!20:20,InputS!21:21) -> 0.08333333333 | GT29: =LOOKUP(GT28,InputS!20:20,InputS!21:21) -> 0.08333333333 | GU29: =LOOKUP(GU28,InputS!20:20,InputS!21:21) -> 0.08333333333 | GV29: =LOOKUP(GV28,InputS!20:20,InputS!21:21) -> 0.08333333333 | GW29: =LOOKUP(GW28,InputS!20:20,InputS!21:21) -> 0.08333333333 | GX29: =LOOKUP(GX28,InputS!20:20,InputS!21:21) -> 0.08333333333 | GY29: =LOOKUP(GY28,InputS!20:20,InputS!21:21) -> 0.08333333333 | GZ29: =LOOKUP(GZ28,InputS!20:20,InputS!21:21) -> 0.08333333333 | HA29: =LOOKUP(HA28,InputS!20:20,InputS!21:21) -> 0.08333333333 | HB29: =LOOKUP(HB28,InputS!20:20,InputS!21:21) -> 0.08333333333 | HC29: =LOOKUP(HC28,InputS!20:20,InputS!21:21) -> 0.08333333333 | HD29: =LOOKUP(HD28,InputS!20:20,InputS!21:21) -> 0.08333333333 | HE29: =LOOKUP(HE28,InputS!20:20,InputS!21:21) -> 0.08333333333 | HF29: =LOOKUP(HF28,InputS!20:20,InputS!21:21) -> 0.08333333333 | HG29: =LOOKUP(HG28,InputS!20:20,InputS!21:21) -> 0.08333333333 | HH29: =LOOKUP(HH28,InputS!20:20,InputS!21:21) -> 0.08333333333 | HI29: =LOOKUP(HI28,InputS!20:20,InputS!21:21) -> 0.08333333333 | HJ29: =LOOKUP(HJ28,InputS!20:20,InputS!21:21) -> 0.08333333333 | HK29: =LOOKUP(HK28,InputS!20:20,InputS!21:21) -> 0.08333333333 | HL29: =LOOKUP(HL28,InputS!20:20,InputS!21:21) -> 0.08333333333 | HM29: =LOOKUP(HM28,InputS!20:20,InputS!21:21) -> 0.08333333333 | HN29: =LOOKUP(HN28,InputS!20:20,InputS!21:21) -> 0.08333333333 | HO29: =LOOKUP(HO28,InputS!20:20,InputS!21:21) -> 0.08333333333 | HP29: =LOOKUP(HP28,InputS!20:20,InputS!21:21) -> 0.08333333333 | HQ29: =LOOKUP(HQ28,InputS!20:20,InputS!21:21) -> 0.08333333333 | HR29: =LOOKUP(HR28,InputS!20:20,InputS!21:21) -> 0.08333333333 | HS29: =LOOKUP(HS28,InputS!20:20,InputS!21:21) -> 0.08333333333 | HT29: =LOOKUP(HT28,InputS!20:20,InputS!21:21) -> 0.08333333333 | HU29: =LOOKUP(HU28,InputS!20:20,InputS!21:21) -> 0.08333333333 | HV29: =LOOKUP(HV28,InputS!20:20,InputS!21:21) -> 0.08333333333 | HW29: =LOOKUP(HW28,InputS!20:20,InputS!21:21) -> 0.08333333333 | HX29: =LOOKUP(HX28,InputS!20:20,InputS!21:21) -> 0.08333333333 | HY29: =LOOKUP(HY28,InputS!20:20,InputS!21:21) -> 0.08333333333 | HZ29: =LOOKUP(HZ28,InputS!20:20,InputS!21:21) -> 0.08333333333 | IA29: =LOOKUP(IA28,InputS!20:20,InputS!21:21) -> 0.08333333333 | IB29: =LOOKUP(IB28,InputS!20:20,InputS!21:21) -> 0.08333333333 | IC29: =LOOKUP(IC28,InputS!20:20,InputS!21:21) -> 0.08333333333 | ID29: =LOOKUP(ID28,InputS!20:20,InputS!21:21) -> 0.08333333333 | IE29: =LOOKUP(IE28,InputS!20:20,InputS!21:21) -> 0.08333333333 | IF29: =LOOKUP(IF28,InputS!20:20,InputS!21:21) -> 0.08333333333 | IG29: =LOOKUP(IG28,InputS!20:20,InputS!21:21) -> 0.08333333333 | IH29: =LOOKUP(IH28,InputS!20:20,InputS!21:21) -> 0.08333333333 | II29: =LOOKUP(II28,InputS!20:20,InputS!21:21) -> 0.08333333333 | IJ29: =LOOKUP(IJ28,InputS!20:20,InputS!21:21) -> 0.08333333333 | IK29: =LOOKUP(IK28,InputS!20:20,InputS!21:21) -> 0.08333333333 | IL29: =LOOKUP(IL28,InputS!20:20,InputS!21:21) -> 0.08333333333 | IM29: =LOOKUP(IM28,InputS!20:20,InputS!21:21) -> 0.08333333333 | IN29: =LOOKUP(IN28,InputS!20:20,InputS!21:21) -> 0.08333333333 | IO29: =LOOKUP(IO28,InputS!20:20,InputS!21:21) -> 0.08333333333 | IP29: =LOOKUP(IP28,InputS!20:20,InputS!21:21) -> 0.08333333333 | IQ29: =LOOKUP(IQ28,InputS!20:20,InputS!21:21) -> 0.08333333333 | IR29: =LOOKUP(IR28,InputS!20:20,InputS!21:21) -> 0.08333333333 | IS29: =LOOKUP(IS28,InputS!20:20,InputS!21:21) -> 0.08333333333 | IT29: =LOOKUP(IT28,InputS!20:20,InputS!21:21) -> 0.08333333333 | IU29: =LOOKUP(IU28,InputS!20:20,InputS!21:21) -> 0.08333333333 | IV29: =LOOKUP(IV28,InputS!20:20,InputS!21:21) -> 0.08333333333 | IW29: =LOOKUP(IW28,InputS!20:20,InputS!21:21) -> 0.08333333333 | IX29: =LOOKUP(IX28,InputS!20:20,InputS!21:21) -> 0.08333333333 | IY29: =LOOKUP(IY28,InputS!20:20,InputS!21:21) -> 0.08333333333 | IZ29: =LOOKUP(IZ28,InputS!20:20,InputS!21:21) -> 0.08333333333 | JA29: =LOOKUP(JA28,InputS!20:20,InputS!21:21) -> 0.08333333333 | JB29: =LOOKUP(JB28,InputS!20:20,InputS!21:21) -> 0.08333333333 | JC29: =LOOKUP(JC28,InputS!20:20,InputS!21:21) -> 0.08333333333 | JD29: =LOOKUP(JD28,InputS!20:20,InputS!21:21) -> 0.08333333333 | JE29: =LOOKUP(JE28,InputS!20:20,InputS!21:21) -> 0.08333333333 | JF29: =LOOKUP(JF28,InputS!20:20,InputS!21:21) -> 0.08333333333 | JG29: =LOOKUP(JG28,InputS!20:20,InputS!21:21) -> 0.08333333333 | JH29: =LOOKUP(JH28,InputS!20:20,InputS!21:21) -> 0.08333333333 | JI29: =LOOKUP(JI28,InputS!20:20,InputS!21:21) -> 0.08333333333 | JJ29: =LOOKUP(JJ28,InputS!20:20,InputS!21:21) -> 0.08333333333 | JK29: =LOOKUP(JK28,InputS!20:20,InputS!21:21) -> 0.08333333333 | JL29: =LOOKUP(JL28,InputS!20:20,InputS!21:21) -> 0.08333333333 | JM29: =LOOKUP(JM28,InputS!20:20,InputS!21:21) -> 0.08333333333 | JN29: =LOOKUP(JN28,InputS!20:20,InputS!21:21) -> 0.08333333333 | JO29: =LOOKUP(JO28,InputS!20:20,InputS!21:21) -> 0.08333333333 | JP29: =LOOKUP(JP28,InputS!20:20,InputS!21:21) -> 0.08333333333 | JQ29: =LOOKUP(JQ28,InputS!20:20,InputS!21:21) -> 0.08333333333 | JR29: =LOOKUP(JR28,InputS!20:20,InputS!21:21) -> 0.08333333333 | JS29: =LOOKUP(JS28,InputS!20:20,InputS!21:21) -> 0.08333333333 | JT29: =LOOKUP(JT28,InputS!20:20,InputS!21:21) -> 0.08333333333 | JU29: =LOOKUP(JU28,InputS!20:20,InputS!21:21) -> 0.08333333333 | JV29: =LOOKUP(JV28,InputS!20:20,InputS!21:21) -> 0.08333333333 | JW29: =LOOKUP(JW28,InputS!20:20,InputS!21:21) -> 0.08333333333 | JX29: =LOOKUP(JX28,InputS!20:20,InputS!21:21) -> 0.08333333333 | JY29: =LOOKUP(JY28,InputS!20:20,InputS!21:21) -> 0.08333333333 | JZ29: =LOOKUP(JZ28,InputS!20:20,InputS!21:21) -> 0.08333333333 | KA29: =LOOKUP(KA28,InputS!20:20,InputS!21:21) -> 0.08333333333 | KB29: =LOOKUP(KB28,InputS!20:20,InputS!21:21) -> 0.08333333333 | KC29: =LOOKUP(KC28,InputS!20:20,InputS!21:21) -> 0.08333333333 | KD29: =LOOKUP(KD28,InputS!20:20,InputS!21:21) -> 0.08333333333 | KE29: =LOOKUP(KE28,InputS!20:20,InputS!21:21) -> 0.08333333333 | KF29: =LOOKUP(KF28,InputS!20:20,InputS!21:21) -> 0.08333333333 | KG29: =LOOKUP(KG28,InputS!20:20,InputS!21:21) -> 0.08333333333 | KH29: =LOOKUP(KH28,InputS!20:20,InputS!21:21) -> 0.08333333333 | KI29: =LOOKUP(KI28,InputS!20:20,InputS!21:21) -> 0.08333333333 | KJ29: =LOOKUP(KJ28,InputS!20:20,InputS!21:21) -> 0.08333333333 | KK29: =LOOKUP(KK28,InputS!20:20,InputS!21:21) -> 0.08333333333 | KL29: =LOOKUP(KL28,InputS!20:20,InputS!21:21) -> 0.08333333333 | KM29: =LOOKUP(KM28,InputS!20:20,InputS!21:21) -> 0.08333333333 | KN29: =LOOKUP(KN28,InputS!20:20,InputS!21:21) -> 0.08333333333 | KO29: =LOOKUP(KO28,InputS!20:20,InputS!21:21) -> 0.08333333333 | KP29: =LOOKUP(KP28,InputS!20:20,InputS!21:21) -> 0.08333333333 | KQ29: =LOOKUP(KQ28,InputS!20:20,InputS!21:21) -> 0.08333333333 | KR29: =LOOKUP(KR28,InputS!20:20,InputS!21:21) -> 0.08333333333 | KS29: =LOOKUP(KS28,InputS!20:20,InputS!21:21) -> 0.08333333333 | KT29: =LOOKUP(KT28,InputS!20:20,InputS!21:21) -> 0.08333333333 | KU29: =LOOKUP(KU28,InputS!20:20,InputS!21:21) -> 0.08333333333 | KV29: =LOOKUP(KV28,InputS!20:20,InputS!21:21) -> 0.08333333333 | KW29: =LOOKUP(KW28,InputS!20:20,InputS!21:21) -> 0.08333333333 | KX29: =LOOKUP(KX28,InputS!20:20,InputS!21:21) -> 0.08333333333 | KY29: =LOOKUP(KY28,InputS!20:20,InputS!21:21) -> 0.08333333333 | KZ29: =LOOKUP(KZ28,InputS!20:20,InputS!21:21) -> 0.08333333333 | LA29: =LOOKUP(LA28,InputS!20:20,InputS!21:21) -> 0.08333333333 | LB29: =LOOKUP(LB28,InputS!20:20,InputS!21:21) -> 0.08333333333 | LC29: =LOOKUP(LC28,InputS!20:20,InputS!21:21) -> 0.08333333333 | LD29: =LOOKUP(LD28,InputS!20:20,InputS!21:21) -> 0.08333333333 | LE29: =LOOKUP(LE28,InputS!20:20,InputS!21:21) -> 0.08333333333 | LF29: =LOOKUP(LF28,InputS!20:20,InputS!21:21) -> 0.08333333333 | LG29: =LOOKUP(LG28,InputS!20:20,InputS!21:21) -> 0.08333333333 | LH29: =LOOKUP(LH28,InputS!20:20,InputS!21:21) -> 0.08333333333 | LI29: =LOOKUP(LI28,InputS!20:20,InputS!21:21) -> 0.08333333333 | LJ29: =LOOKUP(LJ28,InputS!20:20,InputS!21:21) -> 0.08333333333 | LK29: =LOOKUP(LK28,InputS!20:20,InputS!21:21) -> 0.08333333333 | LL29: =LOOKUP(LL28,InputS!20:20,InputS!21:21) -> 0.08333333333 | LM29: =LOOKUP(LM28,InputS!20:20,InputS!21:21) -> 0.08333333333 | LN29: =LOOKUP(LN28,InputS!20:20,InputS!21:21) -> 0.08333333333 | LO29: =LOOKUP(LO28,InputS!20:20,InputS!21:21) -> 0.08333333333 | LP29: =LOOKUP(LP28,InputS!20:20,InputS!21:21) -> 0.08333333333 | LQ29: =LOOKUP(LQ28,InputS!20:20,InputS!21:21) -> 0.08333333333 | LR29: =LOOKUP(LR28,InputS!20:20,InputS!21:21) -> 0.08333333333 | LS29: =LOOKUP(LS28,InputS!20:20,InputS!21:21) -> 0.08333333333 | LT29: =LOOKUP(LT28,InputS!20:20,InputS!21:21) -> 0.08333333333 | LU29: =LOOKUP(LU28,InputS!20:20,InputS!21:21) -> 0.08333333333 | LV29: =LOOKUP(LV28,InputS!20:20,InputS!21:21) -> 0.08333333333 | LW29: =LOOKUP(LW28,InputS!20:20,InputS!21:21) -> 0.08333333333 | LX29: =LOOKUP(LX28,InputS!20:20,InputS!21:21) -> 0.08333333333 | LY29: =LOOKUP(LY28,InputS!20:20,InputS!21:21) -> 0.08333333333 | LZ29: =LOOKUP(LZ28,InputS!20:20,InputS!21:21) -> 0.08333333333 | MA29: =LOOKUP(MA28,InputS!20:20,InputS!21:21) -> 0.08333333333 | MB29: =LOOKUP(MB28,InputS!20:20,InputS!21:21) -> 0.08333333333 | MC29: =LOOKUP(MC28,InputS!20:20,InputS!21:21) -> 0.08333333333 | MD29: =LOOKUP(MD28,InputS!20:20,InputS!21:21) -> 0.08333333333 | ME29: =LOOKUP(ME28,InputS!20:20,InputS!21:21) -> 0.08333333333 | MF29: =LOOKUP(MF28,InputS!20:20,InputS!21:21) -> 0.08333333333 | MG29: =LOOKUP(MG28,InputS!20:20,InputS!21:21) -> 0.08333333333 | MH29: =LOOKUP(MH28,InputS!20:20,InputS!21:21) -> 0.08333333333 | MI29: =LOOKUP(MI28,InputS!20:20,InputS!21:21) -> 0.08333333333 | MJ29: =LOOKUP(MJ28,InputS!20:20,InputS!21:21) -> 0.08333333333 | MK29: =LOOKUP(MK28,InputS!20:20,InputS!21:21) -> 0.08333333333 | ML29: =LOOKUP(ML28,InputS!20:20,InputS!21:21) -> 0.08333333333 | MM29: =LOOKUP(MM28,InputS!20:20,InputS!21:21) -> 0.08333333333 | MN29: =LOOKUP(MN28,InputS!20:20,InputS!21:21) -> 0.08333333333 | MO29: =LOOKUP(MO28,InputS!20:20,InputS!21:21) -> 0.08333333333 | MP29: =LOOKUP(MP28,InputS!20:20,InputS!21:21) -> 0.08333333333 | MQ29: =LOOKUP(MQ28,InputS!20:20,InputS!21:21) -> 0.08333333333 | MR29: =LOOKUP(MR28,InputS!20:20,InputS!21:21) -> 0.08333333333 | MS29: =LOOKUP(MS28,InputS!20:20,InputS!21:21) -> 0.08333333333 | MT29: =LOOKUP(MT28,InputS!20:20,InputS!21:21) -> 0.08333333333 | MU29: =LOOKUP(MU28,InputS!20:20,InputS!21:21) -> 0.08333333333 | MV29: =LOOKUP(MV28,InputS!20:20,InputS!21:21) -> 0.08333333333 | MW29: =LOOKUP(MW28,InputS!20:20,InputS!21:21) -> 0.08333333333 | MX29: =LOOKUP(MX28,InputS!20:20,InputS!21:21) -> 0.08333333333 | MY29: =LOOKUP(MY28,InputS!20:20,InputS!21:21) -> 0.08333333333 | MZ29: =LOOKUP(MZ28,InputS!20:20,InputS!21:21) -> 0.08333333333 | NA29: =LOOKUP(NA28,InputS!20:20,InputS!21:21) -> 0.08333333333 | NB29: =LOOKUP(NB28,InputS!20:20,InputS!21:21) -> 0.08333333333 | NC29: =LOOKUP(NC28,InputS!20:20,InputS!21:21) -> 0.08333333333 | ND29: =LOOKUP(ND28,InputS!20:20,InputS!21:21) -> 0.08333333333 | NE29: =LOOKUP(NE28,InputS!20:20,InputS!21:21) -> 0.08333333333 | NF29: =LOOKUP(NF28,InputS!20:20,InputS!21:21) -> 0.08333333333 | NG29: =LOOKUP(NG28,InputS!20:20,InputS!21:21) -> 0.08333333333 | NH29: =LOOKUP(NH28,InputS!20:20,InputS!21:21) -> 0.08333333333 | NI29: =LOOKUP(NI28,InputS!20:20,InputS!21:21) -> 0.08333333333 | NJ29: =LOOKUP(NJ28,InputS!20:20,InputS!21:21) -> 0.08333333333 | NK29: =LOOKUP(NK28,InputS!20:20,InputS!21:21) -> 0.08333333333 | NL29: =LOOKUP(NL28,InputS!20:20,InputS!21:21) -> 0.08333333333 | NM29: =LOOKUP(NM28,InputS!20:20,InputS!21:21) -> 0.08333333333 | NN29: =LOOKUP(NN28,InputS!20:20,InputS!21:21) -> 0.08333333333 | NO29: =LOOKUP(NO28,InputS!20:20,InputS!21:21) -> 0.08333333333 | NP29: =LOOKUP(NP28,InputS!20:20,InputS!21:21) -> 0.08333333333 | NQ29: =LOOKUP(NQ28,InputS!20:20,InputS!21:21) -> 0.08333333333 | NR29: =LOOKUP(NR28,InputS!20:20,InputS!21:21) -> 0.08333333333 | NS29: =LOOKUP(NS28,InputS!20:20,InputS!21:21) -> 0.08333333333 | NT29: =LOOKUP(NT28,InputS!20:20,InputS!21:21) -> 0.08333333333 | NU29: =LOOKUP(NU28,InputS!20:20,InputS!21:21) -> 0.08333333333 | NV29: =LOOKUP(NV28,InputS!20:20,InputS!21:21) -> 0.08333333333 | NW29: =LOOKUP(NW28,InputS!20:20,InputS!21:21) -> 0.08333333333 | NX29: =LOOKUP(NX28,InputS!20:20,InputS!21:21) -> 0.08333333333 | NY29: =LOOKUP(NY28,InputS!20:20,InputS!21:21) -> 0.08333333333 | NZ29: =LOOKUP(NZ28,InputS!20:20,InputS!21:21) -> 0.08333333333 | OA29: =LOOKUP(OA28,InputS!20:20,InputS!21:21) -> 0.08333333333 | OB29: =LOOKUP(OB28,InputS!20:20,InputS!21:21) -> 0.08333333333 | OC29: =LOOKUP(OC28,InputS!20:20,InputS!21:21) -> 0.08333333333 | OD29: =LOOKUP(OD28,InputS!20:20,InputS!21:21) -> 0.08333333333 | OE29: =LOOKUP(OE28,InputS!20:20,InputS!21:21) -> 0.08333333333 | OF29: =LOOKUP(OF28,InputS!20:20,InputS!21:21) -> 0.08333333333 | OG29: =LOOKUP(OG28,InputS!20:20,InputS!21:21) -> 0.08333333333 | OH29: =LOOKUP(OH28,InputS!20:20,InputS!21:21) -> 0.08333333333 | OI29: =LOOKUP(OI28,InputS!20:20,InputS!21:21) -> 0.08333333333 | OJ29: =LOOKUP(OJ28,InputS!20:20,InputS!21:21) -> 0.08333333333 | OK29: =LOOKUP(OK28,InputS!20:20,InputS!21:21) -> 0.08333333333 | OL29: =LOOKUP(OL28,InputS!20:20,InputS!21:21) -> 0.08333333333 | OM29: =LOOKUP(OM28,InputS!20:20,InputS!21:21) -> 0.08333333333 | ON29: =LOOKUP(ON28,InputS!20:20,InputS!21:21) -> 0.08333333333 | OO29: =LOOKUP(OO28,InputS!20:20,InputS!21:21) -> 0.08333333333 | OP29: =LOOKUP(OP28,InputS!20:20,InputS!21:21) -> 0.08333333333 | OQ29: =LOOKUP(OQ28,InputS!20:20,InputS!21:21) -> 0.08333333333 | OR29: =LOOKUP(OR28,InputS!20:20,InputS!21:21) -> 0.08333333333 | OS29: =LOOKUP(OS28,InputS!20:20,InputS!21:21) -> 0.08333333333 | OT29: =LOOKUP(OT28,InputS!20:20,InputS!21:21) -> 0.08333333333 | OU29: =LOOKUP(OU28,InputS!20:20,InputS!21:21) -> 0.08333333333 | OV29: =LOOKUP(OV28,InputS!20:20,InputS!21:21) -> 0.08333333333 | OW29: =LOOKUP(OW28,InputS!20:20,InputS!21:21) -> 0.08333333333 | OX29: =LOOKUP(OX28,InputS!20:20,InputS!21:21) -> 0.08333333333 | OY29: =LOOKUP(OY28,InputS!20:20,InputS!21:21) -> 0.08333333333 | OZ29: =LOOKUP(OZ28,InputS!20:20,InputS!21:21) -> 0.08333333333 | PA29: =LOOKUP(PA28,InputS!20:20,InputS!21:21) -> 0.08333333333 | PB29: =LOOKUP(PB28,InputS!20:20,InputS!21:21) -> 0.08333333333 | PC29: =LOOKUP(PC28,InputS!20:20,InputS!21:21) -> 0.08333333333 | PD29: =LOOKUP(PD28,InputS!20:20,InputS!21:21) -> 0.08333333333 | PE29: =LOOKUP(PE28,InputS!20:20,InputS!21:21) -> 0.08333333333 | PF29: =LOOKUP(PF28,InputS!20:20,InputS!21:21) -> 0.08333333333 | PG29: =LOOKUP(PG28,InputS!20:20,InputS!21:21) -> 0.08333333333 | PH29: =LOOKUP(PH28,InputS!20:20,InputS!21:21) -> 0.08333333333 | PI29: =LOOKUP(PI28,InputS!20:20,InputS!21:21) -> 0.08333333333 | PJ29: =LOOKUP(PJ28,InputS!20:20,InputS!21:21) -> 0.08333333333 | PK29: =LOOKUP(PK28,InputS!20:20,InputS!21:21) -> 0.08333333333 | PL29: =LOOKUP(PL28,InputS!20:20,InputS!21:21) -> 0.08333333333 | PM29: =LOOKUP(PM28,InputS!20:20,InputS!21:21) -> 0.08333333333 | PN29: =LOOKUP(PN28,InputS!20:20,InputS!21:21) -> 0.08333333333 | PO29: =LOOKUP(PO28,InputS!20:20,InputS!21:21) -> 0.08333333333 | PP29: =LOOKUP(PP28,InputS!20:20,InputS!21:21) -> 0.08333333333 | PQ29: =LOOKUP(PQ28,InputS!20:20,InputS!21:21) -> 0.08333333333 | PR29: =LOOKUP(PR28,InputS!20:20,InputS!21:21) -> 0.08333333333 | PS29: =LOOKUP(PS28,InputS!20:20,InputS!21:21) -> 0.08333333333 | PT29: =LOOKUP(PT28,InputS!20:20,InputS!21:21) -> 0.08333333333 | PU29: =LOOKUP(PU28,InputS!20:20,InputS!21:21) -> 0.08333333333 | PV29: =LOOKUP(PV28,InputS!20:20,InputS!21:21) -> 0.08333333333 | PW29: =LOOKUP(PW28,InputS!20:20,InputS!21:21) -> 0.08333333333 | PX29: =LOOKUP(PX28,InputS!20:20,InputS!21:21) -> 0.08333333333 | PY29: =LOOKUP(PY28,InputS!20:20,InputS!21:21) -> 0.08333333333 | PZ29: =LOOKUP(PZ28,InputS!20:20,InputS!21:21) -> 0.08333333333 | QA29: =LOOKUP(QA28,InputS!20:20,InputS!21:21) -> 0.08333333333 | QB29: =LOOKUP(QB28,InputS!20:20,InputS!21:21) -> 0.08333333333 | QC29: =LOOKUP(QC28,InputS!20:20,InputS!21:21) -> 0.08333333333 | QD29: =LOOKUP(QD28,InputS!20:20,InputS!21:21) -> 0.08333333333 | QE29: =LOOKUP(QE28,InputS!20:20,InputS!21:21) -> 0.08333333333 | QF29: =LOOKUP(QF28,InputS!20:20,InputS!21:21) -> 0.08333333333 | QG29: =LOOKUP(QG28,InputS!20:20,InputS!21:21) -> 0.08333333333 | QH29: =LOOKUP(QH28,InputS!20:20,InputS!21:21) -> 0.08333333333 | QI29: =LOOKUP(QI28,InputS!20:20,InputS!21:21) -> 0.08333333333 | QJ29: =LOOKUP(QJ28,InputS!20:20,InputS!21:21) -> 0.08333333333 | QK29: =LOOKUP(QK28,InputS!20:20,InputS!21:21) -> 0.08333333333 | QL29: =LOOKUP(QL28,InputS!20:20,InputS!21:21) -> 0.08333333333 | QM29: =LOOKUP(QM28,InputS!20:20,InputS!21:21) -> 0.08333333333 | QN29: =LOOKUP(QN28,InputS!20:20,InputS!21:21) -> 0.08333333333 | QO29: =LOOKUP(QO28,InputS!20:20,InputS!21:21) -> 0.08333333333 | QP29: =LOOKUP(QP28,InputS!20:20,InputS!21:21) -> 0.08333333333 | QQ29: =LOOKUP(QQ28,InputS!20:20,InputS!21:21) -> 0.08333333333 | QR29: =LOOKUP(QR28,InputS!20:20,InputS!21:21) -> 0.08333333333 | QS29: =LOOKUP(QS28,InputS!20:20,InputS!21:21) -> 0.08333333333 | QT29: =LOOKUP(QT28,InputS!20:20,InputS!21:21) -> 0.08333333333 | QU29: =LOOKUP(QU28,InputS!20:20,InputS!21:21) -> 0.08333333333 | QV29: =LOOKUP(QV28,InputS!20:20,InputS!21:21) -> 0.08333333333 | QW29: =LOOKUP(QW28,InputS!20:20,InputS!21:21) -> 0.08333333333 | QX29: =LOOKUP(QX28,InputS!20:20,InputS!21:21) -> 0.08333333333 | QY29: =LOOKUP(QY28,InputS!20:20,InputS!21:21) -> 0.08333333333 | QZ29: =LOOKUP(QZ28,InputS!20:20,InputS!21:21) -> 0.08333333333 | RA29: =LOOKUP(RA28,InputS!20:20,InputS!21:21) -> 0.08333333333 | RB29: =LOOKUP(RB28,InputS!20:20,InputS!21:21) -> 0.08333333333 | RC29: =LOOKUP(RC28,InputS!20:20,InputS!21:21) -> 0.08333333333 | RD29: =LOOKUP(RD28,InputS!20:20,InputS!21:21) -> 0.08333333333 | RE29: =LOOKUP(RE28,InputS!20:20,InputS!21:21) -> 0.08333333333 | RF29: =LOOKUP(RF28,InputS!20:20,InputS!21:21) -> 0.08333333333 | RG29: =LOOKUP(RG28,InputS!20:20,InputS!21:21) -> 0.08333333333 | RH29: =LOOKUP(RH28,InputS!20:20,InputS!21:21) -> 0.08333333333 | RI29: =LOOKUP(RI28,InputS!20:20,InputS!21:21) -> 0.08333333333 | RJ29: =LOOKUP(RJ28,InputS!20:20,InputS!21:21) -> 0.08333333333 | RK29: =LOOKUP(RK28,InputS!20:20,InputS!21:21) -> 0.08333333333 | RL29: =LOOKUP(RL28,InputS!20:20,InputS!21:21) -> 0.08333333333 | RM29: =LOOKUP(RM28,InputS!20:20,InputS!21:21) -> 0.08333333333 | RN29: =LOOKUP(RN28,InputS!20:20,InputS!21:21) -> 0.08333333333 | RO29: =LOOKUP(RO28,InputS!20:20,InputS!21:21) -> 0.08333333333 | RP29: =LOOKUP(RP28,InputS!20:20,InputS!21:21) -> 0.08333333333 | RQ29: =LOOKUP(RQ28,InputS!20:20,InputS!21:21) -> 0.08333333333 | RR29: =LOOKUP(RR28,InputS!20:20,InputS!21:21) -> 0.08333333333 | RS29: =LOOKUP(RS28,InputS!20:20,InputS!21:21) -> 0.08333333333 | RT29: =LOOKUP(RT28,InputS!20:20,InputS!21:21) -> 0.08333333333 | RU29: =LOOKUP(RU28,InputS!20:20,InputS!21:21) -> 0.08333333333 | RV29: =LOOKUP(RV28,InputS!20:20,InputS!21:21) -> 0.08333333333 | RW29: =LOOKUP(RW28,InputS!20:20,InputS!21:21) -> 0.08333333333 | RX29: =LOOKUP(RX28,InputS!20:20,InputS!21:21) -> 0.08333333333 | RY29: =LOOKUP(RY28,InputS!20:20,InputS!21:21) -> 0.08333333333 | RZ29: =LOOKUP(RZ28,InputS!20:20,InputS!21:21) -> 0.08333333333 | SA29: =LOOKUP(SA28,InputS!20:20,InputS!21:21) -> 0.08333333333 | SB29: =LOOKUP(SB28,InputS!20:20,InputS!21:21) -> 0.08333333333 | SC29: =LOOKUP(SC28,InputS!20:20,InputS!21:21) -> 0.08333333333 | SD29: =LOOKUP(SD28,InputS!20:20,InputS!21:21) -> 0.08333333333 | SE29: =LOOKUP(SE28,InputS!20:20,InputS!21:21) -> 0.08333333333 | SF29: =LOOKUP(SF28,InputS!20:20,InputS!21:21) -> 0.08333333333 | SG29: =LOOKUP(SG28,InputS!20:20,InputS!21:21) -> 0.08333333333 | SH29: =LOOKUP(SH28,InputS!20:20,InputS!21:21) -> 0.08333333333 | SI29: =LOOKUP(SI28,InputS!20:20,InputS!21:21) -> 0.08333333333 | SJ29: =LOOKUP(SJ28,InputS!20:20,InputS!21:21) -> 0.08333333333 | SK29: =LOOKUP(SK28,InputS!20:20,InputS!21:21) -> 0.08333333333 | SL29: =LOOKUP(SL28,InputS!20:20,InputS!21:21) -> 0.08333333333 | SM29: =LOOKUP(SM28,InputS!20:20,InputS!21:21) -> 0.08333333333 | SN29: =LOOKUP(SN28,InputS!20:20,InputS!21:21) -> 0.08333333333 | SO29: =LOOKUP(SO28,InputS!20:20,InputS!21:21) -> 0.08333333333 | SP29: =LOOKUP(SP28,InputS!20:20,InputS!21:21) -> 0.08333333333 | SQ29: =LOOKUP(SQ28,InputS!20:20,InputS!21:21) -> 0.08333333333
D30: Seasonal Generation | G30: MWH | J30: =SUM(K30:XFD30) -> 9147600 | L30: =L29*L26 -> 0 | M30: =M29*M26 -> 21780 | N30: 21780 | O30: 21780 | P30: 21780 | Q30: 21780 | R30: 21780 | S30: 21780 | T30: 21780 | U30: 21780 | V30: 21780 | W30: 21780 | X30: 21780 | Y30: 21780 | Z30: 21780 | AA30: 21780 | AB30: 21780 | AC30: 21780 | AD30: 21780 | AE30: 21780 | AF30: 21780 | AG30: 21780 | AH30: 21780 | AI30: 21780 | AJ30: 21780 | AK30: 21780 | AL30: 21780 | AM30: 21780 | AN30: 21780 | AO30: 21780 | AP30: 21780 | AQ30: 21780 | AR30: 21780 | AS30: 21780 | AT30: 21780 | AU30: 21780 | AV30: 21780 | AW30: 21780 | AX30: 21780 | AY30: 21780 | AZ30: 21780 | BA30: 21780 | BB30: 21780 | BC30: 21780 | BD30: 21780 | BE30: 21780 | BF30: 21780 | BG30: 21780 | BH30: 21780 | BI30: 21780 | BJ30: 21780 | BK30: 21780 | BL30: 21780 | BM30: 21780 | BN30: 21780 | BO30: 21780 | BP30: 21780 | BQ30: 21780 | BR30: 21780 | BS30: 21780 | BT30: 21780 | BU30: 21780 | BV30: 21780 | BW30: 21780 | BX30: 21780 | BY30: =BY29*BY26 -> 21780 | BZ30: 21780 | CA30: 21780 | CB30: 21780 | CC30: 21780 | CD30: 21780 | CE30: 21780 | CF30: 21780 | CG30: 21780 | CH30: 21780 | CI30: 21780 | CJ30: 21780 | CK30: 21780 | CL30: 21780 | CM30: 21780 | CN30: 21780 | CO30: 21780 | CP30: 21780 | CQ30: 21780 | CR30: 21780 | CS30: 21780 | CT30: 21780 | CU30: 21780 | CV30: 21780 | CW30: 21780 | CX30: 21780 | CY30: 21780 | CZ30: 21780 | DA30: 21780 | DB30: 21780 | DC30: 21780 | DD30: 21780 | DE30: 21780 | DF30: 21780 | DG30: 21780 | DH30: 21780 | DI30: 21780 | DJ30: 21780 | DK30: 21780 | DL30: 21780 | DM30: 21780 | DN30: 21780 | DO30: 21780 | DP30: 21780 | DQ30: 21780 | DR30: 21780 | DS30: 21780 | DT30: 21780 | DU30: 21780 | DV30: 21780 | DW30: 21780 | DX30: 21780 | DY30: 21780 | DZ30: 21780 | EA30: 21780 | EB30: 21780 | EC30: 21780 | ED30: 21780 | EE30: 21780 | EF30: 21780 | EG30: 21780 | EH30: 21780 | EI30: 21780 | EJ30: 21780 | EK30: =EK29*EK26 -> 21780 | EL30: 21780 | EM30: 21780 | EN30: 21780 | EO30: 21780 | EP30: 21780 | EQ30: 21780 | ER30: 21780 | ES30: 21780 | ET30: 21780 | EU30: 21780 | EV30: 21780 | EW30: 21780 | EX30: 21780 | EY30: 21780 | EZ30: 21780 | FA30: 21780 | FB30: 21780 | FC30: 21780 | FD30: 21780 | FE30: 21780 | FF30: 21780 | FG30: 21780 | FH30: 21780 | FI30: 21780 | FJ30: 21780 | FK30: 21780 | FL30: 21780 | FM30: 21780 | FN30: 21780 | FO30: 21780 | FP30: 21780 | FQ30: 21780 | FR30: 21780 | FS30: 21780 | FT30: 21780 | FU30: 21780 | FV30: 21780 | FW30: 21780 | FX30: 21780 | FY30: 21780 | FZ30: 21780 | GA30: 21780 | GB30: 21780 | GC30: 21780 | GD30: 21780 | GE30: 21780 | GF30: 21780 | GG30: 21780 | GH30: 21780 | GI30: 21780 | GJ30: 21780 | GK30: 21780 | GL30: 21780 | GM30: 21780 | GN30: 21780 | GO30: 21780 | GP30: 21780 | GQ30: 21780 | GR30: 21780 | GS30: 21780 | GT30: 21780 | GU30: 21780 | GV30: 21780 | GW30: =GW29*GW26 -> 21780 | GX30: 21780 | GY30: 21780 | GZ30: 21780 | HA30: 21780 | HB30: 21780 | HC30: 21780 | HD30: 21780 | HE30: 21780 | HF30: 21780 | HG30: 21780 | HH30: 21780 | HI30: 21780 | HJ30: 21780 | HK30: 21780 | HL30: 21780 | HM30: 21780 | HN30: 21780 | HO30: 21780 | HP30: 21780 | HQ30: 21780 | HR30: 21780 | HS30: 21780 | HT30: 21780 | HU30: 21780 | HV30: 21780 | HW30: 21780 | HX30: 21780 | HY30: 21780 | HZ30: 21780 | IA30: 21780 | IB30: 21780 | IC30: 21780 | ID30: 21780 | IE30: 21780 | IF30: 21780 | IG30: 21780 | IH30: 21780 | II30: 21780 | IJ30: 21780 | IK30: 21780 | IL30: 21780 | IM30: 21780 | IN30: 21780 | IO30: 21780 | IP30: 21780 | IQ30: 21780 | IR30: 21780 | IS30: 21780 | IT30: 21780 | IU30: 21780 | IV30: 21780 | IW30: 21780 | IX30: 21780 | IY30: 21780 | IZ30: 21780 | JA30: 21780 | JB30: 21780 | JC30: 21780 | JD30: 21780 | JE30: 21780 | JF30: 21780 | JG30: 21780 | JH30: 21780 | JI30: =JI29*JI26 -> 21780 | JJ30: 21780 | JK30: 21780 | JL30: 21780 | JM30: 21780 | JN30: 21780 | JO30: 21780 | JP30: 21780 | JQ30: 21780 | JR30: 21780 | JS30: 21780 | JT30: 21780 | JU30: 21780 | JV30: 21780 | JW30: 21780 | JX30: 21780 | JY30: 21780 | JZ30: 21780 | KA30: 21780 | KB30: 21780 | KC30: 21780 | KD30: 21780 | KE30: 21780 | KF30: 21780 | KG30: 21780 | KH30: 21780 | KI30: 21780 | KJ30: 21780 | KK30: 21780 | KL30: 21780 | KM30: 21780 | KN30: 21780 | KO30: 21780 | KP30: 21780 | KQ30: 21780 | KR30: 21780 | KS30: 21780 | KT30: 21780 | KU30: 21780 | KV30: 21780 | KW30: 21780 | KX30: 21780 | KY30: 21780 | KZ30: 21780 | LA30: 21780 | LB30: 21780 | LC30: 21780 | LD30: 21780 | LE30: 21780 | LF30: 21780 | LG30: 21780 | LH30: 21780 | LI30: 21780 | LJ30: 21780 | LK30: 21780 | LL30: 21780 | LM30: 21780 | LN30: 21780 | LO30: 21780 | LP30: 21780 | LQ30: 21780 | LR30: 21780 | LS30: 21780 | LT30: 21780 | LU30: =LU29*LU26 -> 21780 | LV30: 21780 | LW30: 21780 | LX30: 21780 | LY30: 21780 | LZ30: 21780 | MA30: 21780 | MB30: 21780 | MC30: 21780 | MD30: 21780 | ME30: 21780 | MF30: 21780 | MG30: 21780 | MH30: 21780 | MI30: 21780 | MJ30: 21780 | MK30: 21780 | ML30: 21780 | MM30: 21780 | MN30: 21780 | MO30: 21780 | MP30: 21780 | MQ30: 21780 | MR30: 21780 | MS30: 21780 | MT30: 21780 | MU30: 21780 | MV30: 21780 | MW30: 21780 | MX30: 21780 | MY30: 21780 | MZ30: 21780 | NA30: 21780 | NB30: 21780 | NC30: 21780 | ND30: 21780 | NE30: 21780 | NF30: 21780 | NG30: 21780 | NH30: 21780 | NI30: 21780 | NJ30: 21780 | NK30: 21780 | NL30: 21780 | NM30: 21780 | NN30: 21780 | NO30: 21780 | NP30: 21780 | NQ30: 21780 | NR30: 21780 | NS30: 21780 | NT30: 21780 | NU30: 21780 | NV30: 21780 | NW30: 21780 | NX30: 21780 | NY30: 21780 | NZ30: 21780 | OA30: 21780 | OB30: 21780 | OC30: 21780 | OD30: 21780 | OE30: 21780 | OF30: 21780 | OG30: =OG29*OG26 -> 21780 | OH30: 21780 | OI30: 21780 | OJ30: 21780 | OK30: 21780 | OL30: 21780 | OM30: 21780 | ON30: 21780 | OO30: 21780 | OP30: 21780 | OQ30: 21780 | OR30: 21780 | OS30: 21780 | OT30: 21780 | OU30: 21780 | OV30: 21780 | OW30: 21780 | OX30: 21780 | OY30: 21780 | OZ30: 21780 | PA30: 21780 | PB30: 21780 | PC30: 21780 | PD30: 21780 | PE30: 21780 | PF30: 21780 | PG30: 21780 | PH30: 21780 | PI30: 21780 | PJ30: 21780 | PK30: 21780 | PL30: 21780 | PM30: 21780 | PN30: 21780 | PO30: 21780 | PP30: 21780 | PQ30: 0 | PR30: 0 | PS30: 0 | PT30: 0 | PU30: 0 | PV30: 0 | PW30: 0 | PX30: 0 | PY30: 0 | PZ30: 0 | QA30: 0 | QB30: 0 | QC30: 0 | QD30: 0 | QE30: 0 | QF30: 0 | QG30: 0 | QH30: 0 | QI30: 0 | QJ30: 0 | QK30: 0 | QL30: 0 | QM30: 0 | QN30: 0 | QO30: 0 | QP30: 0 | QQ30: 0 | QR30: 0 | QS30: =QS29*QS26 -> 0 | QT30: 0 | QU30: 0 | QV30: 0 | QW30: 0 | QX30: 0 | QY30: 0 | QZ30: 0 | RA30: 0 | RB30: 0 | RC30: 0 | RD30: 0 | RE30: 0 | RF30: 0 | RG30: 0 | RH30: 0 | RI30: 0 | RJ30: 0 | RK30: 0 | RL30: 0 | RM30: 0 | RN30: 0 | RO30: 0 | RP30: 0 | RQ30: 0 | RR30: 0 | RS30: 0 | RT30: 0 | RU30: 0 | RV30: 0 | RW30: 0 | RX30: 0 | RY30: 0 | RZ30: 0 | SA30: 0 | SB30: 0 | SC30: 0 | SD30: 0 | SE30: 0 | SF30: 0 | SG30: 0 | SH30: 0 | SI30: 0 | SJ30: 0 | SK30: 0 | SL30: 0 | SM30: 0 | SN30: 0 | SO30: 0 | SP30: 0 | SQ30: 0
B32: Cash Flow
C33: Inflation Index
D34: Year | G34: Year | L34: =YEAR(L4) -> 2023 | M34: 2023 | N34: 2023 | O34: 2023 | P34: 2023 | Q34: 2023 | R34: 2023 | S34: 2023 | T34: 2023 | U34: 2023 | V34: 2023 | W34: 2023 | X34: 2024 | Y34: 2024 | Z34: 2024 | AA34: 2024 | AB34: 2024 | AC34: 2024 | AD34: 2024 | AE34: 2024 | AF34: 2024 | AG34: 2024 | AH34: 2024 | AI34: 2024 | AJ34: 2025 | AK34: 2025 | AL34: 2025 | AM34: 2025 | AN34: 2025 | AO34: 2025 | AP34: 2025 | AQ34: 2025 | AR34: 2025 | AS34: 2025 | AT34: 2025 | AU34: 2025 | AV34: 2026 | AW34: 2026 | AX34: 2026 | AY34: 2026 | AZ34: 2026 | BA34: 2026 | BB34: 2026 | BC34: 2026 | BD34: 2026 | BE34: 2026 | BF34: 2026 | BG34: 2026 | BH34: 2027 | BI34: 2027 | BJ34: 2027 | BK34: 2027 | BL34: 2027 | BM34: 2027 | BN34: 2027 | BO34: 2027 | BP34: 2027 | BQ34: 2027 | BR34: 2027 | BS34: 2027 | BT34: 2028 | BU34: 2028 | BV34: 2028 | BW34: 2028 | BX34: =YEAR(BX4) -> 2028 | BY34: 2028 | BZ34: 2028 | CA34: 2028 | CB34: 2028 | CC34: 2028 | CD34: 2028 | CE34: 2028 | CF34: 2029 | CG34: 2029 | CH34: 2029 | CI34: 2029 | CJ34: 2029 | CK34: 2029 | CL34: 2029 | CM34: 2029 | CN34: 2029 | CO34: 2029 | CP34: 2029 | CQ34: 2029 | CR34: 2030 | CS34: 2030 | CT34: 2030 | CU34: 2030 | CV34: 2030 | CW34: 2030 | CX34: 2030 | CY34: 2030 | CZ34: 2030 | DA34: 2030 | DB34: 2030 | DC34: 2030 | DD34: 2031 | DE34: 2031 | DF34: 2031 | DG34: 2031 | DH34: 2031 | DI34: 2031 | DJ34: 2031 | DK34: 2031 | DL34: 2031 | DM34: 2031 | DN34: 2031 | DO34: 2031 | DP34: 2032 | DQ34: 2032 | DR34: 2032 | DS34: 2032 | DT34: 2032 | DU34: 2032 | DV34: 2032 | DW34: 2032 | DX34: 2032 | DY34: 2032 | DZ34: 2032 | EA34: 2032 | EB34: 2033 | EC34: 2033 | ED34: 2033 | EE34: 2033 | EF34: 2033 | EG34: 2033 | EH34: 2033 | EI34: 2033 | EJ34: =YEAR(EJ4) -> 2033 | EK34: 2033 | EL34: 2033 | EM34: 2033 | EN34: 2034 | EO34: 2034 | EP34: 2034 | EQ34: 2034 | ER34: 2034 | ES34: 2034 | ET34: 2034 | EU34: 2034 | EV34: 2034 | EW34: 2034 | EX34: 2034 | EY34: 2034 | EZ34: 2035 | FA34: 2035 | FB34: 2035 | FC34: 2035 | FD34: 2035 | FE34: 2035 | FF34: 2035 | FG34: 2035 | FH34: 2035 | FI34: 2035 | FJ34: 2035 | FK34: 2035 | FL34: 2036 | FM34: 2036 | FN34: 2036 | FO34: 2036 | FP34: 2036 | FQ34: 2036 | FR34: 2036 | FS34: 2036 | FT34: 2036 | FU34: 2036 | FV34: 2036 | FW34: 2036 | FX34: 2037 | FY34: 2037 | FZ34: 2037 | GA34: 2037 | GB34: 2037 | GC34: 2037 | GD34: 2037 | GE34: 2037 | GF34: 2037 | GG34: 2037 | GH34: 2037 | GI34: 2037 | GJ34: 2038 | GK34: 2038 | GL34: 2038 | GM34: 2038 | GN34: 2038 | GO34: 2038 | GP34: 2038 | GQ34: 2038 | GR34: 2038 | GS34: 2038 | GT34: 2038 | GU34: 2038 | GV34: =YEAR(GV4) -> 2039 | GW34: 2039 | GX34: 2039 | GY34: 2039 | GZ34: 2039 | HA34: 2039 | HB34: 2039 | HC34: 2039 | HD34: 2039 | HE34: 2039 | HF34: 2039 | HG34: 2039 | HH34: 2040 | HI34: 2040 | HJ34: 2040 | HK34: 2040 | HL34: 2040 | HM34: 2040 | HN34: 2040 | HO34: 2040 | HP34: 2040 | HQ34: 2040 | HR34: 2040 | HS34: 2040 | HT34: 2041 | HU34: 2041 | HV34: 2041 | HW34: 2041 | HX34: 2041 | HY34: 2041 | HZ34: 2041 | IA34: 2041 | IB34: 2041 | IC34: 2041 | ID34: 2041 | IE34: 2041 | IF34: 2042 | IG34: 2042 | IH34: 2042 | II34: 2042 | IJ34: 2042 | IK34: 2042 | IL34: 2042 | IM34: 2042 | IN34: 2042 | IO34: 2042 | IP34: 2042 | IQ34: 2042 | IR34: 2043 | IS34: 2043 | IT34: 2043 | IU34: 2043 | IV34: 2043 | IW34: 2043 | IX34: 2043 | IY34: 2043 | IZ34: 2043 | JA34: 2043 | JB34: 2043 | JC34: 2043 | JD34: 2044 | JE34: 2044 | JF34: 2044 | JG34: 2044 | JH34: =YEAR(JH4) -> 2044 | JI34: 2044 | JJ34: 2044 | JK34: 2044 | JL34: 2044 | JM34: 2044 | JN34: 2044 | JO34: 2044 | JP34: 2045 | JQ34: 2045 | JR34: 2045 | JS34: 2045 | JT34: 2045 | JU34: 2045 | JV34: 2045 | JW34: 2045 | JX34: 2045 | JY34: 2045 | JZ34: 2045 | KA34: 2045 | KB34: 2046 | KC34: 2046 | KD34: 2046 | KE34: 2046 | KF34: 2046 | KG34: 2046 | KH34: 2046 | KI34: 2046 | KJ34: 2046 | KK34: 2046 | KL34: 2046 | KM34: 2046 | KN34: 2047 | KO34: 2047 | KP34: 2047 | KQ34: 2047 | KR34: 2047 | KS34: 2047 | KT34: 2047 | KU34: 2047 | KV34: 2047 | KW34: 2047 | KX34: 2047 | KY34: 2047 | KZ34: 2048 | LA34: 2048 | LB34: 2048 | LC34: 2048 | LD34: 2048 | LE34: 2048 | LF34: 2048 | LG34: 2048 | LH34: 2048 | LI34: 2048 | LJ34: 2048 | LK34: 2048 | LL34: 2049 | LM34: 2049 | LN34: 2049 | LO34: 2049 | LP34: 2049 | LQ34: 2049 | LR34: 2049 | LS34: 2049 | LT34: =YEAR(LT4) -> 2049 | LU34: 2049 | LV34: 2049 | LW34: 2049 | LX34: 2050 | LY34: 2050 | LZ34: 2050 | MA34: 2050 | MB34: 2050 | MC34: 2050 | MD34: 2050 | ME34: 2050 | MF34: 2050 | MG34: 2050 | MH34: 2050 | MI34: 2050 | MJ34: 2051 | MK34: 2051 | ML34: 2051 | MM34: 2051 | MN34: 2051 | MO34: 2051 | MP34: 2051 | MQ34: 2051 | MR34: 2051 | MS34: 2051 | MT34: 2051 | MU34: 2051 | MV34: 2052 | MW34: 2052 | MX34: 2052 | MY34: 2052 | MZ34: 2052 | NA34: 2052 | NB34: 2052 | NC34: 2052 | ND34: 2052 | NE34: 2052 | NF34: 2052 | NG34: 2052 | NH34: 2053 | NI34: 2053 | NJ34: 2053 | NK34: 2053 | NL34: 2053 | NM34: 2053 | NN34: 2053 | NO34: 2053 | NP34: 2053 | NQ34: 2053 | NR34: 2053 | NS34: 2053 | NT34: 2054 | NU34: 2054 | NV34: 2054 | NW34: 2054 | NX34: 2054 | NY34: 2054 | NZ34: 2054 | OA34: 2054 | OB34: 2054 | OC34: 2054 | OD34: 2054 | OE34: 2054 | OF34: =YEAR(OF4) -> 2055 | OG34: 2055 | OH34: 2055 | OI34: 2055 | OJ34: 2055 | OK34: 2055 | OL34: 2055 | OM34: 2055 | ON34: 2055 | OO34: 2055 | OP34: 2055 | OQ34: 2055 | OR34: 2056 | OS34: 2056 | OT34: 2056 | OU34: 2056 | OV34: 2056 | OW34: 2056 | OX34: 2056 | OY34: 2056 | OZ34: 2056 | PA34: 2056 | PB34: 2056 | PC34: 2056 | PD34: 2057 | PE34: 2057 | PF34: 2057 | PG34: 2057 | PH34: 2057 | PI34: 2057 | PJ34: 2057 | PK34: 2057 | PL34: 2057 | PM34: 2057 | PN34: 2057 | PO34: 2057 | PP34: 2058 | PQ34: 2058 | PR34: 2058 | PS34: 2058 | PT34: 2058 | PU34: 2058 | PV34: 2058 | PW34: 2058 | PX34: 2058 | PY34: 2058 | PZ34: 2058 | QA34: 2058 | QB34: 2059 | QC34: 2059 | QD34: 2059 | QE34: 2059 | QF34: 2059 | QG34: 2059 | QH34: 2059 | QI34: 2059 | QJ34: 2059 | QK34: 2059 | QL34: 2059 | QM34: 2059 | QN34: 2060 | QO34: 2060 | QP34: 2060 | QQ34: 2060 | QR34: =YEAR(QR4) -> 2060 | QS34: 2060 | QT34: 2060 | QU34: 2060 | QV34: 2060 | QW34: 2060 | QX34: 2060 | QY34: 2060 | QZ34: 2061 | RA34: 2061 | RB34: 2061 | RC34: 2061 | RD34: 2061 | RE34: 2061 | RF34: 2061 | RG34: 2061 | RH34: 2061 | RI34: 2061 | RJ34: 2061 | RK34: 2061 | RL34: 2062 | RM34: 2062 | RN34: 2062 | RO34: 2062 | RP34: 2062 | RQ34: 2062 | RR34: 2062 | RS34: 2062 | RT34: 2062 | RU34: 2062 | RV34: 2062 | RW34: 2062 | RX34: 2063 | RY34: 2063 | RZ34: 2063 | SA34: 2063 | SB34: 2063 | SC34: 2063 | SD34: 2063 | SE34: 2063 | SF34: 2063 | SG34: 2063 | SH34: 2063 | SI34: 2063 | SJ34: 2064 | SK34: 2064 | SL34: 2064 | SM34: 2064 | SN34: 2064 | SO34: 2064 | SP34: 2064 | SQ34: 2064
D35: Annual Inflation Rate | E35: =InputS!D31 -> Zero Inflation | F35: =L35 -> 0 | G35: % p.a. | L35: =LOOKUP(L34,InputS!26:26,InputS!31:31) -> 0 | M35: =LOOKUP(M34,InputS!26:26,InputS!31:31) -> 0 | N35: =LOOKUP(N34,InputS!26:26,InputS!31:31) -> 0 | O35: =LOOKUP(O34,InputS!26:26,InputS!31:31) -> 0 | P35: =LOOKUP(P34,InputS!26:26,InputS!31:31) -> 0 | Q35: =LOOKUP(Q34,InputS!26:26,InputS!31:31) -> 0 | R35: =LOOKUP(R34,InputS!26:26,InputS!31:31) -> 0 | S35: =LOOKUP(S34,InputS!26:26,InputS!31:31) -> 0 | T35: =LOOKUP(T34,InputS!26:26,InputS!31:31) -> 0 | U35: =LOOKUP(U34,InputS!26:26,InputS!31:31) -> 0 | V35: =LOOKUP(V34,InputS!26:26,InputS!31:31) -> 0 | W35: =LOOKUP(W34,InputS!26:26,InputS!31:31) -> 0 | X35: =LOOKUP(X34,InputS!26:26,InputS!31:31) -> 0 | Y35: =LOOKUP(Y34,InputS!26:26,InputS!31:31) -> 0 | Z35: =LOOKUP(Z34,InputS!26:26,InputS!31:31) -> 0 | AA35: =LOOKUP(AA34,InputS!26:26,InputS!31:31) -> 0 | AB35: =LOOKUP(AB34,InputS!26:26,InputS!31:31) -> 0 | AC35: =LOOKUP(AC34,InputS!26:26,InputS!31:31) -> 0 | AD35: =LOOKUP(AD34,InputS!26:26,InputS!31:31) -> 0 | AE35: =LOOKUP(AE34,InputS!26:26,InputS!31:31) -> 0 | AF35: =LOOKUP(AF34,InputS!26:26,InputS!31:31) -> 0 | AG35: =LOOKUP(AG34,InputS!26:26,InputS!31:31) -> 0 | AH35: =LOOKUP(AH34,InputS!26:26,InputS!31:31) -> 0 | AI35: =LOOKUP(AI34,InputS!26:26,InputS!31:31) -> 0 | AJ35: =LOOKUP(AJ34,InputS!26:26,InputS!31:31) -> 0 | AK35: =LOOKUP(AK34,InputS!26:26,InputS!31:31) -> 0 | AL35: =LOOKUP(AL34,InputS!26:26,InputS!31:31) -> 0 | AM35: =LOOKUP(AM34,InputS!26:26,InputS!31:31) -> 0 | AN35: =LOOKUP(AN34,InputS!26:26,InputS!31:31) -> 0 | AO35: =LOOKUP(AO34,InputS!26:26,InputS!31:31) -> 0 | AP35: =LOOKUP(AP34,InputS!26:26,InputS!31:31) -> 0 | AQ35: =LOOKUP(AQ34,InputS!26:26,InputS!31:31) -> 0 | AR35: =LOOKUP(AR34,InputS!26:26,InputS!31:31) -> 0 | AS35: =LOOKUP(AS34,InputS!26:26,InputS!31:31) -> 0 | AT35: =LOOKUP(AT34,InputS!26:26,InputS!31:31) -> 0 | AU35: =LOOKUP(AU34,InputS!26:26,InputS!31:31) -> 0 | AV35: =LOOKUP(AV34,InputS!26:26,InputS!31:31) -> 0 | AW35: =LOOKUP(AW34,InputS!26:26,InputS!31:31) -> 0 | AX35: =LOOKUP(AX34,InputS!26:26,InputS!31:31) -> 0 | AY35: =LOOKUP(AY34,InputS!26:26,InputS!31:31) -> 0 | AZ35: =LOOKUP(AZ34,InputS!26:26,InputS!31:31) -> 0 | BA35: =LOOKUP(BA34,InputS!26:26,InputS!31:31) -> 0 | BB35: =LOOKUP(BB34,InputS!26:26,InputS!31:31) -> 0 | BC35: =LOOKUP(BC34,InputS!26:26,InputS!31:31) -> 0 | BD35: =LOOKUP(BD34,InputS!26:26,InputS!31:31) -> 0 | BE35: =LOOKUP(BE34,InputS!26:26,InputS!31:31) -> 0 | BF35: =LOOKUP(BF34,InputS!26:26,InputS!31:31) -> 0 | BG35: =LOOKUP(BG34,InputS!26:26,InputS!31:31) -> 0 | BH35: =LOOKUP(BH34,InputS!26:26,InputS!31:31) -> 0 | BI35: =LOOKUP(BI34,InputS!26:26,InputS!31:31) -> 0 | BJ35: =LOOKUP(BJ34,InputS!26:26,InputS!31:31) -> 0 | BK35: =LOOKUP(BK34,InputS!26:26,InputS!31:31) -> 0 | BL35: =LOOKUP(BL34,InputS!26:26,InputS!31:31) -> 0 | BM35: =LOOKUP(BM34,InputS!26:26,InputS!31:31) -> 0 | BN35: =LOOKUP(BN34,InputS!26:26,InputS!31:31) -> 0 | BO35: =LOOKUP(BO34,InputS!26:26,InputS!31:31) -> 0 | BP35: =LOOKUP(BP34,InputS!26:26,InputS!31:31) -> 0 | BQ35: =LOOKUP(BQ34,InputS!26:26,InputS!31:31) -> 0 | BR35: =LOOKUP(BR34,InputS!26:26,InputS!31:31) -> 0 | BS35: =LOOKUP(BS34,InputS!26:26,InputS!31:31) -> 0 | BT35: =LOOKUP(BT34,InputS!26:26,InputS!31:31) -> 0 | BU35: =LOOKUP(BU34,InputS!26:26,InputS!31:31) -> 0 | BV35: =LOOKUP(BV34,InputS!26:26,InputS!31:31) -> 0 | BW35: =LOOKUP(BW34,InputS!26:26,InputS!31:31) -> 0 | BX35: =LOOKUP(BX34,InputS!26:26,InputS!31:31) -> 0 | BY35: =LOOKUP(BY34,InputS!26:26,InputS!31:31) -> 0 | BZ35: =LOOKUP(BZ34,InputS!26:26,InputS!31:31) -> 0 | CA35: =LOOKUP(CA34,InputS!26:26,InputS!31:31) -> 0 | CB35: =LOOKUP(CB34,InputS!26:26,InputS!31:31) -> 0 | CC35: =LOOKUP(CC34,InputS!26:26,InputS!31:31) -> 0 | CD35: =LOOKUP(CD34,InputS!26:26,InputS!31:31) -> 0 | CE35: =LOOKUP(CE34,InputS!26:26,InputS!31:31) -> 0 | CF35: =LOOKUP(CF34,InputS!26:26,InputS!31:31) -> 0 | CG35: =LOOKUP(CG34,InputS!26:26,InputS!31:31) -> 0 | CH35: =LOOKUP(CH34,InputS!26:26,InputS!31:31) -> 0 | CI35: =LOOKUP(CI34,InputS!26:26,InputS!31:31) -> 0 | CJ35: =LOOKUP(CJ34,InputS!26:26,InputS!31:31) -> 0 | CK35: =LOOKUP(CK34,InputS!26:26,InputS!31:31) -> 0 | CL35: =LOOKUP(CL34,InputS!26:26,InputS!31:31) -> 0 | CM35: =LOOKUP(CM34,InputS!26:26,InputS!31:31) -> 0 | CN35: =LOOKUP(CN34,InputS!26:26,InputS!31:31) -> 0 | CO35: =LOOKUP(CO34,InputS!26:26,InputS!31:31) -> 0 | CP35: =LOOKUP(CP34,InputS!26:26,InputS!31:31) -> 0 | CQ35: =LOOKUP(CQ34,InputS!26:26,InputS!31:31) -> 0 | CR35: =LOOKUP(CR34,InputS!26:26,InputS!31:31) -> 0 | CS35: =LOOKUP(CS34,InputS!26:26,InputS!31:31) -> 0 | CT35: =LOOKUP(CT34,InputS!26:26,InputS!31:31) -> 0 | CU35: =LOOKUP(CU34,InputS!26:26,InputS!31:31) -> 0 | CV35: =LOOKUP(CV34,InputS!26:26,InputS!31:31) -> 0 | CW35: =LOOKUP(CW34,InputS!26:26,InputS!31:31) -> 0 | CX35: =LOOKUP(CX34,InputS!26:26,InputS!31:31) -> 0 | CY35: =LOOKUP(CY34,InputS!26:26,InputS!31:31) -> 0 | CZ35: =LOOKUP(CZ34,InputS!26:26,InputS!31:31) -> 0 | DA35: =LOOKUP(DA34,InputS!26:26,InputS!31:31) -> 0 | DB35: =LOOKUP(DB34,InputS!26:26,InputS!31:31) -> 0 | DC35: =LOOKUP(DC34,InputS!26:26,InputS!31:31) -> 0 | DD35: =LOOKUP(DD34,InputS!26:26,InputS!31:31) -> 0 | DE35: =LOOKUP(DE34,InputS!26:26,InputS!31:31) -> 0 | DF35: =LOOKUP(DF34,InputS!26:26,InputS!31:31) -> 0 | DG35: =LOOKUP(DG34,InputS!26:26,InputS!31:31) -> 0 | DH35: =LOOKUP(DH34,InputS!26:26,InputS!31:31) -> 0 | DI35: =LOOKUP(DI34,InputS!26:26,InputS!31:31) -> 0 | DJ35: =LOOKUP(DJ34,InputS!26:26,InputS!31:31) -> 0 | DK35: =LOOKUP(DK34,InputS!26:26,InputS!31:31) -> 0 | DL35: =LOOKUP(DL34,InputS!26:26,InputS!31:31) -> 0 | DM35: =LOOKUP(DM34,InputS!26:26,InputS!31:31) -> 0 | DN35: =LOOKUP(DN34,InputS!26:26,InputS!31:31) -> 0 | DO35: =LOOKUP(DO34,InputS!26:26,InputS!31:31) -> 0 | DP35: =LOOKUP(DP34,InputS!26:26,InputS!31:31) -> 0 | DQ35: =LOOKUP(DQ34,InputS!26:26,InputS!31:31) -> 0 | DR35: =LOOKUP(DR34,InputS!26:26,InputS!31:31) -> 0 | DS35: =LOOKUP(DS34,InputS!26:26,InputS!31:31) -> 0 | DT35: =LOOKUP(DT34,InputS!26:26,InputS!31:31) -> 0 | DU35: =LOOKUP(DU34,InputS!26:26,InputS!31:31) -> 0 | DV35: =LOOKUP(DV34,InputS!26:26,InputS!31:31) -> 0 | DW35: =LOOKUP(DW34,InputS!26:26,InputS!31:31) -> 0 | DX35: =LOOKUP(DX34,InputS!26:26,InputS!31:31) -> 0 | DY35: =LOOKUP(DY34,InputS!26:26,InputS!31:31) -> 0 | DZ35: =LOOKUP(DZ34,InputS!26:26,InputS!31:31) -> 0 | EA35: =LOOKUP(EA34,InputS!26:26,InputS!31:31) -> 0 | EB35: =LOOKUP(EB34,InputS!26:26,InputS!31:31) -> 0 | EC35: =LOOKUP(EC34,InputS!26:26,InputS!31:31) -> 0 | ED35: =LOOKUP(ED34,InputS!26:26,InputS!31:31) -> 0 | EE35: =LOOKUP(EE34,InputS!26:26,InputS!31:31) -> 0 | EF35: =LOOKUP(EF34,InputS!26:26,InputS!31:31) -> 0 | EG35: =LOOKUP(EG34,InputS!26:26,InputS!31:31) -> 0 | EH35: =LOOKUP(EH34,InputS!26:26,InputS!31:31) -> 0 | EI35: =LOOKUP(EI34,InputS!26:26,InputS!31:31) -> 0 | EJ35: =LOOKUP(EJ34,InputS!26:26,InputS!31:31) -> 0 | EK35: =LOOKUP(EK34,InputS!26:26,InputS!31:31) -> 0 | EL35: =LOOKUP(EL34,InputS!26:26,InputS!31:31) -> 0 | EM35: =LOOKUP(EM34,InputS!26:26,InputS!31:31) -> 0 | EN35: =LOOKUP(EN34,InputS!26:26,InputS!31:31) -> 0 | EO35: =LOOKUP(EO34,InputS!26:26,InputS!31:31) -> 0 | EP35: =LOOKUP(EP34,InputS!26:26,InputS!31:31) -> 0 | EQ35: =LOOKUP(EQ34,InputS!26:26,InputS!31:31) -> 0 | ER35: =LOOKUP(ER34,InputS!26:26,InputS!31:31) -> 0 | ES35: =LOOKUP(ES34,InputS!26:26,InputS!31:31) -> 0 | ET35: =LOOKUP(ET34,InputS!26:26,InputS!31:31) -> 0 | EU35: =LOOKUP(EU34,InputS!26:26,InputS!31:31) -> 0 | EV35: =LOOKUP(EV34,InputS!26:26,InputS!31:31) -> 0 | EW35: =LOOKUP(EW34,InputS!26:26,InputS!31:31) -> 0 | EX35: =LOOKUP(EX34,InputS!26:26,InputS!31:31) -> 0 | EY35: =LOOKUP(EY34,InputS!26:26,InputS!31:31) -> 0 | EZ35: =LOOKUP(EZ34,InputS!26:26,InputS!31:31) -> 0 | FA35: =LOOKUP(FA34,InputS!26:26,InputS!31:31) -> 0 | FB35: =LOOKUP(FB34,InputS!26:26,InputS!31:31) -> 0 | FC35: =LOOKUP(FC34,InputS!26:26,InputS!31:31) -> 0 | FD35: =LOOKUP(FD34,InputS!26:26,InputS!31:31) -> 0 | FE35: =LOOKUP(FE34,InputS!26:26,InputS!31:31) -> 0 | FF35: =LOOKUP(FF34,InputS!26:26,InputS!31:31) -> 0 | FG35: =LOOKUP(FG34,InputS!26:26,InputS!31:31) -> 0 | FH35: =LOOKUP(FH34,InputS!26:26,InputS!31:31) -> 0 | FI35: =LOOKUP(FI34,InputS!26:26,InputS!31:31) -> 0 | FJ35: =LOOKUP(FJ34,InputS!26:26,InputS!31:31) -> 0 | FK35: =LOOKUP(FK34,InputS!26:26,InputS!31:31) -> 0 | FL35: =LOOKUP(FL34,InputS!26:26,InputS!31:31) -> 0 | FM35: =LOOKUP(FM34,InputS!26:26,InputS!31:31) -> 0 | FN35: =LOOKUP(FN34,InputS!26:26,InputS!31:31) -> 0 | FO35: =LOOKUP(FO34,InputS!26:26,InputS!31:31) -> 0 | FP35: =LOOKUP(FP34,InputS!26:26,InputS!31:31) -> 0 | FQ35: =LOOKUP(FQ34,InputS!26:26,InputS!31:31) -> 0 | FR35: =LOOKUP(FR34,InputS!26:26,InputS!31:31) -> 0 | FS35: =LOOKUP(FS34,InputS!26:26,InputS!31:31) -> 0 | FT35: =LOOKUP(FT34,InputS!26:26,InputS!31:31) -> 0 | FU35: =LOOKUP(FU34,InputS!26:26,InputS!31:31) -> 0 | FV35: =LOOKUP(FV34,InputS!26:26,InputS!31:31) -> 0 | FW35: =LOOKUP(FW34,InputS!26:26,InputS!31:31) -> 0 | FX35: =LOOKUP(FX34,InputS!26:26,InputS!31:31) -> 0 | FY35: =LOOKUP(FY34,InputS!26:26,InputS!31:31) -> 0 | FZ35: =LOOKUP(FZ34,InputS!26:26,InputS!31:31) -> 0 | GA35: =LOOKUP(GA34,InputS!26:26,InputS!31:31) -> 0 | GB35: =LOOKUP(GB34,InputS!26:26,InputS!31:31) -> 0 | GC35: =LOOKUP(GC34,InputS!26:26,InputS!31:31) -> 0 | GD35: =LOOKUP(GD34,InputS!26:26,InputS!31:31) -> 0 | GE35: =LOOKUP(GE34,InputS!26:26,InputS!31:31) -> 0 | GF35: =LOOKUP(GF34,InputS!26:26,InputS!31:31) -> 0 | GG35: =LOOKUP(GG34,InputS!26:26,InputS!31:31) -> 0 | GH35: =LOOKUP(GH34,InputS!26:26,InputS!31:31) -> 0 | GI35: =LOOKUP(GI34,InputS!26:26,InputS!31:31) -> 0 | GJ35: =LOOKUP(GJ34,InputS!26:26,InputS!31:31) -> 0 | GK35: =LOOKUP(GK34,InputS!26:26,InputS!31:31) -> 0 | GL35: =LOOKUP(GL34,InputS!26:26,InputS!31:31) -> 0 | GM35: =LOOKUP(GM34,InputS!26:26,InputS!31:31) -> 0 | GN35: =LOOKUP(GN34,InputS!26:26,InputS!31:31) -> 0 | GO35: =LOOKUP(GO34,InputS!26:26,InputS!31:31) -> 0 | GP35: =LOOKUP(GP34,InputS!26:26,InputS!31:31) -> 0 | GQ35: =LOOKUP(GQ34,InputS!26:26,InputS!31:31) -> 0 | GR35: =LOOKUP(GR34,InputS!26:26,InputS!31:31) -> 0 | GS35: =LOOKUP(GS34,InputS!26:26,InputS!31:31) -> 0 | GT35: =LOOKUP(GT34,InputS!26:26,InputS!31:31) -> 0 | GU35: =LOOKUP(GU34,InputS!26:26,InputS!31:31) -> 0 | GV35: =LOOKUP(GV34,InputS!26:26,InputS!31:31) -> 0 | GW35: =LOOKUP(GW34,InputS!26:26,InputS!31:31) -> 0 | GX35: =LOOKUP(GX34,InputS!26:26,InputS!31:31) -> 0 | GY35: =LOOKUP(GY34,InputS!26:26,InputS!31:31) -> 0 | GZ35: =LOOKUP(GZ34,InputS!26:26,InputS!31:31) -> 0 | HA35: =LOOKUP(HA34,InputS!26:26,InputS!31:31) -> 0 | HB35: =LOOKUP(HB34,InputS!26:26,InputS!31:31) -> 0 | HC35: =LOOKUP(HC34,InputS!26:26,InputS!31:31) -> 0 | HD35: =LOOKUP(HD34,InputS!26:26,InputS!31:31) -> 0 | HE35: =LOOKUP(HE34,InputS!26:26,InputS!31:31) -> 0 | HF35: =LOOKUP(HF34,InputS!26:26,InputS!31:31) -> 0 | HG35: =LOOKUP(HG34,InputS!26:26,InputS!31:31) -> 0 | HH35: =LOOKUP(HH34,InputS!26:26,InputS!31:31) -> 0 | HI35: =LOOKUP(HI34,InputS!26:26,InputS!31:31) -> 0 | HJ35: =LOOKUP(HJ34,InputS!26:26,InputS!31:31) -> 0 | HK35: =LOOKUP(HK34,InputS!26:26,InputS!31:31) -> 0 | HL35: =LOOKUP(HL34,InputS!26:26,InputS!31:31) -> 0 | HM35: =LOOKUP(HM34,InputS!26:26,InputS!31:31) -> 0 | HN35: =LOOKUP(HN34,InputS!26:26,InputS!31:31) -> 0 | HO35: =LOOKUP(HO34,InputS!26:26,InputS!31:31) -> 0 | HP35: =LOOKUP(HP34,InputS!26:26,InputS!31:31) -> 0 | HQ35: =LOOKUP(HQ34,InputS!26:26,InputS!31:31) -> 0 | HR35: =LOOKUP(HR34,InputS!26:26,InputS!31:31) -> 0 | HS35: =LOOKUP(HS34,InputS!26:26,InputS!31:31) -> 0 | HT35: =LOOKUP(HT34,InputS!26:26,InputS!31:31) -> 0 | HU35: =LOOKUP(HU34,InputS!26:26,InputS!31:31) -> 0 | HV35: =LOOKUP(HV34,InputS!26:26,InputS!31:31) -> 0 | HW35: =LOOKUP(HW34,InputS!26:26,InputS!31:31) -> 0 | HX35: =LOOKUP(HX34,InputS!26:26,InputS!31:31) -> 0 | HY35: =LOOKUP(HY34,InputS!26:26,InputS!31:31) -> 0 | HZ35: =LOOKUP(HZ34,InputS!26:26,InputS!31:31) -> 0 | IA35: =LOOKUP(IA34,InputS!26:26,InputS!31:31) -> 0 | IB35: =LOOKUP(IB34,InputS!26:26,InputS!31:31) -> 0 | IC35: =LOOKUP(IC34,InputS!26:26,InputS!31:31) -> 0 | ID35: =LOOKUP(ID34,InputS!26:26,InputS!31:31) -> 0 | IE35: =LOOKUP(IE34,InputS!26:26,InputS!31:31) -> 0 | IF35: =LOOKUP(IF34,InputS!26:26,InputS!31:31) -> 0 | IG35: =LOOKUP(IG34,InputS!26:26,InputS!31:31) -> 0 | IH35: =LOOKUP(IH34,InputS!26:26,InputS!31:31) -> 0 | II35: =LOOKUP(II34,InputS!26:26,InputS!31:31) -> 0 | IJ35: =LOOKUP(IJ34,InputS!26:26,InputS!31:31) -> 0 | IK35: =LOOKUP(IK34,InputS!26:26,InputS!31:31) -> 0 | IL35: =LOOKUP(IL34,InputS!26:26,InputS!31:31) -> 0 | IM35: =LOOKUP(IM34,InputS!26:26,InputS!31:31) -> 0 | IN35: =LOOKUP(IN34,InputS!26:26,InputS!31:31) -> 0 | IO35: =LOOKUP(IO34,InputS!26:26,InputS!31:31) -> 0 | IP35: =LOOKUP(IP34,InputS!26:26,InputS!31:31) -> 0 | IQ35: =LOOKUP(IQ34,InputS!26:26,InputS!31:31) -> 0 | IR35: =LOOKUP(IR34,InputS!26:26,InputS!31:31) -> 0 | IS35: =LOOKUP(IS34,InputS!26:26,InputS!31:31) -> 0 | IT35: =LOOKUP(IT34,InputS!26:26,InputS!31:31) -> 0 | IU35: =LOOKUP(IU34,InputS!26:26,InputS!31:31) -> 0 | IV35: =LOOKUP(IV34,InputS!26:26,InputS!31:31) -> 0 | IW35: =LOOKUP(IW34,InputS!26:26,InputS!31:31) -> 0 | IX35: =LOOKUP(IX34,InputS!26:26,InputS!31:31) -> 0 | IY35: =LOOKUP(IY34,InputS!26:26,InputS!31:31) -> 0 | IZ35: =LOOKUP(IZ34,InputS!26:26,InputS!31:31) -> 0 | JA35: =LOOKUP(JA34,InputS!26:26,InputS!31:31) -> 0 | JB35: =LOOKUP(JB34,InputS!26:26,InputS!31:31) -> 0 | JC35: =LOOKUP(JC34,InputS!26:26,InputS!31:31) -> 0 | JD35: =LOOKUP(JD34,InputS!26:26,InputS!31:31) -> 0 | JE35: =LOOKUP(JE34,InputS!26:26,InputS!31:31) -> 0 | JF35: =LOOKUP(JF34,InputS!26:26,InputS!31:31) -> 0 | JG35: =LOOKUP(JG34,InputS!26:26,InputS!31:31) -> 0 | JH35: =LOOKUP(JH34,InputS!26:26,InputS!31:31) -> 0 | JI35: =LOOKUP(JI34,InputS!26:26,InputS!31:31) -> 0 | JJ35: =LOOKUP(JJ34,InputS!26:26,InputS!31:31) -> 0 | JK35: =LOOKUP(JK34,InputS!26:26,InputS!31:31) -> 0 | JL35: =LOOKUP(JL34,InputS!26:26,InputS!31:31) -> 0 | JM35: =LOOKUP(JM34,InputS!26:26,InputS!31:31) -> 0 | JN35: =LOOKUP(JN34,InputS!26:26,InputS!31:31) -> 0 | JO35: =LOOKUP(JO34,InputS!26:26,InputS!31:31) -> 0 | JP35: =LOOKUP(JP34,InputS!26:26,InputS!31:31) -> 0 | JQ35: =LOOKUP(JQ34,InputS!26:26,InputS!31:31) -> 0 | JR35: =LOOKUP(JR34,InputS!26:26,InputS!31:31) -> 0 | JS35: =LOOKUP(JS34,InputS!26:26,InputS!31:31) -> 0 | JT35: =LOOKUP(JT34,InputS!26:26,InputS!31:31) -> 0 | JU35: =LOOKUP(JU34,InputS!26:26,InputS!31:31) -> 0 | JV35: =LOOKUP(JV34,InputS!26:26,InputS!31:31) -> 0 | JW35: =LOOKUP(JW34,InputS!26:26,InputS!31:31) -> 0 | JX35: =LOOKUP(JX34,InputS!26:26,InputS!31:31) -> 0 | JY35: =LOOKUP(JY34,InputS!26:26,InputS!31:31) -> 0 | JZ35: =LOOKUP(JZ34,InputS!26:26,InputS!31:31) -> 0 | KA35: =LOOKUP(KA34,InputS!26:26,InputS!31:31) -> 0 | KB35: =LOOKUP(KB34,InputS!26:26,InputS!31:31) -> 0 | KC35: =LOOKUP(KC34,InputS!26:26,InputS!31:31) -> 0 | KD35: =LOOKUP(KD34,InputS!26:26,InputS!31:31) -> 0 | KE35: =LOOKUP(KE34,InputS!26:26,InputS!31:31) -> 0 | KF35: =LOOKUP(KF34,InputS!26:26,InputS!31:31) -> 0 | KG35: =LOOKUP(KG34,InputS!26:26,InputS!31:31) -> 0 | KH35: =LOOKUP(KH34,InputS!26:26,InputS!31:31) -> 0 | KI35: =LOOKUP(KI34,InputS!26:26,InputS!31:31) -> 0 | KJ35: =LOOKUP(KJ34,InputS!26:26,InputS!31:31) -> 0 | KK35: =LOOKUP(KK34,InputS!26:26,InputS!31:31) -> 0 | KL35: =LOOKUP(KL34,InputS!26:26,InputS!31:31) -> 0 | KM35: =LOOKUP(KM34,InputS!26:26,InputS!31:31) -> 0 | KN35: =LOOKUP(KN34,InputS!26:26,InputS!31:31) -> 0 | KO35: =LOOKUP(KO34,InputS!26:26,InputS!31:31) -> 0 | KP35: =LOOKUP(KP34,InputS!26:26,InputS!31:31) -> 0 | KQ35: =LOOKUP(KQ34,InputS!26:26,InputS!31:31) -> 0 | KR35: =LOOKUP(KR34,InputS!26:26,InputS!31:31) -> 0 | KS35: =LOOKUP(KS34,InputS!26:26,InputS!31:31) -> 0 | KT35: =LOOKUP(KT34,InputS!26:26,InputS!31:31) -> 0 | KU35: =LOOKUP(KU34,InputS!26:26,InputS!31:31) -> 0 | KV35: =LOOKUP(KV34,InputS!26:26,InputS!31:31) -> 0 | KW35: =LOOKUP(KW34,InputS!26:26,InputS!31:31) -> 0 | KX35: =LOOKUP(KX34,InputS!26:26,InputS!31:31) -> 0 | KY35: =LOOKUP(KY34,InputS!26:26,InputS!31:31) -> 0 | KZ35: =LOOKUP(KZ34,InputS!26:26,InputS!31:31) -> 0 | LA35: =LOOKUP(LA34,InputS!26:26,InputS!31:31) -> 0 | LB35: =LOOKUP(LB34,InputS!26:26,InputS!31:31) -> 0 | LC35: =LOOKUP(LC34,InputS!26:26,InputS!31:31) -> 0 | LD35: =LOOKUP(LD34,InputS!26:26,InputS!31:31) -> 0 | LE35: =LOOKUP(LE34,InputS!26:26,InputS!31:31) -> 0 | LF35: =LOOKUP(LF34,InputS!26:26,InputS!31:31) -> 0 | LG35: =LOOKUP(LG34,InputS!26:26,InputS!31:31) -> 0 | LH35: =LOOKUP(LH34,InputS!26:26,InputS!31:31) -> 0 | LI35: =LOOKUP(LI34,InputS!26:26,InputS!31:31) -> 0 | LJ35: =LOOKUP(LJ34,InputS!26:26,InputS!31:31) -> 0 | LK35: =LOOKUP(LK34,InputS!26:26,InputS!31:31) -> 0 | LL35: =LOOKUP(LL34,InputS!26:26,InputS!31:31) -> 0 | LM35: =LOOKUP(LM34,InputS!26:26,InputS!31:31) -> 0 | LN35: =LOOKUP(LN34,InputS!26:26,InputS!31:31) -> 0 | LO35: =LOOKUP(LO34,InputS!26:26,InputS!31:31) -> 0 | LP35: =LOOKUP(LP34,InputS!26:26,InputS!31:31) -> 0 | LQ35: =LOOKUP(LQ34,InputS!26:26,InputS!31:31) -> 0 | LR35: =LOOKUP(LR34,InputS!26:26,InputS!31:31) -> 0 | LS35: =LOOKUP(LS34,InputS!26:26,InputS!31:31) -> 0 | LT35: =LOOKUP(LT34,InputS!26:26,InputS!31:31) -> 0 | LU35: =LOOKUP(LU34,InputS!26:26,InputS!31:31) -> 0 | LV35: =LOOKUP(LV34,InputS!26:26,InputS!31:31) -> 0 | LW35: =LOOKUP(LW34,InputS!26:26,InputS!31:31) -> 0 | LX35: =LOOKUP(LX34,InputS!26:26,InputS!31:31) -> 0 | LY35: =LOOKUP(LY34,InputS!26:26,InputS!31:31) -> 0 | LZ35: =LOOKUP(LZ34,InputS!26:26,InputS!31:31) -> 0 | MA35: =LOOKUP(MA34,InputS!26:26,InputS!31:31) -> 0 | MB35: =LOOKUP(MB34,InputS!26:26,InputS!31:31) -> 0 | MC35: =LOOKUP(MC34,InputS!26:26,InputS!31:31) -> 0 | MD35: =LOOKUP(MD34,InputS!26:26,InputS!31:31) -> 0 | ME35: =LOOKUP(ME34,InputS!26:26,InputS!31:31) -> 0 | MF35: =LOOKUP(MF34,InputS!26:26,InputS!31:31) -> 0 | MG35: =LOOKUP(MG34,InputS!26:26,InputS!31:31) -> 0 | MH35: =LOOKUP(MH34,InputS!26:26,InputS!31:31) -> 0 | MI35: =LOOKUP(MI34,InputS!26:26,InputS!31:31) -> 0 | MJ35: =LOOKUP(MJ34,InputS!26:26,InputS!31:31) -> 0 | MK35: =LOOKUP(MK34,InputS!26:26,InputS!31:31) -> 0 | ML35: =LOOKUP(ML34,InputS!26:26,InputS!31:31) -> 0 | MM35: =LOOKUP(MM34,InputS!26:26,InputS!31:31) -> 0 | MN35: =LOOKUP(MN34,InputS!26:26,InputS!31:31) -> 0 | MO35: =LOOKUP(MO34,InputS!26:26,InputS!31:31) -> 0 | MP35: =LOOKUP(MP34,InputS!26:26,InputS!31:31) -> 0 | MQ35: =LOOKUP(MQ34,InputS!26:26,InputS!31:31) -> 0 | MR35: =LOOKUP(MR34,InputS!26:26,InputS!31:31) -> 0 | MS35: =LOOKUP(MS34,InputS!26:26,InputS!31:31) -> 0 | MT35: =LOOKUP(MT34,InputS!26:26,InputS!31:31) -> 0 | MU35: =LOOKUP(MU34,InputS!26:26,InputS!31:31) -> 0 | MV35: =LOOKUP(MV34,InputS!26:26,InputS!31:31) -> 0 | MW35: =LOOKUP(MW34,InputS!26:26,InputS!31:31) -> 0 | MX35: =LOOKUP(MX34,InputS!26:26,InputS!31:31) -> 0 | MY35: =LOOKUP(MY34,InputS!26:26,InputS!31:31) -> 0 | MZ35: =LOOKUP(MZ34,InputS!26:26,InputS!31:31) -> 0 | NA35: =LOOKUP(NA34,InputS!26:26,InputS!31:31) -> 0 | NB35: =LOOKUP(NB34,InputS!26:26,InputS!31:31) -> 0 | NC35: =LOOKUP(NC34,InputS!26:26,InputS!31:31) -> 0 | ND35: =LOOKUP(ND34,InputS!26:26,InputS!31:31) -> 0 | NE35: =LOOKUP(NE34,InputS!26:26,InputS!31:31) -> 0 | NF35: =LOOKUP(NF34,InputS!26:26,InputS!31:31) -> 0 | NG35: =LOOKUP(NG34,InputS!26:26,InputS!31:31) -> 0 | NH35: =LOOKUP(NH34,InputS!26:26,InputS!31:31) -> 0 | NI35: =LOOKUP(NI34,InputS!26:26,InputS!31:31) -> 0 | NJ35: =LOOKUP(NJ34,InputS!26:26,InputS!31:31) -> 0 | NK35: =LOOKUP(NK34,InputS!26:26,InputS!31:31) -> 0 | NL35: =LOOKUP(NL34,InputS!26:26,InputS!31:31) -> 0 | NM35: =LOOKUP(NM34,InputS!26:26,InputS!31:31) -> 0 | NN35: =LOOKUP(NN34,InputS!26:26,InputS!31:31) -> 0 | NO35: =LOOKUP(NO34,InputS!26:26,InputS!31:31) -> 0 | NP35: =LOOKUP(NP34,InputS!26:26,InputS!31:31) -> 0 | NQ35: =LOOKUP(NQ34,InputS!26:26,InputS!31:31) -> 0 | NR35: =LOOKUP(NR34,InputS!26:26,InputS!31:31) -> 0 | NS35: =LOOKUP(NS34,InputS!26:26,InputS!31:31) -> 0 | NT35: =LOOKUP(NT34,InputS!26:26,InputS!31:31) -> 0 | NU35: =LOOKUP(NU34,InputS!26:26,InputS!31:31) -> 0 | NV35: =LOOKUP(NV34,InputS!26:26,InputS!31:31) -> 0 | NW35: =LOOKUP(NW34,InputS!26:26,InputS!31:31) -> 0 | NX35: =LOOKUP(NX34,InputS!26:26,InputS!31:31) -> 0 | NY35: =LOOKUP(NY34,InputS!26:26,InputS!31:31) -> 0 | NZ35: =LOOKUP(NZ34,InputS!26:26,InputS!31:31) -> 0 | OA35: =LOOKUP(OA34,InputS!26:26,InputS!31:31) -> 0 | OB35: =LOOKUP(OB34,InputS!26:26,InputS!31:31) -> 0 | OC35: =LOOKUP(OC34,InputS!26:26,InputS!31:31) -> 0 | OD35: =LOOKUP(OD34,InputS!26:26,InputS!31:31) -> 0 | OE35: =LOOKUP(OE34,InputS!26:26,InputS!31:31) -> 0 | OF35: =LOOKUP(OF34,InputS!26:26,InputS!31:31) -> 0 | OG35: =LOOKUP(OG34,InputS!26:26,InputS!31:31) -> 0 | OH35: =LOOKUP(OH34,InputS!26:26,InputS!31:31) -> 0 | OI35: =LOOKUP(OI34,InputS!26:26,InputS!31:31) -> 0 | OJ35: =LOOKUP(OJ34,InputS!26:26,InputS!31:31) -> 0 | OK35: =LOOKUP(OK34,InputS!26:26,InputS!31:31) -> 0 | OL35: =LOOKUP(OL34,InputS!26:26,InputS!31:31) -> 0 | OM35: =LOOKUP(OM34,InputS!26:26,InputS!31:31) -> 0 | ON35: =LOOKUP(ON34,InputS!26:26,InputS!31:31) -> 0 | OO35: =LOOKUP(OO34,InputS!26:26,InputS!31:31) -> 0 | OP35: =LOOKUP(OP34,InputS!26:26,InputS!31:31) -> 0 | OQ35: =LOOKUP(OQ34,InputS!26:26,InputS!31:31) -> 0 | OR35: =LOOKUP(OR34,InputS!26:26,InputS!31:31) -> 0 | OS35: =LOOKUP(OS34,InputS!26:26,InputS!31:31) -> 0 | OT35: =LOOKUP(OT34,InputS!26:26,InputS!31:31) -> 0 | OU35: =LOOKUP(OU34,InputS!26:26,InputS!31:31) -> 0 | OV35: =LOOKUP(OV34,InputS!26:26,InputS!31:31) -> 0 | OW35: =LOOKUP(OW34,InputS!26:26,InputS!31:31) -> 0 | OX35: =LOOKUP(OX34,InputS!26:26,InputS!31:31) -> 0 | OY35: =LOOKUP(OY34,InputS!26:26,InputS!31:31) -> 0 | OZ35: =LOOKUP(OZ34,InputS!26:26,InputS!31:31) -> 0 | PA35: =LOOKUP(PA34,InputS!26:26,InputS!31:31) -> 0 | PB35: =LOOKUP(PB34,InputS!26:26,InputS!31:31) -> 0 | PC35: =LOOKUP(PC34,InputS!26:26,InputS!31:31) -> 0 | PD35: =LOOKUP(PD34,InputS!26:26,InputS!31:31) -> 0 | PE35: =LOOKUP(PE34,InputS!26:26,InputS!31:31) -> 0 | PF35: =LOOKUP(PF34,InputS!26:26,InputS!31:31) -> 0 | PG35: =LOOKUP(PG34,InputS!26:26,InputS!31:31) -> 0 | PH35: =LOOKUP(PH34,InputS!26:26,InputS!31:31) -> 0 | PI35: =LOOKUP(PI34,InputS!26:26,InputS!31:31) -> 0 | PJ35: =LOOKUP(PJ34,InputS!26:26,InputS!31:31) -> 0 | PK35: =LOOKUP(PK34,InputS!26:26,InputS!31:31) -> 0 | PL35: =LOOKUP(PL34,InputS!26:26,InputS!31:31) -> 0 | PM35: =LOOKUP(PM34,InputS!26:26,InputS!31:31) -> 0 | PN35: =LOOKUP(PN34,InputS!26:26,InputS!31:31) -> 0 | PO35: =LOOKUP(PO34,InputS!26:26,InputS!31:31) -> 0 | PP35: =LOOKUP(PP34,InputS!26:26,InputS!31:31) -> 0 | PQ35: =LOOKUP(PQ34,InputS!26:26,InputS!31:31) -> 0 | PR35: =LOOKUP(PR34,InputS!26:26,InputS!31:31) -> 0 | PS35: =LOOKUP(PS34,InputS!26:26,InputS!31:31) -> 0 | PT35: =LOOKUP(PT34,InputS!26:26,InputS!31:31) -> 0 | PU35: =LOOKUP(PU34,InputS!26:26,InputS!31:31) -> 0 | PV35: =LOOKUP(PV34,InputS!26:26,InputS!31:31) -> 0 | PW35: =LOOKUP(PW34,InputS!26:26,InputS!31:31) -> 0 | PX35: =LOOKUP(PX34,InputS!26:26,InputS!31:31) -> 0 | PY35: =LOOKUP(PY34,InputS!26:26,InputS!31:31) -> 0 | PZ35: =LOOKUP(PZ34,InputS!26:26,InputS!31:31) -> 0 | QA35: =LOOKUP(QA34,InputS!26:26,InputS!31:31) -> 0 | QB35: =LOOKUP(QB34,InputS!26:26,InputS!31:31) -> 0 | QC35: =LOOKUP(QC34,InputS!26:26,InputS!31:31) -> 0 | QD35: =LOOKUP(QD34,InputS!26:26,InputS!31:31) -> 0 | QE35: =LOOKUP(QE34,InputS!26:26,InputS!31:31) -> 0 | QF35: =LOOKUP(QF34,InputS!26:26,InputS!31:31) -> 0 | QG35: =LOOKUP(QG34,InputS!26:26,InputS!31:31) -> 0 | QH35: =LOOKUP(QH34,InputS!26:26,InputS!31:31) -> 0 | QI35: =LOOKUP(QI34,InputS!26:26,InputS!31:31) -> 0 | QJ35: =LOOKUP(QJ34,InputS!26:26,InputS!31:31) -> 0 | QK35: =LOOKUP(QK34,InputS!26:26,InputS!31:31) -> 0 | QL35: =LOOKUP(QL34,InputS!26:26,InputS!31:31) -> 0 | QM35: =LOOKUP(QM34,InputS!26:26,InputS!31:31) -> 0 | QN35: =LOOKUP(QN34,InputS!26:26,InputS!31:31) -> 0 | QO35: =LOOKUP(QO34,InputS!26:26,InputS!31:31) -> 0 | QP35: =LOOKUP(QP34,InputS!26:26,InputS!31:31) -> 0 | QQ35: =LOOKUP(QQ34,InputS!26:26,InputS!31:31) -> 0 | QR35: =LOOKUP(QR34,InputS!26:26,InputS!31:31) -> 0 | QS35: =LOOKUP(QS34,InputS!26:26,InputS!31:31) -> 0 | QT35: =LOOKUP(QT34,InputS!26:26,InputS!31:31) -> 0 | QU35: =LOOKUP(QU34,InputS!26:26,InputS!31:31) -> 0 | QV35: =LOOKUP(QV34,InputS!26:26,InputS!31:31) -> 0 | QW35: =LOOKUP(QW34,InputS!26:26,InputS!31:31) -> 0 | QX35: =LOOKUP(QX34,InputS!26:26,InputS!31:31) -> 0 | QY35: =LOOKUP(QY34,InputS!26:26,InputS!31:31) -> 0 | QZ35: =LOOKUP(QZ34,InputS!26:26,InputS!31:31) -> 0 | RA35: =LOOKUP(RA34,InputS!26:26,InputS!31:31) -> 0 | RB35: =LOOKUP(RB34,InputS!26:26,InputS!31:31) -> 0 | RC35: =LOOKUP(RC34,InputS!26:26,InputS!31:31) -> 0 | RD35: =LOOKUP(RD34,InputS!26:26,InputS!31:31) -> 0 | RE35: =LOOKUP(RE34,InputS!26:26,InputS!31:31) -> 0 | RF35: =LOOKUP(RF34,InputS!26:26,InputS!31:31) -> 0 | RG35: =LOOKUP(RG34,InputS!26:26,InputS!31:31) -> 0 | RH35: =LOOKUP(RH34,InputS!26:26,InputS!31:31) -> 0 | RI35: =LOOKUP(RI34,InputS!26:26,InputS!31:31) -> 0 | RJ35: =LOOKUP(RJ34,InputS!26:26,InputS!31:31) -> 0 | RK35: =LOOKUP(RK34,InputS!26:26,InputS!31:31) -> 0 | RL35: =LOOKUP(RL34,InputS!26:26,InputS!31:31) -> 0 | RM35: =LOOKUP(RM34,InputS!26:26,InputS!31:31) -> 0 | RN35: =LOOKUP(RN34,InputS!26:26,InputS!31:31) -> 0 | RO35: =LOOKUP(RO34,InputS!26:26,InputS!31:31) -> 0 | RP35: =LOOKUP(RP34,InputS!26:26,InputS!31:31) -> 0 | RQ35: =LOOKUP(RQ34,InputS!26:26,InputS!31:31) -> 0 | RR35: =LOOKUP(RR34,InputS!26:26,InputS!31:31) -> 0 | RS35: =LOOKUP(RS34,InputS!26:26,InputS!31:31) -> 0 | RT35: =LOOKUP(RT34,InputS!26:26,InputS!31:31) -> 0 | RU35: =LOOKUP(RU34,InputS!26:26,InputS!31:31) -> 0 | RV35: =LOOKUP(RV34,InputS!26:26,InputS!31:31) -> 0 | RW35: =LOOKUP(RW34,InputS!26:26,InputS!31:31) -> 0 | RX35: =LOOKUP(RX34,InputS!26:26,InputS!31:31) -> 0 | RY35: =LOOKUP(RY34,InputS!26:26,InputS!31:31) -> 0 | RZ35: =LOOKUP(RZ34,InputS!26:26,InputS!31:31) -> 0 | SA35: =LOOKUP(SA34,InputS!26:26,InputS!31:31) -> 0 | SB35: =LOOKUP(SB34,InputS!26:26,InputS!31:31) -> 0 | SC35: =LOOKUP(SC34,InputS!26:26,InputS!31:31) -> 0 | SD35: =LOOKUP(SD34,InputS!26:26,InputS!31:31) -> 0 | SE35: =LOOKUP(SE34,InputS!26:26,InputS!31:31) -> 0 | SF35: =LOOKUP(SF34,InputS!26:26,InputS!31:31) -> 0 | SG35: =LOOKUP(SG34,InputS!26:26,InputS!31:31) -> 0 | SH35: =LOOKUP(SH34,InputS!26:26,InputS!31:31) -> 0 | SI35: =LOOKUP(SI34,InputS!26:26,InputS!31:31) -> 0 | SJ35: =LOOKUP(SJ34,InputS!26:26,InputS!31:31) -> 0 | SK35: =LOOKUP(SK34,InputS!26:26,InputS!31:31) -> 0 | SL35: =LOOKUP(SL34,InputS!26:26,InputS!31:31) -> 0 | SM35: =LOOKUP(SM34,InputS!26:26,InputS!31:31) -> 0 | SN35: =LOOKUP(SN34,InputS!26:26,InputS!31:31) -> 0 | SO35: =LOOKUP(SO34,InputS!26:26,InputS!31:31) -> 0 | SP35: =LOOKUP(SP34,InputS!26:26,InputS!31:31) -> 0 | SQ35: =LOOKUP(SQ34,InputS!26:26,InputS!31:31) -> 0
D36: Monthly Inflation Rate | F36: =L36 -> 0 | G36: % p.p. | L36: =(1+L35)^(1/Months)-1 -> 0 | M36: 0 | N36: 0 | O36: 0 | P36: 0 | Q36: 0 | R36: 0 | S36: 0 | T36: 0 | U36: 0 | V36: 0 | W36: 0 | X36: 0 | Y36: 0 | Z36: 0 | AA36: 0 | AB36: 0 | AC36: 0 | AD36: 0 | AE36: 0 | AF36: 0 | AG36: 0 | AH36: 0 | AI36: 0 | AJ36: 0 | AK36: 0 | AL36: 0 | AM36: 0 | AN36: 0 | AO36: 0 | AP36: 0 | AQ36: 0 | AR36: 0 | AS36: 0 | AT36: 0 | AU36: 0 | AV36: 0 | AW36: 0 | AX36: 0 | AY36: 0 | AZ36: 0 | BA36: 0 | BB36: 0 | BC36: 0 | BD36: 0 | BE36: 0 | BF36: 0 | BG36: 0 | BH36: 0 | BI36: 0 | BJ36: 0 | BK36: 0 | BL36: 0 | BM36: 0 | BN36: 0 | BO36: 0 | BP36: 0 | BQ36: 0 | BR36: 0 | BS36: 0 | BT36: 0 | BU36: 0 | BV36: 0 | BW36: 0 | BX36: =(1+BX35)^(1/Months)-1 -> 0 | BY36: 0 | BZ36: 0 | CA36: 0 | CB36: 0 | CC36: 0 | CD36: 0 | CE36: 0 | CF36: 0 | CG36: 0 | CH36: 0 | CI36: 0 | CJ36: 0 | CK36: 0 | CL36: 0 | CM36: 0 | CN36: 0 | CO36: 0 | CP36: 0 | CQ36: 0 | CR36: 0 | CS36: 0 | CT36: 0 | CU36: 0 | CV36: 0 | CW36: 0 | CX36: 0 | CY36: 0 | CZ36: 0 | DA36: 0 | DB36: 0 | DC36: 0 | DD36: 0 | DE36: 0 | DF36: 0 | DG36: 0 | DH36: 0 | DI36: 0 | DJ36: 0 | DK36: 0 | DL36: 0 | DM36: 0 | DN36: 0 | DO36: 0 | DP36: 0 | DQ36: 0 | DR36: 0 | DS36: 0 | DT36: 0 | DU36: 0 | DV36: 0 | DW36: 0 | DX36: 0 | DY36: 0 | DZ36: 0 | EA36: 0 | EB36: 0 | EC36: 0 | ED36: 0 | EE36: 0 | EF36: 0 | EG36: 0 | EH36: 0 | EI36: 0 | EJ36: =(1+EJ35)^(1/Months)-1 -> 0 | EK36: 0 | EL36: 0 | EM36: 0 | EN36: 0 | EO36: 0 | EP36: 0 | EQ36: 0 | ER36: 0 | ES36: 0 | ET36: 0 | EU36: 0 | EV36: 0 | EW36: 0 | EX36: 0 | EY36: 0 | EZ36: 0 | FA36: 0 | FB36: 0 | FC36: 0 | FD36: 0 | FE36: 0 | FF36: 0 | FG36: 0 | FH36: 0 | FI36: 0 | FJ36: 0 | FK36: 0 | FL36: 0 | FM36: 0 | FN36: 0 | FO36: 0 | FP36: 0 | FQ36: 0 | FR36: 0 | FS36: 0 | FT36: 0 | FU36: 0 | FV36: 0 | FW36: 0 | FX36: 0 | FY36: 0 | FZ36: 0 | GA36: 0 | GB36: 0 | GC36: 0 | GD36: 0 | GE36: 0 | GF36: 0 | GG36: 0 | GH36: 0 | GI36: 0 | GJ36: 0 | GK36: 0 | GL36: 0 | GM36: 0 | GN36: 0 | GO36: 0 | GP36: 0 | GQ36: 0 | GR36: 0 | GS36: 0 | GT36: 0 | GU36: 0 | GV36: =(1+GV35)^(1/Months)-1 -> 0 | GW36: 0 | GX36: 0 | GY36: 0 | GZ36: 0 | HA36: 0 | HB36: 0 | HC36: 0 | HD36: 0 | HE36: 0 | HF36: 0 | HG36: 0 | HH36: 0 | HI36: 0 | HJ36: 0 | HK36: 0 | HL36: 0 | HM36: 0 | HN36: 0 | HO36: 0 | HP36: 0 | HQ36: 0 | HR36: 0 | HS36: 0 | HT36: 0 | HU36: 0 | HV36: 0 | HW36: 0 | HX36: 0 | HY36: 0 | HZ36: 0 | IA36: 0 | IB36: 0 | IC36: 0 | ID36: 0 | IE36: 0 | IF36: 0 | IG36: 0 | IH36: 0 | II36: 0 | IJ36: 0 | IK36: 0 | IL36: 0 | IM36: 0 | IN36: 0 | IO36: 0 | IP36: 0 | IQ36: 0 | IR36: 0 | IS36: 0 | IT36: 0 | IU36: 0 | IV36: 0 | IW36: 0 | IX36: 0 | IY36: 0 | IZ36: 0 | JA36: 0 | JB36: 0 | JC36: 0 | JD36: 0 | JE36: 0 | JF36: 0 | JG36: 0 | JH36: =(1+JH35)^(1/Months)-1 -> 0 | JI36: 0 | JJ36: 0 | JK36: 0 | JL36: 0 | JM36: 0 | JN36: 0 | JO36: 0 | JP36: 0 | JQ36: 0 | JR36: 0 | JS36: 0 | JT36: 0 | JU36: 0 | JV36: 0 | JW36: 0 | JX36: 0 | JY36: 0 | JZ36: 0 | KA36: 0 | KB36: 0 | KC36: 0 | KD36: 0 | KE36: 0 | KF36: 0 | KG36: 0 | KH36: 0 | KI36: 0 | KJ36: 0 | KK36: 0 | KL36: 0 | KM36: 0 | KN36: 0 | KO36: 0 | KP36: 0 | KQ36: 0 | KR36: 0 | KS36: 0 | KT36: 0 | KU36: 0 | KV36: 0 | KW36: 0 | KX36: 0 | KY36: 0 | KZ36: 0 | LA36: 0 | LB36: 0 | LC36: 0 | LD36: 0 | LE36: 0 | LF36: 0 | LG36: 0 | LH36: 0 | LI36: 0 | LJ36: 0 | LK36: 0 | LL36: 0 | LM36: 0 | LN36: 0 | LO36: 0 | LP36: 0 | LQ36: 0 | LR36: 0 | LS36: 0 | LT36: =(1+LT35)^(1/Months)-1 -> 0 | LU36: 0 | LV36: 0 | LW36: 0 | LX36: 0 | LY36: 0 | LZ36: 0 | MA36: 0 | MB36: 0 | MC36: 0 | MD36: 0 | ME36: 0 | MF36: 0 | MG36: 0 | MH36: 0 | MI36: 0 | MJ36: 0 | MK36: 0 | ML36: 0 | MM36: 0 | MN36: 0 | MO36: 0 | MP36: 0 | MQ36: 0 | MR36: 0 | MS36: 0 | MT36: 0 | MU36: 0 | MV36: 0 | MW36: 0 | MX36: 0 | MY36: 0 | MZ36: 0 | NA36: 0 | NB36: 0 | NC36: 0 | ND36: 0 | NE36: 0 | NF36: 0 | NG36: 0 | NH36: 0 | NI36: 0 | NJ36: 0 | NK36: 0 | NL36: 0 | NM36: 0 | NN36: 0 | NO36: 0 | NP36: 0 | NQ36: 0 | NR36: 0 | NS36: 0 | NT36: 0 | NU36: 0 | NV36: 0 | NW36: 0 | NX36: 0 | NY36: 0 | NZ36: 0 | OA36: 0 | OB36: 0 | OC36: 0 | OD36: 0 | OE36: 0 | OF36: =(1+OF35)^(1/Months)-1 -> 0 | OG36: 0 | OH36: 0 | OI36: 0 | OJ36: 0 | OK36: 0 | OL36: 0 | OM36: 0 | ON36: 0 | OO36: 0 | OP36: 0 | OQ36: 0 | OR36: 0 | OS36: 0 | OT36: 0 | OU36: 0 | OV36: 0 | OW36: 0 | OX36: 0 | OY36: 0 | OZ36: 0 | PA36: 0 | PB36: 0 | PC36: 0 | PD36: 0 | PE36: 0 | PF36: 0 | PG36: 0 | PH36: 0 | PI36: 0 | PJ36: 0 | PK36: 0 | PL36: 0 | PM36: 0 | PN36: 0 | PO36: 0 | PP36: 0 | PQ36: 0 | PR36: 0 | PS36: 0 | PT36: 0 | PU36: 0 | PV36: 0 | PW36: 0 | PX36: 0 | PY36: 0 | PZ36: 0 | QA36: 0 | QB36: 0 | QC36: 0 | QD36: 0 | QE36: 0 | QF36: 0 | QG36: 0 | QH36: 0 | QI36: 0 | QJ36: 0 | QK36: 0 | QL36: 0 | QM36: 0 | QN36: 0 | QO36: 0 | QP36: 0 | QQ36: 0 | QR36: =(1+QR35)^(1/Months)-1 -> 0 | QS36: 0 | QT36: 0 | QU36: 0 | QV36: 0 | QW36: 0 | QX36: 0 | QY36: 0 | QZ36: 0 | RA36: 0 | RB36: 0 | RC36: 0 | RD36: 0 | RE36: 0 | RF36: 0 | RG36: 0 | RH36: 0 | RI36: 0 | RJ36: 0 | RK36: 0 | RL36: 0 | RM36: 0 | RN36: 0 | RO36: 0 | RP36: 0 | RQ36: 0 | RR36: 0 | RS36: 0 | RT36: 0 | RU36: 0 | RV36: 0 | RW36: 0 | RX36: 0 | RY36: 0 | RZ36: 0 | SA36: 0 | SB36: 0 | SC36: 0 | SD36: 0 | SE36: 0 | SF36: 0 | SG36: 0 | SH36: 0 | SI36: 0 | SJ36: 0 | SK36: 0 | SL36: 0 | SM36: 0 | SN36: 0 | SO36: 0 | SP36: 0 | SQ36: 0
D38: Inflation Index from COD | E38: ='InputC - Operations'!E34 -> 0 | G38: Index | K38: 1 | L38: =K38*(1+L36*L7) -> 1 | M38: 1 | N38: 1 | O38: 1 | P38: 1 | Q38: 1 | R38: 1 | S38: 1 | T38: 1 | U38: 1 | V38: 1 | W38: 1 | X38: 1 | Y38: 1 | Z38: 1 | AA38: 1 | AB38: 1 | AC38: 1 | AD38: 1 | AE38: 1 | AF38: 1 | AG38: 1 | AH38: 1 | AI38: 1 | AJ38: 1 | AK38: 1 | AL38: 1 | AM38: 1 | AN38: 1 | AO38: 1 | AP38: 1 | AQ38: 1 | AR38: 1 | AS38: 1 | AT38: 1 | AU38: 1 | AV38: 1 | AW38: 1 | AX38: 1 | AY38: 1 | AZ38: 1 | BA38: 1 | BB38: 1 | BC38: 1 | BD38: 1 | BE38: 1 | BF38: 1 | BG38: 1 | BH38: 1 | BI38: 1 | BJ38: 1 | BK38: 1 | BL38: 1 | BM38: 1 | BN38: 1 | BO38: 1 | BP38: 1 | BQ38: 1 | BR38: 1 | BS38: 1 | BT38: 1 | BU38: 1 | BV38: 1 | BW38: 1 | BX38: =BW38*(1+BX36*BX7) -> 1 | BY38: 1 | BZ38: 1 | CA38: 1 | CB38: 1 | CC38: 1 | CD38: 1 | CE38: 1 | CF38: 1 | CG38: 1 | CH38: 1 | CI38: 1 | CJ38: 1 | CK38: 1 | CL38: 1 | CM38: 1 | CN38: 1 | CO38: 1 | CP38: 1 | CQ38: 1 | CR38: 1 | CS38: 1 | CT38: 1 | CU38: 1 | CV38: 1 | CW38: 1 | CX38: 1 | CY38: 1 | CZ38: 1 | DA38: 1 | DB38: 1 | DC38: 1 | DD38: 1 | DE38: 1 | DF38: 1 | DG38: 1 | DH38: 1 | DI38: 1 | DJ38: 1 | DK38: 1 | DL38: 1 | DM38: 1 | DN38: 1 | DO38: 1 | DP38: 1 | DQ38: 1 | DR38: 1 | DS38: 1 | DT38: 1 | DU38: 1 | DV38: 1 | DW38: 1 | DX38: 1 | DY38: 1 | DZ38: 1 | EA38: 1 | EB38: 1 | EC38: 1 | ED38: 1 | EE38: 1 | EF38: 1 | EG38: 1 | EH38: 1 | EI38: 1 | EJ38: =EI38*(1+EJ36*EJ7) -> 1 | EK38: 1 | EL38: 1 | EM38: 1 | EN38: 1 | EO38: 1 | EP38: 1 | EQ38: 1 | ER38: 1 | ES38: 1 | ET38: 1 | EU38: 1 | EV38: 1 | EW38: 1 | EX38: 1 | EY38: 1 | EZ38: 1 | FA38: 1 | FB38: 1 | FC38: 1 | FD38: 1 | FE38: 1 | FF38: 1 | FG38: 1 | FH38: 1 | FI38: 1 | FJ38: 1 | FK38: 1 | FL38: 1 | FM38: 1 | FN38: 1 | FO38: 1 | FP38: 1 | FQ38: 1 | FR38: 1 | FS38: 1 | FT38: 1 | FU38: 1 | FV38: 1 | FW38: 1 | FX38: 1 | FY38: 1 | FZ38: 1 | GA38: 1 | GB38: 1 | GC38: 1 | GD38: 1 | GE38: 1 | GF38: 1 | GG38: 1 | GH38: 1 | GI38: 1 | GJ38: 1 | GK38: 1 | GL38: 1 | GM38: 1 | GN38: 1 | GO38: 1 | GP38: 1 | GQ38: 1 | GR38: 1 | GS38: 1 | GT38: 1 | GU38: 1 | GV38: =GU38*(1+GV36*GV7) -> 1 | GW38: 1 | GX38: 1 | GY38: 1 | GZ38: 1 | HA38: 1 | HB38: 1 | HC38: 1 | HD38: 1 | HE38: 1 | HF38: 1 | HG38: 1 | HH38: 1 | HI38: 1 | HJ38: 1 | HK38: 1 | HL38: 1 | HM38: 1 | HN38: 1 | HO38: 1 | HP38: 1 | HQ38: 1 | HR38: 1 | HS38: 1 | HT38: 1 | HU38: 1 | HV38: 1 | HW38: 1 | HX38: 1 | HY38: 1 | HZ38: 1 | IA38: 1 | IB38: 1 | IC38: 1 | ID38: 1 | IE38: 1 | IF38: 1 | IG38: 1 | IH38: 1 | II38: 1 | IJ38: 1 | IK38: 1 | IL38: 1 | IM38: 1 | IN38: 1 | IO38: 1 | IP38: 1 | IQ38: 1 | IR38: 1 | IS38: 1 | IT38: 1 | IU38: 1 | IV38: 1 | IW38: 1 | IX38: 1 | IY38: 1 | IZ38: 1 | JA38: 1 | JB38: 1 | JC38: 1 | JD38: 1 | JE38: 1 | JF38: 1 | JG38: 1 | JH38: =JG38*(1+JH36*JH7) -> 1 | JI38: 1 | JJ38: 1 | JK38: 1 | JL38: 1 | JM38: 1 | JN38: 1 | JO38: 1 | JP38: 1 | JQ38: 1 | JR38: 1 | JS38: 1 | JT38: 1 | JU38: 1 | JV38: 1 | JW38: 1 | JX38: 1 | JY38: 1 | JZ38: 1 | KA38: 1 | KB38: 1 | KC38: 1 | KD38: 1 | KE38: 1 | KF38: 1 | KG38: 1 | KH38: 1 | KI38: 1 | KJ38: 1 | KK38: 1 | KL38: 1 | KM38: 1 | KN38: 1 | KO38: 1 | KP38: 1 | KQ38: 1 | KR38: 1 | KS38: 1 | KT38: 1 | KU38: 1 | KV38: 1 | KW38: 1 | KX38: 1 | KY38: 1 | KZ38: 1 | LA38: 1 | LB38: 1 | LC38: 1 | LD38: 1 | LE38: 1 | LF38: 1 | LG38: 1 | LH38: 1 | LI38: 1 | LJ38: 1 | LK38: 1 | LL38: 1 | LM38: 1 | LN38: 1 | LO38: 1 | LP38: 1 | LQ38: 1 | LR38: 1 | LS38: 1 | LT38: =LS38*(1+LT36*LT7) -> 1 | LU38: 1 | LV38: 1 | LW38: 1 | LX38: 1 | LY38: 1 | LZ38: 1 | MA38: 1 | MB38: 1 | MC38: 1 | MD38: 1 | ME38: 1 | MF38: 1 | MG38: 1 | MH38: 1 | MI38: 1 | MJ38: 1 | MK38: 1 | ML38: 1 | MM38: 1 | MN38: 1 | MO38: 1 | MP38: 1 | MQ38: 1 | MR38: 1 | MS38: 1 | MT38: 1 | MU38: 1 | MV38: 1 | MW38: 1 | MX38: 1 | MY38: 1 | MZ38: 1 | NA38: 1 | NB38: 1 | NC38: 1 | ND38: 1 | NE38: 1 | NF38: 1 | NG38: 1 | NH38: 1 | NI38: 1 | NJ38: 1 | NK38: 1 | NL38: 1 | NM38: 1 | NN38: 1 | NO38: 1 | NP38: 1 | NQ38: 1 | NR38: 1 | NS38: 1 | NT38: 1 | NU38: 1 | NV38: 1 | NW38: 1 | NX38: 1 | NY38: 1 | NZ38: 1 | OA38: 1 | OB38: 1 | OC38: 1 | OD38: 1 | OE38: 1 | OF38: =OE38*(1+OF36*OF7) -> 1 | OG38: 1 | OH38: 1 | OI38: 1 | OJ38: 1 | OK38: 1 | OL38: 1 | OM38: 1 | ON38: 1 | OO38: 1 | OP38: 1 | OQ38: 1 | OR38: 1 | OS38: 1 | OT38: 1 | OU38: 1 | OV38: 1 | OW38: 1 | OX38: 1 | OY38: 1 | OZ38: 1 | PA38: 1 | PB38: 1 | PC38: 1 | PD38: 1 | PE38: 1 | PF38: 1 | PG38: 1 | PH38: 1 | PI38: 1 | PJ38: 1 | PK38: 1 | PL38: 1 | PM38: 1 | PN38: 1 | PO38: 1 | PP38: 1 | PQ38: 1 | PR38: 1 | PS38: 1 | PT38: 1 | PU38: 1 | PV38: 1 | PW38: 1 | PX38: 1 | PY38: 1 | PZ38: 1 | QA38: 1 | QB38: 1 | QC38: 1 | QD38: 1 | QE38: 1 | QF38: 1 | QG38: 1 | QH38: 1 | QI38: 1 | QJ38: 1 | QK38: 1 | QL38: 1 | QM38: 1 | QN38: 1 | QO38: 1 | QP38: 1 | QQ38: 1 | QR38: =QQ38*(1+QR36*QR7) -> 1 | QS38: 1 | QT38: 1 | QU38: 1 | QV38: 1 | QW38: 1 | QX38: 1 | QY38: 1 | QZ38: 1 | RA38: 1 | RB38: 1 | RC38: 1 | RD38: 1 | RE38: 1 | RF38: 1 | RG38: 1 | RH38: 1 | RI38: 1 | RJ38: 1 | RK38: 1 | RL38: 1 | RM38: 1 | RN38: 1 | RO38: 1 | RP38: 1 | RQ38: 1 | RR38: 1 | RS38: 1 | RT38: 1 | RU38: 1 | RV38: 1 | RW38: 1 | RX38: 1 | RY38: 1 | RZ38: 1 | SA38: 1 | SB38: 1 | SC38: 1 | SD38: 1 | SE38: 1 | SF38: 1 | SG38: 1 | SH38: 1 | SI38: 1 | SJ38: 1 | SK38: 1 | SL38: 1 | SM38: 1 | SN38: 1 | SO38: 1 | SP38: 1 | SQ38: 1
D39: Inflation Index from Start Date | G39: Index | K39: 1 | L39: =K39*(1+L36) -> 1 | M39: =L39*(1+M36) -> 1 | N39: 1 | O39: 1 | P39: 1 | Q39: 1 | R39: 1 | S39: 1 | T39: 1 | U39: 1 | V39: 1 | W39: 1 | X39: 1 | Y39: 1 | Z39: 1 | AA39: 1 | AB39: 1 | AC39: 1 | AD39: 1 | AE39: 1 | AF39: 1 | AG39: 1 | AH39: 1 | AI39: 1 | AJ39: 1 | AK39: 1 | AL39: 1 | AM39: 1 | AN39: 1 | AO39: 1 | AP39: 1 | AQ39: 1 | AR39: 1 | AS39: 1 | AT39: 1 | AU39: 1 | AV39: 1 | AW39: 1 | AX39: 1 | AY39: 1 | AZ39: 1 | BA39: 1 | BB39: 1 | BC39: 1 | BD39: 1 | BE39: 1 | BF39: 1 | BG39: 1 | BH39: 1 | BI39: 1 | BJ39: 1 | BK39: 1 | BL39: 1 | BM39: 1 | BN39: 1 | BO39: 1 | BP39: 1 | BQ39: 1 | BR39: 1 | BS39: 1 | BT39: 1 | BU39: 1 | BV39: 1 | BW39: 1 | BX39: 1 | BY39: =BX39*(1+BY36) -> 1 | BZ39: 1 | CA39: 1 | CB39: 1 | CC39: 1 | CD39: 1 | CE39: 1 | CF39: 1 | CG39: 1 | CH39: 1 | CI39: 1 | CJ39: 1 | CK39: 1 | CL39: 1 | CM39: 1 | CN39: 1 | CO39: 1 | CP39: 1 | CQ39: 1 | CR39: 1 | CS39: 1 | CT39: 1 | CU39: 1 | CV39: 1 | CW39: 1 | CX39: 1 | CY39: 1 | CZ39: 1 | DA39: 1 | DB39: 1 | DC39: 1 | DD39: 1 | DE39: 1 | DF39: 1 | DG39: 1 | DH39: 1 | DI39: 1 | DJ39: 1 | DK39: 1 | DL39: 1 | DM39: 1 | DN39: 1 | DO39: 1 | DP39: 1 | DQ39: 1 | DR39: 1 | DS39: 1 | DT39: 1 | DU39: 1 | DV39: 1 | DW39: 1 | DX39: 1 | DY39: 1 | DZ39: 1 | EA39: 1 | EB39: 1 | EC39: 1 | ED39: 1 | EE39: 1 | EF39: 1 | EG39: 1 | EH39: 1 | EI39: 1 | EJ39: 1 | EK39: =EJ39*(1+EK36) -> 1 | EL39: 1 | EM39: 1 | EN39: 1 | EO39: 1 | EP39: 1 | EQ39: 1 | ER39: 1 | ES39: 1 | ET39: 1 | EU39: 1 | EV39: 1 | EW39: 1 | EX39: 1 | EY39: 1 | EZ39: 1 | FA39: 1 | FB39: 1 | FC39: 1 | FD39: 1 | FE39: 1 | FF39: 1 | FG39: 1 | FH39: 1 | FI39: 1 | FJ39: 1 | FK39: 1 | FL39: 1 | FM39: 1 | FN39: 1 | FO39: 1 | FP39: 1 | FQ39: 1 | FR39: 1 | FS39: 1 | FT39: 1 | FU39: 1 | FV39: 1 | FW39: 1 | FX39: 1 | FY39: 1 | FZ39: 1 | GA39: 1 | GB39: 1 | GC39: 1 | GD39: 1 | GE39: 1 | GF39: 1 | GG39: 1 | GH39: 1 | GI39: 1 | GJ39: 1 | GK39: 1 | GL39: 1 | GM39: 1 | GN39: 1 | GO39: 1 | GP39: 1 | GQ39: 1 | GR39: 1 | GS39: 1 | GT39: 1 | GU39: 1 | GV39: 1 | GW39: =GV39*(1+GW36) -> 1 | GX39: 1 | GY39: 1 | GZ39: 1 | HA39: 1 | HB39: 1 | HC39: 1 | HD39: 1 | HE39: 1 | HF39: 1 | HG39: 1 | HH39: 1 | HI39: 1 | HJ39: 1 | HK39: 1 | HL39: 1 | HM39: 1 | HN39: 1 | HO39: 1 | HP39: 1 | HQ39: 1 | HR39: 1 | HS39: 1 | HT39: 1 | HU39: 1 | HV39: 1 | HW39: 1 | HX39: 1 | HY39: 1 | HZ39: 1 | IA39: 1 | IB39: 1 | IC39: 1 | ID39: 1 | IE39: 1 | IF39: 1 | IG39: 1 | IH39: 1 | II39: 1 | IJ39: 1 | IK39: 1 | IL39: 1 | IM39: 1 | IN39: 1 | IO39: 1 | IP39: 1 | IQ39: 1 | IR39: 1 | IS39: 1 | IT39: 1 | IU39: 1 | IV39: 1 | IW39: 1 | IX39: 1 | IY39: 1 | IZ39: 1 | JA39: 1 | JB39: 1 | JC39: 1 | JD39: 1 | JE39: 1 | JF39: 1 | JG39: 1 | JH39: 1 | JI39: =JH39*(1+JI36) -> 1 | JJ39: 1 | JK39: 1 | JL39: 1 | JM39: 1 | JN39: 1 | JO39: 1 | JP39: 1 | JQ39: 1 | JR39: 1 | JS39: 1 | JT39: 1 | JU39: 1 | JV39: 1 | JW39: 1 | JX39: 1 | JY39: 1 | JZ39: 1 | KA39: 1 | KB39: 1 | KC39: 1 | KD39: 1 | KE39: 1 | KF39: 1 | KG39: 1 | KH39: 1 | KI39: 1 | KJ39: 1 | KK39: 1 | KL39: 1 | KM39: 1 | KN39: 1 | KO39: 1 | KP39: 1 | KQ39: 1 | KR39: 1 | KS39: 1 | KT39: 1 | KU39: 1 | KV39: 1 | KW39: 1 | KX39: 1 | KY39: 1 | KZ39: 1 | LA39: 1 | LB39: 1 | LC39: 1 | LD39: 1 | LE39: 1 | LF39: 1 | LG39: 1 | LH39: 1 | LI39: 1 | LJ39: 1 | LK39: 1 | LL39: 1 | LM39: 1 | LN39: 1 | LO39: 1 | LP39: 1 | LQ39: 1 | LR39: 1 | LS39: 1 | LT39: 1 | LU39: =LT39*(1+LU36) -> 1 | LV39: 1 | LW39: 1 | LX39: 1 | LY39: 1 | LZ39: 1 | MA39: 1 | MB39: 1 | MC39: 1 | MD39: 1 | ME39: 1 | MF39: 1 | MG39: 1 | MH39: 1 | MI39: 1 | MJ39: 1 | MK39: 1 | ML39: 1 | MM39: 1 | MN39: 1 | MO39: 1 | MP39: 1 | MQ39: 1 | MR39: 1 | MS39: 1 | MT39: 1 | MU39: 1 | MV39: 1 | MW39: 1 | MX39: 1 | MY39: 1 | MZ39: 1 | NA39: 1 | NB39: 1 | NC39: 1 | ND39: 1 | NE39: 1 | NF39: 1 | NG39: 1 | NH39: 1 | NI39: 1 | NJ39: 1 | NK39: 1 | NL39: 1 | NM39: 1 | NN39: 1 | NO39: 1 | NP39: 1 | NQ39: 1 | NR39: 1 | NS39: 1 | NT39: 1 | NU39: 1 | NV39: 1 | NW39: 1 | NX39: 1 | NY39: 1 | NZ39: 1 | OA39: 1 | OB39: 1 | OC39: 1 | OD39: 1 | OE39: 1 | OF39: 1 | OG39: =OF39*(1+OG36) -> 1 | OH39: 1 | OI39: 1 | OJ39: 1 | OK39: 1 | OL39: 1 | OM39: 1 | ON39: 1 | OO39: 1 | OP39: 1 | OQ39: 1 | OR39: 1 | OS39: 1 | OT39: 1 | OU39: 1 | OV39: 1 | OW39: 1 | OX39: 1 | OY39: 1 | OZ39: 1 | PA39: 1 | PB39: 1 | PC39: 1 | PD39: 1 | PE39: 1 | PF39: 1 | PG39: 1 | PH39: 1 | PI39: 1 | PJ39: 1 | PK39: 1 | PL39: 1 | PM39: 1 | PN39: 1 | PO39: 1 | PP39: 1 | PQ39: 1 | PR39: 1 | PS39: 1 | PT39: 1 | PU39: 1 | PV39: 1 | PW39: 1 | PX39: 1 | PY39: 1 | PZ39: 1 | QA39: 1 | QB39: 1 | QC39: 1 | QD39: 1 | QE39: 1 | QF39: 1 | QG39: 1 | QH39: 1 | QI39: 1 | QJ39: 1 | QK39: 1 | QL39: 1 | QM39: 1 | QN39: 1 | QO39: 1 | QP39: 1 | QQ39: 1 | QR39: 1 | QS39: =QR39*(1+QS36) -> 1 | QT39: 1 | QU39: 1 | QV39: 1 | QW39: 1 | QX39: 1 | QY39: 1 | QZ39: 1 | RA39: 1 | RB39: 1 | RC39: 1 | RD39: 1 | RE39: 1 | RF39: 1 | RG39: 1 | RH39: 1 | RI39: 1 | RJ39: 1 | RK39: 1 | RL39: 1 | RM39: 1 | RN39: 1 | RO39: 1 | RP39: 1 | RQ39: 1 | RR39: 1 | RS39: 1 | RT39: 1 | RU39: 1 | RV39: 1 | RW39: 1 | RX39: 1 | RY39: 1 | RZ39: 1 | SA39: 1 | SB39: 1 | SC39: 1 | SD39: 1 | SE39: 1 | SF39: 1 | SG39: 1 | SH39: 1 | SI39: 1 | SJ39: 1 | SK39: 1 | SL39: 1 | SM39: 1 | SN39: 1 | SO39: 1 | SP39: 1 | SQ39: 1
C41: PPA Revenues
D42: PPA Real Rate (2021) | E42: ='InputC - Operations'!$E$33 -> 25.83884403 | G42: Euro/MWH | L42: =$E$42 -> 25.83884403 | M42: 25.83884403 | N42: 25.83884403 | O42: 25.83884403 | P42: 25.83884403 | Q42: 25.83884403 | R42: 25.83884403 | S42: 25.83884403 | T42: 25.83884403 | U42: 25.83884403 | V42: 25.83884403 | W42: 25.83884403 | X42: 25.83884403 | Y42: 25.83884403 | Z42: 25.83884403 | AA42: 25.83884403 | AB42: 25.83884403 | AC42: 25.83884403 | AD42: 25.83884403 | AE42: 25.83884403 | AF42: 25.83884403 | AG42: 25.83884403 | AH42: 25.83884403 | AI42: 25.83884403 | AJ42: 25.83884403 | AK42: 25.83884403 | AL42: 25.83884403 | AM42: 25.83884403 | AN42: 25.83884403 | AO42: 25.83884403 | AP42: 25.83884403 | AQ42: 25.83884403 | AR42: 25.83884403 | AS42: 25.83884403 | AT42: 25.83884403 | AU42: 25.83884403 | AV42: 25.83884403 | AW42: 25.83884403 | AX42: 25.83884403 | AY42: 25.83884403 | AZ42: 25.83884403 | BA42: 25.83884403 | BB42: 25.83884403 | BC42: 25.83884403 | BD42: 25.83884403 | BE42: 25.83884403 | BF42: 25.83884403 | BG42: 25.83884403 | BH42: 25.83884403 | BI42: 25.83884403 | BJ42: 25.83884403 | BK42: 25.83884403 | BL42: 25.83884403 | BM42: 25.83884403 | BN42: 25.83884403 | BO42: 25.83884403 | BP42: 25.83884403 | BQ42: 25.83884403 | BR42: 25.83884403 | BS42: 25.83884403 | BT42: 25.83884403 | BU42: 25.83884403 | BV42: 25.83884403 | BW42: 25.83884403 | BX42: =$E$42 -> 25.83884403 | BY42: 25.83884403 | BZ42: 25.83884403 | CA42: 25.83884403 | CB42: 25.83884403 | CC42: 25.83884403 | CD42: 25.83884403 | CE42: 25.83884403 | CF42: 25.83884403 | CG42: 25.83884403 | CH42: 25.83884403 | CI42: 25.83884403 | CJ42: 25.83884403 | CK42: 25.83884403 | CL42: 25.83884403 | CM42: 25.83884403 | CN42: 25.83884403 | CO42: 25.83884403 | CP42: 25.83884403 | CQ42: 25.83884403 | CR42: 25.83884403 | CS42: 25.83884403 | CT42: 25.83884403 | CU42: 25.83884403 | CV42: 25.83884403 | CW42: 25.83884403 | CX42: 25.83884403 | CY42: 25.83884403 | CZ42: 25.83884403 | DA42: 25.83884403 | DB42: 25.83884403 | DC42: 25.83884403 | DD42: 25.83884403 | DE42: 25.83884403 | DF42: 25.83884403 | DG42: 25.83884403 | DH42: 25.83884403 | DI42: 25.83884403 | DJ42: 25.83884403 | DK42: 25.83884403 | DL42: 25.83884403 | DM42: 25.83884403 | DN42: 25.83884403 | DO42: 25.83884403 | DP42: 25.83884403 | DQ42: 25.83884403 | DR42: 25.83884403 | DS42: 25.83884403 | DT42: 25.83884403 | DU42: 25.83884403 | DV42: 25.83884403 | DW42: 25.83884403 | DX42: 25.83884403 | DY42: 25.83884403 | DZ42: 25.83884403 | EA42: 25.83884403 | EB42: 25.83884403 | EC42: 25.83884403 | ED42: 25.83884403 | EE42: 25.83884403 | EF42: 25.83884403 | EG42: 25.83884403 | EH42: 25.83884403 | EI42: 25.83884403 | EJ42: =$E$42 -> 25.83884403 | EK42: 25.83884403 | EL42: 25.83884403 | EM42: 25.83884403 | EN42: 25.83884403 | EO42: 25.83884403 | EP42: 25.83884403 | EQ42: 25.83884403 | ER42: 25.83884403 | ES42: 25.83884403 | ET42: 25.83884403 | EU42: 25.83884403 | EV42: 25.83884403 | EW42: 25.83884403 | EX42: 25.83884403 | EY42: 25.83884403 | EZ42: 25.83884403 | FA42: 25.83884403 | FB42: 25.83884403 | FC42: 25.83884403 | FD42: 25.83884403 | FE42: 25.83884403 | FF42: 25.83884403 | FG42: 25.83884403 | FH42: 25.83884403 | FI42: 25.83884403 | FJ42: 25.83884403 | FK42: 25.83884403 | FL42: 25.83884403 | FM42: 25.83884403 | FN42: 25.83884403 | FO42: 25.83884403 | FP42: 25.83884403 | FQ42: 25.83884403 | FR42: 25.83884403 | FS42: 25.83884403 | FT42: 25.83884403 | FU42: 25.83884403 | FV42: 25.83884403 | FW42: 25.83884403 | FX42: 25.83884403 | FY42: 25.83884403 | FZ42: 25.83884403 | GA42: 25.83884403 | GB42: 25.83884403 | GC42: 25.83884403 | GD42: 25.83884403 | GE42: 25.83884403 | GF42: 25.83884403 | GG42: 25.83884403 | GH42: 25.83884403 | GI42: 25.83884403 | GJ42: 25.83884403 | GK42: 25.83884403 | GL42: 25.83884403 | GM42: 25.83884403 | GN42: 25.83884403 | GO42: 25.83884403 | GP42: 25.83884403 | GQ42: 25.83884403 | GR42: 25.83884403 | GS42: 25.83884403 | GT42: 25.83884403 | GU42: 25.83884403 | GV42: =$E$42 -> 25.83884403 | GW42: 25.83884403 | GX42: 25.83884403 | GY42: 25.83884403 | GZ42: 25.83884403 | HA42: 25.83884403 | HB42: 25.83884403 | HC42: 25.83884403 | HD42: 25.83884403 | HE42: 25.83884403 | HF42: 25.83884403 | HG42: 25.83884403 | HH42: 25.83884403 | HI42: 25.83884403 | HJ42: 25.83884403 | HK42: 25.83884403 | HL42: 25.83884403 | HM42: 25.83884403 | HN42: 25.83884403 | HO42: 25.83884403 | HP42: 25.83884403 | HQ42: 25.83884403 | HR42: 25.83884403 | HS42: 25.83884403 | HT42: 25.83884403 | HU42: 25.83884403 | HV42: 25.83884403 | HW42: 25.83884403 | HX42: 25.83884403 | HY42: 25.83884403 | HZ42: 25.83884403 | IA42: 25.83884403 | IB42: 25.83884403 | IC42: 25.83884403 | ID42: 25.83884403 | IE42: 25.83884403 | IF42: 25.83884403 | IG42: 25.83884403 | IH42: 25.83884403 | II42: 25.83884403 | IJ42: 25.83884403 | IK42: 25.83884403 | IL42: 25.83884403 | IM42: 25.83884403 | IN42: 25.83884403 | IO42: 25.83884403 | IP42: 25.83884403 | IQ42: 25.83884403 | IR42: 25.83884403 | IS42: 25.83884403 | IT42: 25.83884403 | IU42: 25.83884403 | IV42: 25.83884403 | IW42: 25.83884403 | IX42: 25.83884403 | IY42: 25.83884403 | IZ42: 25.83884403 | JA42: 25.83884403 | JB42: 25.83884403 | JC42: 25.83884403 | JD42: 25.83884403 | JE42: 25.83884403 | JF42: 25.83884403 | JG42: 25.83884403 | JH42: =$E$42 -> 25.83884403 | JI42: 25.83884403 | JJ42: 25.83884403 | JK42: 25.83884403 | JL42: 25.83884403 | JM42: 25.83884403 | JN42: 25.83884403 | JO42: 25.83884403 | JP42: 25.83884403 | JQ42: 25.83884403 | JR42: 25.83884403 | JS42: 25.83884403 | JT42: 25.83884403 | JU42: 25.83884403 | JV42: 25.83884403 | JW42: 25.83884403 | JX42: 25.83884403 | JY42: 25.83884403 | JZ42: 25.83884403 | KA42: 25.83884403 | KB42: 25.83884403 | KC42: 25.83884403 | KD42: 25.83884403 | KE42: 25.83884403 | KF42: 25.83884403 | KG42: 25.83884403 | KH42: 25.83884403 | KI42: 25.83884403 | KJ42: 25.83884403 | KK42: 25.83884403 | KL42: 25.83884403 | KM42: 25.83884403 | KN42: 25.83884403 | KO42: 25.83884403 | KP42: 25.83884403 | KQ42: 25.83884403 | KR42: 25.83884403 | KS42: 25.83884403 | KT42: 25.83884403 | KU42: 25.83884403 | KV42: 25.83884403 | KW42: 25.83884403 | KX42: 25.83884403 | KY42: 25.83884403 | KZ42: 25.83884403 | LA42: 25.83884403 | LB42: 25.83884403 | LC42: 25.83884403 | LD42: 25.83884403 | LE42: 25.83884403 | LF42: 25.83884403 | LG42: 25.83884403 | LH42: 25.83884403 | LI42: 25.83884403 | LJ42: 25.83884403 | LK42: 25.83884403 | LL42: 25.83884403 | LM42: 25.83884403 | LN42: 25.83884403 | LO42: 25.83884403 | LP42: 25.83884403 | LQ42: 25.83884403 | LR42: 25.83884403 | LS42: 25.83884403 | LT42: =$E$42 -> 25.83884403 | LU42: 25.83884403 | LV42: 25.83884403 | LW42: 25.83884403 | LX42: 25.83884403 | LY42: 25.83884403 | LZ42: 25.83884403 | MA42: 25.83884403 | MB42: 25.83884403 | MC42: 25.83884403 | MD42: 25.83884403 | ME42: 25.83884403 | MF42: 25.83884403 | MG42: 25.83884403 | MH42: 25.83884403 | MI42: 25.83884403 | MJ42: 25.83884403 | MK42: 25.83884403 | ML42: 25.83884403 | MM42: 25.83884403 | MN42: 25.83884403 | MO42: 25.83884403 | MP42: 25.83884403 | MQ42: 25.83884403 | MR42: 25.83884403 | MS42: 25.83884403 | MT42: 25.83884403 | MU42: 25.83884403 | MV42: 25.83884403 | MW42: 25.83884403 | MX42: 25.83884403 | MY42: 25.83884403 | MZ42: 25.83884403 | NA42: 25.83884403 | NB42: 25.83884403 | NC42: 25.83884403 | ND42: 25.83884403 | NE42: 25.83884403 | NF42: 25.83884403 | NG42: 25.83884403 | NH42: 25.83884403 | NI42: 25.83884403 | NJ42: 25.83884403 | NK42: 25.83884403 | NL42: 25.83884403 | NM42: 25.83884403 | NN42: 25.83884403 | NO42: 25.83884403 | NP42: 25.83884403 | NQ42: 25.83884403 | NR42: 25.83884403 | NS42: 25.83884403 | NT42: 25.83884403 | NU42: 25.83884403 | NV42: 25.83884403 | NW42: 25.83884403 | NX42: 25.83884403 | NY42: 25.83884403 | NZ42: 25.83884403 | OA42: 25.83884403 | OB42: 25.83884403 | OC42: 25.83884403 | OD42: 25.83884403 | OE42: 25.83884403 | OF42: =$E$42 -> 25.83884403 | OG42: 25.83884403 | OH42: 25.83884403 | OI42: 25.83884403 | OJ42: 25.83884403 | OK42: 25.83884403 | OL42: 25.83884403 | OM42: 25.83884403 | ON42: 25.83884403 | OO42: 25.83884403 | OP42: 25.83884403 | OQ42: 25.83884403 | OR42: 25.83884403 | OS42: 25.83884403 | OT42: 25.83884403 | OU42: 25.83884403 | OV42: 25.83884403 | OW42: 25.83884403 | OX42: 25.83884403 | OY42: 25.83884403 | OZ42: 25.83884403 | PA42: 25.83884403 | PB42: 25.83884403 | PC42: 25.83884403 | PD42: 25.83884403 | PE42: 25.83884403 | PF42: 25.83884403 | PG42: 25.83884403 | PH42: 25.83884403 | PI42: 25.83884403 | PJ42: 25.83884403 | PK42: 25.83884403 | PL42: 25.83884403 | PM42: 25.83884403 | PN42: 25.83884403 | PO42: 25.83884403 | PP42: 25.83884403 | PQ42: 25.83884403 | PR42: 25.83884403 | PS42: 25.83884403 | PT42: 25.83884403 | PU42: 25.83884403 | PV42: 25.83884403 | PW42: 25.83884403 | PX42: 25.83884403 | PY42: 25.83884403 | PZ42: 25.83884403 | QA42: 25.83884403 | QB42: 25.83884403 | QC42: 25.83884403 | QD42: 25.83884403 | QE42: 25.83884403 | QF42: 25.83884403 | QG42: 25.83884403 | QH42: 25.83884403 | QI42: 25.83884403 | QJ42: 25.83884403 | QK42: 25.83884403 | QL42: 25.83884403 | QM42: 25.83884403 | QN42: 25.83884403 | QO42: 25.83884403 | QP42: 25.83884403 | QQ42: 25.83884403 | QR42: =$E$42 -> 25.83884403 | QS42: 25.83884403 | QT42: 25.83884403 | QU42: 25.83884403 | QV42: 25.83884403 | QW42: 25.83884403 | QX42: 25.83884403 | QY42: 25.83884403 | QZ42: 25.83884403 | RA42: 25.83884403 | RB42: 25.83884403 | RC42: 25.83884403 | RD42: 25.83884403 | RE42: 25.83884403 | RF42: 25.83884403 | RG42: 25.83884403 | RH42: 25.83884403 | RI42: 25.83884403 | RJ42: 25.83884403 | RK42: 25.83884403 | RL42: 25.83884403 | RM42: 25.83884403 | RN42: 25.83884403 | RO42: 25.83884403 | RP42: 25.83884403 | RQ42: 25.83884403 | RR42: 25.83884403 | RS42: 25.83884403 | RT42: 25.83884403 | RU42: 25.83884403 | RV42: 25.83884403 | RW42: 25.83884403 | RX42: 25.83884403 | RY42: 25.83884403 | RZ42: 25.83884403 | SA42: 25.83884403 | SB42: 25.83884403 | SC42: 25.83884403 | SD42: 25.83884403 | SE42: 25.83884403 | SF42: 25.83884403 | SG42: 25.83884403 | SH42: 25.83884403 | SI42: 25.83884403 | SJ42: 25.83884403 | SK42: 25.83884403 | SL42: 25.83884403 | SM42: 25.83884403 | SN42: 25.83884403 | SO42: 25.83884403 | SP42: 25.83884403 | SQ42: 25.83884403
D43: PPA Rate Inflated | E43: ='InputC - Operations'!$E$34 -> 0 | G43: Euro/MWH | L43: =IF($E$43,L42*L38,L42) -> 25.83884403 | M43: =IF($E$43,M42*M38,M42) -> 25.83884403 | N43: 25.83884403 | O43: 25.83884403 | P43: 25.83884403 | Q43: 25.83884403 | R43: 25.83884403 | S43: 25.83884403 | T43: 25.83884403 | U43: 25.83884403 | V43: 25.83884403 | W43: 25.83884403 | X43: 25.83884403 | Y43: 25.83884403 | Z43: 25.83884403 | AA43: 25.83884403 | AB43: 25.83884403 | AC43: 25.83884403 | AD43: 25.83884403 | AE43: 25.83884403 | AF43: 25.83884403 | AG43: 25.83884403 | AH43: 25.83884403 | AI43: 25.83884403 | AJ43: 25.83884403 | AK43: 25.83884403 | AL43: 25.83884403 | AM43: 25.83884403 | AN43: 25.83884403 | AO43: 25.83884403 | AP43: 25.83884403 | AQ43: 25.83884403 | AR43: 25.83884403 | AS43: 25.83884403 | AT43: 25.83884403 | AU43: 25.83884403 | AV43: 25.83884403 | AW43: 25.83884403 | AX43: 25.83884403 | AY43: 25.83884403 | AZ43: 25.83884403 | BA43: 25.83884403 | BB43: 25.83884403 | BC43: 25.83884403 | BD43: 25.83884403 | BE43: 25.83884403 | BF43: 25.83884403 | BG43: 25.83884403 | BH43: 25.83884403 | BI43: 25.83884403 | BJ43: 25.83884403 | BK43: 25.83884403 | BL43: 25.83884403 | BM43: 25.83884403 | BN43: 25.83884403 | BO43: 25.83884403 | BP43: 25.83884403 | BQ43: 25.83884403 | BR43: 25.83884403 | BS43: 25.83884403 | BT43: 25.83884403 | BU43: 25.83884403 | BV43: 25.83884403 | BW43: 25.83884403 | BX43: 25.83884403 | BY43: =IF($E$43,BY42*BY38,BY42) -> 25.83884403 | BZ43: 25.83884403 | CA43: 25.83884403 | CB43: 25.83884403 | CC43: 25.83884403 | CD43: 25.83884403 | CE43: 25.83884403 | CF43: 25.83884403 | CG43: 25.83884403 | CH43: 25.83884403 | CI43: 25.83884403 | CJ43: 25.83884403 | CK43: 25.83884403 | CL43: 25.83884403 | CM43: 25.83884403 | CN43: 25.83884403 | CO43: 25.83884403 | CP43: 25.83884403 | CQ43: 25.83884403 | CR43: 25.83884403 | CS43: 25.83884403 | CT43: 25.83884403 | CU43: 25.83884403 | CV43: 25.83884403 | CW43: 25.83884403 | CX43: 25.83884403 | CY43: 25.83884403 | CZ43: 25.83884403 | DA43: 25.83884403 | DB43: 25.83884403 | DC43: 25.83884403 | DD43: 25.83884403 | DE43: 25.83884403 | DF43: 25.83884403 | DG43: 25.83884403 | DH43: 25.83884403 | DI43: 25.83884403 | DJ43: 25.83884403 | DK43: 25.83884403 | DL43: 25.83884403 | DM43: 25.83884403 | DN43: 25.83884403 | DO43: 25.83884403 | DP43: 25.83884403 | DQ43: 25.83884403 | DR43: 25.83884403 | DS43: 25.83884403 | DT43: 25.83884403 | DU43: 25.83884403 | DV43: 25.83884403 | DW43: 25.83884403 | DX43: 25.83884403 | DY43: 25.83884403 | DZ43: 25.83884403 | EA43: 25.83884403 | EB43: 25.83884403 | EC43: 25.83884403 | ED43: 25.83884403 | EE43: 25.83884403 | EF43: 25.83884403 | EG43: 25.83884403 | EH43: 25.83884403 | EI43: 25.83884403 | EJ43: 25.83884403 | EK43: =IF($E$43,EK42*EK38,EK42) -> 25.83884403 | EL43: 25.83884403 | EM43: 25.83884403 | EN43: 25.83884403 | EO43: 25.83884403 | EP43: 25.83884403 | EQ43: 25.83884403 | ER43: 25.83884403 | ES43: 25.83884403 | ET43: 25.83884403 | EU43: 25.83884403 | EV43: 25.83884403 | EW43: 25.83884403 | EX43: 25.83884403 | EY43: 25.83884403 | EZ43: 25.83884403 | FA43: 25.83884403 | FB43: 25.83884403 | FC43: 25.83884403 | FD43: 25.83884403 | FE43: 25.83884403 | FF43: 25.83884403 | FG43: 25.83884403 | FH43: 25.83884403 | FI43: 25.83884403 | FJ43: 25.83884403 | FK43: 25.83884403 | FL43: 25.83884403 | FM43: 25.83884403 | FN43: 25.83884403 | FO43: 25.83884403 | FP43: 25.83884403 | FQ43: 25.83884403 | FR43: 25.83884403 | FS43: 25.83884403 | FT43: 25.83884403 | FU43: 25.83884403 | FV43: 25.83884403 | FW43: 25.83884403 | FX43: 25.83884403 | FY43: 25.83884403 | FZ43: 25.83884403 | GA43: 25.83884403 | GB43: 25.83884403 | GC43: 25.83884403 | GD43: 25.83884403 | GE43: 25.83884403 | GF43: 25.83884403 | GG43: 25.83884403 | GH43: 25.83884403 | GI43: 25.83884403 | GJ43: 25.83884403 | GK43: 25.83884403 | GL43: 25.83884403 | GM43: 25.83884403 | GN43: 25.83884403 | GO43: 25.83884403 | GP43: 25.83884403 | GQ43: 25.83884403 | GR43: 25.83884403 | GS43: 25.83884403 | GT43: 25.83884403 | GU43: 25.83884403 | GV43: 25.83884403 | GW43: =IF($E$43,GW42*GW38,GW42) -> 25.83884403 | GX43: 25.83884403 | GY43: 25.83884403 | GZ43: 25.83884403 | HA43: 25.83884403 | HB43: 25.83884403 | HC43: 25.83884403 | HD43: 25.83884403 | HE43: 25.83884403 | HF43: 25.83884403 | HG43: 25.83884403 | HH43: 25.83884403 | HI43: 25.83884403 | HJ43: 25.83884403 | HK43: 25.83884403 | HL43: 25.83884403 | HM43: 25.83884403 | HN43: 25.83884403 | HO43: 25.83884403 | HP43: 25.83884403 | HQ43: 25.83884403 | HR43: 25.83884403 | HS43: 25.83884403 | HT43: 25.83884403 | HU43: 25.83884403 | HV43: 25.83884403 | HW43: 25.83884403 | HX43: 25.83884403 | HY43: 25.83884403 | HZ43: 25.83884403 | IA43: 25.83884403 | IB43: 25.83884403 | IC43: 25.83884403 | ID43: 25.83884403 | IE43: 25.83884403 | IF43: 25.83884403 | IG43: 25.83884403 | IH43: 25.83884403 | II43: 25.83884403 | IJ43: 25.83884403 | IK43: 25.83884403 | IL43: 25.83884403 | IM43: 25.83884403 | IN43: 25.83884403 | IO43: 25.83884403 | IP43: 25.83884403 | IQ43: 25.83884403 | IR43: 25.83884403 | IS43: 25.83884403 | IT43: 25.83884403 | IU43: 25.83884403 | IV43: 25.83884403 | IW43: 25.83884403 | IX43: 25.83884403 | IY43: 25.83884403 | IZ43: 25.83884403 | JA43: 25.83884403 | JB43: 25.83884403 | JC43: 25.83884403 | JD43: 25.83884403 | JE43: 25.83884403 | JF43: 25.83884403 | JG43: 25.83884403 | JH43: 25.83884403 | JI43: =IF($E$43,JI42*JI38,JI42) -> 25.83884403 | JJ43: 25.83884403 | JK43: 25.83884403 | JL43: 25.83884403 | JM43: 25.83884403 | JN43: 25.83884403 | JO43: 25.83884403 | JP43: 25.83884403 | JQ43: 25.83884403 | JR43: 25.83884403 | JS43: 25.83884403 | JT43: 25.83884403 | JU43: 25.83884403 | JV43: 25.83884403 | JW43: 25.83884403 | JX43: 25.83884403 | JY43: 25.83884403 | JZ43: 25.83884403 | KA43: 25.83884403 | KB43: 25.83884403 | KC43: 25.83884403 | KD43: 25.83884403 | KE43: 25.83884403 | KF43: 25.83884403 | KG43: 25.83884403 | KH43: 25.83884403 | KI43: 25.83884403 | KJ43: 25.83884403 | KK43: 25.83884403 | KL43: 25.83884403 | KM43: 25.83884403 | KN43: 25.83884403 | KO43: 25.83884403 | KP43: 25.83884403 | KQ43: 25.83884403 | KR43: 25.83884403 | KS43: 25.83884403 | KT43: 25.83884403 | KU43: 25.83884403 | KV43: 25.83884403 | KW43: 25.83884403 | KX43: 25.83884403 | KY43: 25.83884403 | KZ43: 25.83884403 | LA43: 25.83884403 | LB43: 25.83884403 | LC43: 25.83884403 | LD43: 25.83884403 | LE43: 25.83884403 | LF43: 25.83884403 | LG43: 25.83884403 | LH43: 25.83884403 | LI43: 25.83884403 | LJ43: 25.83884403 | LK43: 25.83884403 | LL43: 25.83884403 | LM43: 25.83884403 | LN43: 25.83884403 | LO43: 25.83884403 | LP43: 25.83884403 | LQ43: 25.83884403 | LR43: 25.83884403 | LS43: 25.83884403 | LT43: 25.83884403 | LU43: =IF($E$43,LU42*LU38,LU42) -> 25.83884403 | LV43: 25.83884403 | LW43: 25.83884403 | LX43: 25.83884403 | LY43: 25.83884403 | LZ43: 25.83884403 | MA43: 25.83884403 | MB43: 25.83884403 | MC43: 25.83884403 | MD43: 25.83884403 | ME43: 25.83884403 | MF43: 25.83884403 | MG43: 25.83884403 | MH43: 25.83884403 | MI43: 25.83884403 | MJ43: 25.83884403 | MK43: 25.83884403 | ML43: 25.83884403 | MM43: 25.83884403 | MN43: 25.83884403 | MO43: 25.83884403 | MP43: 25.83884403 | MQ43: 25.83884403 | MR43: 25.83884403 | MS43: 25.83884403 | MT43: 25.83884403 | MU43: 25.83884403 | MV43: 25.83884403 | MW43: 25.83884403 | MX43: 25.83884403 | MY43: 25.83884403 | MZ43: 25.83884403 | NA43: 25.83884403 | NB43: 25.83884403 | NC43: 25.83884403 | ND43: 25.83884403 | NE43: 25.83884403 | NF43: 25.83884403 | NG43: 25.83884403 | NH43: 25.83884403 | NI43: 25.83884403 | NJ43: 25.83884403 | NK43: 25.83884403 | NL43: 25.83884403 | NM43: 25.83884403 | NN43: 25.83884403 | NO43: 25.83884403 | NP43: 25.83884403 | NQ43: 25.83884403 | NR43: 25.83884403 | NS43: 25.83884403 | NT43: 25.83884403 | NU43: 25.83884403 | NV43: 25.83884403 | NW43: 25.83884403 | NX43: 25.83884403 | NY43: 25.83884403 | NZ43: 25.83884403 | OA43: 25.83884403 | OB43: 25.83884403 | OC43: 25.83884403 | OD43: 25.83884403 | OE43: 25.83884403 | OF43: 25.83884403 | OG43: =IF($E$43,OG42*OG38,OG42) -> 25.83884403 | OH43: 25.83884403 | OI43: 25.83884403 | OJ43: 25.83884403 | OK43: 25.83884403 | OL43: 25.83884403 | OM43: 25.83884403 | ON43: 25.83884403 | OO43: 25.83884403 | OP43: 25.83884403 | OQ43: 25.83884403 | OR43: 25.83884403 | OS43: 25.83884403 | OT43: 25.83884403 | OU43: 25.83884403 | OV43: 25.83884403 | OW43: 25.83884403 | OX43: 25.83884403 | OY43: 25.83884403 | OZ43: 25.83884403 | PA43: 25.83884403 | PB43: 25.83884403 | PC43: 25.83884403 | PD43: 25.83884403 | PE43: 25.83884403 | PF43: 25.83884403 | PG43: 25.83884403 | PH43: 25.83884403 | PI43: 25.83884403 | PJ43: 25.83884403 | PK43: 25.83884403 | PL43: 25.83884403 | PM43: 25.83884403 | PN43: 25.83884403 | PO43: 25.83884403 | PP43: 25.83884403 | PQ43: 25.83884403 | PR43: 25.83884403 | PS43: 25.83884403 | PT43: 25.83884403 | PU43: 25.83884403 | PV43: 25.83884403 | PW43: 25.83884403 | PX43: 25.83884403 | PY43: 25.83884403 | PZ43: 25.83884403 | QA43: 25.83884403 | QB43: 25.83884403 | QC43: 25.83884403 | QD43: 25.83884403 | QE43: 25.83884403 | QF43: 25.83884403 | QG43: 25.83884403 | QH43: 25.83884403 | QI43: 25.83884403 | QJ43: 25.83884403 | QK43: 25.83884403 | QL43: 25.83884403 | QM43: 25.83884403 | QN43: 25.83884403 | QO43: 25.83884403 | QP43: 25.83884403 | QQ43: 25.83884403 | QR43: 25.83884403 | QS43: =IF($E$43,QS42*QS38,QS42) -> 25.83884403 | QT43: 25.83884403 | QU43: 25.83884403 | QV43: 25.83884403 | QW43: 25.83884403 | QX43: 25.83884403 | QY43: 25.83884403 | QZ43: 25.83884403 | RA43: 25.83884403 | RB43: 25.83884403 | RC43: 25.83884403 | RD43: 25.83884403 | RE43: 25.83884403 | RF43: 25.83884403 | RG43: 25.83884403 | RH43: 25.83884403 | RI43: 25.83884403 | RJ43: 25.83884403 | RK43: 25.83884403 | RL43: 25.83884403 | RM43: 25.83884403 | RN43: 25.83884403 | RO43: 25.83884403 | RP43: 25.83884403 | RQ43: 25.83884403 | RR43: 25.83884403 | RS43: 25.83884403 | RT43: 25.83884403 | RU43: 25.83884403 | RV43: 25.83884403 | RW43: 25.83884403 | RX43: 25.83884403 | RY43: 25.83884403 | RZ43: 25.83884403 | SA43: 25.83884403 | SB43: 25.83884403 | SC43: 25.83884403 | SD43: 25.83884403 | SE43: 25.83884403 | SF43: 25.83884403 | SG43: 25.83884403 | SH43: 25.83884403 | SI43: 25.83884403 | SJ43: 25.83884403 | SK43: 25.83884403 | SL43: 25.83884403 | SM43: 25.83884403 | SN43: 25.83884403 | SO43: 25.83884403 | SP43: 25.83884403 | SQ43: 25.83884403
D45: Total Energy Generation | G45: MWH | L45: =L30 -> 0 | M45: =M30 -> 21780 | N45: 21780 | O45: 21780 | P45: 21780 | Q45: 21780 | R45: 21780 | S45: 21780 | T45: 21780 | U45: 21780 | V45: 21780 | W45: 21780 | X45: 21780 | Y45: 21780 | Z45: 21780 | AA45: 21780 | AB45: 21780 | AC45: 21780 | AD45: 21780 | AE45: 21780 | AF45: 21780 | AG45: 21780 | AH45: 21780 | AI45: 21780 | AJ45: 21780 | AK45: 21780 | AL45: 21780 | AM45: 21780 | AN45: 21780 | AO45: 21780 | AP45: 21780 | AQ45: 21780 | AR45: 21780 | AS45: 21780 | AT45: 21780 | AU45: 21780 | AV45: 21780 | AW45: 21780 | AX45: 21780 | AY45: 21780 | AZ45: 21780 | BA45: 21780 | BB45: 21780 | BC45: 21780 | BD45: 21780 | BE45: 21780 | BF45: 21780 | BG45: 21780 | BH45: 21780 | BI45: 21780 | BJ45: 21780 | BK45: 21780 | BL45: 21780 | BM45: 21780 | BN45: 21780 | BO45: 21780 | BP45: 21780 | BQ45: 21780 | BR45: 21780 | BS45: 21780 | BT45: 21780 | BU45: 21780 | BV45: 21780 | BW45: 21780 | BX45: 21780 | BY45: =BY30 -> 21780 | BZ45: 21780 | CA45: 21780 | CB45: 21780 | CC45: 21780 | CD45: 21780 | CE45: 21780 | CF45: 21780 | CG45: 21780 | CH45: 21780 | CI45: 21780 | CJ45: 21780 | CK45: 21780 | CL45: 21780 | CM45: 21780 | CN45: 21780 | CO45: 21780 | CP45: 21780 | CQ45: 21780 | CR45: 21780 | CS45: 21780 | CT45: 21780 | CU45: 21780 | CV45: 21780 | CW45: 21780 | CX45: 21780 | CY45: 21780 | CZ45: 21780 | DA45: 21780 | DB45: 21780 | DC45: 21780 | DD45: 21780 | DE45: 21780 | DF45: 21780 | DG45: 21780 | DH45: 21780 | DI45: 21780 | DJ45: 21780 | DK45: 21780 | DL45: 21780 | DM45: 21780 | DN45: 21780 | DO45: 21780 | DP45: 21780 | DQ45: 21780 | DR45: 21780 | DS45: 21780 | DT45: 21780 | DU45: 21780 | DV45: 21780 | DW45: 21780 | DX45: 21780 | DY45: 21780 | DZ45: 21780 | EA45: 21780 | EB45: 21780 | EC45: 21780 | ED45: 21780 | EE45: 21780 | EF45: 21780 | EG45: 21780 | EH45: 21780 | EI45: 21780 | EJ45: 21780 | EK45: =EK30 -> 21780 | EL45: 21780 | EM45: 21780 | EN45: 21780 | EO45: 21780 | EP45: 21780 | EQ45: 21780 | ER45: 21780 | ES45: 21780 | ET45: 21780 | EU45: 21780 | EV45: 21780 | EW45: 21780 | EX45: 21780 | EY45: 21780 | EZ45: 21780 | FA45: 21780 | FB45: 21780 | FC45: 21780 | FD45: 21780 | FE45: 21780 | FF45: 21780 | FG45: 21780 | FH45: 21780 | FI45: 21780 | FJ45: 21780 | FK45: 21780 | FL45: 21780 | FM45: 21780 | FN45: 21780 | FO45: 21780 | FP45: 21780 | FQ45: 21780 | FR45: 21780 | FS45: 21780 | FT45: 21780 | FU45: 21780 | FV45: 21780 | FW45: 21780 | FX45: 21780 | FY45: 21780 | FZ45: 21780 | GA45: 21780 | GB45: 21780 | GC45: 21780 | GD45: 21780 | GE45: 21780 | GF45: 21780 | GG45: 21780 | GH45: 21780 | GI45: 21780 | GJ45: 21780 | GK45: 21780 | GL45: 21780 | GM45: 21780 | GN45: 21780 | GO45: 21780 | GP45: 21780 | GQ45: 21780 | GR45: 21780 | GS45: 21780 | GT45: 21780 | GU45: 21780 | GV45: 21780 | GW45: =GW30 -> 21780 | GX45: 21780 | GY45: 21780 | GZ45: 21780 | HA45: 21780 | HB45: 21780 | HC45: 21780 | HD45: 21780 | HE45: 21780 | HF45: 21780 | HG45: 21780 | HH45: 21780 | HI45: 21780 | HJ45: 21780 | HK45: 21780 | HL45: 21780 | HM45: 21780 | HN45: 21780 | HO45: 21780 | HP45: 21780 | HQ45: 21780 | HR45: 21780 | HS45: 21780 | HT45: 21780 | HU45: 21780 | HV45: 21780 | HW45: 21780 | HX45: 21780 | HY45: 21780 | HZ45: 21780 | IA45: 21780 | IB45: 21780 | IC45: 21780 | ID45: 21780 | IE45: 21780 | IF45: 21780 | IG45: 21780 | IH45: 21780 | II45: 21780 | IJ45: 21780 | IK45: 21780 | IL45: 21780 | IM45: 21780 | IN45: 21780 | IO45: 21780 | IP45: 21780 | IQ45: 21780 | IR45: 21780 | IS45: 21780 | IT45: 21780 | IU45: 21780 | IV45: 21780 | IW45: 21780 | IX45: 21780 | IY45: 21780 | IZ45: 21780 | JA45: 21780 | JB45: 21780 | JC45: 21780 | JD45: 21780 | JE45: 21780 | JF45: 21780 | JG45: 21780 | JH45: 21780 | JI45: =JI30 -> 21780 | JJ45: 21780 | JK45: 21780 | JL45: 21780 | JM45: 21780 | JN45: 21780 | JO45: 21780 | JP45: 21780 | JQ45: 21780 | JR45: 21780 | JS45: 21780 | JT45: 21780 | JU45: 21780 | JV45: 21780 | JW45: 21780 | JX45: 21780 | JY45: 21780 | JZ45: 21780 | KA45: 21780 | KB45: 21780 | KC45: 21780 | KD45: 21780 | KE45: 21780 | KF45: 21780 | KG45: 21780 | KH45: 21780 | KI45: 21780 | KJ45: 21780 | KK45: 21780 | KL45: 21780 | KM45: 21780 | KN45: 21780 | KO45: 21780 | KP45: 21780 | KQ45: 21780 | KR45: 21780 | KS45: 21780 | KT45: 21780 | KU45: 21780 | KV45: 21780 | KW45: 21780 | KX45: 21780 | KY45: 21780 | KZ45: 21780 | LA45: 21780 | LB45: 21780 | LC45: 21780 | LD45: 21780 | LE45: 21780 | LF45: 21780 | LG45: 21780 | LH45: 21780 | LI45: 21780 | LJ45: 21780 | LK45: 21780 | LL45: 21780 | LM45: 21780 | LN45: 21780 | LO45: 21780 | LP45: 21780 | LQ45: 21780 | LR45: 21780 | LS45: 21780 | LT45: 21780 | LU45: =LU30 -> 21780 | LV45: 21780 | LW45: 21780 | LX45: 21780 | LY45: 21780 | LZ45: 21780 | MA45: 21780 | MB45: 21780 | MC45: 21780 | MD45: 21780 | ME45: 21780 | MF45: 21780 | MG45: 21780 | MH45: 21780 | MI45: 21780 | MJ45: 21780 | MK45: 21780 | ML45: 21780 | MM45: 21780 | MN45: 21780 | MO45: 21780 | MP45: 21780 | MQ45: 21780 | MR45: 21780 | MS45: 21780 | MT45: 21780 | MU45: 21780 | MV45: 21780 | MW45: 21780 | MX45: 21780 | MY45: 21780 | MZ45: 21780 | NA45: 21780 | NB45: 21780 | NC45: 21780 | ND45: 21780 | NE45: 21780 | NF45: 21780 | NG45: 21780 | NH45: 21780 | NI45: 21780 | NJ45: 21780 | NK45: 21780 | NL45: 21780 | NM45: 21780 | NN45: 21780 | NO45: 21780 | NP45: 21780 | NQ45: 21780 | NR45: 21780 | NS45: 21780 | NT45: 21780 | NU45: 21780 | NV45: 21780 | NW45: 21780 | NX45: 21780 | NY45: 21780 | NZ45: 21780 | OA45: 21780 | OB45: 21780 | OC45: 21780 | OD45: 21780 | OE45: 21780 | OF45: 21780 | OG45: =OG30 -> 21780 | OH45: 21780 | OI45: 21780 | OJ45: 21780 | OK45: 21780 | OL45: 21780 | OM45: 21780 | ON45: 21780 | OO45: 21780 | OP45: 21780 | OQ45: 21780 | OR45: 21780 | OS45: 21780 | OT45: 21780 | OU45: 21780 | OV45: 21780 | OW45: 21780 | OX45: 21780 | OY45: 21780 | OZ45: 21780 | PA45: 21780 | PB45: 21780 | PC45: 21780 | PD45: 21780 | PE45: 21780 | PF45: 21780 | PG45: 21780 | PH45: 21780 | PI45: 21780 | PJ45: 21780 | PK45: 21780 | PL45: 21780 | PM45: 21780 | PN45: 21780 | PO45: 21780 | PP45: 21780 | PQ45: 0 | PR45: 0 | PS45: 0 | PT45: 0 | PU45: 0 | PV45: 0 | PW45: 0 | PX45: 0 | PY45: 0 | PZ45: 0 | QA45: 0 | QB45: 0 | QC45: 0 | QD45: 0 | QE45: 0 | QF45: 0 | QG45: 0 | QH45: 0 | QI45: 0 | QJ45: 0 | QK45: 0 | QL45: 0 | QM45: 0 | QN45: 0 | QO45: 0 | QP45: 0 | QQ45: 0 | QR45: 0 | QS45: =QS30 -> 0 | QT45: 0 | QU45: 0 | QV45: 0 | QW45: 0 | QX45: 0 | QY45: 0 | QZ45: 0 | RA45: 0 | RB45: 0 | RC45: 0 | RD45: 0 | RE45: 0 | RF45: 0 | RG45: 0 | RH45: 0 | RI45: 0 | RJ45: 0 | RK45: 0 | RL45: 0 | RM45: 0 | RN45: 0 | RO45: 0 | RP45: 0 | RQ45: 0 | RR45: 0 | RS45: 0 | RT45: 0 | RU45: 0 | RV45: 0 | RW45: 0 | RX45: 0 | RY45: 0 | RZ45: 0 | SA45: 0 | SB45: 0 | SC45: 0 | SD45: 0 | SE45: 0 | SF45: 0 | SG45: 0 | SH45: 0 | SI45: 0 | SJ45: 0 | SK45: 0 | SL45: 0 | SM45: 0 | SN45: 0 | SO45: 0 | SP45: 0 | SQ45: 0
D46: PPA Revenues | G46: Euro | J46: =SUM(K46:XFD46) -> 236363409.6 | L46: =L45*L43 -> 0 | M46: =M45*M43 -> 562770.0229 | N46: 562770.0229 | O46: 562770.0229 | P46: 562770.0229 | Q46: 562770.0229 | R46: 562770.0229 | S46: 562770.0229 | T46: 562770.0229 | U46: 562770.0229 | V46: 562770.0229 | W46: 562770.0229 | X46: 562770.0229 | Y46: 562770.0229 | Z46: 562770.0229 | AA46: 562770.0229 | AB46: 562770.0229 | AC46: 562770.0229 | AD46: 562770.0229 | AE46: 562770.0229 | AF46: 562770.0229 | AG46: 562770.0229 | AH46: 562770.0229 | AI46: 562770.0229 | AJ46: 562770.0229 | AK46: 562770.0229 | AL46: 562770.0229 | AM46: 562770.0229 | AN46: 562770.0229 | AO46: 562770.0229 | AP46: 562770.0229 | AQ46: 562770.0229 | AR46: 562770.0229 | AS46: 562770.0229 | AT46: 562770.0229 | AU46: 562770.0229 | AV46: 562770.0229 | AW46: 562770.0229 | AX46: 562770.0229 | AY46: 562770.0229 | AZ46: 562770.0229 | BA46: 562770.0229 | BB46: 562770.0229 | BC46: 562770.0229 | BD46: 562770.0229 | BE46: 562770.0229 | BF46: 562770.0229 | BG46: 562770.0229 | BH46: 562770.0229 | BI46: 562770.0229 | BJ46: 562770.0229 | BK46: 562770.0229 | BL46: 562770.0229 | BM46: 562770.0229 | BN46: 562770.0229 | BO46: 562770.0229 | BP46: 562770.0229 | BQ46: 562770.0229 | BR46: 562770.0229 | BS46: 562770.0229 | BT46: 562770.0229 | BU46: 562770.0229 | BV46: 562770.0229 | BW46: 562770.0229 | BX46: 562770.0229 | BY46: =BY45*BY43 -> 562770.0229 | BZ46: 562770.0229 | CA46: 562770.0229 | CB46: 562770.0229 | CC46: 562770.0229 | CD46: 562770.0229 | CE46: 562770.0229 | CF46: 562770.0229 | CG46: 562770.0229 | CH46: 562770.0229 | CI46: 562770.0229 | CJ46: 562770.0229 | CK46: 562770.0229 | CL46: 562770.0229 | CM46: 562770.0229 | CN46: 562770.0229 | CO46: 562770.0229 | CP46: 562770.0229 | CQ46: 562770.0229 | CR46: 562770.0229 | CS46: 562770.0229 | CT46: 562770.0229 | CU46: 562770.0229 | CV46: 562770.0229 | CW46: 562770.0229 | CX46: 562770.0229 | CY46: 562770.0229 | CZ46: 562770.0229 | DA46: 562770.0229 | DB46: 562770.0229 | DC46: 562770.0229 | DD46: 562770.0229 | DE46: 562770.0229 | DF46: 562770.0229 | DG46: 562770.0229 | DH46: 562770.0229 | DI46: 562770.0229 | DJ46: 562770.0229 | DK46: 562770.0229 | DL46: 562770.0229 | DM46: 562770.0229 | DN46: 562770.0229 | DO46: 562770.0229 | DP46: 562770.0229 | DQ46: 562770.0229 | DR46: 562770.0229 | DS46: 562770.0229 | DT46: 562770.0229 | DU46: 562770.0229 | DV46: 562770.0229 | DW46: 562770.0229 | DX46: 562770.0229 | DY46: 562770.0229 | DZ46: 562770.0229 | EA46: 562770.0229 | EB46: 562770.0229 | EC46: 562770.0229 | ED46: 562770.0229 | EE46: 562770.0229 | EF46: 562770.0229 | EG46: 562770.0229 | EH46: 562770.0229 | EI46: 562770.0229 | EJ46: 562770.0229 | EK46: =EK45*EK43 -> 562770.0229 | EL46: 562770.0229 | EM46: 562770.0229 | EN46: 562770.0229 | EO46: 562770.0229 | EP46: 562770.0229 | EQ46: 562770.0229 | ER46: 562770.0229 | ES46: 562770.0229 | ET46: 562770.0229 | EU46: 562770.0229 | EV46: 562770.0229 | EW46: 562770.0229 | EX46: 562770.0229 | EY46: 562770.0229 | EZ46: 562770.0229 | FA46: 562770.0229 | FB46: 562770.0229 | FC46: 562770.0229 | FD46: 562770.0229 | FE46: 562770.0229 | FF46: 562770.0229 | FG46: 562770.0229 | FH46: 562770.0229 | FI46: 562770.0229 | FJ46: 562770.0229 | FK46: 562770.0229 | FL46: 562770.0229 | FM46: 562770.0229 | FN46: 562770.0229 | FO46: 562770.0229 | FP46: 562770.0229 | FQ46: 562770.0229 | FR46: 562770.0229 | FS46: 562770.0229 | FT46: 562770.0229 | FU46: 562770.0229 | FV46: 562770.0229 | FW46: 562770.0229 | FX46: 562770.0229 | FY46: 562770.0229 | FZ46: 562770.0229 | GA46: 562770.0229 | GB46: 562770.0229 | GC46: 562770.0229 | GD46: 562770.0229 | GE46: 562770.0229 | GF46: 562770.0229 | GG46: 562770.0229 | GH46: 562770.0229 | GI46: 562770.0229 | GJ46: 562770.0229 | GK46: 562770.0229 | GL46: 562770.0229 | GM46: 562770.0229 | GN46: 562770.0229 | GO46: 562770.0229 | GP46: 562770.0229 | GQ46: 562770.0229 | GR46: 562770.0229 | GS46: 562770.0229 | GT46: 562770.0229 | GU46: 562770.0229 | GV46: 562770.0229 | GW46: =GW45*GW43 -> 562770.0229 | GX46: 562770.0229 | GY46: 562770.0229 | GZ46: 562770.0229 | HA46: 562770.0229 | HB46: 562770.0229 | HC46: 562770.0229 | HD46: 562770.0229 | HE46: 562770.0229 | HF46: 562770.0229 | HG46: 562770.0229 | HH46: 562770.0229 | HI46: 562770.0229 | HJ46: 562770.0229 | HK46: 562770.0229 | HL46: 562770.0229 | HM46: 562770.0229 | HN46: 562770.0229 | HO46: 562770.0229 | HP46: 562770.0229 | HQ46: 562770.0229 | HR46: 562770.0229 | HS46: 562770.0229 | HT46: 562770.0229 | HU46: 562770.0229 | HV46: 562770.0229 | HW46: 562770.0229 | HX46: 562770.0229 | HY46: 562770.0229 | HZ46: 562770.0229 | IA46: 562770.0229 | IB46: 562770.0229 | IC46: 562770.0229 | ID46: 562770.0229 | IE46: 562770.0229 | IF46: 562770.0229 | IG46: 562770.0229 | IH46: 562770.0229 | II46: 562770.0229 | IJ46: 562770.0229 | IK46: 562770.0229 | IL46: 562770.0229 | IM46: 562770.0229 | IN46: 562770.0229 | IO46: 562770.0229 | IP46: 562770.0229 | IQ46: 562770.0229 | IR46: 562770.0229 | IS46: 562770.0229 | IT46: 562770.0229 | IU46: 562770.0229 | IV46: 562770.0229 | IW46: 562770.0229 | IX46: 562770.0229 | IY46: 562770.0229 | IZ46: 562770.0229 | JA46: 562770.0229 | JB46: 562770.0229 | JC46: 562770.0229 | JD46: 562770.0229 | JE46: 562770.0229 | JF46: 562770.0229 | JG46: 562770.0229 | JH46: 562770.0229 | JI46: =JI45*JI43 -> 562770.0229 | JJ46: 562770.0229 | JK46: 562770.0229 | JL46: 562770.0229 | JM46: 562770.0229 | JN46: 562770.0229 | JO46: 562770.0229 | JP46: 562770.0229 | JQ46: 562770.0229 | JR46: 562770.0229 | JS46: 562770.0229 | JT46: 562770.0229 | JU46: 562770.0229 | JV46: 562770.0229 | JW46: 562770.0229 | JX46: 562770.0229 | JY46: 562770.0229 | JZ46: 562770.0229 | KA46: 562770.0229 | KB46: 562770.0229 | KC46: 562770.0229 | KD46: 562770.0229 | KE46: 562770.0229 | KF46: 562770.0229 | KG46: 562770.0229 | KH46: 562770.0229 | KI46: 562770.0229 | KJ46: 562770.0229 | KK46: 562770.0229 | KL46: 562770.0229 | KM46: 562770.0229 | KN46: 562770.0229 | KO46: 562770.0229 | KP46: 562770.0229 | KQ46: 562770.0229 | KR46: 562770.0229 | KS46: 562770.0229 | KT46: 562770.0229 | KU46: 562770.0229 | KV46: 562770.0229 | KW46: 562770.0229 | KX46: 562770.0229 | KY46: 562770.0229 | KZ46: 562770.0229 | LA46: 562770.0229 | LB46: 562770.0229 | LC46: 562770.0229 | LD46: 562770.0229 | LE46: 562770.0229 | LF46: 562770.0229 | LG46: 562770.0229 | LH46: 562770.0229 | LI46: 562770.0229 | LJ46: 562770.0229 | LK46: 562770.0229 | LL46: 562770.0229 | LM46: 562770.0229 | LN46: 562770.0229 | LO46: 562770.0229 | LP46: 562770.0229 | LQ46: 562770.0229 | LR46: 562770.0229 | LS46: 562770.0229 | LT46: 562770.0229 | LU46: =LU45*LU43 -> 562770.0229 | LV46: 562770.0229 | LW46: 562770.0229 | LX46: 562770.0229 | LY46: 562770.0229 | LZ46: 562770.0229 | MA46: 562770.0229 | MB46: 562770.0229 | MC46: 562770.0229 | MD46: 562770.0229 | ME46: 562770.0229 | MF46: 562770.0229 | MG46: 562770.0229 | MH46: 562770.0229 | MI46: 562770.0229 | MJ46: 562770.0229 | MK46: 562770.0229 | ML46: 562770.0229 | MM46: 562770.0229 | MN46: 562770.0229 | MO46: 562770.0229 | MP46: 562770.0229 | MQ46: 562770.0229 | MR46: 562770.0229 | MS46: 562770.0229 | MT46: 562770.0229 | MU46: 562770.0229 | MV46: 562770.0229 | MW46: 562770.0229 | MX46: 562770.0229 | MY46: 562770.0229 | MZ46: 562770.0229 | NA46: 562770.0229 | NB46: 562770.0229 | NC46: 562770.0229 | ND46: 562770.0229 | NE46: 562770.0229 | NF46: 562770.0229 | NG46: 562770.0229 | NH46: 562770.0229 | NI46: 562770.0229 | NJ46: 562770.0229 | NK46: 562770.0229 | NL46: 562770.0229 | NM46: 562770.0229 | NN46: 562770.0229 | NO46: 562770.0229 | NP46: 562770.0229 | NQ46: 562770.0229 | NR46: 562770.0229 | NS46: 562770.0229 | NT46: 562770.0229 | NU46: 562770.0229 | NV46: 562770.0229 | NW46: 562770.0229 | NX46: 562770.0229 | NY46: 562770.0229 | NZ46: 562770.0229 | OA46: 562770.0229 | OB46: 562770.0229 | OC46: 562770.0229 | OD46: 562770.0229 | OE46: 562770.0229 | OF46: 562770.0229 | OG46: =OG45*OG43 -> 562770.0229 | OH46: 562770.0229 | OI46: 562770.0229 | OJ46: 562770.0229 | OK46: 562770.0229 | OL46: 562770.0229 | OM46: 562770.0229 | ON46: 562770.0229 | OO46: 562770.0229 | OP46: 562770.0229 | OQ46: 562770.0229 | OR46: 562770.0229 | OS46: 562770.0229 | OT46: 562770.0229 | OU46: 562770.0229 | OV46: 562770.0229 | OW46: 562770.0229 | OX46: 562770.0229 | OY46: 562770.0229 | OZ46: 562770.0229 | PA46: 562770.0229 | PB46: 562770.0229 | PC46: 562770.0229 | PD46: 562770.0229 | PE46: 562770.0229 | PF46: 562770.0229 | PG46: 562770.0229 | PH46: 562770.0229 | PI46: 562770.0229 | PJ46: 562770.0229 | PK46: 562770.0229 | PL46: 562770.0229 | PM46: 562770.0229 | PN46: 562770.0229 | PO46: 562770.0229 | PP46: 562770.0229 | PQ46: 0 | PR46: 0 | PS46: 0 | PT46: 0 | PU46: 0 | PV46: 0 | PW46: 0 | PX46: 0 | PY46: 0 | PZ46: 0 | QA46: 0 | QB46: 0 | QC46: 0 | QD46: 0 | QE46: 0 | QF46: 0 | QG46: 0 | QH46: 0 | QI46: 0 | QJ46: 0 | QK46: 0 | QL46: 0 | QM46: 0 | QN46: 0 | QO46: 0 | QP46: 0 | QQ46: 0 | QR46: 0 | QS46: =QS45*QS43 -> 0 | QT46: 0 | QU46: 0 | QV46: 0 | QW46: 0 | QX46: 0 | QY46: 0 | QZ46: 0 | RA46: 0 | RB46: 0 | RC46: 0 | RD46: 0 | RE46: 0 | RF46: 0 | RG46: 0 | RH46: 0 | RI46: 0 | RJ46: 0 | RK46: 0 | RL46: 0 | RM46: 0 | RN46: 0 | RO46: 0 | RP46: 0 | RQ46: 0 | RR46: 0 | RS46: 0 | RT46: 0 | RU46: 0 | RV46: 0 | RW46: 0 | RX46: 0 | RY46: 0 | RZ46: 0 | SA46: 0 | SB46: 0 | SC46: 0 | SD46: 0 | SE46: 0 | SF46: 0 | SG46: 0 | SH46: 0 | SI46: 0 | SJ46: 0 | SK46: 0 | SL46: 0 | SM46: 0 | SN46: 0 | SO46: 0 | SP46: 0 | SQ46: 0
B48: Operations and Maintenance
D49: Land Lease
D50: Land Lease | E50: ='InputC - Operations'!E42 -> 0 | G50: Euro/yr | L50: =$E$50*L7 -> 0 | M50: 0 | N50: 0 | O50: 0 | P50: 0 | Q50: 0 | R50: 0 | S50: 0 | T50: 0 | U50: 0 | V50: 0 | W50: 0 | X50: 0 | Y50: 0 | Z50: 0 | AA50: 0 | AB50: 0 | AC50: 0 | AD50: 0 | AE50: 0 | AF50: 0 | AG50: 0 | AH50: 0 | AI50: 0 | AJ50: 0 | AK50: 0 | AL50: 0 | AM50: 0 | AN50: 0 | AO50: 0 | AP50: 0 | AQ50: 0 | AR50: 0 | AS50: 0 | AT50: 0 | AU50: 0 | AV50: 0 | AW50: 0 | AX50: 0 | AY50: 0 | AZ50: 0 | BA50: 0 | BB50: 0 | BC50: 0 | BD50: 0 | BE50: 0 | BF50: 0 | BG50: 0 | BH50: 0 | BI50: 0 | BJ50: 0 | BK50: 0 | BL50: 0 | BM50: 0 | BN50: 0 | BO50: 0 | BP50: 0 | BQ50: 0 | BR50: 0 | BS50: 0 | BT50: 0 | BU50: 0 | BV50: 0 | BW50: 0 | BX50: =$E$50*BX7 -> 0 | BY50: 0 | BZ50: 0 | CA50: 0 | CB50: 0 | CC50: 0 | CD50: 0 | CE50: 0 | CF50: 0 | CG50: 0 | CH50: 0 | CI50: 0 | CJ50: 0 | CK50: 0 | CL50: 0 | CM50: 0 | CN50: 0 | CO50: 0 | CP50: 0 | CQ50: 0 | CR50: 0 | CS50: 0 | CT50: 0 | CU50: 0 | CV50: 0 | CW50: 0 | CX50: 0 | CY50: 0 | CZ50: 0 | DA50: 0 | DB50: 0 | DC50: 0 | DD50: 0 | DE50: 0 | DF50: 0 | DG50: 0 | DH50: 0 | DI50: 0 | DJ50: 0 | DK50: 0 | DL50: 0 | DM50: 0 | DN50: 0 | DO50: 0 | DP50: 0 | DQ50: 0 | DR50: 0 | DS50: 0 | DT50: 0 | DU50: 0 | DV50: 0 | DW50: 0 | DX50: 0 | DY50: 0 | DZ50: 0 | EA50: 0 | EB50: 0 | EC50: 0 | ED50: 0 | EE50: 0 | EF50: 0 | EG50: 0 | EH50: 0 | EI50: 0 | EJ50: =$E$50*EJ7 -> 0 | EK50: 0 | EL50: 0 | EM50: 0 | EN50: 0 | EO50: 0 | EP50: 0 | EQ50: 0 | ER50: 0 | ES50: 0 | ET50: 0 | EU50: 0 | EV50: 0 | EW50: 0 | EX50: 0 | EY50: 0 | EZ50: 0 | FA50: 0 | FB50: 0 | FC50: 0 | FD50: 0 | FE50: 0 | FF50: 0 | FG50: 0 | FH50: 0 | FI50: 0 | FJ50: 0 | FK50: 0 | FL50: 0 | FM50: 0 | FN50: 0 | FO50: 0 | FP50: 0 | FQ50: 0 | FR50: 0 | FS50: 0 | FT50: 0 | FU50: 0 | FV50: 0 | FW50: 0 | FX50: 0 | FY50: 0 | FZ50: 0 | GA50: 0 | GB50: 0 | GC50: 0 | GD50: 0 | GE50: 0 | GF50: 0 | GG50: 0 | GH50: 0 | GI50: 0 | GJ50: 0 | GK50: 0 | GL50: 0 | GM50: 0 | GN50: 0 | GO50: 0 | GP50: 0 | GQ50: 0 | GR50: 0 | GS50: 0 | GT50: 0 | GU50: 0 | GV50: =$E$50*GV7 -> 0 | GW50: 0 | GX50: 0 | GY50: 0 | GZ50: 0 | HA50: 0 | HB50: 0 | HC50: 0 | HD50: 0 | HE50: 0 | HF50: 0 | HG50: 0 | HH50: 0 | HI50: 0 | HJ50: 0 | HK50: 0 | HL50: 0 | HM50: 0 | HN50: 0 | HO50: 0 | HP50: 0 | HQ50: 0 | HR50: 0 | HS50: 0 | HT50: 0 | HU50: 0 | HV50: 0 | HW50: 0 | HX50: 0 | HY50: 0 | HZ50: 0 | IA50: 0 | IB50: 0 | IC50: 0 | ID50: 0 | IE50: 0 | IF50: 0 | IG50: 0 | IH50: 0 | II50: 0 | IJ50: 0 | IK50: 0 | IL50: 0 | IM50: 0 | IN50: 0 | IO50: 0 | IP50: 0 | IQ50: 0 | IR50: 0 | IS50: 0 | IT50: 0 | IU50: 0 | IV50: 0 | IW50: 0 | IX50: 0 | IY50: 0 | IZ50: 0 | JA50: 0 | JB50: 0 | JC50: 0 | JD50: 0 | JE50: 0 | JF50: 0 | JG50: 0 | JH50: =$E$50*JH7 -> 0 | JI50: 0 | JJ50: 0 | JK50: 0 | JL50: 0 | JM50: 0 | JN50: 0 | JO50: 0 | JP50: 0 | JQ50: 0 | JR50: 0 | JS50: 0 | JT50: 0 | JU50: 0 | JV50: 0 | JW50: 0 | JX50: 0 | JY50: 0 | JZ50: 0 | KA50: 0 | KB50: 0 | KC50: 0 | KD50: 0 | KE50: 0 | KF50: 0 | KG50: 0 | KH50: 0 | KI50: 0 | KJ50: 0 | KK50: 0 | KL50: 0 | KM50: 0 | KN50: 0 | KO50: 0 | KP50: 0 | KQ50: 0 | KR50: 0 | KS50: 0 | KT50: 0 | KU50: 0 | KV50: 0 | KW50: 0 | KX50: 0 | KY50: 0 | KZ50: 0 | LA50: 0 | LB50: 0 | LC50: 0 | LD50: 0 | LE50: 0 | LF50: 0 | LG50: 0 | LH50: 0 | LI50: 0 | LJ50: 0 | LK50: 0 | LL50: 0 | LM50: 0 | LN50: 0 | LO50: 0 | LP50: 0 | LQ50: 0 | LR50: 0 | LS50: 0 | LT50: =$E$50*LT7 -> 0 | LU50: 0 | LV50: 0 | LW50: 0 | LX50: 0 | LY50: 0 | LZ50: 0 | MA50: 0 | MB50: 0 | MC50: 0 | MD50: 0 | ME50: 0 | MF50: 0 | MG50: 0 | MH50: 0 | MI50: 0 | MJ50: 0 | MK50: 0 | ML50: 0 | MM50: 0 | MN50: 0 | MO50: 0 | MP50: 0 | MQ50: 0 | MR50: 0 | MS50: 0 | MT50: 0 | MU50: 0 | MV50: 0 | MW50: 0 | MX50: 0 | MY50: 0 | MZ50: 0 | NA50: 0 | NB50: 0 | NC50: 0 | ND50: 0 | NE50: 0 | NF50: 0 | NG50: 0 | NH50: 0 | NI50: 0 | NJ50: 0 | NK50: 0 | NL50: 0 | NM50: 0 | NN50: 0 | NO50: 0 | NP50: 0 | NQ50: 0 | NR50: 0 | NS50: 0 | NT50: 0 | NU50: 0 | NV50: 0 | NW50: 0 | NX50: 0 | NY50: 0 | NZ50: 0 | OA50: 0 | OB50: 0 | OC50: 0 | OD50: 0 | OE50: 0 | OF50: =$E$50*OF7 -> 0 | OG50: 0 | OH50: 0 | OI50: 0 | OJ50: 0 | OK50: 0 | OL50: 0 | OM50: 0 | ON50: 0 | OO50: 0 | OP50: 0 | OQ50: 0 | OR50: 0 | OS50: 0 | OT50: 0 | OU50: 0 | OV50: 0 | OW50: 0 | OX50: 0 | OY50: 0 | OZ50: 0 | PA50: 0 | PB50: 0 | PC50: 0 | PD50: 0 | PE50: 0 | PF50: 0 | PG50: 0 | PH50: 0 | PI50: 0 | PJ50: 0 | PK50: 0 | PL50: 0 | PM50: 0 | PN50: 0 | PO50: 0 | PP50: 0 | PQ50: 0 | PR50: 0 | PS50: 0 | PT50: 0 | PU50: 0 | PV50: 0 | PW50: 0 | PX50: 0 | PY50: 0 | PZ50: 0 | QA50: 0 | QB50: 0 | QC50: 0 | QD50: 0 | QE50: 0 | QF50: 0 | QG50: 0 | QH50: 0 | QI50: 0 | QJ50: 0 | QK50: 0 | QL50: 0 | QM50: 0 | QN50: 0 | QO50: 0 | QP50: 0 | QQ50: 0 | QR50: =$E$50*QR7 -> 0 | QS50: 0 | QT50: 0 | QU50: 0 | QV50: 0 | QW50: 0 | QX50: 0 | QY50: 0 | QZ50: 0 | RA50: 0 | RB50: 0 | RC50: 0 | RD50: 0 | RE50: 0 | RF50: 0 | RG50: 0 | RH50: 0 | RI50: 0 | RJ50: 0 | RK50: 0 | RL50: 0 | RM50: 0 | RN50: 0 | RO50: 0 | RP50: 0 | RQ50: 0 | RR50: 0 | RS50: 0 | RT50: 0 | RU50: 0 | RV50: 0 | RW50: 0 | RX50: 0 | RY50: 0 | RZ50: 0 | SA50: 0 | SB50: 0 | SC50: 0 | SD50: 0 | SE50: 0 | SF50: 0 | SG50: 0 | SH50: 0 | SI50: 0 | SJ50: 0 | SK50: 0 | SL50: 0 | SM50: 0 | SN50: 0 | SO50: 0 | SP50: 0 | SQ50: 0
D51: Land Lease | G51: Euro/month | L51: =L50/Months -> 0 | M51: 0 | N51: 0 | O51: 0 | P51: 0 | Q51: 0 | R51: 0 | S51: 0 | T51: 0 | U51: 0 | V51: 0 | W51: 0 | X51: 0 | Y51: 0 | Z51: 0 | AA51: 0 | AB51: 0 | AC51: 0 | AD51: 0 | AE51: 0 | AF51: 0 | AG51: 0 | AH51: 0 | AI51: 0 | AJ51: 0 | AK51: 0 | AL51: 0 | AM51: 0 | AN51: 0 | AO51: 0 | AP51: 0 | AQ51: 0 | AR51: 0 | AS51: 0 | AT51: 0 | AU51: 0 | AV51: 0 | AW51: 0 | AX51: 0 | AY51: 0 | AZ51: 0 | BA51: 0 | BB51: 0 | BC51: 0 | BD51: 0 | BE51: 0 | BF51: 0 | BG51: 0 | BH51: 0 | BI51: 0 | BJ51: 0 | BK51: 0 | BL51: 0 | BM51: 0 | BN51: 0 | BO51: 0 | BP51: 0 | BQ51: 0 | BR51: 0 | BS51: 0 | BT51: 0 | BU51: 0 | BV51: 0 | BW51: 0 | BX51: =BX50/Months -> 0 | BY51: 0 | BZ51: 0 | CA51: 0 | CB51: 0 | CC51: 0 | CD51: 0 | CE51: 0 | CF51: 0 | CG51: 0 | CH51: 0 | CI51: 0 | CJ51: 0 | CK51: 0 | CL51: 0 | CM51: 0 | CN51: 0 | CO51: 0 | CP51: 0 | CQ51: 0 | CR51: 0 | CS51: 0 | CT51: 0 | CU51: 0 | CV51: 0 | CW51: 0 | CX51: 0 | CY51: 0 | CZ51: 0 | DA51: 0 | DB51: 0 | DC51: 0 | DD51: 0 | DE51: 0 | DF51: 0 | DG51: 0 | DH51: 0 | DI51: 0 | DJ51: 0 | DK51: 0 | DL51: 0 | DM51: 0 | DN51: 0 | DO51: 0 | DP51: 0 | DQ51: 0 | DR51: 0 | DS51: 0 | DT51: 0 | DU51: 0 | DV51: 0 | DW51: 0 | DX51: 0 | DY51: 0 | DZ51: 0 | EA51: 0 | EB51: 0 | EC51: 0 | ED51: 0 | EE51: 0 | EF51: 0 | EG51: 0 | EH51: 0 | EI51: 0 | EJ51: =EJ50/Months -> 0 | EK51: 0 | EL51: 0 | EM51: 0 | EN51: 0 | EO51: 0 | EP51: 0 | EQ51: 0 | ER51: 0 | ES51: 0 | ET51: 0 | EU51: 0 | EV51: 0 | EW51: 0 | EX51: 0 | EY51: 0 | EZ51: 0 | FA51: 0 | FB51: 0 | FC51: 0 | FD51: 0 | FE51: 0 | FF51: 0 | FG51: 0 | FH51: 0 | FI51: 0 | FJ51: 0 | FK51: 0 | FL51: 0 | FM51: 0 | FN51: 0 | FO51: 0 | FP51: 0 | FQ51: 0 | FR51: 0 | FS51: 0 | FT51: 0 | FU51: 0 | FV51: 0 | FW51: 0 | FX51: 0 | FY51: 0 | FZ51: 0 | GA51: 0 | GB51: 0 | GC51: 0 | GD51: 0 | GE51: 0 | GF51: 0 | GG51: 0 | GH51: 0 | GI51: 0 | GJ51: 0 | GK51: 0 | GL51: 0 | GM51: 0 | GN51: 0 | GO51: 0 | GP51: 0 | GQ51: 0 | GR51: 0 | GS51: 0 | GT51: 0 | GU51: 0 | GV51: =GV50/Months -> 0 | GW51: 0 | GX51: 0 | GY51: 0 | GZ51: 0 | HA51: 0 | HB51: 0 | HC51: 0 | HD51: 0 | HE51: 0 | HF51: 0 | HG51: 0 | HH51: 0 | HI51: 0 | HJ51: 0 | HK51: 0 | HL51: 0 | HM51: 0 | HN51: 0 | HO51: 0 | HP51: 0 | HQ51: 0 | HR51: 0 | HS51: 0 | HT51: 0 | HU51: 0 | HV51: 0 | HW51: 0 | HX51: 0 | HY51: 0 | HZ51: 0 | IA51: 0 | IB51: 0 | IC51: 0 | ID51: 0 | IE51: 0 | IF51: 0 | IG51: 0 | IH51: 0 | II51: 0 | IJ51: 0 | IK51: 0 | IL51: 0 | IM51: 0 | IN51: 0 | IO51: 0 | IP51: 0 | IQ51: 0 | IR51: 0 | IS51: 0 | IT51: 0 | IU51: 0 | IV51: 0 | IW51: 0 | IX51: 0 | IY51: 0 | IZ51: 0 | JA51: 0 | JB51: 0 | JC51: 0 | JD51: 0 | JE51: 0 | JF51: 0 | JG51: 0 | JH51: =JH50/Months -> 0 | JI51: 0 | JJ51: 0 | JK51: 0 | JL51: 0 | JM51: 0 | JN51: 0 | JO51: 0 | JP51: 0 | JQ51: 0 | JR51: 0 | JS51: 0 | JT51: 0 | JU51: 0 | JV51: 0 | JW51: 0 | JX51: 0 | JY51: 0 | JZ51: 0 | KA51: 0 | KB51: 0 | KC51: 0 | KD51: 0 | KE51: 0 | KF51: 0 | KG51: 0 | KH51: 0 | KI51: 0 | KJ51: 0 | KK51: 0 | KL51: 0 | KM51: 0 | KN51: 0 | KO51: 0 | KP51: 0 | KQ51: 0 | KR51: 0 | KS51: 0 | KT51: 0 | KU51: 0 | KV51: 0 | KW51: 0 | KX51: 0 | KY51: 0 | KZ51: 0 | LA51: 0 | LB51: 0 | LC51: 0 | LD51: 0 | LE51: 0 | LF51: 0 | LG51: 0 | LH51: 0 | LI51: 0 | LJ51: 0 | LK51: 0 | LL51: 0 | LM51: 0 | LN51: 0 | LO51: 0 | LP51: 0 | LQ51: 0 | LR51: 0 | LS51: 0 | LT51: =LT50/Months -> 0 | LU51: 0 | LV51: 0 | LW51: 0 | LX51: 0 | LY51: 0 | LZ51: 0 | MA51: 0 | MB51: 0 | MC51: 0 | MD51: 0 | ME51: 0 | MF51: 0 | MG51: 0 | MH51: 0 | MI51: 0 | MJ51: 0 | MK51: 0 | ML51: 0 | MM51: 0 | MN51: 0 | MO51: 0 | MP51: 0 | MQ51: 0 | MR51: 0 | MS51: 0 | MT51: 0 | MU51: 0 | MV51: 0 | MW51: 0 | MX51: 0 | MY51: 0 | MZ51: 0 | NA51: 0 | NB51: 0 | NC51: 0 | ND51: 0 | NE51: 0 | NF51: 0 | NG51: 0 | NH51: 0 | NI51: 0 | NJ51: 0 | NK51: 0 | NL51: 0 | NM51: 0 | NN51: 0 | NO51: 0 | NP51: 0 | NQ51: 0 | NR51: 0 | NS51: 0 | NT51: 0 | NU51: 0 | NV51: 0 | NW51: 0 | NX51: 0 | NY51: 0 | NZ51: 0 | OA51: 0 | OB51: 0 | OC51: 0 | OD51: 0 | OE51: 0 | OF51: =OF50/Months -> 0 | OG51: 0 | OH51: 0 | OI51: 0 | OJ51: 0 | OK51: 0 | OL51: 0 | OM51: 0 | ON51: 0 | OO51: 0 | OP51: 0 | OQ51: 0 | OR51: 0 | OS51: 0 | OT51: 0 | OU51: 0 | OV51: 0 | OW51: 0 | OX51: 0 | OY51: 0 | OZ51: 0 | PA51: 0 | PB51: 0 | PC51: 0 | PD51: 0 | PE51: 0 | PF51: 0 | PG51: 0 | PH51: 0 | PI51: 0 | PJ51: 0 | PK51: 0 | PL51: 0 | PM51: 0 | PN51: 0 | PO51: 0 | PP51: 0 | PQ51: 0 | PR51: 0 | PS51: 0 | PT51: 0 | PU51: 0 | PV51: 0 | PW51: 0 | PX51: 0 | PY51: 0 | PZ51: 0 | QA51: 0 | QB51: 0 | QC51: 0 | QD51: 0 | QE51: 0 | QF51: 0 | QG51: 0 | QH51: 0 | QI51: 0 | QJ51: 0 | QK51: 0 | QL51: 0 | QM51: 0 | QN51: 0 | QO51: 0 | QP51: 0 | QQ51: 0 | QR51: =QR50/Months -> 0 | QS51: 0 | QT51: 0 | QU51: 0 | QV51: 0 | QW51: 0 | QX51: 0 | QY51: 0 | QZ51: 0 | RA51: 0 | RB51: 0 | RC51: 0 | RD51: 0 | RE51: 0 | RF51: 0 | RG51: 0 | RH51: 0 | RI51: 0 | RJ51: 0 | RK51: 0 | RL51: 0 | RM51: 0 | RN51: 0 | RO51: 0 | RP51: 0 | RQ51: 0 | RR51: 0 | RS51: 0 | RT51: 0 | RU51: 0 | RV51: 0 | RW51: 0 | RX51: 0 | RY51: 0 | RZ51: 0 | SA51: 0 | SB51: 0 | SC51: 0 | SD51: 0 | SE51: 0 | SF51: 0 | SG51: 0 | SH51: 0 | SI51: 0 | SJ51: 0 | SK51: 0 | SL51: 0 | SM51: 0 | SN51: 0 | SO51: 0 | SP51: 0 | SQ51: 0
C53: Base O&M Costs
D54: Age | G54: Year | L54: =L22 -> 0 | M54: =M22 -> 1 | N54: 1 | O54: 1 | P54: 1 | Q54: 1 | R54: 1 | S54: 1 | T54: 1 | U54: 1 | V54: 1 | W54: 1 | X54: 1 | Y54: 2 | Z54: 2 | AA54: 2 | AB54: 2 | AC54: 2 | AD54: 2 | AE54: 2 | AF54: 2 | AG54: 2 | AH54: 2 | AI54: 2 | AJ54: 2 | AK54: 3 | AL54: 3 | AM54: 3 | AN54: 3 | AO54: 3 | AP54: 3 | AQ54: 3 | AR54: 3 | AS54: 3 | AT54: 3 | AU54: 3 | AV54: 3 | AW54: 4 | AX54: 4 | AY54: 4 | AZ54: 4 | BA54: 4 | BB54: 4 | BC54: 4 | BD54: 4 | BE54: 4 | BF54: 4 | BG54: 4 | BH54: 4 | BI54: 5 | BJ54: 5 | BK54: 5 | BL54: 5 | BM54: 5 | BN54: 5 | BO54: 5 | BP54: 5 | BQ54: 5 | BR54: 5 | BS54: 5 | BT54: 5 | BU54: 6 | BV54: 6 | BW54: 6 | BX54: 6 | BY54: =BY22 -> 6 | BZ54: 6 | CA54: 6 | CB54: 6 | CC54: 6 | CD54: 6 | CE54: 6 | CF54: 6 | CG54: 7 | CH54: 7 | CI54: 7 | CJ54: 7 | CK54: 7 | CL54: 7 | CM54: 7 | CN54: 7 | CO54: 7 | CP54: 7 | CQ54: 7 | CR54: 7 | CS54: 8 | CT54: 8 | CU54: 8 | CV54: 8 | CW54: 8 | CX54: 8 | CY54: 8 | CZ54: 8 | DA54: 8 | DB54: 8 | DC54: 8 | DD54: 8 | DE54: 9 | DF54: 9 | DG54: 9 | DH54: 9 | DI54: 9 | DJ54: 9 | DK54: 9 | DL54: 9 | DM54: 9 | DN54: 9 | DO54: 9 | DP54: 9 | DQ54: 10 | DR54: 10 | DS54: 10 | DT54: 10 | DU54: 10 | DV54: 10 | DW54: 10 | DX54: 10 | DY54: 10 | DZ54: 10 | EA54: 10 | EB54: 10 | EC54: 11 | ED54: 11 | EE54: 11 | EF54: 11 | EG54: 11 | EH54: 11 | EI54: 11 | EJ54: 11 | EK54: =EK22 -> 11 | EL54: 11 | EM54: 11 | EN54: 11 | EO54: 12 | EP54: 12 | EQ54: 12 | ER54: 12 | ES54: 12 | ET54: 12 | EU54: 12 | EV54: 12 | EW54: 12 | EX54: 12 | EY54: 12 | EZ54: 12 | FA54: 13 | FB54: 13 | FC54: 13 | FD54: 13 | FE54: 13 | FF54: 13 | FG54: 13 | FH54: 13 | FI54: 13 | FJ54: 13 | FK54: 13 | FL54: 13 | FM54: 14 | FN54: 14 | FO54: 14 | FP54: 14 | FQ54: 14 | FR54: 14 | FS54: 14 | FT54: 14 | FU54: 14 | FV54: 14 | FW54: 14 | FX54: 14 | FY54: 15 | FZ54: 15 | GA54: 15 | GB54: 15 | GC54: 15 | GD54: 15 | GE54: 15 | GF54: 15 | GG54: 15 | GH54: 15 | GI54: 15 | GJ54: 15 | GK54: 16 | GL54: 16 | GM54: 16 | GN54: 16 | GO54: 16 | GP54: 16 | GQ54: 16 | GR54: 16 | GS54: 16 | GT54: 16 | GU54: 16 | GV54: 16 | GW54: =GW22 -> 17 | GX54: 17 | GY54: 17 | GZ54: 17 | HA54: 17 | HB54: 17 | HC54: 17 | HD54: 17 | HE54: 17 | HF54: 17 | HG54: 17 | HH54: 17 | HI54: 18 | HJ54: 18 | HK54: 18 | HL54: 18 | HM54: 18 | HN54: 18 | HO54: 18 | HP54: 18 | HQ54: 18 | HR54: 18 | HS54: 18 | HT54: 18 | HU54: 19 | HV54: 19 | HW54: 19 | HX54: 19 | HY54: 19 | HZ54: 19 | IA54: 19 | IB54: 19 | IC54: 19 | ID54: 19 | IE54: 19 | IF54: 19 | IG54: 20 | IH54: 20 | II54: 20 | IJ54: 20 | IK54: 20 | IL54: 20 | IM54: 20 | IN54: 20 | IO54: 20 | IP54: 20 | IQ54: 20 | IR54: 20 | IS54: 21 | IT54: 21 | IU54: 21 | IV54: 21 | IW54: 21 | IX54: 21 | IY54: 21 | IZ54: 21 | JA54: 21 | JB54: 21 | JC54: 21 | JD54: 21 | JE54: 22 | JF54: 22 | JG54: 22 | JH54: 22 | JI54: =JI22 -> 22 | JJ54: 22 | JK54: 22 | JL54: 22 | JM54: 22 | JN54: 22 | JO54: 22 | JP54: 22 | JQ54: 23 | JR54: 23 | JS54: 23 | JT54: 23 | JU54: 23 | JV54: 23 | JW54: 23 | JX54: 23 | JY54: 23 | JZ54: 23 | KA54: 23 | KB54: 23 | KC54: 24 | KD54: 24 | KE54: 24 | KF54: 24 | KG54: 24 | KH54: 24 | KI54: 24 | KJ54: 24 | KK54: 24 | KL54: 24 | KM54: 24 | KN54: 24 | KO54: 25 | KP54: 25 | KQ54: 25 | KR54: 25 | KS54: 25 | KT54: 25 | KU54: 25 | KV54: 25 | KW54: 25 | KX54: 25 | KY54: 25 | KZ54: 25 | LA54: 26 | LB54: 26 | LC54: 26 | LD54: 26 | LE54: 26 | LF54: 26 | LG54: 26 | LH54: 26 | LI54: 26 | LJ54: 26 | LK54: 26 | LL54: 26 | LM54: 27 | LN54: 27 | LO54: 27 | LP54: 27 | LQ54: 27 | LR54: 27 | LS54: 27 | LT54: 27 | LU54: =LU22 -> 27 | LV54: 27 | LW54: 27 | LX54: 27 | LY54: 28 | LZ54: 28 | MA54: 28 | MB54: 28 | MC54: 28 | MD54: 28 | ME54: 28 | MF54: 28 | MG54: 28 | MH54: 28 | MI54: 28 | MJ54: 28 | MK54: 29 | ML54: 29 | MM54: 29 | MN54: 29 | MO54: 29 | MP54: 29 | MQ54: 29 | MR54: 29 | MS54: 29 | MT54: 29 | MU54: 29 | MV54: 29 | MW54: 30 | MX54: 30 | MY54: 30 | MZ54: 30 | NA54: 30 | NB54: 30 | NC54: 30 | ND54: 30 | NE54: 30 | NF54: 30 | NG54: 30 | NH54: 30 | NI54: 31 | NJ54: 31 | NK54: 31 | NL54: 31 | NM54: 31 | NN54: 31 | NO54: 31 | NP54: 31 | NQ54: 31 | NR54: 31 | NS54: 31 | NT54: 31 | NU54: 32 | NV54: 32 | NW54: 32 | NX54: 32 | NY54: 32 | NZ54: 32 | OA54: 32 | OB54: 32 | OC54: 32 | OD54: 32 | OE54: 32 | OF54: 32 | OG54: =OG22 -> 33 | OH54: 33 | OI54: 33 | OJ54: 33 | OK54: 33 | OL54: 33 | OM54: 33 | ON54: 33 | OO54: 33 | OP54: 33 | OQ54: 33 | OR54: 33 | OS54: 34 | OT54: 34 | OU54: 34 | OV54: 34 | OW54: 34 | OX54: 34 | OY54: 34 | OZ54: 34 | PA54: 34 | PB54: 34 | PC54: 34 | PD54: 34 | PE54: 35 | PF54: 35 | PG54: 35 | PH54: 35 | PI54: 35 | PJ54: 35 | PK54: 35 | PL54: 35 | PM54: 35 | PN54: 35 | PO54: 35 | PP54: 35 | PQ54: 35 | PR54: 35 | PS54: 35 | PT54: 35 | PU54: 35 | PV54: 35 | PW54: 35 | PX54: 35 | PY54: 35 | PZ54: 35 | QA54: 35 | QB54: 35 | QC54: 35 | QD54: 35 | QE54: 35 | QF54: 35 | QG54: 35 | QH54: 35 | QI54: 35 | QJ54: 35 | QK54: 35 | QL54: 35 | QM54: 35 | QN54: 35 | QO54: 35 | QP54: 35 | QQ54: 35 | QR54: 35 | QS54: =QS22 -> 35 | QT54: 35 | QU54: 35 | QV54: 35 | QW54: 35 | QX54: 35 | QY54: 35 | QZ54: 35 | RA54: 35 | RB54: 35 | RC54: 35 | RD54: 35 | RE54: 35 | RF54: 35 | RG54: 35 | RH54: 35 | RI54: 35 | RJ54: 35 | RK54: 35 | RL54: 35 | RM54: 35 | RN54: 35 | RO54: 35 | RP54: 35 | RQ54: 35 | RR54: 35 | RS54: 35 | RT54: 35 | RU54: 35 | RV54: 35 | RW54: 35 | RX54: 35 | RY54: 35 | RZ54: 35 | SA54: 35 | SB54: 35 | SC54: 35 | SD54: 35 | SE54: 35 | SF54: 35 | SG54: 35 | SH54: 35 | SI54: 35 | SJ54: 35 | SK54: 35 | SL54: 35 | SM54: 35 | SN54: 35 | SO54: 35 | SP54: 35 | SQ54: 35
